Workbook

Sheet IMP-RESUMEN
B1: EDECHI
B3: INGRESO MÁXIMO PERMITIDO = IMP
B5: En miles de Balboas
B7: INGRESO MÁXIMO PERMITIDO | C7: JUL22/ JUN23 | D7: JUL23 / JUN24 | E7: JUL24 / JUN25 | F7: JUL25/ JUN26
B9: IPSD - Ingreso Máximo Permitido por Distribución | C9: =+IMPD!D15 -> 40615.28661 | D9: =+IMPD!E15 -> 43923.88481 | E9: =+IMPD!F15 -> 47575.05845 | F9: =+IMPD!G15 -> 51809.03411
B10: IMPCO - Ingreso Máximo Permitido por Comercialización | C10: =+IMPCO!D14 -> 9172.318253 | D10: =+IMPCO!E14 -> 9550.228084 | E10: =+IMPCO!F14 -> 9980.537173 | F10: =+IMPCO!G14 -> 10408.71927
B11: ALUMPU - Ingreso Máximo Permitido por Alumbrado Público | C11: =+ALUMPU!D14 -> 1403.585038 | D11: =+ALUMPU!E14 -> 1369.455004 | E11: =+ALUMPU!F14 -> 1365.195131 | F11: =+ALUMPU!G14 -> 1340.648582
B12: IPPD - Ingreso Máximo Permitido por Pérdidas en Distribución | C12: =+IMPD!D19 -> 8926.184491 | D12: =+IMPD!E19 -> 9219.255364 | E12: =+IMPD!F19 -> 10437.08701 | F12: =+IMPD!G19 -> 11167.1231
B13: INVNE - Descuento por Inversiones no Ejecutadas en periodo anterior | C13: -2264.109312
B15: IMP - Ingreso Máximo Permitido | C15: =+C9+C12+C10+C11+C13 -> 57853.26508 | D15: =+D9+D12+D10+D11+D13 -> 64062.82326 | E15: =+E9+E12+E10+E11+E13 -> 69357.87777 | F15: =+F9+F12+F10+F11+F13 -> 74725.52507
B17: Factor de Descuento | C17: =1/(1+RETORNO!D38) -> 0.9191176471 | D17: =1/(1+RETORNO!D38)*1/(1+RETORNO!D38) -> 0.8447772491 | E17: =1/(1+RETORNO!D38)*1/(1+RETORNO!D38)*1/(1+RETORNO!D38) -> 0.7764496775 | F17: =1/(1+RETORNO!D38)*1/(1+RETORNO!D38)*1/(1+RETORNO!D38)*1/(1+RETORNO!D38) -> 0.7136486007
B18: Factor de Descuento Aplicado | C18: =+(1+C17)/2 -> 0.9595588235 | D18: =+(C17+D17)/2 -> 0.8819474481 | E18: =+(D17+E17)/2 -> 0.8106134633 | F18: =+(E17+F17)/2 -> 0.7450491391
B20: VPN DEL INGRESO MÁXIMO PERMITIDO | C20: =C7 -> JUL22/ JUN23 | D20: =D7 -> JUL23 / JUN24 | E20: JUL24 / JUN25 | F20: JUL25/ JUN26
B22: IPSD | C22: =+(C9+$C$13/SUM($C$9:$C$12)*C9)*C$18 -> 37504.98493 | D22: =+D9*D$18 -> 38738.55812 | E22: 38564.9829 | F22: 38600.27626
B23: IMPCO | C23: =+(C10+$C$13/SUM($C$9:$C$12)*C10)*C$18 -> 8469.905953 | D23: 8422.799287 | E23: 8090.357804 | F23: 7755.007331
B24: ALUMPU | C24: =+(C11+$C$13/SUM($C$9:$C$12)*C11)*C$18 -> 1296.099083 | D24: 1207.787346 | E24: 1106.645554 | F24: 998.8490716
B25: IPPD | C25: =+(C12+$C$13/SUM($C$9:$C$12)*C12)*C$18 -> 8242.621012 | D25: 8130.898741 | E25: 8460.44325 | F25: 8320.055454
B27: IMP | C27: =SUM(C22:C26) -> 55513.61098 | D27: =SUM(D22:D26) -> 56500.04349 | E27: =SUM(E22:E26) -> 56222.42951 | F27: =SUM(F22:F26) -> 55674.18812
B29: Energía Facturada (MWh) sin incluir AP | C29: =C18*DEMANDA!E12 -> 872374.611 | D29: =D18*DEMANDA!F12 -> 837443.7281 | E29: =E18*DEMANDA!G12 -> 806781.7493 | F29: =F18*DEMANDA!H12 -> 779082.0705
B32: VALOR PRESENTE NETO - INGRESO MÁXIMO PERMITIDO
B33: Expresado a junio 2022 | C33: UNIDADES | D33: JULIO/22-JUNIO/26
B35: VP-IPSD - DISTRIBUCIÓN | C35: Miles de B/. | D35: =+C22+D22+E22+F22 -> 153408.8022
B36: VP-IMPCO - COMERCIALIZACIÓN | C36: Miles de B/. | D36: =+C23+D23+E23+F23 -> 32738.07038
B37: VP-ALUMPU - ALUMBRADO PÚBLICO | C37: Miles de B/. | D37: =+C24+D24+E24+F24 -> 4609.381054
B38: SUB-TOTAL | C38: Miles de B/. | D38: =SUM(D35:D37) -> 190756.2536
B39: VP-IPPD - PÉRDIDAS DE DISTRIBUCIÓN | C39: Miles de B/. | D39: =+C25+D25+E25+F25 -> 33154.01846
B40: IMP TOTAL | C40: Miles de B/. | D40: =SUM(D35:D37)+D39 -> 223910.2721
B41: ENERGIA FACTURADA (sin AP) | C41: MWh | D41: =+C29+D29+E29+F29 -> 3295682.159
B42: IMP | C42: B/./MWh | D42: =+D40/D41*1000 -> 67.94049344
B43: IMP S/Pérdidas | C43: B/./MWh | D43: =D42-(D39*1000/D41) -> 57.88065852
B45: (1) Las pérdidas estándar de energía se han fijado conforme a las ecuaciones de eficiencia, no obstante, el monto (en B/.) es un valor de referencia.
B46: El mismo se revisa semestralmente, según varía el costo real de la energía.
C47: Considerando Inversiones para Soterramiento
C48: SI

Sheet IMPD
B2: EDECHI
B4: INGRESO MÁXIMO PERMITIDO POR DISTRIBUCIÓN = IMPD
B5: En miles de Balboas
B7: DISTRIBUCIÓN | D7: ='IMP-RESUMEN'!C7:C8 -> JUL22/ JUN23 | E7: ='IMP-RESUMEN'!D7:D8 -> JUL23 / JUN24 | F7: ='IMP-RESUMEN'!E7:E8 -> JUL24 / JUN25 | G7: ='IMP-RESUMEN'!F7:F8 -> JUL25/ JUN26
B10: Rentabilidad sobre Activos | C10: BCDN * RR | D10: =+ACTIVOS!G14*RETORNO!$D$38 -> 12072.75247 | E10: =+ACTIVOS!H14*RETORNO!$D$38 -> 14490.53895 | F10: =+ACTIVOS!I14*RETORNO!$D$38 -> 16665.87821 | G10: =+ACTIVOS!J14*RETORNO!$D$38 -> 19380.2936
B11: Depreciación | C11: Depo+INVi * DEP% | D11: ='BC y Dep'!D76/1000+((ACTIVOS!G9-ACTIVOS!F9)/2)*'PERDIDAS y OTROS'!E$11 -> 7134.214515 | E11: ='BC y Dep'!E76/1000+(ACTIVOS!G9-ACTIVOS!F9)*'PERDIDAS y OTROS'!E$11+((ACTIVOS!H9-ACTIVOS!G9)/2)*'PERDIDAS y OTROS'!F$11 -> 7415.288151 | F11: ='BC y Dep'!F76/1000+(ACTIVOS!G9-ACTIVOS!F9)*'PERDIDAS y OTROS'!E$11+(ACTIVOS!H9-ACTIVOS!G9)*'PERDIDAS y OTROS'!F$11+((ACTIVOS!I9-ACTIVOS!H9)/2)*'PERDIDAS y OTROS'!G$11 -> 8278.481409 | G11: ='BC y Dep'!G76/1000+(ACTIVOS!G9-ACTIVOS!F9)*'PERDIDAS y OTROS'!E$11+(ACTIVOS!H9-ACTIVOS!G9)*'PERDIDAS y OTROS'!F$11+(ACTIVOS!I9-ACTIVOS!H9)*'PERDIDAS y OTROS'!G$11+((ACTIVOS!J9-ACTIVOS!I9))/2*'PERDIDAS y OTROS'!H$11 -> 9064.154618
B12: Operación y Mantenimiento | C12: OM | D12: ='Costos y Pérdidas Eficientes'!N65/1000 -> 12253.55203 | E12: ='Costos y Pérdidas Eficientes'!O65/1000 -> 12593.55143 | F12: ='Costos y Pérdidas Eficientes'!P65/1000 -> 12933.97031 | G12: ='Costos y Pérdidas Eficientes'!Q65/1000 -> 13369.69133
B13: Administración | C13: ADM | D13: ='Costos y Pérdidas Eficientes'!N67/1000 -> 9154.767596 | E13: ='Costos y Pérdidas Eficientes'!O67/1000 -> 9424.506272 | F13: ='Costos y Pérdidas Eficientes'!P67/1000 -> 9696.728522 | G13: ='Costos y Pérdidas Eficientes'!Q67/1000 -> 9994.894568
B15: IPSD | D15: =+D13+D12+D11+D10 -> 40615.28661 | E15: =+E13+E12+E11+E10 -> 43923.88481 | F15: =+F13+F12+F11+F10 -> 47575.05845 | G15: =+G13+G12+G11+G10 -> 51809.03411
B17: Pérdidas (incluye NT) | C17: (PD%) * MWhD * CMM | D17: =+('PERDIDAS y OTROS'!E9+'PERDIDAS y OTROS'!E10)*'PERDIDAS y OTROS'!E8*DEMANDA!E7/1000 -> 8926.184491 | E17: =+('PERDIDAS y OTROS'!F9+'PERDIDAS y OTROS'!F10)*'PERDIDAS y OTROS'!F8*DEMANDA!F7/1000 -> 9219.255364 | F17: =+('PERDIDAS y OTROS'!G9+'PERDIDAS y OTROS'!G10)*'PERDIDAS y OTROS'!G8*DEMANDA!G7/1000 -> 10437.08701 | G17: =+('PERDIDAS y OTROS'!H9+'PERDIDAS y OTROS'!H10)*'PERDIDAS y OTROS'!H8*DEMANDA!H7/1000 -> 11167.1231
B19: IPPD | D19: =+D17+D18 -> 8926.184491 | E19: =+E17+E18 -> 9219.255364 | F19: =+F17+F18 -> 10437.08701 | G19: =+G17+G18 -> 11167.1231
B21: IMPD | D21: =+D15+D19 -> 49541.4711 | E21: =+E15+E19 -> 53143.14017 | F21: =+F15+F19 -> 58012.14547 | G21: =+G15+G19 -> 62976.15722

Sheet IMPCO
B2: EDECHI
B4: INGRESO MÁXIMO PERMITIDO POR COMERCIALIZACIÓN = IMPCO
B5: En miles de Balboas
B7: COMERCIALIZACION | D7: =IMPD!D7 -> JUL22/ JUN23 | E7: =IMPD!E7 -> JUL23 / JUN24 | F7: =IMPD!F7 -> JUL24 / JUN25 | G7: =IMPD!G7 -> JUL25/ JUN26
B10: Rentabilidad sobre Activos | C10: BCNC * RR | D10: =+ACTIVOS!G15*RETORNO!$D$38 -> 770.4758991 | E10: =+ACTIVOS!H15*RETORNO!$D$38 -> 847.1163826 | F10: =+ACTIVOS!I15*RETORNO!$D$38 -> 924.0220825 | G10: =+ACTIVOS!J15*RETORNO!$D$38 -> 1002.246138
B11: Depreciación | C11: Depo+INVi * DEP% | D11: ='BC y Dep'!D78/1000+((ACTIVOS!G10-ACTIVOS!F10)/2)*'PERDIDAS y OTROS'!E$12 -> 706.2374828 | E11: ='BC y Dep'!E78/1000+(ACTIVOS!G10-ACTIVOS!F10)*'PERDIDAS y OTROS'!E$12+((ACTIVOS!H10-ACTIVOS!G10)/2)*'PERDIDAS y OTROS'!F$12 -> 689.5199966 | F11: ='BC y Dep'!F78/1000+(ACTIVOS!G10-ACTIVOS!F10)*'PERDIDAS y OTROS'!E$12+(ACTIVOS!H10-ACTIVOS!G10)*'PERDIDAS y OTROS'!F$12+((ACTIVOS!I10-ACTIVOS!H10)/2)*'PERDIDAS y OTROS'!G$12 -> 717.4303775 | G11: ='BC y Dep'!G78/1000+(ACTIVOS!G10-ACTIVOS!F10)*'PERDIDAS y OTROS'!E$12+(ACTIVOS!H10-ACTIVOS!G10)*'PERDIDAS y OTROS'!F$12+(ACTIVOS!I10-ACTIVOS!H10)*'PERDIDAS y OTROS'!G$12+((ACTIVOS!J10-ACTIVOS!I10)/2)*'PERDIDAS y OTROS'!H$12 -> 734.1896726
B12: Comercialización | C12: COM | D12: ='Costos y Pérdidas Eficientes'!N66/1000 -> 7695.604871 | E12: ='Costos y Pérdidas Eficientes'!O66/1000 -> 8013.591705 | F12: ='Costos y Pérdidas Eficientes'!P66/1000 -> 8339.084713 | G12: ='Costos y Pérdidas Eficientes'!Q66/1000 -> 8672.28346
B14: IMPCO | D14: =+D10+D11+D12 -> 9172.318253 | E14: =+E10+E11+E12 -> 9550.228084 | F14: =+F10+F11+F12 -> 9980.537173 | G14: =+G10+G11+G12 -> 10408.71927

Sheet ALUMPU
B2: EDECHI
B4: INGRESO MÁXIMO PERMITIDO POR ALUMBRADO PÚBLICO = ALUMPU
B5: En miles de Balboas
B7: ALUMBRADO PÚBLICO | D7: =IMPCO!D7 -> JUL22/ JUN23 | E7: =IMPCO!E7 -> JUL23 / JUN24 | F7: =IMPCO!F7 -> JUL24 / JUN25 | G7: =IMPCO!G7 -> JUL25/ JUN26
B10: Rentabilidad sobre Activos | C10: ACTNalum * RR | D10: =+ACTIVOS!G16*RETORNO!$D$38 -> 508.0973129 | E10: =+ACTIVOS!H16*RETORNO!$D$38 -> 503.045469 | F10: =+ACTIVOS!I16*RETORNO!$D$38 -> 498.839568 | G10: =+ACTIVOS!J16*RETORNO!$D$38 -> 497.5182488
B11: Depreciación | C11: Depo+INVi * DEP% | D11: ='BC y Dep'!D77/1000+((ACTIVOS!G11-ACTIVOS!F11)/2)*'PERDIDAS y OTROS'!E$13 -> 553.6547696 | E11: ='BC y Dep'!E77/1000+(ACTIVOS!G11-ACTIVOS!F11)*'PERDIDAS y OTROS'!E$13+((ACTIVOS!H11-ACTIVOS!G11)/2)*'PERDIDAS y OTROS'!F$13 -> 517.4073173 | F11: ='BC y Dep'!F77/1000+(ACTIVOS!G11-ACTIVOS!F11)*'PERDIDAS y OTROS'!E$13+(ACTIVOS!H11-ACTIVOS!G11)*'PERDIDAS y OTROS'!F$13+((ACTIVOS!I11-ACTIVOS!H11)/2)*'PERDIDAS y OTROS'!G$13 -> 507.79433 | G11: ='BC y Dep'!G77/1000+(ACTIVOS!G11-ACTIVOS!F11)*'PERDIDAS y OTROS'!E$13+(ACTIVOS!H11-ACTIVOS!G11)*'PERDIDAS y OTROS'!F$13+(ACTIVOS!I11-ACTIVOS!H11)*'PERDIDAS y OTROS'!G$13+((ACTIVOS!J11-ACTIVOS!I11)/2)*'PERDIDAS y OTROS'!H$13 -> 475.0149908
B12: Operación y Mantenimiento | C12: OMalum | D12: =$D$25*(D24+E24)/2/1000 -> 341.8329559 | E12: =$D$25*(E24+F24)/2/1000 -> 349.0022177 | F12: =$D$25*(F24+G24)/2/1000 -> 358.5612335 | G12: =$D$25*(G24+H24)/2/1000 -> 368.1153422
B14: ALUMPU | D14: =+D10+D11+D12 -> 1403.585038 | E14: =+E10+E11+E12 -> 1369.455004 | F14: 1365.195131 | G14: 1340.648582
D23: 2022-06-01 | E23: 2023-06-01 | F23: 2024-06-01 | G23: 2025-06-01 | H23: 2026-06-01
B24: Cantidad de luminarias al 30/6 | D24: 69174 | E24: =+D24+INVERSIONES!D31 -> 70148 | F24: =+E24+INVERSIONES!E31 -> 72096 | G24: =+F24+INVERSIONES!F31 -> 74044 | H24: =+G24+INVERSIONES!G31 -> 75990
B25: Costo O&M por luminaria [B/. /año] | D25: =MIN(D35,D37) -> 4.907092288
E27: =+(E24+D24)/2 -> 69661 | F27: =+(F24+E24)/2 -> 71122 | G27: =+(G24+F24)/2 -> 73070 | H27: 75017
B29: Detalle | C29: Unidad | D29: 2018 | E29: 2019 | F29: 2020 | G29: 2021 | H29: Promedio
B30: Costo AP | C30: B/. | D30: 291867.8309 | E30: 219325.9677 | F30: 223381.8182 | G30: 570464.64 | H30: =AVERAGE(D30:G30) -> 326260.0642
B31: Luminarias | C31: Cant. | D31: 62344.25 | E31: 63926.58333 | F31: 65627.66667 | G31: 66103.66667 | H31: =AVERAGE(D31:G31) -> 64500.54167
B33: Costo Mant./lum Cont. | D33: =D30/D31 -> 4.681551722 | E33: =E30/E31 -> 3.430903957 | F33: =F30/F31 -> 3.403775108 | G33: =G30/G31 -> 8.629848672 | H33: =H30/H31 -> 5.05825309
B35: Costo Mant./lum RT-1 (Act) | D35: 4.907092288 | E35: 0.999407798
B37: Costo Mant./lum | D37: =H33 -> 5.05825309

Sheet DEMANDA
B3: EDECHI
B5: IMPULSORES DE COSTOS | C5: Unidades | D5: BASE | E5: =ALUMPU!D7 -> JUL22/ JUN23 | F5: =ALUMPU!E7 -> JUL23 / JUN24 | G5: =ALUMPU!F7 -> JUL24 / JUN25 | H5: =ALUMPU!G7 -> JUL25/ JUN26 | I5: CREC.a.a.
B6: Demanda Máxima | C6: MW | D6: =+D7/8760/D15 -> 175.4513135 | E6: =+E7/8760/E15 -> 175.4257131 | F6: =+F7/8760/F15 -> 182.3327928 | G6: =+G7/8760/G15 -> 190.3962232 | H6: =+H7/8760/H15 -> 199.0986014 | I6: =(H6/D6)^(1/4)-1 -> 0.03211454012
B7: Energía ingresada al sist. Propio (eficiente) | C7: MWh | D7: =+(D12+D13)/(1-D14) -> 997775.2017 | E7: =+(E12+E13)/(1-E14) -> 1026045.232 | F7: 1071594.391 | G7: 1123157.705 | H7: 1179985.907 | I7: =(H7/D7)^(1/4)-1 -> 0.04282402628
B8: Clientes | C8: Nº clientes | D8: 179609.8555 | E8: 185933.8391 | F8: 193632.0619 | G8: 201512.6222 | H8: 209580.3702 | I8: =(H8/D8)^(1/4)-1 -> 0.03933394069
B9: DEM/CLIENTE | C9: KW/CL | D9: =D6/D8*1000 -> 0.9768468053 | E9: 1.836935005 | F9: 1.814307922 | G9: 1.784533004 | H9: 1.806068282
B10: ENERGIA-AÑO/CLIENTE | C10: MWh/CL | D10: =+D12/D8 -> 4.922164604 | E10: 9.060038081 | F10: 9.32608498 | G10: 8.982732672 | H10: 9.039666561
B12: Energia facturada sin AP | C12: MWh | D12: 884069.2731 | E12: 909141.3571 | F12: 949539.261 | G12: 995273.0688 | H12: 1045678.774 | I12: =(H12/D12)^(1/4)-1 -> 0.04286477633
B13: Energía facturada AP | C13: MWh | D13: 41897.05104 | E13: 43085.24569 | F13: 44999.74843 | G13: 47167.12573 | H13: 49555.90959 | I13: =(H13/D13)^(1/4)-1 -> 0.04286477633
B14: Perdidas eficientes | D14: =7.1880766251504%*D17 -> 0.07196899403 | E14: =7.1880766251504%*E17 -> 0.07194480978 | F14: 0.07190722765 | G14: 0.07186658682 | H14: 0.07182392821
B15: Factor de carga | D15: 0.6491902308 | E15: 0.6676812028 | F15: 0.6709057925 | G15: 0.6734080526 | H15: 0.6765571763
C17: Factor de Ajuste | D17: 1.001227418 | E17: 1.000890969 | F17: 1.000368129 | G17: 0.9998027367 | H17: 0.9992092732
D19: =D14*1000000000-('Costos y Pérdidas Eficientes'!M83+'PERDIDAS y OTROS'!E10)*1000000000 -> 0 | E19: =E14*1000000000-('Costos y Pérdidas Eficientes'!N83+'PERDIDAS y OTROS'!E10)*1000000000 -> 0 | F19: =F14*1000000000-('Costos y Pérdidas Eficientes'!O83+'PERDIDAS y OTROS'!F10)*1000000000 -> 0 | G19: =G14*1000000000-('Costos y Pérdidas Eficientes'!P83+'PERDIDAS y OTROS'!G10)*1000000000 -> 0 | H19: =H14*1000000000-('Costos y Pérdidas Eficientes'!Q83+'PERDIDAS y OTROS'!H10)*1000000000 -> 0

Sheet Costos y Pérdidas Eficientes
A1: EDECHI | K1: Estimaciones de los costos a partir de parametros estimados y las variables reales, actualizados U$S junio 2018
K3: ALTERNATIVA 2: UTILIZANDO NUEVOS MODELOS ESTADISTICOS PROPUESTO PARA EL PRESENTE ESTUDIO
K4: Tabla de parametos estimados CAPEX y OPEX
K5: Variable | L5: AD | M5: AC | N5: OMD | O5: COM | P5: ADM
K6: Ln(Mom_elec) | L6: 0.1647572 | M6: 0 | N6: 0.3955253 | O6: 0 | P6: 0
K7: Ln(Cl) | L7: 0.6364783 | M7: 0.9339533 | N7: 0 | O7: 0.9980485 | P7: 0
K8: Ln(km red aerea) | L8: 0 | M8: 0 | N8: 0 | O8: 0 | P8: 0
K9: Ln(km red subt) | L9: 0 | M9: 0 | N9: 0 | O9: 0 | P9: 0
K10: Ln(km red total) | L10: 0 | M10: 0 | N10: 0 | O10: 0 | P10: 0
K11: Ln(cl_km) | L11: 0 | M11: 0 | N11: 0 | O11: 0 | P11: 0
K12: Ln(dem_max) | L12: 0 | M12: 0 | N12: 0 | O12: 0 | P12: 0
K13: Ln(km_cuad) | L13: 0 | M13: 0 | N13: 0 | O13: 0 | P13: 0
K14: Ln(dem_max_cliente) | L14: 0 | M14: 0 | N14: 0 | O14: 0 | P14: 0
K15: Ln(energ_vend) | L15: 0 | M15: 0 | N15: 0 | O15: 0 | P15: 0
K16: Ln(oym_dist) | L16: 0 | M16: 0 | N16: 0 | O16: 0 | P16: 0.3289423
K17: Ln(oym_com) | L17: 0 | M17: 0 | N17: 0 | O17: 0 | P17: 0.4948351
K18: Ln(opexdiscom) | L18: 0 | M18: 0 | N18: 0 | O18: 0 | P18: 0
K19: Constante | L19: 10.38151 | M19: 6.373251 | N19: 11.57365 | O19: 4.572837 | P19: 2.851723
K21: Tabla de Datos Proyectados | M21: Base
K22: Variable | L22: Unidad | M22: 2021 | N22: =+M22+1 -> 2022 | O22: =+N22+1 -> 2023 | P22: =+O22+1 -> 2024 | Q22: =+P22+1 -> 2025 | R22: =+Q22+1 -> 2026
K23: Demanda Máxima | L23: MW | N23: =DEMANDA!D6 -> 175.4513135 | O23: =DEMANDA!E6 -> 175.4257131 | P23: =DEMANDA!F6 -> 182.3327928 | Q23: =DEMANDA!G6 -> 190.3962232 | R23: =DEMANDA!H6 -> 199.0986014
K24: Longitud de red áerea | L24: km | M24: 8444.518261 | N24: 8697.848701 | O24: 9003.666168 | P24: 9283.240122 | Q24: 9510.268119 | R24: 9889.257059
K25: Longitud de red subterranea | L25: km | M25: 153.3217392 | N25: 157.9212987 | O25: 163.4738316 | P25: 168.5498778 | Q25: 172.6718806 | R25: 179.5529413
K26: Ventas Totales de Energía | L26: MWh | N26: =DEMANDA!D12+DEMANDA!D13 -> 925966.3242 | O26: =DEMANDA!E12+DEMANDA!E13 -> 952226.6028 | P26: =DEMANDA!F12+DEMANDA!F13 -> 994539.0094 | Q26: =DEMANDA!G12+DEMANDA!G13 -> 1042440.195 | R26: =DEMANDA!H12+DEMANDA!H13 -> 1095234.684
K27: Costos OyM (D) | L27: USD | N27: =+M35 -> 29869017.01 | O27: 30278316.5 | P27: 31118449.18 | Q27: 31959618.37 | R27: 33036277.51
K28: Costos OyM (C) | L28: USD | N28: =+M36 -> 16983774.46 | O28: 17580578.4 | P28: 18307018.05 | Q28: 19050605.52 | R28: 19811796.72
K29: Clientes | L29: Cant. | N29: =DEMANDA!D8 -> 179609.8555 | O29: =DEMANDA!E8 -> 185933.8391 | P29: =DEMANDA!F8 -> 193632.0619 | Q29: =DEMANDA!G8 -> 201512.6222 | R29: =DEMANDA!H8 -> 209580.3702
K31: Tabla de Costos sin Ajuste en USD (EEUU) a junio 2020
K32: COSTO | L32: =+M22 -> 2021 | M32: =+L32+1 -> 2022 | N32: =+M32+1 -> 2023 | O32: =+N32+1 -> 2024 | P32: =+O32+1 -> 2025 | Q32: =+P32+1 -> 2026
K33: AD | L33: =EXP($L$19+$L$6*LN(M23*SUM(M24:M25))+$L$7*LN(M29)+$L$8*LN(M24)+$L$9*LN(M25)+$L$10*LN(SUM(M24:M25))+$L$11*LN(M29/SUM(M24:M25))+$L$12*LN(M23)+$L$13*LN(SUM(M24:M25)*SUM(M24:M25))+$L$14*LN(M23/M29)+$L$15*LN(M26)+$L$16*LN(M27)+$L$17*LN(M28)+$L$18*LN(M27+M28)) ->  | M33: =EXP($L$19+$L$6*LN(N23*SUM(N24:N25))+$L$7*LN(N29)+$L$8*LN(N24)+$L$9*LN(N25)+$L$10*LN(SUM(N24:N25))+$L$11*LN(N29/SUM(N24:N25))+$L$12*LN(N23)+$L$13*LN(SUM(N24:N25)*SUM(N24:N25))+$L$14*LN(N23/N29)+$L$15*LN(N26)+$L$16*LN(N27)+$L$17*LN(N28)+$L$18*LN(N27+N28)) -> 746405028 | N33: 767364818.8 | O33: 796465794.3 | P33: 826074666.6 | Q33: 858744965.8
K34: AC | L34: =EXP($M$19+$M$6*LN(M23*SUM(M24:M25))+$M$7*LN(M29)+$M$8*LN(M24)+$M$9*LN(M25)+$M$10*LN(SUM(M24:M25))+$M$11*LN(M29/SUM(M24:M25))+$M$12*LN(M23)+$M$13*LN(SUM(M24:M25)*SUM(M24:M25))+$M$14*LN(M23/M29)+$M$15*LN(M26)+$M$16*LN(M27)+$M$17*LN(M28)+$M$18*LN(M27+M28)) ->  | M34: 47333294.84 | N34: 48888019.26 | O34: =EXP($M$19+$M$6*LN(P23*SUM(P24:P25))+$M$7*LN(P29)+$M$8*LN(P24)+$M$9*LN(P25)+$M$10*LN(SUM(P24:P25))+$M$11*LN(P29/SUM(P24:P25))+$M$12*LN(P23)+$M$13*LN(SUM(P24:P25)*SUM(P24:P25))+$M$14*LN(P23/P29)+$M$15*LN(P26)+$M$16*LN(P27)+$M$17*LN(P28)+$M$18*LN(P27+P28)) -> 50775897.6 | P34: 52703363.88 | Q34: 54671463.2
K35: OMD | L35: =EXP($N$19+$N$6*LN(M23*SUM(M24:M25))+$N$7*LN(M29)+$N$8*LN(M24)+$N$9*LN(M25)+$N$10*LN(SUM(M24:M25))+$N$11*LN(M29/SUM(M24:M25))+$N$12*LN(M23)+$N$13*(LN(SUM(M24:M25)))^2+$N$14*LN(M23/M29)+$N$15*LN(M26)) ->  | M35: =EXP($N$19+$N$6*LN(N23*SUM(N24:N25))+$N$7*LN(N29)+$N$8*LN(N24)+$N$9*LN(N25)+$N$10*LN(SUM(N24:N25))+$N$11*LN(N29/SUM(N24:N25))+$N$12*LN(N23)+$N$13*(LN(SUM(N24:N25)))^2+$N$14*LN(N23/N29)+$N$15*LN(N26)) -> 29869017.01 | N35: =EXP($N$19+$N$6*LN(O23*SUM(O24:O25))+$N$7*LN(O29)+$N$8*LN(O24)+$N$9*LN(O25)+$N$10*LN(SUM(O24:O25))+$N$11*LN(O29/SUM(O24:O25))+$N$12*LN(O23)+$N$13*(LN(SUM(O24:O25)))^2+$N$14*LN(O23/O29)+$N$15*LN(O26)) -> 30278316.5 | O35: 31118449.18 | P35: 31959618.37 | Q35: 33036277.51
K36: COM | L36: =EXP($O$19+$O$6*LN(M23*SUM(M24:M25))+$O$7*LN(M29)+$O$8*LN(M24)+$O$9*LN(M25)+$O$10*LN(SUM(M24:M25))+$O$11*LN(M29/SUM(M24:M25))+$O$12*LN(M23)+$O$13*LN(SUM(M24:M25)*SUM(M24:M25))+$O$14*LN(M23/M29)+$O$15*LN(M26)) ->  | M36: =EXP($O$19+$O$6*LN(N23*SUM(N24:N25))+$O$7*LN(N29)+$O$8*LN(N24)+$O$9*LN(N25)+$O$10*LN(SUM(N24:N25))+$O$11*LN(N29/SUM(N24:N25))+$O$12*LN(N23)+$O$13*LN(SUM(N24:N25)*SUM(N24:N25))+$O$14*LN(N23/N29)+$O$15*LN(N26)) -> 16983774.46 | N36: =EXP($O$19+$O$6*LN(O23*SUM(O24:O25))+$O$7*LN(O29)+$O$8*LN(O24)+$O$9*LN(O25)+$O$10*LN(SUM(O24:O25))+$O$11*LN(O29/SUM(O24:O25))+$O$12*LN(O23)+$O$13*LN(SUM(O24:O25)*SUM(O24:O25))+$O$14*LN(O23/O29)+$O$15*LN(O26)) -> 17580578.4 | O36: 18307018.05 | P36: 19050605.52 | Q36: 19811796.72
K37: ADM | L37: =EXP($P$19+$P$6*LN(M23*SUM(M24:M25))+$P$7*LN(M29)+$P$8*LN(M24)+$P$9*LN(M25)+$P$10*LN(SUM(M24:M25))+$P$11*LN(M29/SUM(M24:M25))+$P$12*LN(M23)+$P$13*LN(SUM(M24:M25)*SUM(M24:M25))+$P$14*LN(M23/M29)+$P$15*LN(M26)+$P$16*LN(M27)+$P$17*LN(M28)+$P$18*LN(M27+M28)) ->  | M37: 18839901.67 | N37: 19250629.99 | O37: 19817836.03 | P37: 20390264.52 | Q37: 21017247.59
B40: Tabla de factores de ajuste del Componente Mano de Obra | K40: Costos resultantes de las ecuaciones de eficiencia dados en Balboas a junio 2020 (utilizando Parametros del estudio actual)
C41: 2016 | D41: =+C41+1 -> 2017 | E41: =+D41+1 -> 2018 | F41: =+E41+1 -> 2019 | G41: =+F41+1 -> 2020 | H41: =+G41+1 -> 2021 | K41: COSTO | L41: =+$L$32 -> 2021 | M41: =+L41+1 -> 2022 | N41: =+M41+1 -> 2023 | O41: =+N41+1 -> 2024 | P41: =+O41+1 -> 2025 | Q41: =+P41+1 -> 2026
B42: Costo laboral relativo 2016 | C42: 0.3857969036 | D42: =+$C$42/$C$55*D55 -> 0.3857969036 | E42: =+$C$42/$C$55*E55 -> 0.3857969036 | F42: 0.3857969036 | G42: 0.3857969036 | H42: 0.3857969036 | K42: AD | M42: =M33/($C46/$C42+(1-$C46)*$C59/$C$55+(1-$C46)*(1-$C59)) -> 415905963.5 | N42: =N33/($C46/$C42+(1-$C46)*$C59/$C$55+(1-$C46)*(1-$C59)) -> 427585013.9 | O42: =O33/($C46/$C42+(1-$C46)*$C59/$C$55+(1-$C46)*(1-$C59)) -> 443800431.6 | P42: =P33/($C46/$C42+(1-$C46)*$C59/$C$55+(1-$C46)*(1-$C59)) -> 460298855.5 | Q42: =Q33/($C46/$C42+(1-$C46)*$C59/$C$55+(1-$C46)*(1-$C59)) -> 478503143.7
B43: Costo laboral relativo de cada año | C43: =+$C$42/$C$55*C56 -> 0.4338109288 | D43: =+$C$42/$C$55*D56 -> 0.418648605 | E43: 0.4127521458 | F43: 0.4043286326 | G43: 0.3857969036 | H43: 0.3782157418 | K43: AC | M43: =M34/($C47/$C42+(1-$C47)*$C60/$C$55+(1-$C47)*(1-$C60)) -> 36489292.51 | N43: =N34/($C47/$C42+(1-$C47)*$C60/$C$55+(1-$C47)*(1-$C60)) -> 37687831.39 | O43: =O34/($C47/$C42+(1-$C47)*$C60/$C$55+(1-$C47)*(1-$C60)) -> 39143199.02 | P43: =P34/($C47/$C42+(1-$C47)*$C60/$C$55+(1-$C47)*(1-$C60)) -> 40629085.03 | Q43: =Q34/($C47/$C42+(1-$C47)*$C60/$C$55+(1-$C47)*(1-$C60)) -> 42146295.11
K44: OMD | M44: 11693695.43 | N44: 11853935.84 | O44: 12182847.09 | P44: 12512164.13 | Q44: 12933675.29
B45: Participación de la mano de obra en los costos totales | K45: COM | M45: 7249782.901 | N45: 7504537.758 | O45: 7814629.589 | P45: 8132041.23 | Q45: 8456967.291
B46: AD | C46: 0.4197043015 | K46: ADM | M46: 8583985.769 | N46: 8771125.072 | O46: 9029559.996 | P46: 9290374.416 | Q46: 9576045.423
B47: AC | C47: 0.1675096761 | M47: =SUM(M42:M43) -> 452395256 | N47: =SUM(N42:N43) -> 465272845.3 | O47: 482943630.6 | P47: 500927940.5 | Q47: 520649438.8
B48: OMD | C48: 0.4333405763
B49: COM | C49: 0.2589053425
B50: ADM | C50: 0.5143458539 | K50: Activos proyectados con ecuaciones de eficiencia y mercado Proy Dda a precios de junio 2022
K51: Actividad | M51: 2022 | N51: =+M51+1 -> 2023 | O51: =+N51+1 -> 2024 | P51: =+O51+1 -> 2025 | Q51: =+P51+1 -> 2026
K52: AD (Ecuación de eficiencia) | M52: =M42*$D68 -> 430973025.2 | N52: 443075173.7 | O52: 459878028.7 | P52: 476974142.4 | Q52: 495837919
B53: Tabla de factores de ajuste del Componente Materiables a PPP de cada año | K53: AC (Ecuación de eficiencia) | M53: 36974513.92 | N53: 38188990.53 | O53: 39663711.11 | P53: 41169355.9 | Q53: 42706741.29
C54: 2016 | D54: =+C54+1 -> 2017 | E54: =+D54+1 -> 2018 | F54: =+E54+1 -> 2019 | G54: =+F54+1 -> 2020 | H54: =+G54+1 -> 2021 | K54: Total | M54: =SUM(M52:M53) -> 467947539.1 | N54: =SUM(N52:N53) -> 481264164.2 | O54: 499541739.8 | P54: 518143498.3 | Q54: 538544660.3
B55: PPP 2016 | C55: 0.458 | D55: =C55 -> 0.458 | E55: =D55 -> 0.458 | F55: =E55 -> 0.458 | G55: =F55 -> 0.458 | H55: =G55 -> 0.458
B56: PPP de cada año | C56: 0.515 | D56: 0.497 | E56: 0.49 | F56: 0.48 | G56: 0.458 | H56: 0.449 | K56: Inversiones proyectadas con ecuaciones de eficiencia y mercado Proy Dda a precios de junio 2022
K57: Actividad | M57: 2022 | N57: =+M57+1 -> 2023 | O57: =+N57+1 -> 2024 | P57: =+O57+1 -> 2025 | Q57: =+P57+1 -> 2026
B58: % Nacional | K58: AD (Ecuación de eficiencia) | M58: =(M42-L42) -> 415905963.5 | N58: =(N52-M52) -> 12102148.43 | O58: 16802855.03 | P58: 17096113.74 | Q58: 18863776.55
B59: AD | C59: 0.1841545092 | K59: AC (Ecuación de eficiencia) | M59: =(M43-L43) -> 36489292.51 | N59: 1214476.613 | O59: 1474720.582 | P59: 1505644.786 | Q59: 1537385.388
B60: AC | C60: 0.03096048266 | K60: Total | N60: =+SUM(N58:N59) -> 13316625.04 | O60: =+SUM(O58:O59) -> 18277575.61 | P60: =+SUM(P58:P59) -> 18601758.53 | Q60: =+SUM(Q58:Q59) -> 20401161.94
B61: OMD | C61: 0.1
B62: COM | C62: 0.15
B63: ADM | C63: 0.25 | K63: Costos proyectados con ecuaciones de eficiencia y mercado Proy Dda a precios de junio 2022
K64: Actividad | L64: 2021 | M64: 2022 | N64: =+M64+1 -> 2023 | O64: =+N64+1 -> 2024 | P64: =+O64+1 -> 2025 | Q64: =+P64+1 -> 2026
K65: OMD | N65: =N44*$D70 -> 12253552.03 | O65: 12593551.43 | P65: 12933970.31 | Q65: 13369691.33
A66: Factor de Ajuste Jun 2022/Jun 2020 | K66: COM | N66: 7695604.871 | O66: 8013591.705 | P66: 8339084.713 | Q66: 8672283.46
A67: Costo | B67: % Total costos locales | C67: IPC 22/20 | D67: FA | K67: ADM | N67: 9154767.596 | O67: 9424506.272 | P67: 9696728.522 | Q67: 9994894.568
A68: AD | B68: =C46+(1-C46)*C59 -> 0.526568371 | C68: =C76/C75 -> 1.06879845 | D68: =B68*C68+(1-B68) -> 1.036227088 | N68: =SUM(N65:N67) -> 29103924.5 | O68: =SUM(O65:O67) -> 30031649.41 | P68: =SUM(P65:P67) -> 30969783.55 | Q68: =SUM(Q65:Q67) -> 32036869.35
A69: AC | B69: =C47+(1-C47)*C60 -> 0.1932839783 | C69: =C68 -> 1.06879845 | D69: =B69*C69+(1-B69) -> 1.013297638
A70: OMD | B70: 0.4900065187 | C70: =C69 -> 1.06879845 | D70: 1.033711689
A71: COM | B71: 0.3700695411 | C71: 1.06879845 | D71: 1.025460211 | K71: 2 - PÉRDIDAS
A72: ADM | B72: 0.6357593904 | C72: 1.06879845 | D72: 1.04373926 | K72: Variable | L72: EP
K73: Ln(EF)(β) | L73: 0.9879705
K74: Constante (α) | L74: -2.465353
B75: IPC jun 2020 | C75: 103.2
B76: IPC jun 2022 | C76: 110.3
K77: RESULTADOS PÉRDIDAS
K80: Porcentaje
K81: COSTO | M81: JUL21-JUN22 | N81: JUL22/ JUN23 | O81: JUL23 / JUN24 | P81: JUL24 / JUN25 | Q81: JUL25/ JUN26
K82: PE_MWH | M82: =EXP($L$74+$L$73*LN(DEMANDA!D7)) -> 71808.87753 | N82: =EXP($L$74+$L$73*LN(DEMANDA!E7)) -> 73818.62903 | O82: =EXP($L$74+$L$73*LN(DEMANDA!F7)) -> 77055.38185 | P82: =EXP($L$74+$L$73*LN(DEMANDA!G7)) -> 80717.51074 | Q82: =EXP($L$74+$L$73*LN(DEMANDA!H7)) -> 84751.22306
K83: PE_% | M83: =M82/DEMANDA!D7 -> 0.07196899403 | N83: =N82/DEMANDA!E7 -> 0.07194480978 | O83: =O82/DEMANDA!F7 -> 0.07190722765 | P83: =P82/DEMANDA!G7 -> 0.07186658682 | Q83: =Q82/DEMANDA!H7 -> 0.07182392821

Sheet INVERSIONES
B1: EDECHI | J1: EDECHI | U1: EDECHI
B3: INVERSIONES | J3: INVERSIONES | U3: INVERSIONES
B4: En miles de Balboas | J4: En miles de Balboas | U4: En miles de Balboas
B6: INVERSIONES TOTALES | D6: JUL22/ JUN23 | E6: JUL23 / JUN24 | F6: JUL24 / JUN25 | G6: JUL25/ JUN26 | H6: TOTALES | J6: INVERSION EN SUBESTACIONES, ARQUITECTURA ASOCIADA Y LÍNEAS EN AT NO CONTEMPLADAS EN LAS ECUACIONES DE EFICIENCIA
H7: Miles de Balboas | J7: DETALLE | K7: 2022 | L7: 2023 | N7: 2024 | P7: 2025 | R7: 2026 | S7: Total | U7: DETALLE | V7: JUL22/ JUN23 | W7: JUL23 / JUN24 | X7: JUL24 / JUN25 | Y7: JUL25/ JUN26 | Z7: TOTALES
B8: Distribución | C8: ID | D8: ='Costos y Pérdidas Eficientes'!N58/1000+D35 -> 29175.61338 | E8: ='Costos y Pérdidas Eficientes'!O58/1000+E35 -> 34890.13453 | F8: ='Costos y Pérdidas Eficientes'!P58/1000+F35 -> 32998.24574 | G8: ='Costos y Pérdidas Eficientes'!Q58/1000+G35 -> 39909.78405 | H8: =SUM(D8:G8) -> 136973.7777 | K8: II Sem | L8: I Sem | M8: II Sem | N8: I Sem | O8: II Sem | P8: I Sem | Q8: II Sem | R8: I Sem
B9: Comercialización | C9: IC | D9: ='Costos y Pérdidas Eficientes'!N59/1000+D36 -> 1257.334613 | E9: ='Costos y Pérdidas Eficientes'!O59/1000+E36 -> 1560.434582 | F9: ='Costos y Pérdidas Eficientes'!P59/1000+F36 -> 1591.358786 | G9: ='Costos y Pérdidas Eficientes'!Q59/1000+G36 -> 1623.099388 | H9: =SUM(D9:G9) -> 6032.227369 | J9: Nueva SE Veladero 230/34,5 kV | K9: 400000 | L9: 650000 | M9: 1500000 | N9: 3500000 | O9: 2500000 | P9: 0 | Q9: 0 | R9: 0 | S9: =+SUM(K9:R9) -> 8550000 | U9: Nueva SE Veladero 230/34,5 kV | V9: =(K9+L9)/1000 -> 1050 | W9: =(M9+N9)/1000 -> 5000 | X9: =(O9+P9)/1000 -> 2500 | Y9: =(Q9+R9)/1000 -> 0 | Z9: =SUM(V9:Y9) -> 8550
B10: Alumbrado Público | C10: IAP | D10: =+D25 -> 460 | E10: =+E25 -> 460 | F10: =+F25 -> 460 | G10: =+G25 -> 460 | H10: 1840 | J10: Integración de Isla Colón al SIN | K10: 10644626.95 | L10: 204544.41 | M10: 0 | N10: 0 | O10: 0 | P10: 0 | Q10: 0 | R10: 0 | S10: =+SUM(K10:R10) -> 10849171.36 | U10: Integración de Isla Colón al SIN | V10: =(K10+L10)/1000 -> 10849.17136 | W10: =(M10+N10)/1000 -> 0 | X10: =(O10+P10)/1000 -> 0 | Y10: =(Q10+R10)/1000 -> 0 | Z10: =SUM(V10:Y10) -> 10849.17136
B11: TOTAL INVERSIONES | D11: =+D8+D9+D10 -> 30892.94799 | E11: =+E8+E9+E10 -> 36910.56911 | F11: =+F8+F9+F10 -> 35049.60453 | G11: =+G8+G9+G10 -> 41992.88344 | H11: =SUM(D11:G11) -> 144846.0051 | J11: Arquitectura de red de la subestación Veladero | K11: 0 | L11: 0 | M11: 0 | N11: 1000000 | O11: 0 | P11: 0 | Q11: 0 | R11: 0 | S11: 1000000 | U11: Arquitectura de red de la subestación Veladero | V11: 0 | W11: 1000 | X11: 0 | Y11: 0 | Z11: 1000
J12: Nueva SE Changuinola 2 34,5/13,8 kV | K12: 100000 | L12: 1500000 | M12: 2800000 | N12: 1000000 | O12: 0 | P12: 0 | Q12: 0 | R12: 0 | S12: 5400000 | U12: Nueva SE Changuinola 2 34,5/13,8 kV | V12: 1600 | W12: 3800 | X12: 0 | Y12: 0 | Z12: 5400
B13: INVERSIONES NO CONTEMPLADAS EN LAS ECUACIONES DE EFICIENCIA | D13: =D6 -> JUL22/ JUN23 | E13: =E6 -> JUL23 / JUN24 | F13: JUL24 / JUN25 | G13: JUL25/ JUN26 | H13: TOTALES | J13: Arquitectura SE Changuinola | K13: 0 | L13: 0 | M13: 0 | N13: 500000 | O13: 500000 | P13: 500000 | Q13: 0 | R13: 0 | S13: 1500000 | U13: Arquitectura SE Changuinola | V13: 0 | W13: 500 | X13: 1000 | Y13: 0 | Z13: 1500
J14: Nuevo Circuito Changuinola - Almirante | K14: 1680007.59 | L14: 500000 | M14: 0 | N14: 0 | O14: 0 | P14: 0 | Q14: 0 | R14: 0 | S14: 2180007.59 | U14: Nuevo Circuito Changuinola - Almirante | V14: 2180.00759 | W14: 0 | X14: 0 | Y14: 0 | Z14: 2180.00759
B15: Distribución (Subestaciones, Arquitectura asociada y líneas en AT) | C15: ID | D15: =V21 -> 16089.17895 | E15: =W21 -> 10300 | F15: 9400 | G15: 13500 | H15: =SUM(D15:G15) -> 49289.17895 | J15: Transformador ZigZag SE San Cristobal | K15: 410000 | L15: 0 | M15: 0 | N15: 0 | O15: 0 | P15: 0 | Q15: 0 | R15: 0 | S15: 410000 | U15: Transformador ZigZag SE San Cristobal | V15: 410 | W15: 0 | X15: 0 | Y15: 0 | Z15: 410
B16: Distribución (Circuitos en MT y Refuerzos en Plantas Potabilizadoras) | C16: ID | D16: =V31 -> 770 | E16: =W31 -> 7358.7075 | F16: 6073.56 | G16: 7117.4375 | H16: =SUM(D16:G16) -> 21319.705 | J16: Segundo Transformador San Cristobal 115/13,8kV 30MVA | K16: 0 | L16: 0 | M16: 0 | N16: 0 | O16: 2450000 | P16: 2450000 | Q16: 0 | R16: 0 | S16: 4900000 | U16: Segundo Transformador San Cristobal 115/13,8kV 30MVA | V16: 0 | W16: 0 | X16: 4900 | Y16: 0 | Z16: 4900
B17: Otras Inversiones | C17: IC | D17: =V36 -> 42.858 | E17: =W36 -> 85.714 | F17: 85.714 | G17: 85.714 | H17: =SUM(D17:G17) -> 300 | J17: Nueva SE Almirante 2 34,5/4,16 kV | K17: 0 | L17: 0 | M17: 0 | N17: 0 | O17: 0 | P17: 0 | Q17: 2500000 | R17: 2500000 | S17: 5000000 | U17: Nueva SE Almirante 2 34,5/4,16 kV | V17: 0 | W17: 0 | X17: 0 | Y17: 5000 | Z17: 5000
B18: Electrificación Rural | C18: ID | D18: =V37 -> 214.286 | E18: =W37 -> 428.572 | F18: 428.572 | G18: 428.57 | H18: 1500 | J18: Segunda LAT MDN - San Cristobal 115kV | K18: 0 | L18: 0 | M18: 0 | N18: 0 | O18: 0 | P18: 0 | Q18: 3750000 | R18: 3750000 | S18: 7500000 | U18: Segunda LAT MDN - San Cristobal 115kV | V18: 0 | W18: 0 | X18: 0 | Y18: 7500 | Z18: 7500
B19: Estas inversiones se agregan a las que resultan de las ecuaciones de eficiencia | J19: Transformador para la subestación Volcán | K19: 0 | L19: 0 | M19: 0 | N19: 0 | O19: 1000000 | P19: 0 | Q19: 0 | R19: 0 | S19: 1000000 | U19: Transformador para la subestación Volcán | V19: 0 | W19: 0 | X19: 1000 | Y19: 0 | Z19: 1000
J20: Transformador para la subestación Paso Canoas | K20: 0 | L20: 0 | M20: 0 | N20: 0 | O20: 0 | P20: 0 | Q20: 0 | R20: 1000000 | S20: 1000000 | U20: Transformador para la subestación Paso Canoas | V20: 0 | W20: 0 | X20: 0 | Y20: 1000 | Z20: 1000
B21: INVERSIONES EN ALUMBRADO PÚBLICO | D21: =D13 -> JUL22/ JUN23 | E21: =E13 -> JUL23 / JUN24 | F21: JUL24 / JUN25 | G21: JUL25/ JUN26 | H21: TOTALES | J21: TOTAL | K21: =SUM(K9:K20) -> 13234634.54 | L21: =SUM(L9:L20) -> 2854544.41 | M21: 4300000 | N21: 6000000 | O21: 6450000 | P21: 2950000 | Q21: 6250000 | R21: 7250000 | S21: 49289178.95 | U21: TOTAL | V21: 16089.17895 | W21: 10300 | X21: 9400 | Y21: 13500 | Z21: 49289.17895
B22: Crecimiento Vegetativo - Sodio | C22: IAP | H22: =SUM(D22:G22) -> 0
B23: Crecimiento Vegetativo - LED | C23: IAP | D23: =V43 -> 460 | E23: =W43 -> 460 | F23: 460 | G23: 460 | H23: =SUM(D23:G23) -> 1840
B24: Proyectos especiales | C24: IAP | H24: =SUM(D24:G24) -> 0
B25: TOTAL | D25: =SUM(D22:D24) -> 460 | E25: =SUM(E22:E24) -> 460 | F25: =SUM(F22:F24) -> 460 | G25: =SUM(G22:G24) -> 460 | H25: =SUM(D25:G25) -> 1840 | J25: INVERSION EN CIRCUITOS EN MT Y REFUERZO PARA PLANTAS POTABILIZADORAS NO CONTEMPLADAS EN LAS ECUACIONES DE EFICIENCIA
J26: DETALLE | K26: 2022 | L26: 2023 | N26: 2024 | P26: 2025 | R26: 2026 | S26: Total | U26: DETALLE | V26: JUL22/ JUN23 | W26: JUL23 / JUN24 | X26: JUL24 / JUN25 | Y26: JUL25/ JUN26 | Z26: TOTALES
B27: LUMINARIAS QUE SE INCORPORAN | D27: =D21 -> JUL22/ JUN23 | E27: JUL19 / JUN20 | F27: JUL20 / JUN21 | G27: JUL21 / JUN22 | H27: TOTALES | K27: II Sem | L27: I Sem | M27: II Sem | N27: I Sem | O27: II Sem | P27: I Sem | Q27: II Sem | R27: I Sem
B28: Crecimiento Vegetativo - Sodio | H28: =SUM(D28:G28) -> 0 | J28: Circuito 34-50 B (Respaldo SE Ch- SE Ve) | K28: 100000 | L28: 370000 | M28: 370000 | N28: 1918707.5 | O28: 1918707.5 | P28: 1874852.5 | Q28: 1874852.5 | R28: 5242585 | S28: =+SUM(K28:R28) -> 13669705 | U28: Circuito 34-50 B (Respaldo SE Ch- SE Ve) | V28: =(K28+L28)/1000 -> 470 | W28: =(M28+N28)/1000 -> 2288.7075 | X28: =(O28+P28)/1000 -> 3793.56 | Y28: =(Q28+R28)/1000 -> 7117.4375 | Z28: =SUM(V28:Y28) -> 13669.705
B29: Crecimiento Vegetativo - LED | D29: =V49 -> 974 | E29: =W49 -> 1948 | F29: 1948 | G29: 1946 | H29: =SUM(D29:G29) -> 6816 | J29: Circuito 34-19 B (Respaldo SE Por - SE Vol) | K29: 0 | L29: 50000 | M29: 50000 | N29: 2280000 | O29: 2280000 | P29: 0 | Q29: 0 | R29: 0 | S29: =+SUM(K29:R29) -> 4660000 | U29: Circuito 34-19 B (Respaldo SE Por - SE Vol) | V29: 50 | W29: 2330 | X29: 2280 | Y29: 0 | Z29: =SUM(V29:Y29) -> 4660
B30: Proyectos especiales | H30: 0 | J30: Circuito 34-42 B (Respaldo SE Pro - SE PAR) | K30: 100000 | L30: 150000 | M30: 1370000 | N30: 1370000 | O30: 0 | P30: 0 | Q30: 0 | R30: 0 | S30: 2990000 | U30: Circuito 34-42 B (Respaldo SE Pro - SE PAR) | V30: 250 | W30: 2740 | X30: 0 | Y30: 0 | Z30: 2990
B31: TOTAL LUMINARIAS ADICIONALES | D31: =SUM(D28:D30) -> 974 | E31: =SUM(E28:E30) -> 1948 | F31: =SUM(F28:F30) -> 1948 | G31: =SUM(G28:G30) -> 1946 | H31: =SUM(D31:G31) -> 6816 | J31: TOTAL | K31: =SUM(K28:K30) -> 200000 | L31: 570000 | M31: 1790000 | N31: 5568707.5 | O31: 4198707.5 | P31: 1874852.5 | Q31: 1874852.5 | R31: 5242585 | S31: 21319705 | U31: TOTAL | V31: =SUM(V28:V30) -> 770 | W31: =SUM(W28:W30) -> 7358.7075 | X31: =SUM(X28:X30) -> 6073.56 | Y31: =SUM(Y28:Y30) -> 7117.4375 | Z31: 21319.705
B33: INVERSIONES NO CONTEMPLADAS EN LAS ECUACIONES DE EFICIENCIA | D33: =D13 -> JUL22/ JUN23 | E33: =E13 -> JUL23 / JUN24 | F33: JUL24 / JUN25 | G33: JUL25/ JUN26 | H33: TOTALES | J33: OTRAS INVERSIONES NO CONTEMPLADAS EN LAS ECUACIONES DE EFICIENCIA
D34: Miles de Balboas | E34: Miles de Balboas | F34: Miles de Balboas | G34: Miles de Balboas | H34: Miles de Balboas | J34: DETALLE | K34: 2022 | L34: 2023 | N34: 2024 | P34: 2025 | R34: 2026 | S34: Total | U34: DETALLE | V34: JUL22/ JUN23 | W34: JUL23 / JUN24 | X34: JUL24 / JUN25 | Y34: JUL25/ JUN26 | Z34: TOTALES
B35: Inverisones adicionales Distribucion | C35: ID | D35: =+D15+D16+D18 -> 17073.46495 | E35: =+E15+E16+E18 -> 18087.2795 | F35: =+F15+F16+F18 -> 15902.132 | G35: =+G15+G16+G18 -> 21046.0075 | H35: =SUM(D35:G35) -> 72108.88395 | K35: II Sem | L35: I Sem | M35: II Sem | N35: I Sem | O35: II Sem | P35: I Sem | Q35: II Sem | R35: I Sem
B36: Inverisones adicionales Comercialización | C36: IC | D36: =+D17 -> 42.858 | E36: =+E17 -> 85.714 | F36: =+F17 -> 85.714 | G36: =+G17 -> 85.714 | H36: 300 | J36: Plan de Implantación de Telemedida 1,700 puntos en Coosemupar y Distrito de David | K36: 0 | L36: 42858 | M36: 42857 | N36: 42857 | O36: 42857 | P36: 42857 | Q36: 42857 | R36: 42857 | S36: =+SUM(K36:R36) -> 300000 | U36: Plan de Implantación de Telemedida 1,700 puntos en Coosemupar y Distrito de David | V36: =(K36+L36)/1000 -> 42.858 | W36: =(M36+N36)/1000 -> 85.714 | X36: =(O36+P36)/1000 -> 85.714 | Y36: =(Q36+R36)/1000 -> 85.714 | Z36: =SUM(V36:Y36) -> 300
B37: Inversiones adicionales en alumbrado | C37: IAP | D37: =D25 -> 460 | E37: =E25 -> 460 | F37: 460 | G37: 460 | H37: 1840 | J37: Electrificación Rural | K37: 0 | L37: 214286 | M37: 214286 | N37: 214286 | O37: 214286 | P37: 214286 | Q37: 214285 | R37: 214285 | S37: =+SUM(K37:R37) -> 1500000 | U37: Electrificación Rural | V37: 214.286 | W37: 428.572 | X37: 428.572 | Y37: 428.57 | Z37: 1500
D38: =SUM(D35:D37)-V50 -> 0 | E38: =SUM(E35:E37)-W50 -> 0 | F38: =SUM(F35:F37)-X50 -> 0 | G38: =SUM(G35:G37)-Y50 -> 0 | H38: =SUM(H35:H37)-Z50 -> 0
J40: INVERSIONES EN ALUMBRADO PÚBLICO
J41: DETALLE | K41: 2022 | L41: 2023 | N41: 2024 | P41: 2025 | R41: 2026 | S41: Total | U41: DETALLE | V41: JUL22/ JUN23 | W41: JUL23 / JUN24 | X41: JUL24 / JUN25 | Y41: JUL25/ JUN26 | Z41: TOTALES
K42: II Sem | L42: I Sem | M42: II Sem | N42: I Sem | O42: II Sem | P42: I Sem | Q42: II Sem | R42: I Sem
J43: Crecimiento Vegetativo - LED | K43: 230000 | L43: 230000 | M43: 230000 | N43: 230000 | O43: 230000 | P43: 230000 | Q43: 230000 | R43: 230000 | S43: =+SUM(K43:R43) -> 1840000 | U43: Crecimiento Vegetativo - LED - miles de Balboas | V43: =(K43+L43)/1000 -> 460 | W43: =(M43+N43)/1000 -> 460 | X43: =(O43+P43)/1000 -> 460 | Y43: =(Q43+R43)/1000 -> 460 | Z43: =SUM(V43:Y43) -> 1840
U44: Cantidad de Luminarias LED | V44: =V49 -> 974 | W44: =W49 -> 1948 | X44: 1948 | Y44: 1946 | Z44: =SUM(V44:Y44) -> 6816
J46: CANTIDAD DE LUMINARIAS ADICIONALES (ALUMBRADO PÚBLICO)
J47: DETALLE | K47: 2022 | L47: 2023 | N47: 2024 | P47: 2025 | R47: 2026 | S47: Total | U47: DETALLE | V47: JUL22/ JUN23 | W47: JUL23 / JUN24 | X47: JUL24 / JUN25 | Y47: JUL25/ JUN26 | Z47: TOTALES
K48: II Sem | L48: I Sem | M48: II Sem | N48: I Sem | O48: II Sem | P48: I Sem | Q48: II Sem | R48: I Sem
J49: Crecimiento Vegetativo - LED | K49: 0 | L49: 974 | M49: 974 | N49: 974 | O49: 974 | P49: 974 | Q49: 973 | R49: 973 | S49: =+SUM(K49:R49) -> 6816 | U49: Crecimiento Vegetativo - LED | V49: =K49+L49 -> 974 | W49: =M49+N49 -> 1948 | X49: =O49+P49 -> 1948 | Y49: =Q49+R49 -> 1946 | Z49: =SUM(V49:Y49) -> 6816
V50: =V21+V31+V36+V37+V43 -> 17576.32295 | W50: =W21+W31+W36+W37+W43 -> 18632.9935 | X50: 16447.846 | Y50: 21591.7215 | Z50: 74248.88395
J51: Proyectos de Electrificación Rural | S51: =S21+S31+S37+S43+S36 -> 74248883.95 | Z51: =Z50-S51/1000 -> 0
J52: PROVINCIA / COMARCA | K52: DISTRITO | L52: CORREGIMIENTO | M52: POBLADO | N52: KM | O52: VIVIENDAS
J53: BOCAS DEL TORO | K53: ALMIRANTE | L53: CAUCHERO | M53: QUEBRADA PINZÓN | N53: 5.53 | O53: 61
J54: BOCAS DEL TORO | K54: CHANGUINOLA | L54: LAS TABLAS | M54: BOIMBOTO | N54: 0.89 | O54: 80
J55: BOCAS DEL TORO | K55: CHIRIQUÍ GRANDE | L55: CHIRIQUÍ GRANDE | M55: LAS PIÑAS | N55: 1.03 | O55: 30
J56: BOCAS DEL TORO | K56: CHIRIQUÍ GRANDE | L56: PUNTA PEÑA | M56: LA MILAGROSA | N56: 0.45 | O56: 16
J57: BOCAS DEL TORO | K57: CHIRIQUÍ GRANDE | L57: PUNTA PEÑA | M57: QUEBRADA CAMARÓN | N57: 0.8 | O57: 7
J58: CHIRIQUÍ | K58: ALANJE | L58: CANTA GALLO | M58: LOS CEDEÑOS | N58: 0.73 | O58: 6
J59: CHIRIQUÍ | K59: ALANJE | L59: CANTA GALLO | M59: QUEBRADA LAZO LOS ANDRADES | N59: 0.96 | O59: 9
J60: CHIRIQUÍ | K60: ALANJE | L60: DIVALÁ | M60: COMUNIDAD CHANGUINA | N60: 1.7 | O60: 10
J61: CHIRIQUÍ | K61: ALANJE | L61: NUEVO MÉXICO | M61: VÍA CHIRIQUÍ VIEJO | N61: 3.27 | O61: 14
J62: CHIRIQUÍ | K62: ALANJE | L62: NUEVO MÉXICO | M62: LAS MERCEDES ABAJO | N62: 0.83 | O62: 5
J63: CHIRIQUÍ | K63: ALANJE | L63: NUEVO MÉXICO | M63: LAS MERCEDES CENTRO | N63: 1.11 | O63: 14
J64: CHIRIQUÍ | K64: BUGABA | L64: EL BONGO | M64: SECTOR LOS MEDIANEROS | N64: 0.94 | O64: 7
J65: CHIRIQUÍ | K65: BUGABA | L65: EL BONGO | M65: LAS TUMBAS 2 | N65: 2.18 | O65: 25
J66: CHIRIQUÍ | K66: BUGABA | L66: SAN ANDRÉS | M66: QUEBRADA LLANA | N66: 6.52 | O66: 30
J67: CHIRIQUÍ | K67: BUGABA | L67: SANTA MARTA | M67: OJO DE AGUA | N67: 0.88 | O67: 9
J68: CHIRIQUÍ | K68: RENACIMIENTO | L68: MONTE LIRIO | M68: SAN ANTONIO CENTRO | N68: 3.7 | O68: 37
J69: CHIRIQUÍ | K69: RENACIMIENTO | L69: PLAZA CAISÁN | M69: VALLE DE LA MINA | N69: 0.6 | O69: 10
J70: CHIRIQUÍ | K70: RENACIMIENTO | L70: SANTA CRUZ | M70: SECTOR DE LOS VARGAS COMUNIDAD DE BAITÚN ABAJO | N70: 1.37 | O70: 11
J71: CHIRIQUÍ | K71: RENACIMIENTO | L71: SANTA CRUZ | M71: SECTOR DE SALITRAL HACIA PAVÓN | N71: 1.63 | O71: 3
J72: CHIRIQUÍ | K72: RENACIMIENTO | L72: SANTA CRUZ | M72: SECTOR DE SALITRAL HACIA SAN FRANCISCO | N72: 1.48 | O72: 3
J73: CHIRIQUÍ | K73: TOLÉ | L73: EL CRISTO | M73: LLANO CULEBRA ETAPA 2 | N73: 0.41 | O73: 46
J74: COMARCA NGÄBE BUGLÉ | K74: MÜNA | L74: CHICHICA | M74: LA LOMA | N74: 0.1 | O74: 31
J75: COMARCA NGÄBE BUGLÉ | K75: MÜNA | L75: CHICHICA | M75: BARRIADA LA JUJUCA | N75: 0.16 | O75: 23
J76: COMARCA NGÄBE BUGLÉ | K76: NOLE DUIMA | L76: HATO CHAMÍ | M76: BARRIADA SANDOYA | N76: 0.2 | O76: 13
J77: COMARCA NGÄBE BUGLÉ | K77: NOLE DUIMA | L77: LAJERO | M77: RÍO SANTIAGO | N77: 2.57 | O77: 124
J78: COMARCA NGÄBE BUGLÉ | K78: NOLE DUIMA | L78: SUSAMA | M78: KUERIMA, QUEBRADA SALAO | N78: 1.38 | O78: 18
J79: COMARCA NGÄBE BUGLÉ | K79: ÑÜRÜM | L79: AGUA DE SALUD | M79: AGUA SALUD 2 | N79: 1.73 | O79: 44
J80: COMARCA NGÄBE BUGLÉ | K80: ÑÜRÜM | L80: EL PEÑON | M80: PEÑÓN NORTE | N80: 2.92 | O80: 43
J81: COMARCA NGÄBE BUGLÉ | K81: ÑÜRÜM | L81: EL PEÑON | M81: SAN ANTONIO | N81: 2.92 | O81: 43
L82: TOTAL | M82: 29 | N82: 48.99 | O82: 772

Sheet ACTIVOS
B2: EDECHI
B4: ACTIVOS TARIFARIOS PERMITIDOS
B5: En miles de Balboas
B7: BASE DE CAPITAL | D7: ACT.JUN22 | E7: AJUSTE ACTNOREG | F7: BASE | G7: =INVERSIONES!D21 -> JUL22/ JUN23 | H7: =INVERSIONES!E21 -> JUL23 / JUN24 | I7: =INVERSIONES!F21 -> JUL24 / JUN25 | J7: =INVERSIONES!G21 -> JUL25/ JUN26
B9: Valor Bruto Base de Capital Distribución | C9: BCD | D9: ='BC y Dep'!C68/1000 -> 244433.0553 | E9: =G29 -> 0.9446970338 | F9: =D9*E9 -> 230915.1823 | G9: =+F9+INVERSIONES!D8 -> 260090.7957 | H9: =+G9+INVERSIONES!E8 -> 294980.9302 | I9: =+H9+INVERSIONES!F8 -> 327979.176 | J9: =+I9+INVERSIONES!G8 -> 367888.96
B10: Valor Bruto Base de Capital Comercialización | C10: BCC | D10: ='BC y Dep'!C70/1000 -> 19069.89388 | E10: =+E9 -> 0.9446970338 | F10: =D10*E10 -> 18015.27218 | G10: =+F10+INVERSIONES!D9 -> 19272.6068 | H10: =+G10+INVERSIONES!E9 -> 20833.04138 | I10: =+H10+INVERSIONES!F9 -> 22424.40016 | J10: =+I10+INVERSIONES!G9 -> 24047.49955
B11: Valor Bruto Activos Fijos Alumbrado Público | C11: ACTalum | D11: ='BC y Dep'!C69/1000 -> 14049.43272 | E11: =+E9 -> 0.9446970338 | F11: =D11*E11 -> 13272.45741 | G11: =+F11+INVERSIONES!D10 -> 13732.45741 | H11: =+G11+INVERSIONES!E10 -> 14192.45741 | I11: =+H11+INVERSIONES!F10 -> 14652.45741 | J11: =+I11+INVERSIONES!G10 -> 15112.45741
D12: =SUM(D9:D11) -> 277552.3819 | F12: =SUM(F9:F11) -> 262202.9119 | G12: =SUM(G9:G11) -> 293095.8599 | H12: 330006.429 | I12: 365056.0336 | J12: 407048.917
B14: Valor Neto Base Capital Distribución | C14: BCND | D14: ='BC y Dep'!C72/1000 -> 121889.8398 | E14: =+E9 -> 0.9446970338 | F14: =D14*E14 -> 115148.9701 | G14: =F14+(G9-F9)-'BC y Dep'!D76/1000-((G9-F9)/2)*'PERDIDAS y OTROS'!E$11 -> 137190.369 | H14: =G14+(H9-G9)-'BC y Dep'!E76/1000-(G9-F9)*'PERDIDAS y OTROS'!E$11-((H9-G9)/2)*'PERDIDAS y OTROS'!F$11 -> 164665.2153 | I14: =H14+(I9-H9)-'BC y Dep'!F76/1000-(G9-F9)*'PERDIDAS y OTROS'!E$11-(H9-G9)*'PERDIDAS y OTROS'!F$11-((I9-H9)/2)*'PERDIDAS y OTROS'!G$11 -> 189384.9797 | J14: =I14+(J9-I9)-'BC y Dep'!G76/1000-(G9-F9)*'PERDIDAS y OTROS'!E$11-(H9-G9)*'PERDIDAS y OTROS'!F$11-(I9-H9)*'PERDIDAS y OTROS'!G$11-((J9-I9)/2)*'PERDIDAS y OTROS'!H$11 -> 220230.6091
B15: Valor Neto Base Capital Comercialización | C15: BCNC | D15: ='BC y Dep'!C74/1000 -> 8684.594659 | E15: =+E9 -> 0.9446970338 | F15: =D15*E15 -> 8204.310814 | G15: =F15+(G10-F10)-'BC y Dep'!D78/1000-((G10-F10)/2)*'PERDIDAS y OTROS'!E$12 -> 8755.407944 | H15: =G15+(H10-G10)-'BC y Dep'!E78/1000-(G10-F10)*'PERDIDAS y OTROS'!E$12-((H10-G10)/2)*'PERDIDAS y OTROS'!F$12 -> 9626.32253 | I15: =H15+(I10-H10)-'BC y Dep'!F78/1000-(G10-F10)*'PERDIDAS y OTROS'!E$12-(H10-G10)*'PERDIDAS y OTROS'!F$12-((I10-H10)/2)*'PERDIDAS y OTROS'!G$12 -> 10500.25094 | J15: =I15+(J10-I10)-'BC y Dep'!G78/1000-(G10-F10)*'PERDIDAS y OTROS'!E$12-(H10-G10)*'PERDIDAS y OTROS'!F$12-(I10-H10)*'PERDIDAS y OTROS'!G$12-((J10-I10)/2)*'PERDIDAS y OTROS'!H$12 -> 11389.16065
B16: Valor Neto Activos Fijos Alumbrado Público | C16: ACTN alum | D16: ='BC y Dep'!C73/1000 -> 6210.973107 | E16: =+E9 -> 0.9446970338 | F16: =D16*E16 -> 5867.487871 | G16: =F16+(G11-F11)-'BC y Dep'!D77/1000-((G11-F11)/2)*'PERDIDAS y OTROS'!E$13 -> 5773.833101 | H16: =G16+(H11-G11)-'BC y Dep'!E77/1000-(G11-F11)*'PERDIDAS y OTROS'!E$13-((H11-G11)/2)*'PERDIDAS y OTROS'!F$13 -> 5716.425784 | I16: =H16+(I11-H11)-'BC y Dep'!F77/1000-(G11-F11)*'PERDIDAS y OTROS'!E$13-(H11-G11)*'PERDIDAS y OTROS'!F$13-((I11-H11)/2)*'PERDIDAS y OTROS'!G$13 -> 5668.631454 | J16: =I16+(J11-I11)-'BC y Dep'!G77/1000-(G11-F11)*'PERDIDAS y OTROS'!E$13-(H11-G11)*'PERDIDAS y OTROS'!F$13-(I11-H11)*'PERDIDAS y OTROS'!G$13-((J11-I11)/2)*'PERDIDAS y OTROS'!H$13 -> 5653.616463
D17: =SUM(D14:D16) -> 136785.4075 | F17: =SUM(F14:F16) -> 129220.7688 | G17: =SUM(G14:G16) -> 151719.61 | H17: 180007.9636 | I17: 205553.8621 | J17: 237273.3862
B18: Check | D18: =D12-'BC y Dep'!C71/1000 -> 0 | G18: =F17+INVERSIONES!D11-(IMPD!D11+IMPCO!D11+ALUMPU!D11)-G17 -> 0 | H18: =G17+INVERSIONES!E11-(IMPD!E11+IMPCO!E11+ALUMPU!E11)-H17 -> 0 | I18: =H17+INVERSIONES!F11-(IMPD!F11+IMPCO!F11+ALUMPU!F11)-I17 -> 0 | J18: =I17+INVERSIONES!G11-(IMPD!G11+IMPCO!G11+ALUMPU!G11)-J17 -> 0
D19: =D17-'BC y Dep'!C75/1000 -> 0
B20: Ajuste Activos no Regulados
B22: Detalle | C22: 2018 | D22: 2019 | E22: 2020 | F22: 2021 | G22: Promedio
B23: Ingresos no regulados | C23: 2683607.03 | D23: 3358331.4 | E23: 1330650.39 | F23: 3174546.2 | G23: =AVERAGE(C23:F23) -> 2636783.755
B24: Ingresos por venta de energía | C24: 153769676.5 | D24: 179583523.6 | E24: 157853025.7 | F24: 151385746.4 | G24: =AVERAGE(C24:F24) -> 160647993.1
B25: Compras de energía | C25: -118297085.6 | D25: -128494796.5 | E25: -105243263.1 | F25: -110388423 | G25: -115605892
B26: otros ingresos
B27: Ingreso Neto por actividades reguladas | C27: =C24+C25+C26 -> 35472590.94 | D27: 51088727.16 | E27: 52609762.65 | F27: =F24+F25+F26 -> 40997323.39 | G27: =G24+G25+G26 -> 45042101.04
B29: Factor de ajuste | C29: =C27/(C27+C23) -> 0.9296678607 | D29: 0.9383193236 | E29: 0.9753311049 | F29: =F27/(F27+F23) -> 0.9281319485 | G29: =G27/(G27+G23) -> 0.9446970338

Sheet BC y Dep
A1: PLANILLA AA-01 | DN1: =+IF(DI5=0,0,($BV5-$BW5-$BX5)*$BV$60*1/$C5)+IF(DJ5=0,0,($BZ5-$CA5-$CB5)*$BZ$60*1/$C5)+IF(DK5=0,0,($CD5-$CE5-$CF5)*$CD$60*1/$C5)+IF(DL5=0,0,($CH5-$CI5-$CJ5)*$CH$60*1/$C5)+IF(DM5=0,0,($CL5-$CM5-$CN5)*$CL$60*1/$C5) -> 1241309.964 | EP1: =+IF(EL5=0,0,($BZ5-$CA5-$CB5)*$BZ$60*1/$C5)+IF(EM5=0,0,($CD5-$CE5-$CF5)*$CD$60*1/$C5)+IF(EN5=0,0,($CH5-$CI5-$CJ5)*$CH$60*1/$C5)+IF(EO5=0,0,($CL5-$CM5-$CN5)*$CL$60*1/$C5) -> 1026895.86
A2: LÍNEA DE NEGOCIO | B2: CUENTAS | C2: Vida útil estándar | D2: t<2001 | G2: 2002 | K2: 2003 | O2: 2004 | S2: 2005 | W2: 2006 | AA2: 2007 | AE2: 2008 | AI2: 2009 | AM2: 2010 | AQ2: 2011 | AU2: 2012 | AY2: 2013 | BC2: 2014 | BG2: 2014.5 | BJ2: 2015 | BN2: 2016 | BR2: 2017 | BV2: 2018 | BZ2: 2019 | CD2: 2020 | CH2: 2021 | CL2: 2021.5 | DN2: =CL2 -> 2021.5 | DT2: 2002 | DU2: =DT2+1 -> 2003 | DV2: =DU2+1 -> 2004 | DW2: 2005 | DX2: 2006 | DY2: 2007 | DZ2: 2008 | EA2: 2009 | EB2: 2010 | EC2: 2011 | ED2: 2012 | EE2: 2013 | EF2: =EG2 -> 2014 | EG2: =EE2+1 -> 2014 | EH2: 2015 | EI2: 2016 | EJ2: 2017 | EK2: 2018 | EL2: 2019 | EM2: 2020 | EN2: 2021 | EO2: =EN2+0.5 -> 2021.5 | EP2: 2022.5 | ER2: 2002 | ES2: =ER2+1 -> 2003 | ET2: =ES2+1 -> 2004 | EU2: 2005 | EV2: 2006 | EW2: 2007 | EX2: 2008 | EY2: 2009 | EZ2: 2010 | FA2: 2011 | FB2: 2012 | FC2: 2013 | FD2: =FE2 -> 2014 | FE2: =FC2+1 -> 2014 | FF2: 2015 | FG2: 2016 | FH2: 2017 | FI2: 2018 | FJ2: 2019 | FK2: 2020 | FL2: 2021 | FM2: =FL2+0.5 -> 2021.5 | FN2: 2023.5 | FP2: 2002 | FQ2: =FP2+1 -> 2003 | FR2: =FQ2+1 -> 2004 | FS2: 2005 | FT2: 2006 | FU2: 2007 | FV2: 2008 | FW2: 2009 | FX2: 2010 | FY2: 2011 | FZ2: 2012 | GA2: 2013 | GB2: =GC2 -> 2014 | GC2: =GA2+1 -> 2014 | GD2: 2015 | GE2: 2016 | GF2: 2017 | GG2: 2018 | GH2: 2019 | GI2: 2020 | GJ2: 2021 | GK2: =GJ2+0.5 -> 2021.5 | GL2: 2024.5 | GN2: 2002 | GO2: =GN2+1 -> 2003 | GP2: =GO2+1 -> 2004 | GQ2: 2005 | GR2: 2006 | GS2: 2007 | GT2: 2008 | GU2: 2009 | GV2: 2010 | GW2: 2011 | GX2: 2012 | GY2: 2013 | GZ2: =HA2 -> 2014 | HA2: =GY2+1 -> 2014 | HB2: 2015 | HC2: 2016 | HD2: 2017 | HE2: 2018 | HF2: 2019 | HG2: 2020 | HH2: 2021 | HI2: =HH2+0.5 -> 2021.5 | HJ2: 2025.5
D3: BC BRUTA 31/12/01 | E3: RETIROS ACUMUL | F3: BC NETA 31/12/01 | G3: ADICIONES | H3: ATR | I3: RETIROS ACUMUL | J3: ATR Retiros acumul | K3: ADICIONES | L3: ATR | M3: RETIROS ACUMUL | N3: ATR Retiros acumul | O3: ADICIONES | P3: ATR | Q3: RETIROS ACUMUL | R3: ATR Retiros acumul | S3: ADICIONES | T3: ATR | U3: RETIROS ACUMUL | V3: ATR Retiros acumul | W3: ADICIONES | X3: ATR | Y3: RETIROS ACUMUL | Z3: ATR Retiros acumul | AA3: ADICIONES | AB3: ATR | AC3: RETIROS ACUMUL | AD3: ATR Retiros acumul | AE3: ADICIONES | AF3: ATR | AG3: RETIROS ACUMUL | AH3: ATR Retiros acumul | AI3: ADICIONES | AJ3: ATR | AK3: RETIROS ACUMUL | AL3: ATR Retiros acumul | AM3: ADICIONES | AN3: ATR | AO3: RETIROS ACUMUL | AP3: Depr RETIROS ACUMUL | AQ3: ADICIONES | AR3: ATR | AS3: RETIROS ACUMUL | AT3: Depr RETIROS ACUMUL | AU3: ADICIONES | AV3: ATR | AW3: RETIROS ACUMUL | AX3: Depr RETIROS ACUMUL | AY3: ADICIONES | AZ3: ATR | BA3: RETIROS ACUMUL | BB3: Depr RETIROS ACUMUL | BC3: ADICIONES | BD3: ATR | BE3: RETIROS ACUMUL | BF3: Depr RETIROS ACUMUL | BG3: BC BRUTA Changuinola | BH3: OER | BI3: BC NETA Changuinola | BJ3: ADICIONES | BK3: ATR | BL3: RETIROS ACUMUL | BM3: Depr RETIROS ACUMUL | BN3: ADICIONES | BO3: ATR | BP3: RETIROS ACUMUL | BQ3: Depr RETIROS ACUMUL | BR3: ADICIONES | BS3: ATR | BT3: RETIROS ACUMUL | BU3: Depr RETIROS ACUMUL | BV3: ADICIONES | BW3: ATR | BX3: RETIROS ACUMUL | BY3: Depr RETIROS ACUMUL | BZ3: ADICIONES | CA3: ATR | CB3: RETIROS ACUMUL | CC3: Depr RETIROS ACUMUL | CD3: ADICIONES | CE3: ATR | CF3: RETIROS ACUMUL | CG3: Depr RETIROS ACUMUL | CH3: ADICIONES | CI3: ATR | CJ3: RETIROS ACUMUL | CK3: Depr RETIROS ACUMUL | CL3: ADICIONES | CM3: ATR | CN3: RETIROS ACUMUL | CO3: Depr RETIROS ACUMUL | CP3: Año de alta activos < 2005 | CQ3: Vida activos < 2001 | CR3: Vida activos 2002 | CS3: Vida activos 2003 | CT3: Vida activos 2004 | CU3: Vida activos 2005 | CV3: Vida activos 2006 | CW3: Vida activos 2007 | CX3: Vida activos 2008 | CY3: Vida activos 2009 | CZ3: Vida activos 2010 | DA3: Vida activos 2011 | DB3: Vida activos 2012 | DC3: Vida activos 2013 | DD3: Vida activos 2014 | DE3: Vida activos Changi | DF3: Vida activos 2015 | DG3: Vida activos 2016 | DH3: Vida activos 2017 | DI3: Vida activos 2018 | DJ3: Vida activos 2019 | DK3: Vida activos 2020 | DL3: Vida activos 2021 | DM3: Vida activos 2021.5 | DN3: Depreciación | DO3: BC BRUTA 30/06 | DP3: BC BRUTA tdep 30/06 | DQ3: BC NETA 30/06 | DR3: Depreciación | DS3: Vida activos < 2001 | DT3: Vida activos 2002 | DU3: Vida activos 2003 | DV3: Vida activos 2004 | DW3: Vida activos 2005 | DX3: Vida activos 2006 | DY3: Vida activos 2007 | DZ3: Vida activos 2008 | EA3: Vida activos 2009 | EB3: Vida activos 2010 | EC3: Vida activos 2011 | ED3: Vida activos 2012 | EE3: Vida activos 2013 | EF3: Vida activos Changi | EG3: Vida activos 2014 | EH3: Vida activos 2015 | EI3: Vida activos 2016 | EJ3: Vida activos 2017 | EK3: Vida activos 2018 | EL3: Vida activos 2019 | EM3: Vida activos 2020 | EN3: Vida activos 2021 | EO3: Vida activos 2021.5 | EP3: Depreciación | EQ3: Vida activos < 2001 | ER3: Vida activos 2002 | ES3: Vida activos 2003 | ET3: Vida activos 2004 | EU3: Vida activos 2005 | EV3: Vida activos 2006 | EW3: Vida activos 2007 | EX3: Vida activos 2008 | EY3: Vida activos 2009 | EZ3: Vida activos 2010 | FA3: Vida activos 2011 | FB3: Vida activos 2012 | FC3: Vida activos 2013 | FD3: Vida activos Changi | FE3: Vida activos 2014 | FF3: Vida activos 2015 | FG3: Vida activos 2016 | FH3: Vida activos 2017 | FI3: Vida activos 2018 | FJ3: Vida activos 2019 | FK3: Vida activos 2020 | FL3: Vida activos 2021 | FM3: Vida activos 2021.5 | FN3: Depreciación | FO3: Vida activos < 2001 | FP3: Vida activos 2002 | FQ3: Vida activos 2003 | FR3: Vida activos 2004 | FS3: Vida activos 2005 | FT3: Vida activos 2006 | FU3: Vida activos 2007 | FV3: Vida activos 2008 | FW3: Vida activos 2009 | FX3: Vida activos 2010 | FY3: Vida activos 2011 | FZ3: Vida activos 2012 | GA3: Vida activos 2013 | GB3: Vida activos Changi | GC3: Vida activos 2014 | GD3: Vida activos 2015 | GE3: Vida activos 2016 | GF3: Vida activos 2017 | GG3: Vida activos 2018 | GH3: Vida activos 2019 | GI3: Vida activos 2020 | GJ3: Vida activos 2021 | GK3: Vida activos 2021.5 | GL3: Depreciación | GM3: Vida activos < 2001 | GN3: Vida activos 2002 | GO3: Vida activos 2003 | GP3: Vida activos 2004 | GQ3: Vida activos 2005 | GR3: Vida activos 2006 | GS3: Vida activos 2007 | GT3: Vida activos 2008 | GU3: Vida activos 2009 | GV3: Vida activos 2010 | GW3: Vida activos 2011 | GX3: Vida activos 2012 | GY3: Vida activos 2013 | GZ3: Vida activos Changi | HA3: Vida activos 2014 | HB3: Vida activos 2015 | HC3: Vida activos 2016 | HD3: Vida activos 2017 | HE3: Vida activos 2018 | HF3: Vida activos 2019 | HG3: Vida activos 2020 | HH3: Vida activos 2021 | HI3: Vida activos 2021.5 | HJ3: Depreciación
A5: PROPIEDADES Y PLANTA | B5: Planta Intangible | C5: 4 | D5: 2192460.658 | E5: 0 | F5: 1449825.55 | G5: 167256.039 | H5: 0 | I5: 0 | J5: 0 | K5: 48031.15 | L5: 0 | M5: 0 | N5: 0 | O5: 65709.412 | P5: 0 | Q5: 0 | R5: 0 | S5: 62165.65 | T5: 0 | U5: 0 | V5: 0 | W5: 90684.24 | X5: 0 | Y5: 0 | Z5: 0 | AA5: 32408.87 | AB5: 0 | AC5: 0 | AD5: 0 | AE5: 97632.98 | AF5: 0 | AG5: 0 | AH5: 0 | AI5: 249294.0639 | AJ5: 0 | AK5: 0 | AL5: 0 | AM5: 61005.71 | AN5: 0 | AO5: 0 | AP5: 0 | AQ5: 121471.92 | AR5: 0 | AS5: 0 | AT5: 0 | AU5: 0 | AV5: 0 | AW5: 0 | AX5: 0 | AY5: 12228.08 | AZ5: 0 | BA5: 0 | BB5: 0 | BC5: 78776.69 | BD5: 0 | BE5: 0 | BF5: 0 | BG5: 0 | BH5: 0 | BI5: 0 | BJ5: 602994.76 | BK5: 0 | BL5: 0 | BM5: 0 | BN5: 934571.95 | BO5: 0 | BP5: 0 | BQ5: 0 | BR5: 677544.22 | BS5: 0 | BT5: 0 | BU5: 0 | BV5: 952951.57 | BW5: 0 | BX5: 0 | BY5: 0 | BZ5: 3343099.25 | CA5: 0 | CB5: 0 | CC5: 0 | CD5: 448163.8 | CE5: 0 | CF5: 0 | CG5: 0 | CH5: 461340.96 | CI5: 0 | CJ5: 0 | CK5: 0 | CL5: 315990.52 | CM5: 0 | CN5: 0 | CO5: 0 | CP5: =IF(D5=0,0,2001-(D5-F5)*C5/D5) -> 1999.645111 | CQ5: =IF((1-($DN$2-$CP5)/$C5)>0,(1-($DN$2-$CP5)/$C5),0) -> 0 | CR5: =IF((1-($DN$2-G$2)/$C5)>0,(1-($DN$2-G$2)/$C5),0) -> 0 | CS5: =IF((1-($DN$2-K$2)/$C5)>0,(1-($DN$2-K$2)/$C5),0) -> 0 | CT5: =IF((1-($DN$2-O$2)/$C5)>0,(1-($DN$2-O$2)/$C5),0) -> 0 | CU5: =IF((1-($DN$2-S$2)/$C5)>0,(1-($DN$2-S$2)/$C5),0) -> 0 | CV5: =IF((1-($DN$2-W$2)/$C5)>0,(1-($DN$2-W$2)/$C5),0) -> 0 | CW5: =IF((1-($DN$2-AA$2)/$C5)>0,(1-($DN$2-AA$2)/$C5),0) -> 0 | CX5: =IF((1-($DN$2-AE$2)/$C5)>0,(1-($DN$2-AE$2)/$C5),0) -> 0 | CY5: =IF((1-($DN$2-AI$2)/$C5)>0,(1-($DN$2-AI$2)/$C5),0) -> 0 | CZ5: =IF((1-($DN$2-AM$2)/$C5)>0,(1-($DN$2-AM$2)/$C5),0) -> 0 | DA5: =IF((1-($DN$2-AQ$2)/$C5)>0,(1-($DN$2-AQ$2)/$C5),0) -> 0 | DB5: =IF((1-($DN$2-AU$2)/$C5)>0,(1-($DN$2-AU$2)/$C5),0) -> 0 | DC5: =IF((1-($DN$2-AY$2)/$C5)>0,(1-($DN$2-AY$2)/$C5),0) -> 0 | DD5: =IF((1-($DN$2-BC$2)/$C5)>0,(1-($DN$2-BC$2)/$C5),0) -> 0 | DE5: =IF(BG5=0,0,1-($DN$2-(2014.5-(BG5-BI5)*C5/BG5))/C5) -> 0 | DF5: =IF((1-($DN$2-BJ$2)/$C5)>0,(1-($DN$2-BJ$2)/$C5),0) -> 0 | DG5: =IF((1-($DN$2-BN$2)/$C5)>0,(1-($DN$2-BN$2)/$C5),0) -> 0 | DH5: =IF((1-($DN$2-BR$2)/$C5)>0,(1-($DN$2-BR$2)/$C5),0) -> 0 | DI5: =IF((1-($DN$2-BV$2)/$C5)>0,(1-($DN$2-BV$2)/$C5),0) -> 0.125 | DJ5: =IF((1-($DN$2-BZ$2)/$C5)>0,(1-($DN$2-BZ$2)/$C5),0) -> 0.375 | DK5: =IF((1-($DN$2-CD$2)/$C5)>0,(1-($DN$2-CD$2)/$C5),0) -> 0.625 | DL5: =IF((1-($DN$2-CH$2)/$C5)>0,(1-($DN$2-CH$2)/$C5),0) -> 0.875 | DM5: =IF((1-($DN$2-CL$2)/$C5)>0,(1-($DN$2-CL$2)/$C5),0) -> 1 | DN5: =IF(CQ5=0,0,($D5-$E5)*1/$C5)+IF(CR5=0,0,($G5-$H5-$I5)*$G$60*1/$C5)+IF(CS5=0,0,($K5-$L5-$M5)*$K$60*1/$C5)+IF(CT5=0,0,($O5-$P5-$Q5)*$O$60*1/$C5)+IF(CU5=0,0,($S5-$T5-$U5)*$S$60*1/$C5)+IF(CV5=0,0,($W5-$X5-$Y5)*$W$60*1/$C5)+IF(CW5=0,0,($AA5-$AB5-$AC5)*$AA$60*1/$C5)+IF(CX5=0,0,($AE5-$AF5-$AG5)*$AE$60*1/$C5)+IF(CY5=0,0,($AI5-$AJ5-$AK5)*$AI$60*1/$C5)+IF(CZ5=0,0,($AM5-$AN5-$AO5)*$AM$60*1/$C5)+IF(DA5=0,0,($AQ5-$AR5-$AS5)*$AQ$60*1/$C5)+IF(DB5=0,0,($AU5-$V5-$AW5)*$AU$60*1/$C5)+IF(DC5=0,0,($AY5-$AZ5-$BA5)*$AY$60*1/$C5)+IF(DD5=0,0,($BC5-$BD5-$BE5)*$BC$60*1/$C5)+IF(DE5=0,0,$BG5*1/$C5)+IF(DF5=0,0,($BJ5-$BK5-$BL5)*$BJ$60*1/$C5)+IF(DG5=0,0,($BN5-$BO5-$BP5)*$BN$60*1/$C5)+IF(DH5=0,0,($BR5-$BS5-$BT5)*$BR$60*1/$C5)+IF(DI5=0,0,($BV5-$BW5-$BX5)*$BV$60*1/$C5)+IF(DJ5=0,0,($BZ5-$CA5-$CB5)*$BZ$60*1/$C5)+IF(DK5=0,0,($CD5-$CE5-$CF5)*$CD$60*1/$C5)+IF(DL5=0,0,($CH5-$CI5-$CJ5)*$CH$60*1/$C5)+IF(DM5=0,0,($CL5-$CM5-$CN5)*$CL$60*1/$C5) -> 1241309.964 | DO5: =D5-E5+(G5-I5)*G$60+(K5-M5)*K$60+(O5-Q5)*O$60+(S5-U5)*S$60+(W5-Y5)*W$60+(AA5-AC5)*AA$60+(AE5-AG5)*AE$60+(AI5-AK5)*AI$60+(AM5-AO5)*AM$60+(AQ5-AS5)*$AQ$60+(AU5-AW5)*$AU$60+(AY5-BA5)*$AY$60+(BC5-BE5)*$BC$60+BG5+(BJ5-BL5)*$BJ$60+(BN5-BP5)*$BN$60+(BR5-BT5)*$BR$60+(BV5-BX5)*$BV$60+(BZ5-CB5)*$BZ$60+(CD5-CF5)*$CD$60+(CH5-CJ5)*$CH$60+(CL5-CN5)*$CL$60 -> 10035215.53 | DP5: =IF(CQ5=0,D5-E5,0)+IF(CR5=0,(G5-I5)*G$60,0)+IF(CS5=0,(K5-M5)*K$60,0)+IF(CT5=0,(O5-Q5)*O$60,0)+IF(CU5=0,(S5-U5)*S$60,0)+IF(CV5=0,(W5-Y5)*W$60,0)+IF(CW5=0,(AA5-AC5)*AA$60,0)+IF(CX5=0,(AE5-AG5)*AE$60,0)+IF(CY5=0,(AI5-AK5)*AI$60,0)+IF(CZ5=0,(AM5-AO5)*AM$60,0)+IF(DA5=0,(AQ5-AS5)*$AQ$60,0)+IF(DB5=0,(AU5-AW5)*$AU$60,0)+IF(DC5=0,(AY5-BA5)*$AY$60,0)++IF(DD5=0,(BC5-BE5)*$BC$60,0)+IF(DE5=0,BG5,0)+IF(DF5=0,(BJ5-BL5)*$BJ$60,0)+IF(DG5=0,(BN5-BP5)*$BN$60,0)+IF(DH5=0,(BR5-BT5)*$BR$60,0)+IF(DI5=0,(BV5-BX5)*$BV$60,0)+IF(DJ5=0,(BZ5-CB5)*$BZ$60,0)+IF(DK5=0,(CD5-CF5)*$CD$60,0)+IF(DL5=0,(CH5-CJ5)*$CH$60,0)+IF(DM5=0,(CL5-CN5)*$CL$60,0) -> 5069975.674 | DQ5: =(D5-E5)*CQ5+((G5-H5-(I5-J5))*G$60)*CR5+((K5-L5-(M5-N5))*K$60)*CS5+((O5-P5-(Q5-R5))*O$60)*CT5+((S5-T5-(U5-V5))*S$60)*CU5+((W5-X5-(Y5-Z5))*W$60)*CV5+((AA5-AB5-(AC5-AD5))*AA$60)*CW5+((AE5-AF5-(AG5-AH5))*AE$60)*CX5+((AI5-AJ5-(AK5-AL5))*AI$60)*CY5+((AM5-AN5-(AO5-AP5))*$AM$60)*CZ5+((AQ5-AR5-(AS5-AT5))*$AQ$60)*DA5+((AU5-AV5-(AW5-AX5))*$AU$60)*DB5+((AY5-AZ5-(BA5-BB5))*$AY$60)*DC5+((BC5-BD5-(BE5-BF5))*$BC$60)*DD5+((BJ5-BK5-(BL5-BM5))*$BJ$60)*DF5+(BG5-BH5)*DE5+((BN5-BO5-(BP5-BQ5))*$BN$60)*DG5+((BR5-BS5-(BT5-BU5))*$BR$60)*DH5+((BV5-BW5-(BX5-BY5))*$BV$60)*DI5+((BZ5-CA5-(CB5-CC5))*$BZ$60)*DJ5+((CD5-CE5-(CF5-CG5))*$CD$60)*DK5+((CH5-CI5-(CJ5-CK5))*$CH$60)*DL5+((CL5-CM5-(CN5-CO5))*$CL$60)*DM5 -> 2131659.979 | DR5: =(DO5-DP5)*1/C5 -> 1241309.964 | DS5: =IF((1-($EP$2-$CP5)/$C5)>0,(1-($EP$2-$CP5)/$C5),0) -> 0 | DT5: =IF((1-($EP$2-DT$2)/$C5)>0,(1-($EP$2-DT$2)/$C5),0) -> 0 | DU5: 0 | DV5: 0 | DW5: 0 | DX5: 0 | DY5: 0 | DZ5: 0 | EA5: 0 | EB5: 0 | EC5: 0 | ED5: =IF((1-($EP$2-ED$2)/$C5)>0,(1-($EP$2-ED$2)/$C5),0) -> 0 | EE5: 0 | EF5: 0 | EG5: 0 | EH5: 0 | EI5: 0 | EJ5: 0 | EK5: 0 | EL5: 0.125 | EM5: 0.375 | EN5: 0.625 | EO5: 0.75 | EP5: =IF(DS5=0,0,($D5-$E5)*1/$C5)+IF(DT5=0,0,($G5-$H5-$I5)*$G$60*1/$C5)+IF(DU5=0,0,($K5-$L5-$M5)*$K$60*1/$C5)+IF(DV5=0,0,($O5-$P5-$Q5)*$O$60*1/$C5)+IF(DW5=0,0,($S5-$T5-$U5)*$S$60*1/$C5)+IF(DX5=0,0,($W5-$X5-$Y5)*$W$60*1/$C5)+IF(DY5=0,0,($AA5-$AB5-$AC5)*$AA$60*1/$C5)+IF(DZ5=0,0,($AE5-$AF5-$AG5)*$AE$60*1/$C5)+IF(EA5=0,0,($AI5-$AJ5-$AK5)*$AI$60*1/$C5)+IF(EB5=0,0,($AM5-$AN5-$AO5)*$AM$60*1/$C5)+IF(EC5=0,0,($AQ5-$AR5-$AS5)*$AQ$60*1/$C5)+IF(ED5=0,0,($AU5-$V5-$AW5)*$AU$60*1/$C5)+IF(EE5=0,0,($AY5-$AZ5-$BA5)*$AY$60*1/$C5)+IF(EF5=0,0,($BC5-$BD5-$BE5)*$BC$60*1/$C5)+IF(EG5=0,0,$BG5*1/$C5)+IF(EH5=0,0,($BJ5-$BK5-$BL5)*$BJ$60*1/$C5)+IF(EI5=0,0,($BN5-$BO5-$BP5)*$BN$60*1/$C5)+IF(EJ5=0,0,($BR5-$BS5-$BT5)*$BR$60*1/$C5)+IF(EK5=0,0,($BV5-$BW5-$BX5)*$BV$60*1/$C5)+IF(EL5=0,0,($BZ5-$CA5-$CB5)*$BZ$60*1/$C5)+IF(EM5=0,0,($CD5-$CE5-$CF5)*$CD$60*1/$C5)+IF(EN5=0,0,($CH5-$CI5-$CJ5)*$CH$60*1/$C5)+IF(EO5=0,0,($CL5-$CM5-$CN5)*$CL$60*1/$C5) -> 1026895.86 | EQ5: =IF((1-($FN$2-$CP5)/$C5)>0,(1-($FN$2-$CP5)/$C5),0) -> 0 | ER5: =IF((1-($FN$2-ER$2)/$C5)>0,(1-($FN$2-ER$2)/$C5),0) -> 0 | ES5: 0 | ET5: 0 | EU5: 0 | EV5: 0 | EW5: 0 | EX5: 0 | EY5: 0 | EZ5: 0 | FA5: 0 | FB5: =IF((1-($FN$2-FB$2)/$C5)>0,(1-($FN$2-FB$2)/$C5),0) -> 0 | FC5: 0 | FD5: 0 | FE5: 0 | FF5: 0 | FG5: 0 | FH5: 0 | FI5: 0 | FJ5: 0 | FK5: 0.125 | FL5: 0.375 | FM5: 0.5 | FN5: =IF(EQ5=0,0,($D5-$E5)*1/$C5)+IF(ER5=0,0,($G5-$H5-$I5)*$G$60*1/$C5)+IF(ES5=0,0,($K5-$L5-$M5)*$K$60*1/$C5)+IF(ET5=0,0,($O5-$P5-$Q5)*$O$60*1/$C5)+IF(EU5=0,0,($S5-$T5-$U5)*$S$60*1/$C5)+IF(EV5=0,0,($W5-$X5-$Y5)*$W$60*1/$C5)+IF(EW5=0,0,($AA5-$AB5-$AC5)*$AA$60*1/$C5)+IF(EX5=0,0,($AE5-$AF5-$AG5)*$AE$60*1/$C5)+IF(EY5=0,0,($AI5-$AJ5-$AK5)*$AI$60*1/$C5)+IF(EZ5=0,0,($AM5-$AN5-$AO5)*$AM$60*1/$C5)+IF(FA5=0,0,($AQ5-$AR5-$AS5)*$AQ$60*1/$C5)+IF(FB5=0,0,($AU5-$V5-$AW5)*$AU$60*1/$C5)+IF(FC5=0,0,($AY5-$AZ5-$BA5)*$AY$60*1/$C5)+IF(FD5=0,0,($BC5-$BD5-$BE5)*$BC$60*1/$C5)+IF(FE5=0,0,$BG5*1/$C5)+IF(FF5=0,0,($BJ5-$BK5-$BL5)*$BJ$60*1/$C5)+IF(FG5=0,0,($BN5-$BO5-$BP5)*$BN$60*1/$C5)+IF(FH5=0,0,($BR5-$BS5-$BT5)*$BR$60*1/$C5)+IF(FI5=0,0,($BV5-$BW5-$BX5)*$BV$60*1/$C5)+IF(FJ5=0,0,($BZ5-$CA5-$CB5)*$BZ$60*1/$C5)+IF(FK5=0,0,($CD5-$CE5-$CF5)*$CD$60*1/$C5)+IF(FL5=0,0,($CH5-$CI5-$CJ5)*$CH$60*1/$C5)+IF(FM5=0,0,($CL5-$CM5-$CN5)*$CL$60*1/$C5) -> 274698.5292 | FO5: =IF((1-($GL$2-$CP5)/$C5)>0,(1-($GL$2-$CP5)/$C5),0) -> 0 | FP5: =IF((1-($GL$2-FP$2)/$C5)>0,(1-($GL$2-FP$2)/$C5),0) -> 0 | FQ5: 0 | FR5: 0 | FS5: 0 | FT5: 0 | FU5: 0 | FV5: 0 | FW5: 0 | FX5: 0 | FY5: 0 | FZ5: =IF((1-($GL$2-FZ$2)/$C5)>0,(1-($GL$2-FZ$2)/$C5),0) -> 0 | GA5: 0 | GB5: 0 | GC5: 0 | GD5: 0 | GE5: 0 | GF5: 0 | GG5: 0 | GH5: 0 | GI5: 0 | GJ5: 0.125 | GK5: 0.25 | GL5: =IF(FO5=0,0,($D5-$E5)*1/$C5)+IF(FP5=0,0,($G5-$H5-$I5)*$G$60*1/$C5)+IF(FQ5=0,0,($K5-$L5-$M5)*$K$60*1/$C5)+IF(FR5=0,0,($O5-$P5-$Q5)*$O$60*1/$C5)+IF(FS5=0,0,($S5-$T5-$U5)*$S$60*1/$C5)+IF(FT5=0,0,($W5-$X5-$Y5)*$W$60*1/$C5)+IF(FU5=0,0,($AA5-$AB5-$AC5)*$AA$60*1/$C5)+IF(FV5=0,0,($AE5-$AF5-$AG5)*$AE$60*1/$C5)+IF(FW5=0,0,($AI5-$AJ5-$AK5)*$AI$60*1/$C5)+IF(FX5=0,0,($AM5-$AN5-$AO5)*$AM$60*1/$C5)+IF(FY5=0,0,($AQ5-$AR5-$AS5)*$AQ$60*1/$C5)+IF(FZ5=0,0,($AU5-$V5-$AW5)*$AU$60*1/$C5)+IF(GA5=0,0,($AY5-$AZ5-$BA5)*$AY$60*1/$C5)+IF(GB5=0,0,($BC5-$BD5-$BE5)*$BC$60*1/$C5)+IF(GC5=0,0,$BG5*1/$C5)+IF(GD5=0,0,($BJ5-$BK5-$BL5)*$BJ$60*1/$C5)+IF(GE5=0,0,($BN5-$BO5-$BP5)*$BN$60*1/$C5)+IF(GF5=0,0,($BR5-$BS5-$BT5)*$BR$60*1/$C5)+IF(GG5=0,0,($BV5-$BW5-$BX5)*$BV$60*1/$C5)+IF(GH5=0,0,($BZ5-$CA5-$CB5)*$BZ$60*1/$C5)+IF(GI5=0,0,($CD5-$CE5-$CF5)*$CD$60*1/$C5)+IF(GJ5=0,0,($CH5-$CI5-$CJ5)*$CH$60*1/$C5)+IF(GK5=0,0,($CL5-$CM5-$CN5)*$CL$60*1/$C5) -> 173861.6742 | GM5: =IF((1-($HJ$2-$CP5)/$C5)>0,(1-($HJ$2-$CP5)/$C5),0) -> 0 | GN5: =IF((1-($HJ$2-GN$2)/$C5)>0,(1-($HJ$2-GN$2)/$C5),0) -> 0 | GO5: 0 | GP5: 0 | GQ5: 0 | GR5: 0 | GS5: 0 | GT5: 0 | GU5: 0 | GV5: 0 | GW5: 0 | GX5: =IF((1-($HJ$2-GX$2)/$C5)>0,(1-($HJ$2-GX$2)/$C5),0) -> 0 | GY5: 0 | GZ5: 0 | HA5: 0 | HB5: 0 | HC5: 0 | HD5: 0 | HE5: 0 | HF5: 0 | HG5: 0 | HH5: 0 | HI5: 0 | HJ5: =IF(GM5=0,0,($D5-$E5)*1/$C5)+IF(GN5=0,0,($G5-$H5-$I5)*$G$60*1/$C5)+IF(GO5=0,0,($K5-$L5-$M5)*$K$60*1/$C5)+IF(GP5=0,0,($O5-$P5-$Q5)*$O$60*1/$C5)+IF(GQ5=0,0,($S5-$T5-$U5)*$S$60*1/$C5)+IF(GR5=0,0,($W5-$X5-$Y5)*$W$60*1/$C5)+IF(GS5=0,0,($AA5-$AB5-$AC5)*$AA$60*1/$C5)+IF(GT5=0,0,($AE5-$AF5-$AG5)*$AE$60*1/$C5)+IF(GU5=0,0,($AI5-$AJ5-$AK5)*$AI$60*1/$C5)+IF(GV5=0,0,($AM5-$AN5-$AO5)*$AM$60*1/$C5)+IF(GW5=0,0,($AQ5-$AR5-$AS5)*$AQ$60*1/$C5)+IF(GX5=0,0,($AU5-$V5-$AW5)*$AU$60*1/$C5)+IF(GY5=0,0,($AY5-$AZ5-$BA5)*$AY$60*1/$C5)+IF(GZ5=0,0,($BC5-$BD5-$BE5)*$BC$60*1/$C5)+IF(HA5=0,0,$BG5*1/$C5)+IF(HB5=0,0,($BJ5-$BK5-$BL5)*$BJ$60*1/$C5)+IF(HC5=0,0,($BN5-$BO5-$BP5)*$BN$60*1/$C5)+IF(HD5=0,0,($BR5-$BS5-$BT5)*$BR$60*1/$C5)+IF(HE5=0,0,($BV5-$BW5-$BX5)*$BV$60*1/$C5)+IF(HF5=0,0,($BZ5-$CA5-$CB5)*$BZ$60*1/$C5)+IF(HG5=0,0,($CD5-$CE5-$CF5)*$CD$60*1/$C5)+IF(HH5=0,0,($CH5-$CI5-$CJ5)*$CH$60*1/$C5)+IF(HI5=0,0,($CL5-$CM5-$CN5)*$CL$60*1/$C5) -> 0
B6: Terrenos | C6: 1000 | D6: 103551.785 | E6: 0 | F6: 103551.785 | G6: 3081.72 | H6: 0 | I6: 0 | J6: 0 | K6: 0 | L6: 0 | M6: 0 | N6: 0 | O6: 0 | P6: 0 | Q6: 0 | R6: 0 | S6: 0 | T6: 0 | U6: 0 | V6: 0 | W6: 0 | X6: 0 | Y6: 0 | Z6: 0 | AA6: 0 | AB6: 0 | AC6: 0 | AD6: 0 | AE6: 0 | AF6: 0 | AG6: 0 | AH6: 0 | AI6: 0 | AJ6: 0 | AK6: 0 | AL6: 0 | AM6: 0 | AN6: 0 | AO6: 0 | AP6: 0 | AQ6: 0 | AR6: 0 | AS6: 0 | AT6: 0 | AU6: 0 | AV6: 0 | AW6: 0 | AX6: 0 | AY6: 0 | AZ6: 0 | BA6: 0 | BB6: 0 | BC6: 215517.81 | BD6: 0 | BE6: 0 | BF6: 0 | BG6: 690000 | BH6: 0 | BI6: 690000 | BJ6: 0 | BK6: 0 | BL6: 0 | BM6: 0 | BN6: 0 | BO6: 0 | BP6: 0 | BQ6: 0 | BR6: 348000 | BS6: 0 | BT6: 0 | BU6: 0 | BV6: 0 | BW6: 0 | BX6: 0 | BY6: 0 | BZ6: 0 | CA6: 0 | CB6: 0 | CC6: 0 | CD6: 0 | CE6: 0 | CF6: 0 | CG6: 0 | CH6: 0 | CI6: 0 | CJ6: 0 | CK6: 0 | CL6: 0 | CM6: 0 | CN6: 0 | CO6: 0 | CP6: 2001 | CQ6: 0.9795 | CR6: 0.9805 | CS6: 0.9815 | CT6: 0.9825 | CU6: 0.9835 | CV6: 0.9845 | CW6: 0.9855 | CX6: 0.9865 | CY6: 0.9875 | CZ6: 0.9885 | DA6: 0.9895 | DB6: 0.9905 | DC6: 0.9915 | DD6: 0.9925 | DE6: =IF(BG6=0,0,1-($DN$2-(2014.5-(BG6-BI6)*C6/BG6))/C6) -> 0.993 | DF6: 0.9935 | DG6: 0.9945 | DH6: 0.9955 | DI6: 0.9965 | DJ6: 0.9975 | DK6: 0.9985 | DL6: =IF((1-($DN$2-CH$2)/$C6)>0,(1-($DN$2-CH$2)/$C6),0) -> 0.9995 | DM6: 1 | DN6: =IF(CQ6=0,0,($D6-$E6)*1/$C6)+IF(CR6=0,0,($G6-$H6-$I6)*$G$60*1/$C6)+IF(CS6=0,0,($K6-$L6-$M6)*$K$60*1/$C6)+IF(CT6=0,0,($O6-$P6-$Q6)*$O$60*1/$C6)+IF(CU6=0,0,($S6-$T6-$U6)*$S$60*1/$C6)+IF(CV6=0,0,($W6-$X6-$Y6)*$W$60*1/$C6)+IF(CW6=0,0,($AA6-$AB6-$AC6)*$AA$60*1/$C6)+IF(CX6=0,0,($AE6-$AF6-$AG6)*$AE$60*1/$C6)+IF(CY6=0,0,($AI6-$AJ6-$AK6)*$AI$60*1/$C6)+IF(CZ6=0,0,($AM6-$AN6-$AO6)*$AM$60*1/$C6)+IF(DA6=0,0,($AQ6-$AR6-$AS6)*$AQ$60*1/$C6)+IF(DB6=0,0,($AU6-$V6-$AW6)*$AU$60*1/$C6)+IF(DC6=0,0,($AY6-$AZ6-$BA6)*$AY$60*1/$C6)+IF(DD6=0,0,($BC6-$BD6-$BE6)*$BC$60*1/$C6)+IF(DE6=0,0,$BG6*1/$C6)+IF(DF6=0,0,($BJ6-$BK6-$BL6)*$BJ$60*1/$C6)+IF(DG6=0,0,($BN6-$BO6-$BP6)*$BN$60*1/$C6)+IF(DH6=0,0,($BR6-$BS6-$BT6)*$BR$60*1/$C6)+IF(DI6=0,0,($BV6-$BW6-$BX6)*$BV$60*1/$C6)+IF(DJ6=0,0,($BZ6-$CA6-$CB6)*$BZ$60*1/$C6)+IF(DK6=0,0,($CD6-$CE6-$CF6)*$CD$60*1/$C6)+IF(DL6=0,0,($CH6-$CI6-$CJ6)*$CH$60*1/$C6)+IF(DM6=0,0,($CL6-$CM6-$CN6)*$CL$60*1/$C6) -> 1314.125085 | DO6: =D6-E6+(G6-I6)*G$60+(K6-M6)*K$60+(O6-Q6)*O$60+(S6-U6)*S$60+(W6-Y6)*W$60+(AA6-AC6)*AA$60+(AE6-AG6)*AE$60+(AI6-AK6)*AI$60+(AM6-AO6)*AM$60+(AQ6-AS6)*$AQ$60+(AU6-AW6)*$AU$60+(AY6-BA6)*$AY$60+(BC6-BE6)*$BC$60+BG6+(BJ6-BL6)*$BJ$60+(BN6-BP6)*$BN$60+(BR6-BT6)*$BR$60+(BV6-BX6)*$BV$60+(BZ6-CB6)*$BZ$60+(CD6-CF6)*$CD$60+(CH6-CJ6)*$CH$60+(CL6-CN6)*$CL$60 -> 1314125.085 | DP6: =IF(CQ6=0,D6-E6,0)+IF(CR6=0,(G6-I6)*G$60,0)+IF(CS6=0,(K6-M6)*K$60,0)+IF(CT6=0,(O6-Q6)*O$60,0)+IF(CU6=0,(S6-U6)*S$60,0)+IF(CV6=0,(W6-Y6)*W$60,0)+IF(CW6=0,(AA6-AC6)*AA$60,0)+IF(CX6=0,(AE6-AG6)*AE$60,0)+IF(CY6=0,(AI6-AK6)*AI$60,0)+IF(CZ6=0,(AM6-AO6)*AM$60,0)+IF(DA6=0,(AQ6-AS6)*$AQ$60,0)+IF(DB6=0,(AU6-AW6)*$AU$60,0)+IF(DC6=0,(AY6-BA6)*$AY$60,0)++IF(DD6=0,(BC6-BE6)*$BC$60,0)+IF(DE6=0,BG6,0)+IF(DF6=0,(BJ6-BL6)*$BJ$60,0)+IF(DG6=0,(BN6-BP6)*$BN$60,0)+IF(DH6=0,(BR6-BT6)*$BR$60,0)+IF(DI6=0,(BV6-BX6)*$BV$60,0)+IF(DJ6=0,(BZ6-CB6)*$BZ$60,0)+IF(DK6=0,(CD6-CF6)*$CD$60,0)+IF(DL6=0,(CH6-CJ6)*$CH$60,0)+IF(DM6=0,(CL6-CN6)*$CL$60,0) -> 0 | DQ6: =(D6-E6)*CQ6+((G6-H6-(I6-J6))*G$60)*CR6+((K6-L6-(M6-N6))*K$60)*CS6+((O6-P6-(Q6-R6))*O$60)*CT6+((S6-T6-(U6-V6))*S$60)*CU6+((W6-X6-(Y6-Z6))*W$60)*CV6+((AA6-AB6-(AC6-AD6))*AA$60)*CW6+((AE6-AF6-(AG6-AH6))*AE$60)*CX6+((AI6-AJ6-(AK6-AL6))*AI$60)*CY6+((AM6-AN6-(AO6-AP6))*$AM$60)*CZ6+((AQ6-AR6-(AS6-AT6))*$AQ$60)*DA6+((AU6-AV6-(AW6-AX6))*$AU$60)*DB6+((AY6-AZ6-(BA6-BB6))*$AY$60)*DC6+((BC6-BD6-(BE6-BF6))*$BC$60)*DD6+((BJ6-BK6-(BL6-BM6))*$BJ$60)*DF6+(BG6-BH6)*DE6+((BN6-BO6-(BP6-BQ6))*$BN$60)*DG6+((BR6-BS6-(BT6-BU6))*$BR$60)*DH6+((BV6-BW6-(BX6-BY6))*$BV$60)*DI6+((BZ6-CA6-(CB6-CC6))*$BZ$60)*DJ6+((CD6-CE6-(CF6-CG6))*$CD$60)*DK6+((CH6-CI6-(CJ6-CK6))*$CH$60)*DL6+((CL6-CM6-(CN6-CO6))*$CL$60)*DM6 -> 1304213.376 | DR6: =(DO6-DP6)*1/C6 -> 1314.125085 | DS6: 0.9785 | DT6: 0.9795 | DU6: 0.9805 | DV6: 0.9815 | DW6: 0.9825 | DX6: 0.9835 | DY6: 0.9845 | DZ6: 0.9855 | EA6: 0.9865 | EB6: 0.9875 | EC6: 0.9885 | ED6: 0.9895 | EE6: 0.9905 | EF6: 0.9915 | EG6: 0.9915 | EH6: 0.9925 | EI6: 0.9935 | EJ6: 0.9945 | EK6: 0.9955 | EL6: 0.9965 | EM6: 0.9975 | EN6: 0.9985 | EO6: 0.999 | EP6: =IF(DS6=0,0,($D6-$E6)*1/$C6)+IF(DT6=0,0,($G6-$H6-$I6)*$G$60*1/$C6)+IF(DU6=0,0,($K6-$L6-$M6)*$K$60*1/$C6)+IF(DV6=0,0,($O6-$P6-$Q6)*$O$60*1/$C6)+IF(DW6=0,0,($S6-$T6-$U6)*$S$60*1/$C6)+IF(DX6=0,0,($W6-$X6-$Y6)*$W$60*1/$C6)+IF(DY6=0,0,($AA6-$AB6-$AC6)*$AA$60*1/$C6)+IF(DZ6=0,0,($AE6-$AF6-$AG6)*$AE$60*1/$C6)+IF(EA6=0,0,($AI6-$AJ6-$AK6)*$AI$60*1/$C6)+IF(EB6=0,0,($AM6-$AN6-$AO6)*$AM$60*1/$C6)+IF(EC6=0,0,($AQ6-$AR6-$AS6)*$AQ$60*1/$C6)+IF(ED6=0,0,($AU6-$V6-$AW6)*$AU$60*1/$C6)+IF(EE6=0,0,($AY6-$AZ6-$BA6)*$AY$60*1/$C6)+IF(EF6=0,0,($BC6-$BD6-$BE6)*$BC$60*1/$C6)+IF(EG6=0,0,$BG6*1/$C6)+IF(EH6=0,0,($BJ6-$BK6-$BL6)*$BJ$60*1/$C6)+IF(EI6=0,0,($BN6-$BO6-$BP6)*$BN$60*1/$C6)+IF(EJ6=0,0,($BR6-$BS6-$BT6)*$BR$60*1/$C6)+IF(EK6=0,0,($BV6-$BW6-$BX6)*$BV$60*1/$C6)+IF(EL6=0,0,($BZ6-$CA6-$CB6)*$BZ$60*1/$C6)+IF(EM6=0,0,($CD6-$CE6-$CF6)*$CD$60*1/$C6)+IF(EN6=0,0,($CH6-$CI6-$CJ6)*$CH$60*1/$C6)+IF(EO6=0,0,($CL6-$CM6-$CN6)*$CL$60*1/$C6) -> 1314.125085 | EQ6: 0.9775 | ER6: 0.9785 | ES6: 0.9795 | ET6: 0.9805 | EU6: 0.9815 | EV6: 0.9825 | EW6: 0.9835 | EX6: 0.9845 | EY6: 0.9855 | EZ6: 0.9865 | FA6: 0.9875 | FB6: 0.9885 | FC6: 0.9895 | FD6: 0.9905 | FE6: 0.9905 | FF6: 0.9915 | FG6: 0.9925 | FH6: 0.9935 | FI6: 0.9945 | FJ6: 0.9955 | FK6: 0.9965 | FL6: 0.9975 | FM6: 0.998 | FN6: =IF(EQ6=0,0,($D6-$E6)*1/$C6)+IF(ER6=0,0,($G6-$H6-$I6)*$G$60*1/$C6)+IF(ES6=0,0,($K6-$L6-$M6)*$K$60*1/$C6)+IF(ET6=0,0,($O6-$P6-$Q6)*$O$60*1/$C6)+IF(EU6=0,0,($S6-$T6-$U6)*$S$60*1/$C6)+IF(EV6=0,0,($W6-$X6-$Y6)*$W$60*1/$C6)+IF(EW6=0,0,($AA6-$AB6-$AC6)*$AA$60*1/$C6)+IF(EX6=0,0,($AE6-$AF6-$AG6)*$AE$60*1/$C6)+IF(EY6=0,0,($AI6-$AJ6-$AK6)*$AI$60*1/$C6)+IF(EZ6=0,0,($AM6-$AN6-$AO6)*$AM$60*1/$C6)+IF(FA6=0,0,($AQ6-$AR6-$AS6)*$AQ$60*1/$C6)+IF(FB6=0,0,($AU6-$V6-$AW6)*$AU$60*1/$C6)+IF(FC6=0,0,($AY6-$AZ6-$BA6)*$AY$60*1/$C6)+IF(FD6=0,0,($BC6-$BD6-$BE6)*$BC$60*1/$C6)+IF(FE6=0,0,$BG6*1/$C6)+IF(FF6=0,0,($BJ6-$BK6-$BL6)*$BJ$60*1/$C6)+IF(FG6=0,0,($BN6-$BO6-$BP6)*$BN$60*1/$C6)+IF(FH6=0,0,($BR6-$BS6-$BT6)*$BR$60*1/$C6)+IF(FI6=0,0,($BV6-$BW6-$BX6)*$BV$60*1/$C6)+IF(FJ6=0,0,($BZ6-$CA6-$CB6)*$BZ$60*1/$C6)+IF(FK6=0,0,($CD6-$CE6-$CF6)*$CD$60*1/$C6)+IF(FL6=0,0,($CH6-$CI6-$CJ6)*$CH$60*1/$C6)+IF(FM6=0,0,($CL6-$CM6-$CN6)*$CL$60*1/$C6) -> 1314.125085 | FO6: 0.9765 | FP6: 0.9775 | FQ6: 0.9785 | FR6: 0.9795 | FS6: 0.9805 | FT6: 0.9815 | FU6: 0.9825 | FV6: 0.9835 | FW6: 0.9845 | FX6: 0.9855 | FY6: 0.9865 | FZ6: 0.9875 | GA6: 0.9885 | GB6: 0.9895 | GC6: 0.9895 | GD6: 0.9905 | GE6: 0.9915 | GF6: 0.9925 | GG6: 0.9935 | GH6: 0.9945 | GI6: 0.9955 | GJ6: 0.9965 | GK6: 0.997 | GL6: =IF(FO6=0,0,($D6-$E6)*1/$C6)+IF(FP6=0,0,($G6-$H6-$I6)*$G$60*1/$C6)+IF(FQ6=0,0,($K6-$L6-$M6)*$K$60*1/$C6)+IF(FR6=0,0,($O6-$P6-$Q6)*$O$60*1/$C6)+IF(FS6=0,0,($S6-$T6-$U6)*$S$60*1/$C6)+IF(FT6=0,0,($W6-$X6-$Y6)*$W$60*1/$C6)+IF(FU6=0,0,($AA6-$AB6-$AC6)*$AA$60*1/$C6)+IF(FV6=0,0,($AE6-$AF6-$AG6)*$AE$60*1/$C6)+IF(FW6=0,0,($AI6-$AJ6-$AK6)*$AI$60*1/$C6)+IF(FX6=0,0,($AM6-$AN6-$AO6)*$AM$60*1/$C6)+IF(FY6=0,0,($AQ6-$AR6-$AS6)*$AQ$60*1/$C6)+IF(FZ6=0,0,($AU6-$V6-$AW6)*$AU$60*1/$C6)+IF(GA6=0,0,($AY6-$AZ6-$BA6)*$AY$60*1/$C6)+IF(GB6=0,0,($BC6-$BD6-$BE6)*$BC$60*1/$C6)+IF(GC6=0,0,$BG6*1/$C6)+IF(GD6=0,0,($BJ6-$BK6-$BL6)*$BJ$60*1/$C6)+IF(GE6=0,0,($BN6-$BO6-$BP6)*$BN$60*1/$C6)+IF(GF6=0,0,($BR6-$BS6-$BT6)*$BR$60*1/$C6)+IF(GG6=0,0,($BV6-$BW6-$BX6)*$BV$60*1/$C6)+IF(GH6=0,0,($BZ6-$CA6-$CB6)*$BZ$60*1/$C6)+IF(GI6=0,0,($CD6-$CE6-$CF6)*$CD$60*1/$C6)+IF(GJ6=0,0,($CH6-$CI6-$CJ6)*$CH$60*1/$C6)+IF(GK6=0,0,($CL6-$CM6-$CN6)*$CL$60*1/$C6) -> 1314.125085 | GM6: 0.9755 | GN6: 0.9765 | GO6: 0.9775 | GP6: 0.9785 | GQ6: 0.9795 | GR6: 0.9805 | GS6: 0.9815 | GT6: 0.9825 | GU6: 0.9835 | GV6: 0.9845 | GW6: 0.9855 | GX6: 0.9865 | GY6: 0.9875 | GZ6: 0.9885 | HA6: 0.9885 | HB6: 0.9895 | HC6: 0.9905 | HD6: 0.9915 | HE6: 0.9925 | HF6: 0.9935 | HG6: 0.9945 | HH6: 0.9955 | HI6: 0.996 | HJ6: =IF(GM6=0,0,($D6-$E6)*1/$C6)+IF(GN6=0,0,($G6-$H6-$I6)*$G$60*1/$C6)+IF(GO6=0,0,($K6-$L6-$M6)*$K$60*1/$C6)+IF(GP6=0,0,($O6-$P6-$Q6)*$O$60*1/$C6)+IF(GQ6=0,0,($S6-$T6-$U6)*$S$60*1/$C6)+IF(GR6=0,0,($W6-$X6-$Y6)*$W$60*1/$C6)+IF(GS6=0,0,($AA6-$AB6-$AC6)*$AA$60*1/$C6)+IF(GT6=0,0,($AE6-$AF6-$AG6)*$AE$60*1/$C6)+IF(GU6=0,0,($AI6-$AJ6-$AK6)*$AI$60*1/$C6)+IF(GV6=0,0,($AM6-$AN6-$AO6)*$AM$60*1/$C6)+IF(GW6=0,0,($AQ6-$AR6-$AS6)*$AQ$60*1/$C6)+IF(GX6=0,0,($AU6-$V6-$AW6)*$AU$60*1/$C6)+IF(GY6=0,0,($AY6-$AZ6-$BA6)*$AY$60*1/$C6)+IF(GZ6=0,0,($BC6-$BD6-$BE6)*$BC$60*1/$C6)+IF(HA6=0,0,$BG6*1/$C6)+IF(HB6=0,0,($BJ6-$BK6-$BL6)*$BJ$60*1/$C6)+IF(HC6=0,0,($BN6-$BO6-$BP6)*$BN$60*1/$C6)+IF(HD6=0,0,($BR6-$BS6-$BT6)*$BR$60*1/$C6)+IF(HE6=0,0,($BV6-$BW6-$BX6)*$BV$60*1/$C6)+IF(HF6=0,0,($BZ6-$CA6-$CB6)*$BZ$60*1/$C6)+IF(HG6=0,0,($CD6-$CE6-$CF6)*$CD$60*1/$C6)+IF(HH6=0,0,($CH6-$CI6-$CJ6)*$CH$60*1/$C6)+IF(HI6=0,0,($CL6-$CM6-$CN6)*$CL$60*1/$C6) -> 1314.125085
B7: Edificios y mejoras | C7: 40 | D7: 1140916.486 | E7: 0 | F7: 709242.317 | G7: 4550.21 | H7: 0 | I7: 0 | J7: 0 | K7: 8402.57 | L7: 0 | M7: 0 | N7: 0 | O7: 0 | P7: 0 | Q7: 0 | R7: 0 | S7: 38527 | T7: 0 | U7: 0 | V7: 0 | W7: 34301.56 | X7: 0 | Y7: 0 | Z7: 0 | AA7: 58280.87 | AB7: 0 | AC7: 0 | AD7: 0 | AE7: 2487.96 | AF7: 0 | AG7: 0 | AH7: 0 | AI7: 0 | AJ7: 0 | AK7: 0 | AL7: 0 | AM7: 0 | AN7: 0 | AO7: 0 | AP7: 0 | AQ7: 7039.45 | AR7: 0 | AS7: 0 | AT7: 0 | AU7: 0 | AV7: 0 | AW7: 0 | AX7: 0 | AY7: 0 | AZ7: 0 | BA7: 0 | BB7: 0 | BC7: 8855.2 | BD7: 0 | BE7: 0 | BF7: 0 | BG7: 250000 | BH7: 0 | BI7: 250000 | BJ7: 132639.19 | BK7: 0 | BL7: 0 | BM7: 0 | BN7: 0 | BO7: 0 | BP7: 0 | BQ7: 0 | BR7: 0 | BS7: 0 | BT7: 0 | BU7: 0 | BV7: 0 | BW7: 0 | BX7: 0 | BY7: 0 | BZ7: 35998.43 | CA7: 0 | CB7: 0 | CC7: 0 | CD7: 0 | CE7: 0 | CF7: 0 | CG7: 0 | CH7: 224894.89 | CI7: 0 | CJ7: 0 | CK7: 0 | CL7: 17368.86 | CM7: 0 | CN7: 0 | CO7: 0 | CP7: 1985.865705 | CQ7: 0.1091426232 | CR7: 0.5125 | CS7: 0.5375 | CT7: 0.5625 | CU7: 0.5875 | CV7: 0.6125 | CW7: 0.6375 | CX7: 0.6625 | CY7: 0.6875 | CZ7: 0.7125 | DA7: 0.7375 | DB7: 0.7625 | DC7: 0.7875 | DD7: 0.8125 | DE7: 0.825 | DF7: 0.8375 | DG7: 0.8625 | DH7: 0.8875 | DI7: 0.9125 | DJ7: 0.9375 | DK7: 0.9625 | DL7: 0.9875 | DM7: 1 | DN7: 46922.46185 | DO7: 1876898.474 | DP7: 0 | DQ7: 747083.1284 | DR7: 46922.46185 | DS7: 0.08414262318 | DT7: 0.4875 | DU7: 0.5125 | DV7: 0.5375 | DW7: 0.5625 | DX7: 0.5875 | DY7: 0.6125 | DZ7: 0.6375 | EA7: 0.6625 | EB7: 0.6875 | EC7: 0.7125 | ED7: 0.7375 | EE7: 0.7625 | EF7: 0.7875 | EG7: 0.7875 | EH7: 0.8125 | EI7: 0.8375 | EJ7: 0.8625 | EK7: 0.8875 | EL7: 0.9125 | EM7: 0.9375 | EN7: 0.9625 | EO7: 0.975 | EP7: 46922.46185 | EQ7: 0.05914262318 | ER7: 0.4625 | ES7: 0.4875 | ET7: 0.5125 | EU7: 0.5375 | EV7: 0.5625 | EW7: 0.5875 | EX7: 0.6125 | EY7: 0.6375 | EZ7: 0.6625 | FA7: 0.6875 | FB7: 0.7125 | FC7: 0.7375 | FD7: 0.7625 | FE7: 0.7625 | FF7: 0.7875 | FG7: 0.8125 | FH7: 0.8375 | FI7: 0.8625 | FJ7: 0.8875 | FK7: 0.9125 | FL7: 0.9375 | FM7: 0.95 | FN7: 46922.46185 | FO7: 0.03414262318 | FP7: 0.4375 | FQ7: 0.4625 | FR7: 0.4875 | FS7: 0.5125 | FT7: 0.5375 | FU7: 0.5625 | FV7: 0.5875 | FW7: 0.6125 | FX7: 0.6375 | FY7: 0.6625 | FZ7: 0.6875 | GA7: 0.7125 | GB7: 0.7375 | GC7: 0.7375 | GD7: 0.7625 | GE7: 0.7875 | GF7: 0.8125 | GG7: 0.8375 | GH7: 0.8625 | GI7: 0.8875 | GJ7: 0.9125 | GK7: 0.925 | GL7: 46922.46185 | GM7: 0.009142623184 | GN7: 0.4125 | GO7: 0.4375 | GP7: 0.4625 | GQ7: 0.4875 | GR7: 0.5125 | GS7: 0.5375 | GT7: 0.5625 | GU7: 0.5875 | GV7: 0.6125 | GW7: 0.6375 | GX7: 0.6625 | GY7: 0.6875 | GZ7: 0.7125 | HA7: 0.7125 | HB7: 0.7375 | HC7: 0.7625 | HD7: 0.7875 | HE7: 0.8125 | HF7: 0.8375 | HG7: 0.8625 | HH7: 0.8875 | HI7: 0.9 | HJ7: 46922.46185
B8: Mobiliario y equipo de oficina | C8: 7 | D8: 945208.5289 | E8: 0 | F8: 67667.06938 | G8: 7357.58 | H8: 0 | I8: 0 | J8: 0 | K8: 6582.56 | L8: 0 | M8: 0 | N8: 0 | O8: 282.37 | P8: 0 | Q8: 0 | R8: 0 | S8: 0 | T8: 0 | U8: 0 | V8: 0 | W8: 17809.37 | X8: 0 | Y8: 0 | Z8: 0 | AA8: 5325 | AB8: 0 | AC8: 0 | AD8: 0 | AE8: 5151 | AF8: 0 | AG8: 0 | AH8: 0 | AI8: 7295 | AJ8: 0 | AK8: 0 | AL8: 0 | AM8: 0 | AN8: 0 | AO8: 0 | AP8: 0 | AQ8: 8381.86 | AR8: 0 | AS8: 0 | AT8: 0 | AU8: 0 | AV8: 0 | AW8: 0 | AX8: 0 | AY8: 22739 | AZ8: 0 | BA8: 0 | BB8: 0 | BC8: 0 | BD8: 0 | BE8: 0 | BF8: 0 | BG8: 0 | BH8: 0 | BI8: 0 | BJ8: 0 | BK8: 0 | BL8: 0 | BM8: 0 | BN8: 18775.16 | BO8: 0 | BP8: 0 | BQ8: 0 | BR8: 10893.75 | BS8: 0 | BT8: 0 | BU8: 0 | BV8: 0 | BW8: 0 | BX8: 0 | BY8: 0 | BZ8: 9185.51 | CA8: 0 | CB8: 0 | CC8: 0 | CD8: 0 | CE8: 0 | CF8: 0 | CG8: 0 | CH8: 3954.7 | CI8: 0 | CJ8: 0 | CK8: 0 | CL8: 0 | CM8: 0 | CN8: 0 | CO8: 0 | CP8: 1994.501127 | CQ8: 0 | CR8: 0 | CS8: 0 | CT8: 0 | CU8: 0 | CV8: 0 | CW8: 0 | CX8: 0 | CY8: 0 | CZ8: 0 | DA8: 0 | DB8: 0 | DC8: 0 | DD8: 0 | DE8: 0 | DF8: 0.07142857143 | DG8: 0.2142857143 | DH8: 0.3571428571 | DI8: 0.5 | DJ8: 0.6428571429 | DK8: 0.7857142857 | DL8: 0.9285714286 | DM8: 1 | DN8: 5535.273602 | DO8: 1056082.47 | DP8: 1017335.555 | DQ8: 15812.52897 | DR8: 5535.273602 | DS8: 0 | DT8: 0 | DU8: 0 | DV8: 0 | DW8: 0 | DX8: 0 | DY8: 0 | DZ8: 0 | EA8: 0 | EB8: 0 | EC8: 0 | ED8: 0 | EE8: 0 | EF8: 0 | EG8: 0 | EH8: 0 | EI8: 0.07142857143 | EJ8: 0.2142857143 | EK8: 0.3571428571 | EL8: 0.5 | EM8: 0.6428571429 | EN8: 0.7857142857 | EO8: 0.8571428571 | EP8: 5535.273602 | EQ8: 0 | ER8: 0 | ES8: 0 | ET8: 0 | EU8: 0 | EV8: 0 | EW8: 0 | EX8: 0 | EY8: 0 | EZ8: 0 | FA8: 0 | FB8: 0 | FC8: 0 | FD8: 0 | FE8: 0 | FF8: 0 | FG8: 0 | FH8: 0.07142857143 | FI8: 0.2142857143 | FJ8: 0.3571428571 | FK8: 0.5 | FL8: 0.6428571429 | FM8: 0.7142857143 | FN8: 3134.120903 | FO8: 0 | FP8: 0 | FQ8: 0 | FR8: 0 | FS8: 0 | FT8: 0 | FU8: 0 | FV8: 0 | FW8: 0 | FX8: 0 | FY8: 0 | FZ8: 0 | GA8: 0 | GB8: 0 | GC8: 0 | GD8: 0 | GE8: 0 | GF8: 0 | GG8: 0.07142857143 | GH8: 0.2142857143 | GI8: 0.3571428571 | GJ8: 0.5 | GK8: 0.5714285714 | GL8: 1684.371488 | GM8: 0 | GN8: 0 | GO8: 0 | GP8: 0 | GQ8: 0 | GR8: 0 | GS8: 0 | GT8: 0 | GU8: 0 | GV8: 0 | GW8: 0 | GX8: 0 | GY8: 0 | GZ8: 0 | HA8: 0 | HB8: 0 | HC8: 0 | HD8: 0 | HE8: 0 | HF8: 0.07142857143 | HG8: 0.2142857143 | HH8: 0.3571428571 | HI8: 0.4285714286 | HJ8: 1684.371488
B9: Equipo de computación | C9: 4 | D9: 626223.1565 | E9: 0 | F9: 147123.0751 | G9: 22741.82 | H9: 0 | I9: 0 | J9: 0 | K9: 15401.33 | L9: 0 | M9: 0 | N9: 0 | O9: 44549.32 | P9: 0 | Q9: 0 | R9: 0 | S9: 11154.82 | T9: 0 | U9: 0 | V9: 0 | W9: 87253.48 | X9: 0 | Y9: 0 | Z9: 0 | AA9: 38353.98 | AB9: 0 | AC9: 0 | AD9: 0 | AE9: 0 | AF9: 0 | AG9: 0 | AH9: 0 | AI9: 51587.42 | AJ9: 0 | AK9: 0 | AL9: 0 | AM9: 20997.82 | AN9: 0 | AO9: 0 | AP9: 0 | AQ9: 2369.5 | AR9: 0 | AS9: 0 | AT9: 0 | AU9: 0 | AV9: 0 | AW9: 0 | AX9: 0 | AY9: 4786.7 | AZ9: 0 | BA9: 0 | BB9: 0 | BC9: 931198.84 | BD9: 0 | BE9: 0 | BF9: 0 | BG9: 0 | BH9: 0 | BI9: 0 | BJ9: 0 | BK9: 0 | BL9: 0 | BM9: 0 | BN9: 2422.05 | BO9: 0 | BP9: 0 | BQ9: 0 | BR9: 66017.9 | BS9: 0 | BT9: 0 | BU9: 0 | BV9: 167121.66 | BW9: 0 | BX9: 0 | BY9: 0 | BZ9: 151080.45 | CA9: 0 | CB9: 0 | CC9: 0 | CD9: 132749.3 | CE9: 0 | CF9: 0 | CG9: 0 | CH9: 150207.27 | CI9: 0 | CJ9: 0 | CK9: 0 | CL9: 180719.9 | CM9: 0 | CN9: 0 | CO9: 0 | CP9: 1997.939749 | CQ9: 0 | CR9: 0 | CS9: 0 | CT9: 0 | CU9: 0 | CV9: 0 | CW9: 0 | CX9: 0 | CY9: 0 | CZ9: 0 | DA9: 0 | DB9: 0 | DC9: 0 | DD9: 0 | DE9: 0 | DF9: 0 | DG9: 0 | DH9: 0 | DI9: 0.125 | DJ9: 0.375 | DK9: 0.625 | DL9: 0.875 | DM9: 1 | DN9: 175584.7494 | DO9: 2483232.253 | DP9: 1780893.256 | DQ9: 424215.6962 | DR9: 175584.7494 | DS9: 0 | DT9: 0 | DU9: 0 | DV9: 0 | DW9: 0 | DX9: 0 | DY9: 0 | DZ9: 0 | EA9: 0 | EB9: 0 | EC9: 0 | ED9: 0 | EE9: 0 | EF9: 0 | EG9: 0 | EH9: 0 | EI9: 0 | EJ9: 0 | EK9: 0 | EL9: 0.125 | EM9: 0.375 | EN9: 0.625 | EO9: 0.75 | EP9: 137982.3759 | EQ9: 0 | ER9: 0 | ES9: 0 | ET9: 0 | EU9: 0 | EV9: 0 | EW9: 0 | EX9: 0 | EY9: 0 | EZ9: 0 | FA9: 0 | FB9: 0 | FC9: 0 | FD9: 0 | FE9: 0 | FF9: 0 | FG9: 0 | FH9: 0 | FI9: 0 | FJ9: 0 | FK9: 0.125 | FL9: 0.375 | FM9: 0.5 | FN9: 103989.2747 | FO9: 0 | FP9: 0 | FQ9: 0 | FR9: 0 | FS9: 0 | FT9: 0 | FU9: 0 | FV9: 0 | FW9: 0 | FX9: 0 | FY9: 0 | FZ9: 0 | GA9: 0 | GB9: 0 | GC9: 0 | GD9: 0 | GE9: 0 | GF9: 0 | GG9: 0 | GH9: 0 | GI9: 0 | GJ9: 0.125 | GK9: 0.25 | GL9: 74120.68217 | GM9: 0 | GN9: 0 | GO9: 0 | GP9: 0 | GQ9: 0 | GR9: 0 | GS9: 0 | GT9: 0 | GU9: 0 | GV9: 0 | GW9: 0 | GX9: 0 | GY9: 0 | GZ9: 0 | HA9: 0 | HB9: 0 | HC9: 0 | HD9: 0 | HE9: 0 | HF9: 0 | HG9: 0 | HH9: 0 | HI9: 0 | HJ9: 0
B10: Equipos de transporte y carga | C10: 5 | D10: 1564545.631 | E10: 0 | F10: 275838.4037 | G10: 0 | H10: 0 | I10: 0 | J10: 0 | K10: 0 | L10: 0 | M10: 0 | N10: 0 | O10: 0 | P10: 0 | Q10: 0 | R10: 0 | S10: 0 | T10: 0 | U10: 0 | V10: 0 | W10: 74281.9 | X10: 0 | Y10: 0 | Z10: 0 | AA10: 0 | AB10: 0 | AC10: 0 | AD10: 0 | AE10: 0 | AF10: 0 | AG10: 0 | AH10: 0 | AI10: 0 | AJ10: 0 | AK10: 0 | AL10: 0 | AM10: 0 | AN10: 0 | AO10: 0 | AP10: 0 | AQ10: 94920 | AR10: 0 | AS10: 0 | AT10: 0 | AU10: 0 | AV10: 0 | AW10: 0 | AX10: 0 | AY10: 16667 | AZ10: 0 | BA10: 0 | BB10: 0 | BC10: 0 | BD10: 0 | BE10: 0 | BF10: 0 | BG10: 0 | BH10: 0 | BI10: 0 | BJ10: 113500 | BK10: 0 | BL10: 0 | BM10: 0 | BN10: 149806.51 | BO10: 0 | BP10: 0 | BQ10: 0 | BR10: 0 | BS10: 0 | BT10: 0 | BU10: 0 | BV10: 0 | BW10: 0 | BX10: 0 | BY10: 0 | BZ10: 47200 | CA10: 0 | CB10: 0 | CC10: 0 | CD10: 108975 | CE10: 0 | CF10: 0 | CG10: 0 | CH10: 0 | CI10: 0 | CJ10: 0 | CK10: 0 | CL10: 0 | CM10: 0 | CN10: 0 | CO10: 0 | CP10: 1996.881529 | CQ10: 0 | CR10: 0 | CS10: 0 | CT10: 0 | CU10: 0 | CV10: 0 | CW10: 0 | CX10: 0 | CY10: 0 | CZ10: 0 | DA10: 0 | DB10: 0 | DC10: 0 | DD10: 0 | DE10: 0 | DF10: 0 | DG10: 0 | DH10: 0.1 | DI10: 0.3 | DJ10: 0.5 | DK10: 0.7 | DL10: 0.9 | DM10: 1 | DN10: 28111.5 | DO10: 2106488.179 | DP10: 1965930.679 | DQ10: 89894.25 | DR10: 28111.5 | DS10: 0 | DT10: 0 | DU10: 0 | DV10: 0 | DW10: 0 | DX10: 0 | DY10: 0 | DZ10: 0 | EA10: 0 | EB10: 0 | EC10: 0 | ED10: 0 | EE10: 0 | EF10: 0 | EG10: 0 | EH10: 0 | EI10: 0 | EJ10: 0 | EK10: 0.1 | EL10: 0.3 | EM10: 0.5 | EN10: 0.7 | EO10: 0.8 | EP10: 28111.5 | EQ10: 0 | ER10: 0 | ES10: 0 | ET10: 0 | EU10: 0 | EV10: 0 | EW10: 0 | EX10: 0 | EY10: 0 | EZ10: 0 | FA10: 0 | FB10: 0 | FC10: 0 | FD10: 0 | FE10: 0 | FF10: 0 | FG10: 0 | FH10: 0 | FI10: 0 | FJ10: 0.1 | FK10: 0.3 | FL10: 0.5 | FM10: 0.6 | FN10: 28111.5 | FO10: 0 | FP10: 0 | FQ10: 0 | FR10: 0 | FS10: 0 | FT10: 0 | FU10: 0 | FV10: 0 | FW10: 0 | FX10: 0 | FY10: 0 | FZ10: 0 | GA10: 0 | GB10: 0 | GC10: 0 | GD10: 0 | GE10: 0 | GF10: 0 | GG10: 0 | GH10: 0 | GI10: 0.1 | GJ10: 0.3 | GK10: 0.4 | GL10: 19615.5 | GM10: 0 | GN10: 0 | GO10: 0 | GP10: 0 | GQ10: 0 | GR10: 0 | GS10: 0 | GT10: 0 | GU10: 0 | GV10: 0 | GW10: 0 | GX10: 0 | GY10: 0 | GZ10: 0 | HA10: 0 | HB10: 0 | HC10: 0 | HD10: 0 | HE10: 0 | HF10: 0 | HG10: 0 | HH10: 0.1 | HI10: 0.2 | HJ10: 0
B11: Equipos de comunicaciones | C11: 8 | D11: 0 | E11: 0 | F11: 0 | G11: 51708.17999 | H11: 0 | I11: 0 | J11: 0 | K11: 4151.08 | L11: 0 | M11: 0 | N11: 0 | O11: 30862.35906 | P11: 0 | Q11: 0 | R11: 0 | S11: 0 | T11: 0 | U11: 0 | V11: 0 | W11: 0 | X11: 0 | Y11: 0 | Z11: 0 | AA11: 0 | AB11: 0 | AC11: 0 | AD11: 0 | AE11: 0 | AF11: 0 | AG11: 0 | AH11: 0 | AI11: 14365.63 | AJ11: 0 | AK11: 0 | AL11: 0 | AM11: 9332.4 | AN11: 0 | AO11: 0 | AP11: 0 | AQ11: 9332 | AR11: 0 | AS11: 0 | AT11: 0 | AU11: 0 | AV11: 0 | AW11: 0 | AX11: 0 | AY11: 0 | AZ11: 0 | BA11: 0 | BB11: 0 | BC11: 41463 | BD11: 0 | BE11: 0 | BF11: 0 | BG11: 0 | BH11: 0 | BI11: 0 | BJ11: 31935.4 | BK11: 0 | BL11: 0 | BM11: 0 | BN11: 0 | BO11: 0 | BP11: 0 | BQ11: 0 | BR11: 0 | BS11: 0 | BT11: 0 | BU11: 0 | BV11: 0 | BW11: 0 | BX11: 0 | BY11: 0 | BZ11: 0 | CA11: 0 | CB11: 0 | CC11: 0 | CD11: 0 | CE11: 0 | CF11: 0 | CG11: 0 | CH11: 0 | CI11: 0 | CJ11: 0 | CK11: 0 | CL11: 0 | CM11: 0 | CN11: 0 | CO11: 0 | CP11: 0 | CQ11: 0 | CR11: 0 | CS11: 0 | CT11: 0 | CU11: 0 | CV11: 0 | CW11: 0 | CX11: 0 | CY11: 0 | CZ11: 0 | DA11: 0 | DB11: 0 | DC11: 0 | DD11: 0.0625 | DE11: 0 | DF11: 0.1875 | DG11: 0.3125 | DH11: 0.4375 | DI11: 0.5625 | DJ11: 0.6875 | DK11: 0.8125 | DL11: 0.9375 | DM11: 1 | DN11: 7947.341957 | DO11: 160060.3876 | DP11: 96481.65198 | DQ11: 7252.588254 | DR11: 7947.341957 | DS11: 0 | DT11: 0 | DU11: 0 | DV11: 0 | DW11: 0 | DX11: 0 | DY11: 0 | DZ11: 0 | EA11: 0 | EB11: 0 | EC11: 0 | ED11: 0 | EE11: 0 | EF11: 0 | EG11: 0 | EH11: 0.0625 | EI11: 0.1875 | EJ11: 0.3125 | EK11: 0.4375 | EL11: 0.5625 | EM11: 0.6875 | EN11: 0.8125 | EO11: 0.875 | EP11: 3278.917275 | EQ11: 0 | ER11: 0 | ES11: 0 | ET11: 0 | EU11: 0 | EV11: 0 | EW11: 0 | EX11: 0 | EY11: 0 | EZ11: 0 | FA11: 0 | FB11: 0 | FC11: 0 | FD11: 0 | FE11: 0 | FF11: 0 | FG11: 0.0625 | FH11: 0.1875 | FI11: 0.3125 | FJ11: 0.4375 | FK11: 0.5625 | FL11: 0.6875 | FM11: 0.75 | FN11: 0 | FO11: 0 | FP11: 0 | FQ11: 0 | FR11: 0 | FS11: 0 | FT11: 0 | FU11: 0 | FV11: 0 | FW11: 0 | FX11: 0 | FY11: 0 | FZ11: 0 | GA11: 0 | GB11: 0 | GC11: 0 | GD11: 0 | GE11: 0 | GF11: 0.0625 | GG11: 0.1875 | GH11: 0.3125 | GI11: 0.4375 | GJ11: 0.5625 | GK11: 0.625 | GL11: 0 | GM11: 0 | GN11: 0 | GO11: 0 | GP11: 0 | GQ11: 0 | GR11: 0 | GS11: 0 | GT11: 0 | GU11: 0 | GV11: 0 | GW11: 0 | GX11: 0 | GY11: 0 | GZ11: 0 | HA11: 0 | HB11: 0 | HC11: 0 | HD11: 0 | HE11: 0.0625 | HF11: 0.1875 | HG11: 0.3125 | HH11: 0.4375 | HI11: 0.5 | HJ11: 0
B12: Otros equipos de uso general | C12: 17 | D12: 793536.7408 | E12: 0 | F12: 403574.9418 | G12: 9410.98 | H12: 0 | I12: 0 | J12: 0 | K12: 24691.65 | L12: 0 | M12: 0 | N12: 0 | O12: 28613.58 | P12: 0 | Q12: 0 | R12: 0 | S12: 29705.16 | T12: 0 | U12: 0 | V12: 0 | W12: 29915.59 | X12: 0 | Y12: 0 | Z12: 0 | AA12: 33499.41 | AB12: 0 | AC12: 0 | AD12: 0 | AE12: 27239.34 | AF12: 0 | AG12: 0 | AH12: 0 | AI12: 771.99 | AJ12: 0 | AK12: 0 | AL12: 0 | AM12: 0 | AN12: 0 | AO12: 0 | AP12: 0 | AQ12: 0 | AR12: 0 | AS12: 0 | AT12: 0 | AU12: 0 | AV12: 0 | AW12: 0 | AX12: 0 | AY12: 0 | AZ12: 0 | BA12: 0 | BB12: 0 | BC12: 0 | BD12: 0 | BE12: 0 | BF12: 0 | BG12: 0 | BH12: 0 | BI12: 0 | BJ12: 36106.51 | BK12: 0 | BL12: 0 | BM12: 0 | BN12: 0 | BO12: 0 | BP12: 0 | BQ12: 0 | BR12: 0 | BS12: 0 | BT12: 0 | BU12: 0 | BV12: 0 | BW12: 0 | BX12: 0 | BY12: 0 | BZ12: 0 | CA12: 0 | CB12: 0 | CC12: 0 | CD12: 0 | CE12: 0 | CF12: 0 | CG12: 0 | CH12: 41291.91 | CI12: 0 | CJ12: 0 | CK12: 0 | CL12: 0 | CM12: 0 | CN12: 0 | CO12: 0 | CP12: 1992.645818 | CQ12: 0 | CR12: 0 | CS12: 0 | CT12: 0 | CU12: 0.02941176471 | CV12: 0.08823529412 | CW12: 0.1470588235 | CX12: 0.2058823529 | CY12: 0.2647058824 | CZ12: 0.3235294118 | DA12: 0.3823529412 | DB12: 0.4411764706 | DC12: 0.5 | DD12: 0.5588235294 | DE12: 0 | DF12: 0.6176470588 | DG12: 0.6764705882 | DH12: 0.7352941176 | DI12: 0.7941176471 | DJ12: 0.8529411765 | DK12: 0.9117647059 | DL12: 0.9705882353 | DM12: 1 | DN12: 9575.634103 | DO12: 1004086.688 | DP12: 841300.908 | DQ12: 65985.70993 | DR12: 9575.634103 | DS12: 0 | DT12: 0 | DU12: 0 | DV12: 0 | DW12: 0 | DX12: 0.02941176471 | DY12: 0.08823529412 | DZ12: 0.1470588235 | EA12: 0.2058823529 | EB12: 0.2647058824 | EC12: 0.3235294118 | ED12: 0.3823529412 | EE12: 0.4411764706 | EF12: 0.5 | EG12: 0.5 | EH12: 0.5588235294 | EI12: 0.6176470588 | EJ12: 0.6764705882 | EK12: 0.7352941176 | EL12: 0.7941176471 | EM12: 0.8529411765 | EN12: 0.9117647059 | EO12: 0.9411764706 | EP12: 8527.216691 | EQ12: 0 | ER12: 0 | ES12: 0 | ET12: 0 | EU12: 0 | EV12: 0 | EW12: 0.02941176471 | EX12: 0.08823529412 | EY12: 0.1470588235 | EZ12: 0.2058823529 | FA12: 0.2647058824 | FB12: 0.3235294118 | FC12: 0.3823529412 | FD12: 0.4411764706 | FE12: 0.4411764706 | FF12: 0.5 | FG12: 0.5588235294 | FH12: 0.6176470588 | FI12: 0.6764705882 | FJ12: 0.7352941176 | FK12: 0.7941176471 | FL12: 0.8529411765 | FM12: 0.8823529412 | FN12: 6967.740361 | FO12: 0 | FP12: 0 | FQ12: 0 | FR12: 0 | FS12: 0 | FT12: 0 | FU12: 0 | FV12: 0.02941176471 | FW12: 0.08823529412 | FX12: 0.1470588235 | FY12: 0.2058823529 | FZ12: 0.2647058824 | GA12: 0.3235294118 | GB12: 0.3823529412 | GC12: 0.3823529412 | GD12: 0.4411764706 | GE12: 0.5 | GF12: 0.5588235294 | GG12: 0.6176470588 | GH12: 0.6764705882 | GI12: 0.7352941176 | GJ12: 0.7941176471 | GK12: 0.8235294118 | GL12: 5317.600656 | GM12: 0 | GN12: 0 | GO12: 0 | GP12: 0 | GQ12: 0 | GR12: 0 | GS12: 0 | GT12: 0 | GU12: 0.02941176471 | GV12: 0.08823529412 | GW12: 0.1470588235 | GX12: 0.2058823529 | GY12: 0.2647058824 | GZ12: 0.3235294118 | HA12: 0.3235294118 | HB12: 0.3823529412 | HC12: 0.4411764706 | HD12: 0.5 | HE12: 0.5588235294 | HF12: 0.6176470588 | HG12: 0.6764705882 | HH12: 0.7352941176 | HI12: 0.7647058824 | HJ12: 3947.795053
B13: TOTAL PROPIEDADES Y PLANTA | D13: =SUM(D5:D12) -> 7366442.985 | E13: =SUM(E5:E12) -> 0 | F13: 3156823.141 | G13: =SUM(G5:G12) -> 266106.529 | H13: =SUM(H5:H12) -> 0 | I13: 0 | J13: 0 | K13: =SUM(K5:K12) -> 107260.34 | L13: =SUM(L5:L12) -> 0 | M13: =SUM(M5:M12) -> 0 | N13: =SUM(N5:N12) -> 0 | O13: =SUM(O5:O12) -> 170017.0411 | P13: =SUM(P5:P12) -> 0 | Q13: =SUM(Q5:Q12) -> 0 | R13: =SUM(R5:R12) -> 0 | S13: =SUM(S5:S12) -> 141552.63 | T13: =SUM(T5:T12) -> 0 | U13: =SUM(U5:U12) -> 0 | V13: =SUM(V5:V12) -> 0 | W13: =SUM(W5:W12) -> 334246.14 | X13: =SUM(X5:X12) -> 0 | Y13: =SUM(Y5:Y12) -> 0 | Z13: =SUM(Z5:Z12) -> 0 | AA13: =SUM(AA5:AA12) -> 167868.13 | AB13: =SUM(AB5:AB12) -> 0 | AC13: =SUM(AC5:AC12) -> 0 | AD13: =SUM(AD5:AD12) -> 0 | AE13: =SUM(AE5:AE12) -> 132511.28 | AF13: =SUM(AF5:AF12) -> 0 | AG13: =SUM(AG5:AG12) -> 0 | AH13: =SUM(AH5:AH12) -> 0 | AI13: =SUM(AI5:AI12) -> 323314.1039 | AJ13: =SUM(AJ5:AJ12) -> 0 | AK13: =SUM(AK5:AK12) -> 0 | AL13: =SUM(AL5:AL12) -> 0 | AM13: =SUM(AM5:AM12) -> 91335.93 | AN13: =SUM(AN5:AN12) -> 0 | AO13: =SUM(AO5:AO12) -> 0 | AP13: =SUM(AP5:AP12) -> 0 | AQ13: =SUM(AQ5:AQ12) -> 243514.73 | AR13: =SUM(AR5:AR12) -> 0 | AS13: =SUM(AS5:AS12) -> 0 | AT13: =SUM(AT5:AT12) -> 0 | AU13: =SUM(AU5:AU12) -> 0 | AV13: =SUM(AV5:AV12) -> 0 | AW13: =SUM(AW5:AW12) -> 0 | AX13: =SUM(AX5:AX12) -> 0 | AY13: =SUM(AY5:AY12) -> 56420.78 | AZ13: =SUM(AZ5:AZ12) -> 0 | BA13: =SUM(BA5:BA12) -> 0 | BB13: =SUM(BB5:BB12) -> 0 | BC13: =SUM(BC5:BC12) -> 1275811.54 | BD13: =SUM(BD5:BD12) -> 0 | BE13: =SUM(BE5:BE12) -> 0 | BF13: =SUM(BF5:BF12) -> 0 | BG13: =SUM(BG5:BG12) -> 940000 | BH13: =SUM(BH5:BH12) -> 0 | BI13: =SUM(BI5:BI12) -> 940000 | BJ13: =SUM(BJ5:BJ12) -> 917175.86 | BK13: =SUM(BK5:BK12) -> 0 | BL13: =SUM(BL5:BL12) -> 0 | BM13: =SUM(BM5:BM12) -> 0 | BN13: =SUM(BN5:BN12) -> 1105575.67 | BO13: =SUM(BO5:BO12) -> 0 | BP13: =SUM(BP5:BP12) -> 0 | BQ13: =SUM(BQ5:BQ12) -> 0 | BR13: =SUM(BR5:BR12) -> 1102455.87 | BS13: =SUM(BS5:BS12) -> 0 | BT13: =SUM(BT5:BT12) -> 0 | BU13: =SUM(BU5:BU12) -> 0 | BV13: =SUM(BV5:BV12) -> 1120073.23 | BW13: =SUM(BW5:BW12) -> 0 | BX13: =SUM(BX5:BX12) -> 0 | BY13: =SUM(BY5:BY12) -> 0 | BZ13: =SUM(BZ5:BZ12) -> 3586563.64 | CA13: =SUM(CA5:CA12) -> 0 | CB13: =SUM(CB5:CB12) -> 0 | CC13: =SUM(CC5:CC12) -> 0 | CD13: =SUM(CD5:CD12) -> 689888.1 | CE13: =SUM(CE5:CE12) -> 0 | CF13: =SUM(CF5:CF12) -> 0 | CG13: =SUM(CG5:CG12) -> 0 | CH13: =SUM(CH5:CH12) -> 881689.73 | CI13: =SUM(CI5:CI12) -> 0 | CJ13: =SUM(CJ5:CJ12) -> 0 | CK13: =SUM(CK5:CK12) -> 0 | CL13: =SUM(CL5:CL12) -> 514079.28 | CM13: =SUM(CM5:CM12) -> 0 | CN13: =SUM(CN5:CN12) -> 0 | CO13: =SUM(CO5:CO12) -> 0 | DN13: =SUM(DN5:DN12) -> 1516301.05 | DO13: =SUM(DO5:DO12) -> 20036189.07 | DP13: =SUM(DP5:DP12) -> 10771917.72 | DQ13: =SUM(DQ5:DQ12) -> 4786117.257 | DR13: =SUM(DR5:DR12) -> 1516301.05 | EP13: =SUM(EP5:EP12) -> 1258567.731 | FN13: =SUM(FN5:FN12) -> 465137.7521 | GL13: =SUM(GL5:GL12) -> 322836.4155 | HJ13: =SUM(HJ5:HJ12) -> 53868.75347
B14: Alta tensión AT (230 y 115 Kv) | D14: 0 | E14: 0 | F14: 0 | G14: 0 | H14: 0 | I14: 0 | J14: 0 | K14: 0 | L14: 0 | M14: 0 | N14: 0 | O14: 0 | P14: 0 | Q14: 0 | R14: 0 | S14: 0 | T14: 0 | U14: 0 | V14: 0 | W14: 0 | X14: 0 | Y14: 0 | Z14: 0 | AA14: 0 | AB14: 0 | AC14: 0 | AD14: 0 | AE14: 0 | AF14: 0 | AG14: 0 | AH14: 0 | AI14: 0 | AJ14: 0 | AK14: 0 | AL14: 0 | AM14: 0 | AN14: 0 | AO14: 0 | AP14: 0 | AQ14: 0 | AR14: 0 | AS14: 0 | AT14: 0 | AU14: 0 | AV14: 0 | AW14: 0 | AX14: 0 | AY14: 0 | AZ14: 0 | BA14: 0 | BB14: 0 | BC14: 0 | BD14: 0 | BE14: 0 | BF14: 0 | BG14: 0 | BH14: 0 | BI14: 0 | BJ14: 0 | BK14: 0 | BL14: 0 | BM14: 0 | BN14: 0 | BO14: 0 | BP14: 0 | BQ14: 0 | BR14: 0 | BS14: 0 | BT14: 0 | BU14: 0 | BV14: 0 | BW14: 0 | BX14: 0 | BY14: 0 | BZ14: 0 | CA14: 0 | CB14: 0 | CC14: 0 | CD14: 0 | CE14: 0 | CF14: 0 | CG14: 0 | CH14: 0 | CI14: 0 | CJ14: 0 | CK14: 0 | CL14: 0 | CM14: 0 | CN14: 0 | CO14: 0
B15: Líneas aéreas AT | C15: 30 | D15: 0 | E15: 0 | F15: 0 | G15: 0 | H15: 0 | I15: 0 | J15: 0 | K15: 0 | L15: 0 | M15: 0 | N15: 0 | O15: 0 | P15: 0 | Q15: 0 | R15: 0 | S15: 0 | T15: 0 | U15: 0 | V15: 0 | W15: 0 | X15: 0 | Y15: 0 | Z15: 0 | AA15: 0 | AB15: 0 | AC15: 0 | AD15: 0 | AE15: 0 | AF15: 0 | AG15: 0 | AH15: 0 | AI15: 0 | AJ15: 0 | AK15: 0 | AL15: 0 | AM15: 0 | AN15: 0 | AO15: 0 | AP15: 0 | AQ15: 0 | AR15: 0 | AS15: 0 | AT15: 0 | AU15: 0 | AV15: 0 | AW15: 0 | AX15: 0 | AY15: 0 | AZ15: 0 | BA15: 0 | BB15: 0 | BC15: 0 | BD15: 0 | BE15: 0 | BF15: 0 | BG15: 0 | BH15: 0 | BI15: 0 | BJ15: 0 | BK15: 0 | BL15: 0 | BM15: 0 | BN15: 2482078.35 | BO15: 0 | BP15: 0 | BQ15: 0 | BR15: 0 | BS15: 0 | BT15: 0 | BU15: 0 | BV15: 0 | BW15: 0 | BX15: 0 | BY15: 0 | BZ15: 0 | CA15: 0 | CB15: 0 | CC15: 0 | CD15: 0 | CE15: 0 | CF15: 0 | CG15: 0 | CH15: 0 | CI15: 0 | CJ15: 0 | CK15: 0 | CL15: 0 | CM15: 0 | CN15: 0 | CO15: 0 | CP15: =IF(D15=0,0,2001-(D15-F15)*C15/D15) -> 0 | CQ15: =IF((1-($DN$2-$CP15)/$C15)>0,(1-($DN$2-$CP15)/$C15),0) -> 0 | CR15: =IF((1-($DN$2-G$2)/$C15)>0,(1-($DN$2-G$2)/$C15),0) -> 0.35 | CS15: =IF((1-($DN$2-K$2)/$C15)>0,(1-($DN$2-K$2)/$C15),0) -> 0.3833333333 | CT15: =IF((1-($DN$2-O$2)/$C15)>0,(1-($DN$2-O$2)/$C15),0) -> 0.4166666667 | CU15: =IF((1-($DN$2-S$2)/$C15)>0,(1-($DN$2-S$2)/$C15),0) -> 0.45 | CV15: =IF((1-($DN$2-W$2)/$C15)>0,(1-($DN$2-W$2)/$C15),0) -> 0.4833333333 | CW15: =IF((1-($DN$2-AA$2)/$C15)>0,(1-($DN$2-AA$2)/$C15),0) -> 0.5166666667 | CX15: =IF((1-($DN$2-AE$2)/$C15)>0,(1-($DN$2-AE$2)/$C15),0) -> 0.55 | CY15: =IF((1-($DN$2-AI$2)/$C15)>0,(1-($DN$2-AI$2)/$C15),0) -> 0.5833333333 | CZ15: =IF((1-($DN$2-AM$2)/$C15)>0,(1-($DN$2-AM$2)/$C15),0) -> 0.6166666667 | DA15: =IF((1-($DN$2-AQ$2)/$C15)>0,(1-($DN$2-AQ$2)/$C15),0) -> 0.65 | DB15: =IF((1-($DN$2-AU$2)/$C15)>0,(1-($DN$2-AU$2)/$C15),0) -> 0.6833333333 | DC15: =IF((1-($DN$2-AY$2)/$C15)>0,(1-($DN$2-AY$2)/$C15),0) -> 0.7166666667 | DD15: =IF((1-($DN$2-BC$2)/$C15)>0,(1-($DN$2-BC$2)/$C15),0) -> 0.75 | DE15: =IF(BG15=0,0,1-($DN$2-(2014.5-(BG15-BI15)*C15/BG15))/C15) -> 0 | DF15: =IF((1-($DN$2-BJ$2)/$C15)>0,(1-($DN$2-BJ$2)/$C15),0) -> 0.7833333333 | DG15: =IF((1-($DN$2-BN$2)/$C15)>0,(1-($DN$2-BN$2)/$C15),0) -> 0.8166666667 | DH15: =IF((1-($DN$2-BR$2)/$C15)>0,(1-($DN$2-BR$2)/$C15),0) -> 0.85 | DI15: =IF((1-($DN$2-BV$2)/$C15)>0,(1-($DN$2-BV$2)/$C15),0) -> 0.8833333333 | DJ15: =IF((1-($DN$2-BZ$2)/$C15)>0,(1-($DN$2-BZ$2)/$C15),0) -> 0.9166666667 | DK15: =IF((1-($DN$2-CD$2)/$C15)>0,(1-($DN$2-CD$2)/$C15),0) -> 0.95 | DL15: =IF((1-($DN$2-CH$2)/$C15)>0,(1-($DN$2-CH$2)/$C15),0) -> 0.9833333333 | DM15: =IF((1-($DN$2-CL$2)/$C15)>0,(1-($DN$2-CL$2)/$C15),0) -> 1 | DN15: =IF(CQ15=0,0,($D15-$E15)*1/$C15)+IF(CR15=0,0,($G15-$H15-$I15)*$G$61*1/$C15)+IF(CS15=0,0,($K15-$L15-$M15)*$K$61*1/$C15)+IF(CT15=0,0,($O15-$P15-$Q15)*$O$61*1/$C15)+IF(CU15=0,0,($S15-$T15-$U15)*$S$61*1/$C15)+IF(CV15=0,0,($W15-$X15-$Y15)*$W$61*1/$C15)+IF(CW15=0,0,($AA15-$AB15-$AC15)*$AA$61*1/$C15)+IF(CX15=0,0,($AE15-$AF15-$AG15)*$AE$61*1/$C15)+IF(CY15=0,0,($AI15-$AJ15-$AK15)*$AI$61*1/$C15)+IF(CZ15=0,0,($AM15-$AN15-$AO15)*$AM$61*1/$C15)+IF(DA15=0,0,($AQ15-$AR15-$AS15)*$AQ$61*1/$C15)+IF(DB15=0,0,($AU15-$V15-$AW15)*$AU$61*1/$C15)+IF(DC15=0,0,($AY15-$AZ15-$BA15)*$AY$61*1/$C15)+IF(DD15=0,0,($BC15-$BD15-$BE15)*$BC$61*1/$C15)+IF(DE15=0,0,$BG15*1/$C15)+IF(DF15=0,0,($BJ15-$BK15-$BL15)*$BJ$61*1/$C15)+IF(DG15=0,0,($BN15-$BO15-$BP15)*$BN$61*1/$C15)+IF(DH15=0,0,($BR15-$BS15-$BT15)*$BR$61*1/$C15)+IF(DI15=0,0,($BV15-$BW15-$BX15)*$BV$61*1/$C15)+IF(DJ15=0,0,($BZ15-$CA15-$CB15)*$BZ$61*1/$C15)+IF(DK15=0,0,($CD15-$CE15-$CF15)*$CD$61*1/$C15)+IF(DL15=0,0,($CH15-$CI15-$CJ15)*$CH$61*1/$C15)+IF(DM15=0,0,($CL15-$CM15-$CN15)*$CL$61*1/$C15) -> 72345.59936 | DO15: =D15-E15+(G15-I15)*G$61+(K15-M15)*K$61+(O15-Q15)*O$61+(S15-U15)*S$61+(W15-Y15)*W$61+(AA15-AC15)*AA$61+(AE15-AG15)*AE$61+(AI15-AK15)*AI$61+(AM15-AO15)*AM$61+(AQ15-AS15)*$AQ$61+(AU15-AW15)*$AU$61+(AY15-BA15)*$AY$61+(BC15-BE15)*$BC$61+BG15+(BJ15-BL15)*$BJ$61+(BN15-BP15)*$BN$61+(BR15-BT15)*$BR$61+(BV15-BX15)*$BV$61+(BZ15-CB15)*$BZ$61+(CD15-CF15)*$CD$61+(CH15-CJ15)*$CH$61+(CL15-CN15)*$CL$61 -> 2170367.981 | DP15: =IF(CQ15=0,D15-E15,0)+IF(CR15=0,(G15-I15)*G$61,0)+IF(CS15=0,(K15-M15)*K$61,0)+IF(CT15=0,(O15-Q15)*O$61,0)+IF(CU15=0,(S15-U15)*S$61,0)+IF(CV15=0,(W15-Y15)*W$61,0)+IF(CW15=0,(AA15-AC15)*AA$61,0)+IF(CX15=0,(AE15-AG15)*AE$61,0)+IF(CY15=0,(AI15-AK15)*AI$61,0)+IF(CZ15=0,(AM15-AO15)*AM$61,0)+IF(DA15=0,(AQ15-AS15)*$AQ$61,0)+IF(DB15=0,(AU15-AW15)*$AU$61,0)+IF(DC15=0,(AY15-BA15)*$AY$61,0)++IF(DD15=0,(BC15-BE15)*$BC$61,0)+IF(DE15=0,BG15,0)+IF(DF15=0,(BJ15-BL15)*$BJ$61,0)+IF(DG15=0,(BN15-BP15)*$BN$61,0)+IF(DH15=0,(BR15-BT15)*$BR$61,0)+IF(DI15=0,(BV15-BX15)*$BV$61,0)+IF(DJ15=0,(BZ15-CB15)*$BZ$61,0)+IF(DK15=0,(CD15-CF15)*$CD$61,0)+IF(DL15=0,(CH15-CJ15)*$CH$61,0)+IF(DM15=0,(CL15-CN15)*$CL$61,0) -> 0 | DQ15: =(D15-E15)*CQ15+((G15-H15-(I15-J15))*G$61)*CR15+((K15-L15-(M15-N15))*K$61)*CS15+((O15-P15-(Q15-R15))*O$61)*CT15+((S15-T15-(U15-V15))*S$61)*CU15+((W15-X15-(Y15-Z15))*W$61)*CV15+((AA15-AB15-(AC15-AD15))*AA$61)*CW15+((AE15-AF15-(AG15-AH15))*AE$61)*CX15+((AI15-AJ15-(AK15-AL15))*AI$61)*CY15+((AM15-AN15-(AO15-AP15))*$AM$61)*CZ15+((AQ15-AR15-(AS15-AT15))*$AQ$61)*DA15+((AU15-AV15-(AW15-AX15))*$AU$61)*DB15+((AY15-AZ15-(BA15-BB15))*$AY$61)*DC15+((BC15-BD15-(BE15-BF15))*$BC$61)*DD15+((BJ15-BK15-(BL15-BM15))*$BJ$61)*DF15+(BG15-BH15)*DE15+((BN15-BO15-(BP15-BQ15))*$BN$61)*DG15+((BR15-BS15-(BT15-BU15))*$BR$61)*DH15+((BV15-BW15-(BX15-BY15))*$BV$61)*DI15+((BZ15-CA15-(CB15-CC15))*$BZ$61)*DJ15+((CD15-CE15-(CF15-CG15))*$CD$61)*DK15+((CH15-CI15-(CJ15-CK15))*$CH$61)*DL15+((CL15-CM15-(CN15-CO15))*$CL$61)*DM15 -> 1772467.184 | DR15: =(DO15-DP15)*1/C15 -> 72345.59936 | DS15: =IF((1-($EP$2-$CP15)/$C15)>0,(1-($EP$2-$CP15)/$C15),0) -> 0 | DT15: =IF((1-($EP$2-DT$2)/$C15)>0,(1-($EP$2-DT$2)/$C15),0) -> 0.3166666667 | DU15: 0.35 | DV15: 0.3833333333 | DW15: 0.4166666667 | DX15: 0.45 | DY15: 0.4833333333 | DZ15: 0.5166666667 | EA15: 0.55 | EB15: 0.5833333333 | EC15: 0.6166666667 | ED15: =IF((1-($EP$2-ED$2)/$C15)>0,(1-($EP$2-ED$2)/$C15),0) -> 0.65 | EE15: 0.6833333333 | EF15: 0.7166666667 | EG15: 0.7166666667 | EH15: 0.75 | EI15: 0.7833333333 | EJ15: 0.8166666667 | EK15: 0.85 | EL15: 0.8833333333 | EM15: 0.9166666667 | EN15: 0.95 | EO15: 0.9666666667 | EP15: =IF(DS15=0,0,($D15-$E15)*1/$C15)+IF(DT15=0,0,($G15-$H15-$I15)*$G$61*1/$C15)+IF(DU15=0,0,($K15-$L15-$M15)*$K$61*1/$C15)+IF(DV15=0,0,($O15-$P15-$Q15)*$O$61*1/$C15)+IF(DW15=0,0,($S15-$T15-$U15)*$S$61*1/$C15)+IF(DX15=0,0,($W15-$X15-$Y15)*$W$61*1/$C15)+IF(DY15=0,0,($AA15-$AB15-$AC15)*$AA$61*1/$C15)+IF(DZ15=0,0,($AE15-$AF15-$AG15)*$AE$61*1/$C15)+IF(EA15=0,0,($AI15-$AJ15-$AK15)*$AI$61*1/$C15)+IF(EB15=0,0,($AM15-$AN15-$AO15)*$AM$61*1/$C15)+IF(EC15=0,0,($AQ15-$AR15-$AS15)*$AQ$61*1/$C15)+IF(ED15=0,0,($AU15-$V15-$AW15)*$AU$61*1/$C15)+IF(EE15=0,0,($AY15-$AZ15-$BA15)*$AY$61*1/$C15)+IF(EF15=0,0,($BC15-$BD15-$BE15)*$BC$61*1/$C15)+IF(EG15=0,0,$BG15*1/$C15)+IF(EH15=0,0,($BJ15-$BK15-$BL15)*$BJ$61*1/$C15)+IF(EI15=0,0,($BN15-$BO15-$BP15)*$BN$61*1/$C15)+IF(EJ15=0,0,($BR15-$BS15-$BT15)*$BR$61*1/$C15)+IF(EK15=0,0,($BV15-$BW15-$BX15)*$BV$61*1/$C15)+IF(EL15=0,0,($BZ15-$CA15-$CB15)*$BZ$61*1/$C15)+IF(EM15=0,0,($CD15-$CE15-$CF15)*$CD$61*1/$C15)+IF(EN15=0,0,($CH15-$CI15-$CJ15)*$CH$61*1/$C15)+IF(EO15=0,0,($CL15-$CM15-$CN15)*$CL$61*1/$C15) -> 72345.59936 | EQ15: =IF((1-($FN$2-$CP15)/$C15)>0,(1-($FN$2-$CP15)/$C15),0) -> 0 | ER15: =IF((1-($FN$2-ER$2)/$C15)>0,(1-($FN$2-ER$2)/$C15),0) -> 0.2833333333 | ES15: 0.3166666667 | ET15: 0.35 | EU15: 0.3833333333 | EV15: 0.4166666667 | EW15: 0.45 | EX15: 0.4833333333 | EY15: 0.5166666667 | EZ15: 0.55 | FA15: 0.5833333333 | FB15: =IF((1-($FN$2-FB$2)/$C15)>0,(1-($FN$2-FB$2)/$C15),0) -> 0.6166666667 | FC15: 0.65 | FD15: 0.6833333333 | FE15: 0.6833333333 | FF15: 0.7166666667 | FG15: 0.75 | FH15: 0.7833333333 | FI15: 0.8166666667 | FJ15: 0.85 | FK15: 0.8833333333 | FL15: 0.9166666667 | FM15: 0.9333333333 | FN15: =IF(EQ15=0,0,($D15-$E15)*1/$C15)+IF(ER15=0,0,($G15-$H15-$I15)*$G$61*1/$C15)+IF(ES15=0,0,($K15-$L15-$M15)*$K$61*1/$C15)+IF(ET15=0,0,($O15-$P15-$Q15)*$O$61*1/$C15)+IF(EU15=0,0,($S15-$T15-$U15)*$S$61*1/$C15)+IF(EV15=0,0,($W15-$X15-$Y15)*$W$61*1/$C15)+IF(EW15=0,0,($AA15-$AB15-$AC15)*$AA$61*1/$C15)+IF(EX15=0,0,($AE15-$AF15-$AG15)*$AE$61*1/$C15)+IF(EY15=0,0,($AI15-$AJ15-$AK15)*$AI$61*1/$C15)+IF(EZ15=0,0,($AM15-$AN15-$AO15)*$AM$61*1/$C15)+IF(FA15=0,0,($AQ15-$AR15-$AS15)*$AQ$61*1/$C15)+IF(FB15=0,0,($AU15-$V15-$AW15)*$AU$61*1/$C15)+IF(FC15=0,0,($AY15-$AZ15-$BA15)*$AY$61*1/$C15)+IF(FD15=0,0,($BC15-$BD15-$BE15)*$BC$61*1/$C15)+IF(FE15=0,0,$BG15*1/$C15)+IF(FF15=0,0,($BJ15-$BK15-$BL15)*$BJ$61*1/$C15)+IF(FG15=0,0,($BN15-$BO15-$BP15)*$BN$61*1/$C15)+IF(FH15=0,0,($BR15-$BS15-$BT15)*$BR$61*1/$C15)+IF(FI15=0,0,($BV15-$BW15-$BX15)*$BV$61*1/$C15)+IF(FJ15=0,0,($BZ15-$CA15-$CB15)*$BZ$61*1/$C15)+IF(FK15=0,0,($CD15-$CE15-$CF15)*$CD$61*1/$C15)+IF(FL15=0,0,($CH15-$CI15-$CJ15)*$CH$61*1/$C15)+IF(FM15=0,0,($CL15-$CM15-$CN15)*$CL$61*1/$C15) -> 72345.59936 | FO15: =IF((1-($GL$2-$CP15)/$C15)>0,(1-($GL$2-$CP15)/$C15),0) -> 0 | FP15: =IF((1-($GL$2-FP$2)/$C15)>0,(1-($GL$2-FP$2)/$C15),0) -> 0.25 | FQ15: 0.2833333333 | FR15: 0.3166666667 | FS15: 0.35 | FT15: 0.3833333333 | FU15: 0.4166666667 | FV15: 0.45 | FW15: 0.4833333333 | FX15: 0.5166666667 | FY15: 0.55 | FZ15: =IF((1-($GL$2-FZ$2)/$C15)>0,(1-($GL$2-FZ$2)/$C15),0) -> 0.5833333333 | GA15: 0.6166666667 | GB15: 0.65 | GC15: 0.65 | GD15: 0.6833333333 | GE15: 0.7166666667 | GF15: 0.75 | GG15: 0.7833333333 | GH15: 0.8166666667 | GI15: 0.85 | GJ15: 0.8833333333 | GK15: 0.9 | GL15: =IF(FO15=0,0,($D15-$E15)*1/$C15)+IF(FP15=0,0,($G15-$H15-$I15)*$G$61*1/$C15)+IF(FQ15=0,0,($K15-$L15-$M15)*$K$61*1/$C15)+IF(FR15=0,0,($O15-$P15-$Q15)*$O$61*1/$C15)+IF(FS15=0,0,($S15-$T15-$U15)*$S$61*1/$C15)+IF(FT15=0,0,($W15-$X15-$Y15)*$W$61*1/$C15)+IF(FU15=0,0,($AA15-$AB15-$AC15)*$AA$61*1/$C15)+IF(FV15=0,0,($AE15-$AF15-$AG15)*$AE$61*1/$C15)+IF(FW15=0,0,($AI15-$AJ15-$AK15)*$AI$61*1/$C15)+IF(FX15=0,0,($AM15-$AN15-$AO15)*$AM$61*1/$C15)+IF(FY15=0,0,($AQ15-$AR15-$AS15)*$AQ$61*1/$C15)+IF(FZ15=0,0,($AU15-$V15-$AW15)*$AU$61*1/$C15)+IF(GA15=0,0,($AY15-$AZ15-$BA15)*$AY$61*1/$C15)+IF(GB15=0,0,($BC15-$BD15-$BE15)*$BC$61*1/$C15)+IF(GC15=0,0,$BG15*1/$C15)+IF(GD15=0,0,($BJ15-$BK15-$BL15)*$BJ$61*1/$C15)+IF(GE15=0,0,($BN15-$BO15-$BP15)*$BN$61*1/$C15)+IF(GF15=0,0,($BR15-$BS15-$BT15)*$BR$61*1/$C15)+IF(GG15=0,0,($BV15-$BW15-$BX15)*$BV$61*1/$C15)+IF(GH15=0,0,($BZ15-$CA15-$CB15)*$BZ$61*1/$C15)+IF(GI15=0,0,($CD15-$CE15-$CF15)*$CD$61*1/$C15)+IF(GJ15=0,0,($CH15-$CI15-$CJ15)*$CH$61*1/$C15)+IF(GK15=0,0,($CL15-$CM15-$CN15)*$CL$61*1/$C15) -> 72345.59936 | GM15: =IF((1-($HJ$2-$CP15)/$C15)>0,(1-($HJ$2-$CP15)/$C15),0) -> 0 | GN15: =IF((1-($HJ$2-GN$2)/$C15)>0,(1-($HJ$2-GN$2)/$C15),0) -> 0.2166666667 | GO15: 0.25 | GP15: 0.2833333333 | GQ15: 0.3166666667 | GR15: 0.35 | GS15: 0.3833333333 | GT15: 0.4166666667 | GU15: 0.45 | GV15: 0.4833333333 | GW15: 0.5166666667 | GX15: =IF((1-($HJ$2-GX$2)/$C15)>0,(1-($HJ$2-GX$2)/$C15),0) -> 0.55 | GY15: 0.5833333333 | GZ15: 0.6166666667 | HA15: 0.6166666667 | HB15: 0.65 | HC15: 0.6833333333 | HD15: 0.7166666667 | HE15: 0.75 | HF15: 0.7833333333 | HG15: 0.8166666667 | HH15: 0.85 | HI15: 0.8666666667 | HJ15: =IF(GM15=0,0,($D15-$E15)*1/$C15)+IF(GN15=0,0,($G15-$H15-$I15)*$G$61*1/$C15)+IF(GO15=0,0,($K15-$L15-$M15)*$K$61*1/$C15)+IF(GP15=0,0,($O15-$P15-$Q15)*$O$61*1/$C15)+IF(GQ15=0,0,($S15-$T15-$U15)*$S$61*1/$C15)+IF(GR15=0,0,($W15-$X15-$Y15)*$W$61*1/$C15)+IF(GS15=0,0,($AA15-$AB15-$AC15)*$AA$61*1/$C15)+IF(GT15=0,0,($AE15-$AF15-$AG15)*$AE$61*1/$C15)+IF(GU15=0,0,($AI15-$AJ15-$AK15)*$AI$61*1/$C15)+IF(GV15=0,0,($AM15-$AN15-$AO15)*$AM$61*1/$C15)+IF(GW15=0,0,($AQ15-$AR15-$AS15)*$AQ$61*1/$C15)+IF(GX15=0,0,($AU15-$V15-$AW15)*$AU$61*1/$C15)+IF(GY15=0,0,($AY15-$AZ15-$BA15)*$AY$61*1/$C15)+IF(GZ15=0,0,($BC15-$BD15-$BE15)*$BC$61*1/$C15)+IF(HA15=0,0,$BG15*1/$C15)+IF(HB15=0,0,($BJ15-$BK15-$BL15)*$BJ$61*1/$C15)+IF(HC15=0,0,($BN15-$BO15-$BP15)*$BN$61*1/$C15)+IF(HD15=0,0,($BR15-$BS15-$BT15)*$BR$61*1/$C15)+IF(HE15=0,0,($BV15-$BW15-$BX15)*$BV$61*1/$C15)+IF(HF15=0,0,($BZ15-$CA15-$CB15)*$BZ$61*1/$C15)+IF(HG15=0,0,($CD15-$CE15-$CF15)*$CD$61*1/$C15)+IF(HH15=0,0,($CH15-$CI15-$CJ15)*$CH$61*1/$C15)+IF(HI15=0,0,($CL15-$CM15-$CN15)*$CL$61*1/$C15) -> 72345.59936
B16: Líneas subterráneas AT | C16: 30 | D16: 0 | E16: 0 | F16: 0 | G16: 0 | H16: 0 | I16: 0 | J16: 0 | K16: 0 | L16: 0 | M16: 0 | N16: 0 | O16: 0 | P16: 0 | Q16: 0 | R16: 0 | S16: 0 | T16: 0 | U16: 0 | V16: 0 | W16: 0 | X16: 0 | Y16: 0 | Z16: 0 | AA16: 0 | AB16: 0 | AC16: 0 | AD16: 0 | AE16: 0 | AF16: 0 | AG16: 0 | AH16: 0 | AI16: 0 | AJ16: 0 | AK16: 0 | AL16: 0 | AM16: 0 | AN16: 0 | AO16: 0 | AP16: 0 | AQ16: 0 | AR16: 0 | AS16: 0 | AT16: 0 | AU16: 0 | AV16: 0 | AW16: 0 | AX16: 0 | AY16: 0 | AZ16: 0 | BA16: 0 | BB16: 0 | BC16: 0 | BD16: 0 | BE16: 0 | BF16: 0 | BG16: 0 | BH16: 0 | BI16: 0 | BJ16: 0 | BK16: 0 | BL16: 0 | BM16: 0 | BN16: 2388601.21 | BO16: 0 | BP16: 0 | BQ16: 0 | BR16: 0 | BS16: 0 | BT16: 0 | BU16: 0 | BV16: 0 | BW16: 0 | BX16: 0 | BY16: 0 | BZ16: 0 | CA16: 0 | CB16: 0 | CC16: 0 | CD16: 0 | CE16: 0 | CF16: 0 | CG16: 0 | CH16: 0 | CI16: 0 | CJ16: 0 | CK16: 0 | CL16: 0 | CM16: 0 | CN16: 0 | CO16: 0 | CP16: =IF(D16=0,0,2001-(D16-F16)*C16/D16) -> 0 | CQ16: =IF((1-($DN$2-$CP16)/$C16)>0,(1-($DN$2-$CP16)/$C16),0) -> 0 | CR16: =IF((1-($DN$2-G$2)/$C16)>0,(1-($DN$2-G$2)/$C16),0) -> 0.35 | CS16: =IF((1-($DN$2-K$2)/$C16)>0,(1-($DN$2-K$2)/$C16),0) -> 0.3833333333 | CT16: =IF((1-($DN$2-O$2)/$C16)>0,(1-($DN$2-O$2)/$C16),0) -> 0.4166666667 | CU16: =IF((1-($DN$2-S$2)/$C16)>0,(1-($DN$2-S$2)/$C16),0) -> 0.45 | CV16: =IF((1-($DN$2-W$2)/$C16)>0,(1-($DN$2-W$2)/$C16),0) -> 0.4833333333 | CW16: =IF((1-($DN$2-AA$2)/$C16)>0,(1-($DN$2-AA$2)/$C16),0) -> 0.5166666667 | CX16: =IF((1-($DN$2-AE$2)/$C16)>0,(1-($DN$2-AE$2)/$C16),0) -> 0.55 | CY16: =IF((1-($DN$2-AI$2)/$C16)>0,(1-($DN$2-AI$2)/$C16),0) -> 0.5833333333 | CZ16: =IF((1-($DN$2-AM$2)/$C16)>0,(1-($DN$2-AM$2)/$C16),0) -> 0.6166666667 | DA16: =IF((1-($DN$2-AQ$2)/$C16)>0,(1-($DN$2-AQ$2)/$C16),0) -> 0.65 | DB16: =IF((1-($DN$2-AU$2)/$C16)>0,(1-($DN$2-AU$2)/$C16),0) -> 0.6833333333 | DC16: =IF((1-($DN$2-AY$2)/$C16)>0,(1-($DN$2-AY$2)/$C16),0) -> 0.7166666667 | DD16: =IF((1-($DN$2-BC$2)/$C16)>0,(1-($DN$2-BC$2)/$C16),0) -> 0.75 | DE16: 0 | DF16: =IF((1-($DN$2-BJ$2)/$C16)>0,(1-($DN$2-BJ$2)/$C16),0) -> 0.7833333333 | DG16: =IF((1-($DN$2-BN$2)/$C16)>0,(1-($DN$2-BN$2)/$C16),0) -> 0.8166666667 | DH16: =IF((1-($DN$2-BR$2)/$C16)>0,(1-($DN$2-BR$2)/$C16),0) -> 0.85 | DI16: =IF((1-($DN$2-BV$2)/$C16)>0,(1-($DN$2-BV$2)/$C16),0) -> 0.8833333333 | DJ16: =IF((1-($DN$2-BZ$2)/$C16)>0,(1-($DN$2-BZ$2)/$C16),0) -> 0.9166666667 | DK16: =IF((1-($DN$2-CD$2)/$C16)>0,(1-($DN$2-CD$2)/$C16),0) -> 0.95 | DL16: =IF((1-($DN$2-CH$2)/$C16)>0,(1-($DN$2-CH$2)/$C16),0) -> 0.9833333333 | DM16: =IF((1-($DN$2-CL$2)/$C16)>0,(1-($DN$2-CL$2)/$C16),0) -> 1 | DN16: =IF(CQ16=0,0,($D16-$E16)*1/$C16)+IF(CR16=0,0,($G16-$H16-$I16)*$G$61*1/$C16)+IF(CS16=0,0,($K16-$L16-$M16)*$K$61*1/$C16)+IF(CT16=0,0,($O16-$P16-$Q16)*$O$61*1/$C16)+IF(CU16=0,0,($S16-$T16-$U16)*$S$61*1/$C16)+IF(CV16=0,0,($W16-$X16-$Y16)*$W$61*1/$C16)+IF(CW16=0,0,($AA16-$AB16-$AC16)*$AA$61*1/$C16)+IF(CX16=0,0,($AE16-$AF16-$AG16)*$AE$61*1/$C16)+IF(CY16=0,0,($AI16-$AJ16-$AK16)*$AI$61*1/$C16)+IF(CZ16=0,0,($AM16-$AN16-$AO16)*$AM$61*1/$C16)+IF(DA16=0,0,($AQ16-$AR16-$AS16)*$AQ$61*1/$C16)+IF(DB16=0,0,($AU16-$V16-$AW16)*$AU$61*1/$C16)+IF(DC16=0,0,($AY16-$AZ16-$BA16)*$AY$61*1/$C16)+IF(DD16=0,0,($BC16-$BD16-$BE16)*$BC$61*1/$C16)+IF(DE16=0,0,$BG16*1/$C16)+IF(DF16=0,0,($BJ16-$BK16-$BL16)*$BJ$61*1/$C16)+IF(DG16=0,0,($BN16-$BO16-$BP16)*$BN$61*1/$C16)+IF(DH16=0,0,($BR16-$BS16-$BT16)*$BR$61*1/$C16)+IF(DI16=0,0,($BV16-$BW16-$BX16)*$BV$61*1/$C16)+IF(DJ16=0,0,($BZ16-$CA16-$CB16)*$BZ$61*1/$C16)+IF(DK16=0,0,($CD16-$CE16-$CF16)*$CD$61*1/$C16)+IF(DL16=0,0,($CH16-$CI16-$CJ16)*$CH$61*1/$C16)+IF(DM16=0,0,($CL16-$CM16-$CN16)*$CL$61*1/$C16) -> 69621.00377 | DO16: =D16-E16+(G16-I16)*G$61+(K16-M16)*K$61+(O16-Q16)*O$61+(S16-U16)*S$61+(W16-Y16)*W$61+(AA16-AC16)*AA$61+(AE16-AG16)*AE$61+(AI16-AK16)*AI$61+(AM16-AO16)*AM$61+(AQ16-AS16)*$AQ$61+(AU16-AW16)*$AU$61+(AY16-BA16)*$AY$61+(BC16-BE16)*$BC$61+BG16+(BJ16-BL16)*$BJ$61+(BN16-BP16)*$BN$61+(BR16-BT16)*$BR$61+(BV16-BX16)*$BV$61+(BZ16-CB16)*$BZ$61+(CD16-CF16)*$CD$61+(CH16-CJ16)*$CH$61+(CL16-CN16)*$CL$61 -> 2088630.113 | DP16: =IF(CQ16=0,D16-E16,0)+IF(CR16=0,(G16-I16)*G$61,0)+IF(CS16=0,(K16-M16)*K$61,0)+IF(CT16=0,(O16-Q16)*O$61,0)+IF(CU16=0,(S16-U16)*S$61,0)+IF(CV16=0,(W16-Y16)*W$61,0)+IF(CW16=0,(AA16-AC16)*AA$61,0)+IF(CX16=0,(AE16-AG16)*AE$61,0)+IF(CY16=0,(AI16-AK16)*AI$61,0)+IF(CZ16=0,(AM16-AO16)*AM$61,0)+IF(DA16=0,(AQ16-AS16)*$AQ$61,0)+IF(DB16=0,(AU16-AW16)*$AU$61,0)+IF(DC16=0,(AY16-BA16)*$AY$61,0)++IF(DD16=0,(BC16-BE16)*$BC$61,0)+IF(DE16=0,BG16,0)+IF(DF16=0,(BJ16-BL16)*$BJ$61,0)+IF(DG16=0,(BN16-BP16)*$BN$61,0)+IF(DH16=0,(BR16-BT16)*$BR$61,0)+IF(DI16=0,(BV16-BX16)*$BV$61,0)+IF(DJ16=0,(BZ16-CB16)*$BZ$61,0)+IF(DK16=0,(CD16-CF16)*$CD$61,0)+IF(DL16=0,(CH16-CJ16)*$CH$61,0)+IF(DM16=0,(CL16-CN16)*$CL$61,0) -> 0 | DQ16: =(D16-E16)*CQ16+((G16-H16-(I16-J16))*G$61)*CR16+((K16-L16-(M16-N16))*K$61)*CS16+((O16-P16-(Q16-R16))*O$61)*CT16+((S16-T16-(U16-V16))*S$61)*CU16+((W16-X16-(Y16-Z16))*W$61)*CV16+((AA16-AB16-(AC16-AD16))*AA$61)*CW16+((AE16-AF16-(AG16-AH16))*AE$61)*CX16+((AI16-AJ16-(AK16-AL16))*AI$61)*CY16+((AM16-AN16-(AO16-AP16))*$AM$61)*CZ16+((AQ16-AR16-(AS16-AT16))*$AQ$61)*DA16+((AU16-AV16-(AW16-AX16))*$AU$61)*DB16+((AY16-AZ16-(BA16-BB16))*$AY$61)*DC16+((BC16-BD16-(BE16-BF16))*$BC$61)*DD16+((BJ16-BK16-(BL16-BM16))*$BJ$61)*DF16+(BG16-BH16)*DE16+((BN16-BO16-(BP16-BQ16))*$BN$61)*DG16+((BR16-BS16-(BT16-BU16))*$BR$61)*DH16+((BV16-BW16-(BX16-BY16))*$BV$61)*DI16+((BZ16-CA16-(CB16-CC16))*$BZ$61)*DJ16+((CD16-CE16-(CF16-CG16))*$CD$61)*DK16+((CH16-CI16-(CJ16-CK16))*$CH$61)*DL16+((CL16-CM16-(CN16-CO16))*$CL$61)*DM16 -> 1705714.592 | DR16: =(DO16-DP16)*1/C16 -> 69621.00377 | DS16: =IF((1-($EP$2-$CP16)/$C16)>0,(1-($EP$2-$CP16)/$C16),0) -> 0 | DT16: 0.3166666667 | DU16: 0.35 | DV16: 0.3833333333 | DW16: 0.4166666667 | DX16: 0.45 | DY16: 0.4833333333 | DZ16: 0.5166666667 | EA16: 0.55 | EB16: 0.5833333333 | EC16: 0.6166666667 | ED16: 0.65 | EE16: 0.6833333333 | EF16: 0.7166666667 | EG16: 0.7166666667 | EH16: 0.75 | EI16: 0.7833333333 | EJ16: 0.8166666667 | EK16: 0.85 | EL16: 0.8833333333 | EM16: 0.9166666667 | EN16: 0.95 | EO16: 0.9666666667 | EP16: =IF(DS16=0,0,($D16-$E16)*1/$C16)+IF(DT16=0,0,($G16-$H16-$I16)*$G$61*1/$C16)+IF(DU16=0,0,($K16-$L16-$M16)*$K$61*1/$C16)+IF(DV16=0,0,($O16-$P16-$Q16)*$O$61*1/$C16)+IF(DW16=0,0,($S16-$T16-$U16)*$S$61*1/$C16)+IF(DX16=0,0,($W16-$X16-$Y16)*$W$61*1/$C16)+IF(DY16=0,0,($AA16-$AB16-$AC16)*$AA$61*1/$C16)+IF(DZ16=0,0,($AE16-$AF16-$AG16)*$AE$61*1/$C16)+IF(EA16=0,0,($AI16-$AJ16-$AK16)*$AI$61*1/$C16)+IF(EB16=0,0,($AM16-$AN16-$AO16)*$AM$61*1/$C16)+IF(EC16=0,0,($AQ16-$AR16-$AS16)*$AQ$61*1/$C16)+IF(ED16=0,0,($AU16-$V16-$AW16)*$AU$61*1/$C16)+IF(EE16=0,0,($AY16-$AZ16-$BA16)*$AY$61*1/$C16)+IF(EF16=0,0,($BC16-$BD16-$BE16)*$BC$61*1/$C16)+IF(EG16=0,0,$BG16*1/$C16)+IF(EH16=0,0,($BJ16-$BK16-$BL16)*$BJ$61*1/$C16)+IF(EI16=0,0,($BN16-$BO16-$BP16)*$BN$61*1/$C16)+IF(EJ16=0,0,($BR16-$BS16-$BT16)*$BR$61*1/$C16)+IF(EK16=0,0,($BV16-$BW16-$BX16)*$BV$61*1/$C16)+IF(EL16=0,0,($BZ16-$CA16-$CB16)*$BZ$61*1/$C16)+IF(EM16=0,0,($CD16-$CE16-$CF16)*$CD$61*1/$C16)+IF(EN16=0,0,($CH16-$CI16-$CJ16)*$CH$61*1/$C16)+IF(EO16=0,0,($CL16-$CM16-$CN16)*$CL$61*1/$C16) -> 69621.00377 | EQ16: =IF((1-($FN$2-$CP16)/$C16)>0,(1-($FN$2-$CP16)/$C16),0) -> 0 | ER16: 0.2833333333 | ES16: 0.3166666667 | ET16: 0.35 | EU16: 0.3833333333 | EV16: 0.4166666667 | EW16: 0.45 | EX16: 0.4833333333 | EY16: 0.5166666667 | EZ16: 0.55 | FA16: 0.5833333333 | FB16: 0.6166666667 | FC16: 0.65 | FD16: 0.6833333333 | FE16: 0.6833333333 | FF16: 0.7166666667 | FG16: 0.75 | FH16: 0.7833333333 | FI16: 0.8166666667 | FJ16: 0.85 | FK16: 0.8833333333 | FL16: 0.9166666667 | FM16: 0.9333333333 | FN16: =IF(EQ16=0,0,($D16-$E16)*1/$C16)+IF(ER16=0,0,($G16-$H16-$I16)*$G$61*1/$C16)+IF(ES16=0,0,($K16-$L16-$M16)*$K$61*1/$C16)+IF(ET16=0,0,($O16-$P16-$Q16)*$O$61*1/$C16)+IF(EU16=0,0,($S16-$T16-$U16)*$S$61*1/$C16)+IF(EV16=0,0,($W16-$X16-$Y16)*$W$61*1/$C16)+IF(EW16=0,0,($AA16-$AB16-$AC16)*$AA$61*1/$C16)+IF(EX16=0,0,($AE16-$AF16-$AG16)*$AE$61*1/$C16)+IF(EY16=0,0,($AI16-$AJ16-$AK16)*$AI$61*1/$C16)+IF(EZ16=0,0,($AM16-$AN16-$AO16)*$AM$61*1/$C16)+IF(FA16=0,0,($AQ16-$AR16-$AS16)*$AQ$61*1/$C16)+IF(FB16=0,0,($AU16-$V16-$AW16)*$AU$61*1/$C16)+IF(FC16=0,0,($AY16-$AZ16-$BA16)*$AY$61*1/$C16)+IF(FD16=0,0,($BC16-$BD16-$BE16)*$BC$61*1/$C16)+IF(FE16=0,0,$BG16*1/$C16)+IF(FF16=0,0,($BJ16-$BK16-$BL16)*$BJ$61*1/$C16)+IF(FG16=0,0,($BN16-$BO16-$BP16)*$BN$61*1/$C16)+IF(FH16=0,0,($BR16-$BS16-$BT16)*$BR$61*1/$C16)+IF(FI16=0,0,($BV16-$BW16-$BX16)*$BV$61*1/$C16)+IF(FJ16=0,0,($BZ16-$CA16-$CB16)*$BZ$61*1/$C16)+IF(FK16=0,0,($CD16-$CE16-$CF16)*$CD$61*1/$C16)+IF(FL16=0,0,($CH16-$CI16-$CJ16)*$CH$61*1/$C16)+IF(FM16=0,0,($CL16-$CM16-$CN16)*$CL$61*1/$C16) -> 69621.00377 | FO16: =IF((1-($GL$2-$CP16)/$C16)>0,(1-($GL$2-$CP16)/$C16),0) -> 0 | FP16: 0.25 | FQ16: 0.2833333333 | FR16: 0.3166666667 | FS16: 0.35 | FT16: 0.3833333333 | FU16: 0.4166666667 | FV16: 0.45 | FW16: 0.4833333333 | FX16: 0.5166666667 | FY16: 0.55 | FZ16: 0.5833333333 | GA16: 0.6166666667 | GB16: 0.65 | GC16: 0.65 | GD16: 0.6833333333 | GE16: 0.7166666667 | GF16: 0.75 | GG16: 0.7833333333 | GH16: 0.8166666667 | GI16: 0.85 | GJ16: 0.8833333333 | GK16: 0.9 | GL16: =IF(FO16=0,0,($D16-$E16)*1/$C16)+IF(FP16=0,0,($G16-$H16-$I16)*$G$61*1/$C16)+IF(FQ16=0,0,($K16-$L16-$M16)*$K$61*1/$C16)+IF(FR16=0,0,($O16-$P16-$Q16)*$O$61*1/$C16)+IF(FS16=0,0,($S16-$T16-$U16)*$S$61*1/$C16)+IF(FT16=0,0,($W16-$X16-$Y16)*$W$61*1/$C16)+IF(FU16=0,0,($AA16-$AB16-$AC16)*$AA$61*1/$C16)+IF(FV16=0,0,($AE16-$AF16-$AG16)*$AE$61*1/$C16)+IF(FW16=0,0,($AI16-$AJ16-$AK16)*$AI$61*1/$C16)+IF(FX16=0,0,($AM16-$AN16-$AO16)*$AM$61*1/$C16)+IF(FY16=0,0,($AQ16-$AR16-$AS16)*$AQ$61*1/$C16)+IF(FZ16=0,0,($AU16-$V16-$AW16)*$AU$61*1/$C16)+IF(GA16=0,0,($AY16-$AZ16-$BA16)*$AY$61*1/$C16)+IF(GB16=0,0,($BC16-$BD16-$BE16)*$BC$61*1/$C16)+IF(GC16=0,0,$BG16*1/$C16)+IF(GD16=0,0,($BJ16-$BK16-$BL16)*$BJ$61*1/$C16)+IF(GE16=0,0,($BN16-$BO16-$BP16)*$BN$61*1/$C16)+IF(GF16=0,0,($BR16-$BS16-$BT16)*$BR$61*1/$C16)+IF(GG16=0,0,($BV16-$BW16-$BX16)*$BV$61*1/$C16)+IF(GH16=0,0,($BZ16-$CA16-$CB16)*$BZ$61*1/$C16)+IF(GI16=0,0,($CD16-$CE16-$CF16)*$CD$61*1/$C16)+IF(GJ16=0,0,($CH16-$CI16-$CJ16)*$CH$61*1/$C16)+IF(GK16=0,0,($CL16-$CM16-$CN16)*$CL$61*1/$C16) -> 69621.00377 | GM16: =IF((1-($HJ$2-$CP16)/$C16)>0,(1-($HJ$2-$CP16)/$C16),0) -> 0 | GN16: 0.2166666667 | GO16: 0.25 | GP16: 0.2833333333 | GQ16: 0.3166666667 | GR16: 0.35 | GS16: 0.3833333333 | GT16: 0.4166666667 | GU16: 0.45 | GV16: 0.4833333333 | GW16: 0.5166666667 | GX16: 0.55 | GY16: 0.5833333333 | GZ16: 0.6166666667 | HA16: 0.6166666667 | HB16: 0.65 | HC16: 0.6833333333 | HD16: 0.7166666667 | HE16: 0.75 | HF16: 0.7833333333 | HG16: 0.8166666667 | HH16: 0.85 | HI16: 0.8666666667 | HJ16: =IF(GM16=0,0,($D16-$E16)*1/$C16)+IF(GN16=0,0,($G16-$H16-$I16)*$G$61*1/$C16)+IF(GO16=0,0,($K16-$L16-$M16)*$K$61*1/$C16)+IF(GP16=0,0,($O16-$P16-$Q16)*$O$61*1/$C16)+IF(GQ16=0,0,($S16-$T16-$U16)*$S$61*1/$C16)+IF(GR16=0,0,($W16-$X16-$Y16)*$W$61*1/$C16)+IF(GS16=0,0,($AA16-$AB16-$AC16)*$AA$61*1/$C16)+IF(GT16=0,0,($AE16-$AF16-$AG16)*$AE$61*1/$C16)+IF(GU16=0,0,($AI16-$AJ16-$AK16)*$AI$61*1/$C16)+IF(GV16=0,0,($AM16-$AN16-$AO16)*$AM$61*1/$C16)+IF(GW16=0,0,($AQ16-$AR16-$AS16)*$AQ$61*1/$C16)+IF(GX16=0,0,($AU16-$V16-$AW16)*$AU$61*1/$C16)+IF(GY16=0,0,($AY16-$AZ16-$BA16)*$AY$61*1/$C16)+IF(GZ16=0,0,($BC16-$BD16-$BE16)*$BC$61*1/$C16)+IF(HA16=0,0,$BG16*1/$C16)+IF(HB16=0,0,($BJ16-$BK16-$BL16)*$BJ$61*1/$C16)+IF(HC16=0,0,($BN16-$BO16-$BP16)*$BN$61*1/$C16)+IF(HD16=0,0,($BR16-$BS16-$BT16)*$BR$61*1/$C16)+IF(HE16=0,0,($BV16-$BW16-$BX16)*$BV$61*1/$C16)+IF(HF16=0,0,($BZ16-$CA16-$CB16)*$BZ$61*1/$C16)+IF(HG16=0,0,($CD16-$CE16-$CF16)*$CD$61*1/$C16)+IF(HH16=0,0,($CH16-$CI16-$CJ16)*$CH$61*1/$C16)+IF(HI16=0,0,($CL16-$CM16-$CN16)*$CL$61*1/$C16) -> 69621.00377
B17: Subestaciones AT / MT | C17: 30 | D17: 0 | E17: 0 | F17: 0 | G17: 0 | H17: 0 | I17: 0 | J17: 0 | K17: 0 | L17: 0 | M17: 0 | N17: 0 | O17: 0 | P17: 0 | Q17: 0 | R17: 0 | S17: 0 | T17: 0 | U17: 0 | V17: 0 | W17: 0 | X17: 0 | Y17: 0 | Z17: 0 | AA17: 0 | AB17: 0 | AC17: 0 | AD17: 0 | AE17: 0 | AF17: 0 | AG17: 0 | AH17: 0 | AI17: 0 | AJ17: 0 | AK17: 0 | AL17: 0 | AM17: 0 | AN17: 0 | AO17: 0 | AP17: 0 | AQ17: 0 | AR17: 0 | AS17: 0 | AT17: 0 | AU17: 0 | AV17: 0 | AW17: 0 | AX17: 0 | AY17: 0 | AZ17: 0 | BA17: 0 | BB17: 0 | BC17: 882092.27 | BD17: 0 | BE17: 0 | BF17: 0 | BG17: 0 | BH17: 0 | BI17: 0 | BJ17: 0 | BK17: 0 | BL17: 0 | BM17: 0 | BN17: 5584871.63 | BO17: 0 | BP17: 0 | BQ17: 0 | BR17: 1844000 | BS17: 0 | BT17: 0 | BU17: 0 | BV17: 0 | BW17: 0 | BX17: 0 | BY17: 0 | BZ17: 0 | CA17: 0 | CB17: 0 | CC17: 0 | CD17: 0 | CE17: 0 | CF17: 0 | CG17: 0 | CH17: 0 | CI17: 0 | CJ17: 0 | CK17: 0 | CL17: 0 | CM17: 0 | CN17: 0 | CO17: 0 | CP17: =IF(D17=0,0,2001-(D17-F17)*C17/D17) -> 0 | CQ17: =IF((1-($DN$2-$CP17)/$C17)>0,(1-($DN$2-$CP17)/$C17),0) -> 0 | CR17: =IF((1-($DN$2-G$2)/$C17)>0,(1-($DN$2-G$2)/$C17),0) -> 0.35 | CS17: =IF((1-($DN$2-K$2)/$C17)>0,(1-($DN$2-K$2)/$C17),0) -> 0.3833333333 | CT17: =IF((1-($DN$2-O$2)/$C17)>0,(1-($DN$2-O$2)/$C17),0) -> 0.4166666667 | CU17: =IF((1-($DN$2-S$2)/$C17)>0,(1-($DN$2-S$2)/$C17),0) -> 0.45 | CV17: =IF((1-($DN$2-W$2)/$C17)>0,(1-($DN$2-W$2)/$C17),0) -> 0.4833333333 | CW17: =IF((1-($DN$2-AA$2)/$C17)>0,(1-($DN$2-AA$2)/$C17),0) -> 0.5166666667 | CX17: =IF((1-($DN$2-AE$2)/$C17)>0,(1-($DN$2-AE$2)/$C17),0) -> 0.55 | CY17: =IF((1-($DN$2-AI$2)/$C17)>0,(1-($DN$2-AI$2)/$C17),0) -> 0.5833333333 | CZ17: =IF((1-($DN$2-AM$2)/$C17)>0,(1-($DN$2-AM$2)/$C17),0) -> 0.6166666667 | DA17: =IF((1-($DN$2-AQ$2)/$C17)>0,(1-($DN$2-AQ$2)/$C17),0) -> 0.65 | DB17: =IF((1-($DN$2-AU$2)/$C17)>0,(1-($DN$2-AU$2)/$C17),0) -> 0.6833333333 | DC17: =IF((1-($DN$2-AY$2)/$C17)>0,(1-($DN$2-AY$2)/$C17),0) -> 0.7166666667 | DD17: =IF((1-($DN$2-BC$2)/$C17)>0,(1-($DN$2-BC$2)/$C17),0) -> 0.75 | DE17: 0 | DF17: =IF((1-($DN$2-BJ$2)/$C17)>0,(1-($DN$2-BJ$2)/$C17),0) -> 0.7833333333 | DG17: =IF((1-($DN$2-BN$2)/$C17)>0,(1-($DN$2-BN$2)/$C17),0) -> 0.8166666667 | DH17: =IF((1-($DN$2-BR$2)/$C17)>0,(1-($DN$2-BR$2)/$C17),0) -> 0.85 | DI17: =IF((1-($DN$2-BV$2)/$C17)>0,(1-($DN$2-BV$2)/$C17),0) -> 0.8833333333 | DJ17: =IF((1-($DN$2-BZ$2)/$C17)>0,(1-($DN$2-BZ$2)/$C17),0) -> 0.9166666667 | DK17: =IF((1-($DN$2-CD$2)/$C17)>0,(1-($DN$2-CD$2)/$C17),0) -> 0.95 | DL17: =IF((1-($DN$2-CH$2)/$C17)>0,(1-($DN$2-CH$2)/$C17),0) -> 0.9833333333 | DM17: =IF((1-($DN$2-CL$2)/$C17)>0,(1-($DN$2-CL$2)/$C17),0) -> 1 | DN17: 240980.4796 | DO17: 7229414.387 | DP17: 0 | DQ17: 5909279.355 | DR17: 240980.4796 | DS17: =IF((1-($EP$2-$CP17)/$C17)>0,(1-($EP$2-$CP17)/$C17),0) -> 0 | DT17: 0.3166666667 | DU17: 0.35 | DV17: 0.3833333333 | DW17: 0.4166666667 | DX17: 0.45 | DY17: 0.4833333333 | DZ17: 0.5166666667 | EA17: 0.55 | EB17: 0.5833333333 | EC17: 0.6166666667 | ED17: 0.65 | EE17: 0.6833333333 | EF17: 0.7166666667 | EG17: 0.7166666667 | EH17: 0.75 | EI17: 0.7833333333 | EJ17: 0.8166666667 | EK17: 0.85 | EL17: 0.8833333333 | EM17: 0.9166666667 | EN17: 0.95 | EO17: 0.9666666667 | EP17: 240980.4796 | EQ17: =IF((1-($FN$2-$CP17)/$C17)>0,(1-($FN$2-$CP17)/$C17),0) -> 0 | ER17: 0.2833333333 | ES17: 0.3166666667 | ET17: 0.35 | EU17: 0.3833333333 | EV17: 0.4166666667 | EW17: 0.45 | EX17: 0.4833333333 | EY17: 0.5166666667 | EZ17: 0.55 | FA17: 0.5833333333 | FB17: 0.6166666667 | FC17: 0.65 | FD17: 0.6833333333 | FE17: 0.6833333333 | FF17: 0.7166666667 | FG17: 0.75 | FH17: 0.7833333333 | FI17: 0.8166666667 | FJ17: 0.85 | FK17: 0.8833333333 | FL17: 0.9166666667 | FM17: 0.9333333333 | FN17: 240980.4796 | FO17: =IF((1-($GL$2-$CP17)/$C17)>0,(1-($GL$2-$CP17)/$C17),0) -> 0 | FP17: 0.25 | FQ17: 0.2833333333 | FR17: 0.3166666667 | FS17: 0.35 | FT17: 0.3833333333 | FU17: 0.4166666667 | FV17: 0.45 | FW17: 0.4833333333 | FX17: 0.5166666667 | FY17: 0.55 | FZ17: 0.5833333333 | GA17: 0.6166666667 | GB17: 0.65 | GC17: 0.65 | GD17: 0.6833333333 | GE17: 0.7166666667 | GF17: 0.75 | GG17: 0.7833333333 | GH17: 0.8166666667 | GI17: 0.85 | GJ17: 0.8833333333 | GK17: 0.9 | GL17: 240980.4796 | GM17: =IF((1-($HJ$2-$CP17)/$C17)>0,(1-($HJ$2-$CP17)/$C17),0) -> 0 | GN17: 0.2166666667 | GO17: 0.25 | GP17: 0.2833333333 | GQ17: 0.3166666667 | GR17: 0.35 | GS17: 0.3833333333 | GT17: 0.4166666667 | GU17: 0.45 | GV17: 0.4833333333 | GW17: 0.5166666667 | GX17: 0.55 | GY17: 0.5833333333 | GZ17: 0.6166666667 | HA17: 0.6166666667 | HB17: 0.65 | HC17: 0.6833333333 | HD17: 0.7166666667 | HE17: 0.75 | HF17: 0.7833333333 | HG17: 0.8166666667 | HH17: 0.85 | HI17: 0.8666666667 | HJ17: 240980.4796
B18: Media tensión MT | D18: 0 | E18: 0 | F18: 0 | G18: 0 | H18: 0 | I18: 0 | J18: 0 | K18: 0 | L18: 0 | M18: 0 | N18: 0 | O18: 0 | P18: 0 | Q18: 0 | R18: 0 | S18: 0 | T18: 0 | U18: 0 | V18: 0 | W18: 0 | X18: 0 | Y18: 0 | Z18: 0 | AA18: 0 | AB18: 0 | AC18: 0 | AD18: 0 | AE18: 0 | AF18: 0 | AG18: 0 | AH18: 0 | AI18: 0 | AJ18: 0 | AK18: 0 | AL18: 0 | AM18: 0 | AN18: 0 | AO18: 0 | AP18: 0 | AQ18: 0 | AR18: 0 | AS18: 0 | AT18: 0 | AU18: 0 | AV18: 0 | AW18: 0 | AX18: 0 | AY18: 0 | AZ18: 0 | BA18: 0 | BB18: 0 | BC18: 0 | BD18: 0 | BE18: 0 | BF18: 0 | BG18: 0 | BH18: 0 | BI18: 0 | BJ18: 0 | BK18: 0 | BL18: 0 | BM18: 0 | BN18: 0 | BO18: 0 | BP18: 0 | BQ18: 0 | BR18: 0 | BS18: 0 | BT18: 0 | BU18: 0 | BV18: 0 | BW18: 0 | BX18: 0 | BY18: 0 | BZ18: 0 | CA18: 0 | CB18: 0 | CC18: 0 | CD18: 0 | CE18: 0 | CF18: 0 | CG18: 0 | CH18: 0 | CI18: 0 | CJ18: 0 | CK18: 0 | CL18: 0 | CM18: 0 | CN18: 0 | CO18: 0 | DN18: 0 | DO18: 0 | DP18: 0 | DQ18: 0 | EP18: 0 | FN18: 0 | GL18: 0 | HJ18: 0
B19: Líneas aéreas de 34,5 kV | C19: 30 | D19: 20631115.42 | E19: 0 | F19: 11427451.6 | G19: 275088 | H19: 0 | I19: 0 | J19: 0 | K19: 838585.51 | L19: 252735 | M19: 0 | N19: 0 | O19: 682132.64 | P19: 0 | Q19: 0 | R19: 0 | S19: 853048 | T19: 0 | U19: 0 | V19: 0 | W19: 1150963.24 | X19: 0 | Y19: 0 | Z19: 0 | AA19: 1286599.07 | AB19: 255770.07 | AC19: 0 | AD19: 0 | AE19: 1756704.5 | AF19: 0 | AG19: 0 | AH19: 0 | AI19: 3549323.01 | AJ19: 0 | AK19: 0 | AL19: 0 | AM19: 1341910.89 | AN19: 0 | AO19: 0 | AP19: 0 | AQ19: 1605662.65 | AR19: 0 | AS19: 0 | AT19: 0 | AU19: 974437.2 | AV19: 0 | AW19: 0 | AX19: 0 | AY19: 2945753.83 | AZ19: 0 | BA19: 0 | BB19: 0 | BC19: 1470098.08 | BD19: 0 | BE19: 0 | BF19: 0 | BG19: 2828060.858 | BH19: 2101741.018 | BI19: 1899712.11 | BJ19: 1038342.72 | BK19: 0 | BL19: 0 | BM19: 0 | BN19: 2936315.89 | BO19: 0 | BP19: 0 | BQ19: 0 | BR19: 1953432.8 | BS19: 38757.64 | BT19: 0 | BU19: 0 | BV19: 2287189.82 | BW19: 865477.9172 | BX19: 0 | BY19: 0 | BZ19: 2203740.96 | CA19: 757653.046 | CB19: 0 | CC19: 0 | CD19: 2834231.97 | CE19: 0 | CF19: 0 | CG19: 0 | CH19: 1243715.88 | CI19: 34705.04995 | CJ19: 0 | CK19: 0 | CL19: 945920 | CM19: 0 | CN19: 0 | CO19: 0 | CP19: =IF(D19=0,0,2001-(D19-F19)*C19/D19) -> 1987.616821 | CQ19: =IF((1-($DN$2-$CP19)/$C19)>0,(1-($DN$2-$CP19)/$C19),0) -> 0 | CR19: =IF((1-($DN$2-G$2)/$C19)>0,(1-($DN$2-G$2)/$C19),0) -> 0.35 | CS19: =IF((1-($DN$2-K$2)/$C19)>0,(1-($DN$2-K$2)/$C19),0) -> 0.3833333333 | CT19: =IF((1-($DN$2-O$2)/$C19)>0,(1-($DN$2-O$2)/$C19),0) -> 0.4166666667 | CU19: =IF((1-($DN$2-S$2)/$C19)>0,(1-($DN$2-S$2)/$C19),0) -> 0.45 | CV19: =IF((1-($DN$2-W$2)/$C19)>0,(1-($DN$2-W$2)/$C19),0) -> 0.4833333333 | CW19: =IF((1-($DN$2-AA$2)/$C19)>0,(1-($DN$2-AA$2)/$C19),0) -> 0.5166666667 | CX19: =IF((1-($DN$2-AE$2)/$C19)>0,(1-($DN$2-AE$2)/$C19),0) -> 0.55 | CY19: =IF((1-($DN$2-AI$2)/$C19)>0,(1-($DN$2-AI$2)/$C19),0) -> 0.5833333333 | CZ19: =IF((1-($DN$2-AM$2)/$C19)>0,(1-($DN$2-AM$2)/$C19),0) -> 0.6166666667 | DA19: =IF((1-($DN$2-AQ$2)/$C19)>0,(1-($DN$2-AQ$2)/$C19),0) -> 0.65 | DB19: =IF((1-($DN$2-AU$2)/$C19)>0,(1-($DN$2-AU$2)/$C19),0) -> 0.6833333333 | DC19: =IF((1-($DN$2-AY$2)/$C19)>0,(1-($DN$2-AY$2)/$C19),0) -> 0.7166666667 | DD19: =IF((1-($DN$2-BC$2)/$C19)>0,(1-($DN$2-BC$2)/$C19),0) -> 0.75 | DE19: =IF(BG19=0,0,1-($DN$2-(2014.5-(BG19-BI19)*C19/BG19))/C19) -> 0.4384033107 | DF19: =IF((1-($DN$2-BJ$2)/$C19)>0,(1-($DN$2-BJ$2)/$C19),0) -> 0.7833333333 | DG19: =IF((1-($DN$2-BN$2)/$C19)>0,(1-($DN$2-BN$2)/$C19),0) -> 0.8166666667 | DH19: =IF((1-($DN$2-BR$2)/$C19)>0,(1-($DN$2-BR$2)/$C19),0) -> 0.85 | DI19: =IF((1-($DN$2-BV$2)/$C19)>0,(1-($DN$2-BV$2)/$C19),0) -> 0.8833333333 | DJ19: =IF((1-($DN$2-BZ$2)/$C19)>0,(1-($DN$2-BZ$2)/$C19),0) -> 0.9166666667 | DK19: =IF((1-($DN$2-CD$2)/$C19)>0,(1-($DN$2-CD$2)/$C19),0) -> 0.95 | DL19: =IF((1-($DN$2-CH$2)/$C19)>0,(1-($DN$2-CH$2)/$C19),0) -> 0.9833333333 | DM19: =IF((1-($DN$2-CL$2)/$C19)>0,(1-($DN$2-CL$2)/$C19),0) -> 1 | DN19: 970044.4332 | DO19: 51659502.46 | DP19: 20631115.42 | DQ19: 19363459.36 | DR19: 1034279.568 | DS19: =IF((1-($EP$2-$CP19)/$C19)>0,(1-($EP$2-$CP19)/$C19),0) -> 0 | DT19: =IF((1-($EP$2-DT$2)/$C19)>0,(1-($EP$2-DT$2)/$C19),0) -> 0.3166666667 | DU19: 0.35 | DV19: 0.3833333333 | DW19: 0.4166666667 | DX19: 0.45 | DY19: 0.4833333333 | DZ19: 0.5166666667 | EA19: 0.55 | EB19: 0.5833333333 | EC19: 0.6166666667 | ED19: =IF((1-($EP$2-ED$2)/$C19)>0,(1-($EP$2-ED$2)/$C19),0) -> 0.65 | EE19: 0.6833333333 | EF19: 0.7166666667 | EG19: 0.7166666667 | EH19: 0.75 | EI19: 0.7833333333 | EJ19: 0.8166666667 | EK19: 0.85 | EL19: 0.8833333333 | EM19: 0.9166666667 | EN19: 0.95 | EO19: 0.9666666667 | EP19: 970044.4332 | EQ19: =IF((1-($FN$2-$CP19)/$C19)>0,(1-($FN$2-$CP19)/$C19),0) -> 0 | ER19: =IF((1-($FN$2-ER$2)/$C19)>0,(1-($FN$2-ER$2)/$C19),0) -> 0.2833333333 | ES19: 0.3166666667 | ET19: 0.35 | EU19: 0.3833333333 | EV19: 0.4166666667 | EW19: 0.45 | EX19: 0.4833333333 | EY19: 0.5166666667 | EZ19: 0.55 | FA19: 0.5833333333 | FB19: =IF((1-($FN$2-FB$2)/$C19)>0,(1-($FN$2-FB$2)/$C19),0) -> 0.6166666667 | FC19: 0.65 | FD19: 0.6833333333 | FE19: 0.6833333333 | FF19: 0.7166666667 | FG19: 0.75 | FH19: 0.7833333333 | FI19: 0.8166666667 | FJ19: 0.85 | FK19: 0.8833333333 | FL19: 0.9166666667 | FM19: 0.9333333333 | FN19: 970044.4332 | FO19: =IF((1-($GL$2-$CP19)/$C19)>0,(1-($GL$2-$CP19)/$C19),0) -> 0 | FP19: =IF((1-($GL$2-FP$2)/$C19)>0,(1-($GL$2-FP$2)/$C19),0) -> 0.25 | FQ19: 0.2833333333 | FR19: 0.3166666667 | FS19: 0.35 | FT19: 0.3833333333 | FU19: 0.4166666667 | FV19: 0.45 | FW19: 0.4833333333 | FX19: 0.5166666667 | FY19: 0.55 | FZ19: =IF((1-($GL$2-FZ$2)/$C19)>0,(1-($GL$2-FZ$2)/$C19),0) -> 0.5833333333 | GA19: 0.6166666667 | GB19: 0.65 | GC19: 0.65 | GD19: 0.6833333333 | GE19: 0.7166666667 | GF19: 0.75 | GG19: 0.7833333333 | GH19: 0.8166666667 | GI19: 0.85 | GJ19: 0.8833333333 | GK19: 0.9 | GL19: 970044.4332 | GM19: =IF((1-($HJ$2-$CP19)/$C19)>0,(1-($HJ$2-$CP19)/$C19),0) -> 0 | GN19: =IF((1-($HJ$2-GN$2)/$C19)>0,(1-($HJ$2-GN$2)/$C19),0) -> 0.2166666667 | GO19: 0.25 | GP19: 0.2833333333 | GQ19: 0.3166666667 | GR19: 0.35 | GS19: 0.3833333333 | GT19: 0.4166666667 | GU19: 0.45 | GV19: 0.4833333333 | GW19: 0.5166666667 | GX19: =IF((1-($HJ$2-GX$2)/$C19)>0,(1-($HJ$2-GX$2)/$C19),0) -> 0.55 | GY19: 0.5833333333 | GZ19: 0.6166666667 | HA19: 0.6166666667 | HB19: 0.65 | HC19: 0.6833333333 | HD19: 0.7166666667 | HE19: 0.75 | HF19: 0.7833333333 | HG19: 0.8166666667 | HH19: 0.85 | HI19: 0.8666666667 | HJ19: 970044.4332
A20: SISTEMA DE | B20: Líneas aéreas de 13,8 kV | C20: 30 | D20: 20319163.89 | E20: 0 | F20: 11254485.31 | G20: 81953.0618 | H20: 0 | I20: 0 | J20: 0 | K20: 480527.24 | L20: 0 | M20: 0 | N20: 0 | O20: 359813.26 | P20: 0 | Q20: 0 | R20: 0 | S20: 329504 | T20: 0 | U20: 0 | V20: 0 | W20: 210021.38 | X20: 0 | Y20: 0 | Z20: 0 | AA20: 443891 | AB20: 0 | AC20: 0 | AD20: 0 | AE20: 422858.36 | AF20: 0 | AG20: 0 | AH20: 0 | AI20: 219533.05 | AJ20: 0 | AK20: 0 | AL20: 0 | AM20: 325380.68 | AN20: 0 | AO20: 0 | AP20: 0 | AQ20: 361263.11 | AR20: 0 | AS20: 0 | AT20: 0 | AU20: 277474.01 | AV20: 0 | AW20: 0 | AX20: 0 | AY20: 696693.83 | AZ20: 0 | BA20: 0 | BB20: 0 | BC20: 871356.46 | BD20: 0 | BE20: 0 | BF20: 0 | BG20: 0 | BH20: 0 | BI20: 0 | BJ20: 1635346.59 | BK20: 0 | BL20: 0 | BM20: 0 | BN20: 1677625.98 | BO20: 0 | BP20: 0 | BQ20: 0 | BR20: 1230182.02 | BS20: 11995.82 | BT20: 0 | BU20: 0 | BV20: 1817111.38 | BW20: 550888.3149 | BX20: 0 | BY20: 0 | BZ20: 1820535.21 | CA20: 796621.1311 | CB20: 0 | CC20: 0 | CD20: 1856379.56 | CE20: 356732.3681 | CF20: 0 | CG20: 0 | CH20: 1453339.28 | CI20: 27821.31184 | CJ20: 0 | CK20: 0 | CL20: 786756.13 | CM20: 0 | CN20: 0 | CO20: 0 | CP20: 1987.616558 | CQ20: 0 | CR20: 0.35 | CS20: 0.3833333333 | CT20: 0.4166666667 | CU20: 0.45 | CV20: 0.4833333333 | CW20: 0.5166666667 | CX20: 0.55 | CY20: 0.5833333333 | CZ20: 0.6166666667 | DA20: 0.65 | DB20: 0.6833333333 | DC20: 0.7166666667 | DD20: 0.75 | DE20: 0 | DF20: 0.7833333333 | DG20: 0.8166666667 | DH20: 0.85 | DI20: 0.8833333333 | DJ20: 0.9166666667 | DK20: 0.95 | DL20: 0.9833333333 | DM20: 1 | DN20: 438056.5038 | DO20: 34963946.25 | DP20: 20319163.89 | DQ20: 10411820.95 | DR20: 488159.4121 | DS20: 0 | DT20: 0.3166666667 | DU20: 0.35 | DV20: 0.3833333333 | DW20: 0.4166666667 | DX20: 0.45 | DY20: 0.4833333333 | DZ20: 0.5166666667 | EA20: 0.55 | EB20: 0.5833333333 | EC20: 0.6166666667 | ED20: 0.65 | EE20: 0.6833333333 | EF20: 0.7166666667 | EG20: 0.7166666667 | EH20: 0.75 | EI20: 0.7833333333 | EJ20: 0.8166666667 | EK20: 0.85 | EL20: 0.8833333333 | EM20: 0.9166666667 | EN20: 0.95 | EO20: 0.9666666667 | EP20: 438056.5038 | EQ20: 0 | ER20: 0.2833333333 | ES20: 0.3166666667 | ET20: 0.35 | EU20: 0.3833333333 | EV20: 0.4166666667 | EW20: 0.45 | EX20: 0.4833333333 | EY20: 0.5166666667 | EZ20: 0.55 | FA20: 0.5833333333 | FB20: 0.6166666667 | FC20: 0.65 | FD20: 0.6833333333 | FE20: 0.6833333333 | FF20: 0.7166666667 | FG20: 0.75 | FH20: 0.7833333333 | FI20: 0.8166666667 | FJ20: 0.85 | FK20: 0.8833333333 | FL20: 0.9166666667 | FM20: 0.9333333333 | FN20: 438056.5038 | FO20: 0 | FP20: 0.25 | FQ20: 0.2833333333 | FR20: 0.3166666667 | FS20: 0.35 | FT20: 0.3833333333 | FU20: 0.4166666667 | FV20: 0.45 | FW20: 0.4833333333 | FX20: 0.5166666667 | FY20: 0.55 | FZ20: 0.5833333333 | GA20: 0.6166666667 | GB20: 0.65 | GC20: 0.65 | GD20: 0.6833333333 | GE20: 0.7166666667 | GF20: 0.75 | GG20: 0.7833333333 | GH20: 0.8166666667 | GI20: 0.85 | GJ20: 0.8833333333 | GK20: 0.9 | GL20: 438056.5038 | GM20: 0 | GN20: 0.2166666667 | GO20: 0.25 | GP20: 0.2833333333 | GQ20: 0.3166666667 | GR20: 0.35 | GS20: 0.3833333333 | GT20: 0.4166666667 | GU20: 0.45 | GV20: 0.4833333333 | GW20: 0.5166666667 | GX20: 0.55 | GY20: 0.5833333333 | GZ20: 0.6166666667 | HA20: 0.6166666667 | HB20: 0.65 | HC20: 0.6833333333 | HD20: 0.7166666667 | HE20: 0.75 | HF20: 0.7833333333 | HG20: 0.8166666667 | HH20: 0.85 | HI20: 0.8666666667 | HJ20: 438056.5038
A21: DISTRIBUCION | B21: Líneas aéreas de otras tensiones | C21: 30 | D21: 149580.827 | E21: 0 | F21: 82851.68652 | G21: 0 | H21: 0 | I21: 0 | J21: 0 | K21: 0 | L21: 0 | M21: 0 | N21: 0 | O21: 0 | P21: 0 | Q21: 0 | R21: 0 | S21: 0 | T21: 0 | U21: 0 | V21: 0 | W21: 0 | X21: 0 | Y21: 0 | Z21: 0 | AA21: 133700 | AB21: 133700 | AC21: 0 | AD21: 0 | AE21: 0 | AF21: 0 | AG21: 0 | AH21: 0 | AI21: 0 | AJ21: 0 | AK21: 0 | AL21: 0 | AM21: 0 | AN21: 0 | AO21: 0 | AP21: 0 | AQ21: 0 | AR21: 0 | AS21: 0 | AT21: 0 | AU21: 0 | AV21: 0 | AW21: 0 | AX21: 0 | AY21: 0 | AZ21: 0 | BA21: 0 | BB21: 0 | BC21: 0 | BD21: 0 | BE21: 0 | BF21: 0 | BG21: 70991.85 | BH21: 0 | BI21: 49694.3 | BJ21: 0 | BK21: 0 | BL21: 0 | BM21: 0 | BN21: 0 | BO21: 0 | BP21: 0 | BQ21: 0 | BR21: 0 | BS21: 0 | BT21: 0 | BU21: 0 | BV21: 0 | BW21: 0 | BX21: 0 | BY21: 0 | BZ21: 0 | CA21: 0 | CB21: 0 | CC21: 0 | CD21: 0 | CE21: 0 | CF21: 0 | CG21: 0 | CH21: 0 | CI21: 0 | CJ21: 0 | CK21: 0 | CL21: 0 | CM21: 0 | CN21: 0 | CO21: 0 | CP21: 1987.616773 | CQ21: 0 | CR21: 0.35 | CS21: 0.3833333333 | CT21: 0.4166666667 | CU21: 0.45 | CV21: 0.4833333333 | CW21: 0.5166666667 | CX21: 0.55 | CY21: 0.5833333333 | CZ21: 0.6166666667 | DA21: 0.65 | DB21: 0.6833333333 | DC21: 0.7166666667 | DD21: 0.75 | DE21: 0.4666667371 | DF21: 0.7833333333 | DG21: 0.8166666667 | DH21: 0.85 | DI21: 0.8833333333 | DJ21: 0.9166666667 | DK21: 0.95 | DL21: 0.9833333333 | DM21: 1 | DN21: 2366.395 | DO21: 336252.6919 | DP21: 149580.827 | DQ21: 33129.535 | DR21: 6222.395495 | DS21: 0 | DT21: 0.3166666667 | DU21: 0.35 | DV21: 0.3833333333 | DW21: 0.4166666667 | DX21: 0.45 | DY21: 0.4833333333 | DZ21: 0.5166666667 | EA21: 0.55 | EB21: 0.5833333333 | EC21: 0.6166666667 | ED21: 0.65 | EE21: 0.6833333333 | EF21: 0.7166666667 | EG21: 0.7166666667 | EH21: 0.75 | EI21: 0.7833333333 | EJ21: 0.8166666667 | EK21: 0.85 | EL21: 0.8833333333 | EM21: 0.9166666667 | EN21: 0.95 | EO21: 0.9666666667 | EP21: 2366.395 | EQ21: 0 | ER21: 0.2833333333 | ES21: 0.3166666667 | ET21: 0.35 | EU21: 0.3833333333 | EV21: 0.4166666667 | EW21: 0.45 | EX21: 0.4833333333 | EY21: 0.5166666667 | EZ21: 0.55 | FA21: 0.5833333333 | FB21: 0.6166666667 | FC21: 0.65 | FD21: 0.6833333333 | FE21: 0.6833333333 | FF21: 0.7166666667 | FG21: 0.75 | FH21: 0.7833333333 | FI21: 0.8166666667 | FJ21: 0.85 | FK21: 0.8833333333 | FL21: 0.9166666667 | FM21: 0.9333333333 | FN21: 2366.395 | FO21: 0 | FP21: 0.25 | FQ21: 0.2833333333 | FR21: 0.3166666667 | FS21: 0.35 | FT21: 0.3833333333 | FU21: 0.4166666667 | FV21: 0.45 | FW21: 0.4833333333 | FX21: 0.5166666667 | FY21: 0.55 | FZ21: 0.5833333333 | GA21: 0.6166666667 | GB21: 0.65 | GC21: 0.65 | GD21: 0.6833333333 | GE21: 0.7166666667 | GF21: 0.75 | GG21: 0.7833333333 | GH21: 0.8166666667 | GI21: 0.85 | GJ21: 0.8833333333 | GK21: 0.9 | GL21: 2366.395 | GM21: 0 | GN21: 0.2166666667 | GO21: 0.25 | GP21: 0.2833333333 | GQ21: 0.3166666667 | GR21: 0.35 | GS21: 0.3833333333 | GT21: 0.4166666667 | GU21: 0.45 | GV21: 0.4833333333 | GW21: 0.5166666667 | GX21: 0.55 | GY21: 0.5833333333 | GZ21: 0.6166666667 | HA21: 0.6166666667 | HB21: 0.65 | HC21: 0.6833333333 | HD21: 0.7166666667 | HE21: 0.75 | HF21: 0.7833333333 | HG21: 0.8166666667 | HH21: 0.85 | HI21: 0.8666666667 | HJ21: 2366.395
B22: Líneas subterráneas de 34,5 kV | C22: 30 | D22: 0 | E22: 0 | F22: 0 | G22: 0 | H22: 0 | I22: 0 | J22: 0 | K22: 7945 | L22: 0 | M22: 0 | N22: 0 | O22: 11509.8 | P22: 0 | Q22: 0 | R22: 0 | S22: 67325 | T22: 0 | U22: 0 | V22: 0 | W22: 56607.36 | X22: 0 | Y22: 0 | Z22: 0 | AA22: 26335 | AB22: 0 | AC22: 0 | AD22: 0 | AE22: 117016 | AF22: 0 | AG22: 0 | AH22: 0 | AI22: 177430.08 | AJ22: 0 | AK22: 0 | AL22: 0 | AM22: 419033.792 | AN22: 0 | AO22: 0 | AP22: 0 | AQ22: 15078.51 | AR22: 0 | AS22: 0 | AT22: 0 | AU22: 12954.53 | AV22: 0 | AW22: 0 | AX22: 0 | AY22: 358492.62 | AZ22: 0 | BA22: 0 | BB22: 0 | BC22: 169979.93 | BD22: 0 | BE22: 0 | BF22: 0 | BG22: 0 | BH22: 0 | BI22: 0 | BJ22: 60736.35 | BK22: 0 | BL22: 0 | BM22: 0 | BN22: 71213.52 | BO22: 0 | BP22: 0 | BQ22: 0 | BR22: 486356.02 | BS22: 0 | BT22: 0 | BU22: 0 | BV22: 1535224.09 | BW22: 0 | BX22: 0 | BY22: 0 | BZ22: 657739.25 | CA22: 3997.977344 | CB22: 0 | CC22: 0 | CD22: 271235.15 | CE22: 0 | CF22: 0 | CG22: 0 | CH22: 651665.85 | CI22: 4568.116034 | CJ22: 0 | CK22: 0 | CL22: 247873.11 | CM22: 0 | CN22: 0 | CO22: 0 | CP22: 0 | CQ22: 0 | CR22: 0.35 | CS22: 0.3833333333 | CT22: 0.4166666667 | CU22: 0.45 | CV22: 0.4833333333 | CW22: 0.5166666667 | CX22: 0.55 | CY22: 0.5833333333 | CZ22: 0.6166666667 | DA22: 0.65 | DB22: 0.6833333333 | DC22: 0.7166666667 | DD22: 0.75 | DE22: 0 | DF22: 0.7833333333 | DG22: 0.8166666667 | DH22: 0.85 | DI22: 0.8833333333 | DJ22: 0.9166666667 | DK22: 0.95 | DL22: 0.9833333333 | DM22: 1 | DN22: 150423.7918 | DO22: 4520030.962 | DP22: 0 | DQ22: 3802902.041 | DR22: 150667.6987 | DS22: 0 | DT22: 0.3166666667 | DU22: 0.35 | DV22: 0.3833333333 | DW22: 0.4166666667 | DX22: 0.45 | DY22: 0.4833333333 | DZ22: 0.5166666667 | EA22: 0.55 | EB22: 0.5833333333 | EC22: 0.6166666667 | ED22: 0.65 | EE22: 0.6833333333 | EF22: 0.7166666667 | EG22: 0.7166666667 | EH22: 0.75 | EI22: 0.7833333333 | EJ22: 0.8166666667 | EK22: 0.85 | EL22: 0.8833333333 | EM22: 0.9166666667 | EN22: 0.95 | EO22: 0.9666666667 | EP22: 150423.7918 | EQ22: 0 | ER22: 0.2833333333 | ES22: 0.3166666667 | ET22: 0.35 | EU22: 0.3833333333 | EV22: 0.4166666667 | EW22: 0.45 | EX22: 0.4833333333 | EY22: 0.5166666667 | EZ22: 0.55 | FA22: 0.5833333333 | FB22: 0.6166666667 | FC22: 0.65 | FD22: 0.6833333333 | FE22: 0.6833333333 | FF22: 0.7166666667 | FG22: 0.75 | FH22: 0.7833333333 | FI22: 0.8166666667 | FJ22: 0.85 | FK22: 0.8833333333 | FL22: 0.9166666667 | FM22: 0.9333333333 | FN22: 150423.7918 | FO22: 0 | FP22: 0.25 | FQ22: 0.2833333333 | FR22: 0.3166666667 | FS22: 0.35 | FT22: 0.3833333333 | FU22: 0.4166666667 | FV22: 0.45 | FW22: 0.4833333333 | FX22: 0.5166666667 | FY22: 0.55 | FZ22: 0.5833333333 | GA22: 0.6166666667 | GB22: 0.65 | GC22: 0.65 | GD22: 0.6833333333 | GE22: 0.7166666667 | GF22: 0.75 | GG22: 0.7833333333 | GH22: 0.8166666667 | GI22: 0.85 | GJ22: 0.8833333333 | GK22: 0.9 | GL22: 150423.7918 | GM22: 0 | GN22: 0.2166666667 | GO22: 0.25 | GP22: 0.2833333333 | GQ22: 0.3166666667 | GR22: 0.35 | GS22: 0.3833333333 | GT22: 0.4166666667 | GU22: 0.45 | GV22: 0.4833333333 | GW22: 0.5166666667 | GX22: 0.55 | GY22: 0.5833333333 | GZ22: 0.6166666667 | HA22: 0.6166666667 | HB22: 0.65 | HC22: 0.6833333333 | HD22: 0.7166666667 | HE22: 0.75 | HF22: 0.7833333333 | HG22: 0.8166666667 | HH22: 0.85 | HI22: 0.8666666667 | HJ22: 150423.7918
B23: Líneas subterráneas de 13,8 kV | C23: 30 | D23: 0 | E23: 0 | F23: 0 | G23: 441.38 | H23: 0 | I23: 0 | J23: 0 | K23: 2038.59 | L23: 0 | M23: 0 | N23: 0 | O23: 30511.68 | P23: 0 | Q23: 0 | R23: 0 | S23: 47275 | T23: 0 | U23: 0 | V23: 0 | W23: 29162 | X23: 0 | Y23: 0 | Z23: 0 | AA23: 227643 | AB23: 0 | AC23: 0 | AD23: 0 | AE23: 30843 | AF23: 0 | AG23: 0 | AH23: 0 | AI23: 13617.82 | AJ23: 0 | AK23: 0 | AL23: 0 | AM23: 558680.16 | AN23: 0 | AO23: 0 | AP23: 0 | AQ23: 84681.96 | AR23: 0 | AS23: 0 | AT23: 0 | AU23: 36276.96 | AV23: 0 | AW23: 0 | AX23: 0 | AY23: 29336.3 | AZ23: 0 | BA23: 0 | BB23: 0 | BC23: 67647.91 | BD23: 0 | BE23: 0 | BF23: 0 | BG23: 0 | BH23: 0 | BI23: 0 | BJ23: 510773.58 | BK23: 0 | BL23: 0 | BM23: 0 | BN23: 394867.46 | BO23: 0 | BP23: 0 | BQ23: 0 | BR23: 262682.09 | BS23: 0 | BT23: 0 | BU23: 0 | BV23: 210714.28 | BW23: 0 | BX23: 0 | BY23: 0 | BZ23: 1975553.65 | CA23: 20974.37756 | CB23: 0 | CC23: 0 | CD23: 141470.44 | CE23: 1272.156951 | CF23: 0 | CG23: 0 | CH23: 228894.65 | CI23: 0 | CJ23: 0 | CK23: 0 | CL23: 330180.58 | CM23: 0 | CN23: 0 | CO23: 0 | CP23: 0 | CQ23: 0 | CR23: 0.35 | CS23: 0.3833333333 | CT23: 0.4166666667 | CU23: 0.45 | CV23: 0.4833333333 | CW23: 0.5166666667 | CX23: 0.55 | CY23: 0.5833333333 | CZ23: 0.6166666667 | DA23: 0.65 | DB23: 0.6833333333 | DC23: 0.7166666667 | DD23: 0.75 | DE23: 0 | DF23: 0.7833333333 | DG23: 0.8166666667 | DH23: 0.85 | DI23: 0.8833333333 | DJ23: 0.9166666667 | DK23: 0.95 | DL23: 0.9833333333 | DM23: 1 | DN23: 145082.6819 | DO23: 4371466.582 | DP23: 0 | DQ23: 3627536.218 | DR23: 145715.5527 | DS23: 0 | DT23: 0.3166666667 | DU23: 0.35 | DV23: 0.3833333333 | DW23: 0.4166666667 | DX23: 0.45 | DY23: 0.4833333333 | DZ23: 0.5166666667 | EA23: 0.55 | EB23: 0.5833333333 | EC23: 0.6166666667 | ED23: 0.65 | EE23: 0.6833333333 | EF23: 0.7166666667 | EG23: 0.7166666667 | EH23: 0.75 | EI23: 0.7833333333 | EJ23: 0.8166666667 | EK23: 0.85 | EL23: 0.8833333333 | EM23: 0.9166666667 | EN23: 0.95 | EO23: 0.9666666667 | EP23: 145082.6819 | EQ23: 0 | ER23: 0.2833333333 | ES23: 0.3166666667 | ET23: 0.35 | EU23: 0.3833333333 | EV23: 0.4166666667 | EW23: 0.45 | EX23: 0.4833333333 | EY23: 0.5166666667 | EZ23: 0.55 | FA23: 0.5833333333 | FB23: 0.6166666667 | FC23: 0.65 | FD23: 0.6833333333 | FE23: 0.6833333333 | FF23: 0.7166666667 | FG23: 0.75 | FH23: 0.7833333333 | FI23: 0.8166666667 | FJ23: 0.85 | FK23: 0.8833333333 | FL23: 0.9166666667 | FM23: 0.9333333333 | FN23: 145082.6819 | FO23: 0 | FP23: 0.25 | FQ23: 0.2833333333 | FR23: 0.3166666667 | FS23: 0.35 | FT23: 0.3833333333 | FU23: 0.4166666667 | FV23: 0.45 | FW23: 0.4833333333 | FX23: 0.5166666667 | FY23: 0.55 | FZ23: 0.5833333333 | GA23: 0.6166666667 | GB23: 0.65 | GC23: 0.65 | GD23: 0.6833333333 | GE23: 0.7166666667 | GF23: 0.75 | GG23: 0.7833333333 | GH23: 0.8166666667 | GI23: 0.85 | GJ23: 0.8833333333 | GK23: 0.9 | GL23: 145082.6819 | GM23: 0 | GN23: 0.2166666667 | GO23: 0.25 | GP23: 0.2833333333 | GQ23: 0.3166666667 | GR23: 0.35 | GS23: 0.3833333333 | GT23: 0.4166666667 | GU23: 0.45 | GV23: 0.4833333333 | GW23: 0.5166666667 | GX23: 0.55 | GY23: 0.5833333333 | GZ23: 0.6166666667 | HA23: 0.6166666667 | HB23: 0.65 | HC23: 0.6833333333 | HD23: 0.7166666667 | HE23: 0.75 | HF23: 0.7833333333 | HG23: 0.8166666667 | HH23: 0.85 | HI23: 0.8666666667 | HJ23: 145082.6819
B24: Líneas subterráneas de otras tensiones | C24: 30 | D24: 0 | E24: 0 | F24: 0 | G24: 0 | H24: 0 | I24: 0 | J24: 0 | K24: 0 | L24: 0 | M24: 0 | N24: 0 | O24: 0 | P24: 0 | Q24: 0 | R24: 0 | S24: 0 | T24: 0 | U24: 0 | V24: 0 | W24: 0 | X24: 0 | Y24: 0 | Z24: 0 | AA24: 0 | AB24: 0 | AC24: 0 | AD24: 0 | AE24: 0 | AF24: 0 | AG24: 0 | AH24: 0 | AI24: 0 | AJ24: 0 | AK24: 0 | AL24: 0 | AM24: 0 | AN24: 0 | AO24: 0 | AP24: 0 | AQ24: 0 | AR24: 0 | AS24: 0 | AT24: 0 | AU24: 0 | AV24: 0 | AW24: 0 | AX24: 0 | AY24: 0 | AZ24: 0 | BA24: 0 | BB24: 0 | BC24: 0 | BD24: 0 | BE24: 0 | BF24: 0 | BG24: 0 | BH24: 0 | BI24: 0 | BJ24: 0 | BK24: 0 | BL24: 0 | BM24: 0 | BN24: 0 | BO24: 0 | BP24: 0 | BQ24: 0 | BR24: 0 | BS24: 0 | BT24: 0 | BU24: 0 | BV24: 0 | BW24: 0 | BX24: 0 | BY24: 0 | BZ24: 0 | CA24: 0 | CB24: 0 | CC24: 0 | CD24: 0 | CE24: 0 | CF24: 0 | CG24: 0 | CH24: 0 | CI24: 0 | CJ24: 0 | CK24: 0 | CL24: 0 | CM24: 0 | CN24: 0 | CO24: 0 | CP24: 0 | CQ24: 0 | CR24: 0.35 | CS24: 0.3833333333 | CT24: 0.4166666667 | CU24: 0.45 | CV24: 0.4833333333 | CW24: 0.5166666667 | CX24: 0.55 | CY24: 0.5833333333 | CZ24: 0.6166666667 | DA24: 0.65 | DB24: 0.6833333333 | DC24: 0.7166666667 | DD24: 0.75 | DE24: 0 | DF24: 0.7833333333 | DG24: 0.8166666667 | DH24: 0.85 | DI24: 0.8833333333 | DJ24: 0.9166666667 | DK24: 0.95 | DL24: 0.9833333333 | DM24: 1 | DN24: 0 | DO24: 0 | DP24: 0 | DQ24: 0 | DR24: 0 | DS24: 0 | DT24: 0.3166666667 | DU24: 0.35 | DV24: 0.3833333333 | DW24: 0.4166666667 | DX24: 0.45 | DY24: 0.4833333333 | DZ24: 0.5166666667 | EA24: 0.55 | EB24: 0.5833333333 | EC24: 0.6166666667 | ED24: 0.65 | EE24: 0.6833333333 | EF24: 0.7166666667 | EG24: 0.7166666667 | EH24: 0.75 | EI24: 0.7833333333 | EJ24: 0.8166666667 | EK24: 0.85 | EL24: 0.8833333333 | EM24: 0.9166666667 | EN24: 0.95 | EO24: 0.9666666667 | EP24: 0 | EQ24: 0 | ER24: 0.2833333333 | ES24: 0.3166666667 | ET24: 0.35 | EU24: 0.3833333333 | EV24: 0.4166666667 | EW24: 0.45 | EX24: 0.4833333333 | EY24: 0.5166666667 | EZ24: 0.55 | FA24: 0.5833333333 | FB24: 0.6166666667 | FC24: 0.65 | FD24: 0.6833333333 | FE24: 0.6833333333 | FF24: 0.7166666667 | FG24: 0.75 | FH24: 0.7833333333 | FI24: 0.8166666667 | FJ24: 0.85 | FK24: 0.8833333333 | FL24: 0.9166666667 | FM24: 0.9333333333 | FN24: 0 | FO24: 0 | FP24: 0.25 | FQ24: 0.2833333333 | FR24: 0.3166666667 | FS24: 0.35 | FT24: 0.3833333333 | FU24: 0.4166666667 | FV24: 0.45 | FW24: 0.4833333333 | FX24: 0.5166666667 | FY24: 0.55 | FZ24: 0.5833333333 | GA24: 0.6166666667 | GB24: 0.65 | GC24: 0.65 | GD24: 0.6833333333 | GE24: 0.7166666667 | GF24: 0.75 | GG24: 0.7833333333 | GH24: 0.8166666667 | GI24: 0.85 | GJ24: 0.8833333333 | GK24: 0.9 | GL24: 0 | GM24: 0 | GN24: 0.2166666667 | GO24: 0.25 | GP24: 0.2833333333 | GQ24: 0.3166666667 | GR24: 0.35 | GS24: 0.3833333333 | GT24: 0.4166666667 | GU24: 0.45 | GV24: 0.4833333333 | GW24: 0.5166666667 | GX24: 0.55 | GY24: 0.5833333333 | GZ24: 0.6166666667 | HA24: 0.6166666667 | HB24: 0.65 | HC24: 0.6833333333 | HD24: 0.7166666667 | HE24: 0.75 | HF24: 0.7833333333 | HG24: 0.8166666667 | HH24: 0.85 | HI24: 0.8666666667 | HJ24: 0
B25: Subestaciones 34,5 kV / MT | C25: 30 | D25: 5501374.344 | E25: 0 | F25: 2211179.196 | G25: 246248.65 | H25: 0 | I25: 0 | J25: 0 | K25: 0 | L25: 0 | M25: 0 | N25: 0 | O25: 73556.03 | P25: 0 | Q25: 0 | R25: 0 | S25: 34597 | T25: 0 | U25: 0 | V25: 0 | W25: 13668.23 | X25: 0 | Y25: 0 | Z25: 0 | AA25: 92007 | AB25: 0 | AC25: 0 | AD25: 0 | AE25: 14698 | AF25: 0 | AG25: 0 | AH25: 0 | AI25: 1190332.12 | AJ25: 0 | AK25: 0 | AL25: 0 | AM25: 61476 | AN25: 0 | AO25: 0 | AP25: 0 | AQ25: 736704.62 | AR25: 0 | AS25: 0 | AT25: 0 | AU25: 142747 | AV25: 0 | AW25: 0 | AX25: 0 | AY25: 72665.05 | AZ25: 0 | BA25: 0 | BB25: 0 | BC25: 78936.5 | BD25: 0 | BE25: 0 | BF25: 0 | BG25: 407143.2646 | BH25: 36932.26456 | BI25: 224917.18 | BJ25: 52811.26 | BK25: 0 | BL25: 0 | BM25: 0 | BN25: 0 | BO25: 0 | BP25: 0 | BQ25: 0 | BR25: 1977175 | BS25: 0 | BT25: 0 | BU25: 0 | BV25: 40622.42 | BW25: 0 | BX25: 0 | BY25: 0 | BZ25: 80702.34 | CA25: 0 | CB25: 0 | CC25: 0 | CD25: 30490.8 | CE25: 0 | CF25: 0 | CG25: 0 | CH25: 0 | CI25: 0 | CJ25: 0 | CK25: 0 | CL25: 0 | CM25: 0 | CN25: 0 | CO25: 0 | CP25: 1983.057964 | CQ25: 0 | CR25: 0.35 | CS25: 0.3833333333 | CT25: 0.4166666667 | CU25: 0.45 | CV25: 0.4833333333 | CW25: 0.5166666667 | CX25: 0.55 | CY25: 0.5833333333 | CZ25: 0.6166666667 | DA25: 0.65 | DB25: 0.6833333333 | DC25: 0.7166666667 | DD25: 0.75 | DE25: 0.3190942753 | DF25: 0.7833333333 | DG25: 0.8166666667 | DH25: 0.85 | DI25: 0.8833333333 | DJ25: 0.9166666667 | DK25: 0.95 | DL25: 0.9833333333 | DM25: 1 | DN25: 153716.8131 | DO25: 10112878.74 | DP25: 5501374.344 | DQ25: 3080816.649 | DR25: 153716.8131 | DS25: 0 | DT25: 0.3166666667 | DU25: 0.35 | DV25: 0.3833333333 | DW25: 0.4166666667 | DX25: 0.45 | DY25: 0.4833333333 | DZ25: 0.5166666667 | EA25: 0.55 | EB25: 0.5833333333 | EC25: 0.6166666667 | ED25: 0.65 | EE25: 0.6833333333 | EF25: 0.7166666667 | EG25: 0.7166666667 | EH25: 0.75 | EI25: 0.7833333333 | EJ25: 0.8166666667 | EK25: 0.85 | EL25: 0.8833333333 | EM25: 0.9166666667 | EN25: 0.95 | EO25: 0.9666666667 | EP25: 153716.8131 | EQ25: 0 | ER25: 0.2833333333 | ES25: 0.3166666667 | ET25: 0.35 | EU25: 0.3833333333 | EV25: 0.4166666667 | EW25: 0.45 | EX25: 0.4833333333 | EY25: 0.5166666667 | EZ25: 0.55 | FA25: 0.5833333333 | FB25: 0.6166666667 | FC25: 0.65 | FD25: 0.6833333333 | FE25: 0.6833333333 | FF25: 0.7166666667 | FG25: 0.75 | FH25: 0.7833333333 | FI25: 0.8166666667 | FJ25: 0.85 | FK25: 0.8833333333 | FL25: 0.9166666667 | FM25: 0.9333333333 | FN25: 153716.8131 | FO25: 0 | FP25: 0.25 | FQ25: 0.2833333333 | FR25: 0.3166666667 | FS25: 0.35 | FT25: 0.3833333333 | FU25: 0.4166666667 | FV25: 0.45 | FW25: 0.4833333333 | FX25: 0.5166666667 | FY25: 0.55 | FZ25: 0.5833333333 | GA25: 0.6166666667 | GB25: 0.65 | GC25: 0.65 | GD25: 0.6833333333 | GE25: 0.7166666667 | GF25: 0.75 | GG25: 0.7833333333 | GH25: 0.8166666667 | GI25: 0.85 | GJ25: 0.8833333333 | GK25: 0.9 | GL25: 153716.8131 | GM25: 0 | GN25: 0.2166666667 | GO25: 0.25 | GP25: 0.2833333333 | GQ25: 0.3166666667 | GR25: 0.35 | GS25: 0.3833333333 | GT25: 0.4166666667 | GU25: 0.45 | GV25: 0.4833333333 | GW25: 0.5166666667 | GX25: 0.55 | GY25: 0.5833333333 | GZ25: 0.6166666667 | HA25: 0.6166666667 | HB25: 0.65 | HC25: 0.6833333333 | HD25: 0.7166666667 | HE25: 0.75 | HF25: 0.7833333333 | HG25: 0.8166666667 | HH25: 0.85 | HI25: 0.8666666667 | HJ25: 153716.8131
B26: Subestaciones 13,8 kV / MT | C26: 30 | D26: 0 | E26: 0 | F26: 0 | G26: 0 | H26: 0 | I26: 0 | J26: 0 | K26: 0 | L26: 0 | M26: 0 | N26: 0 | O26: 0 | P26: 0 | Q26: 0 | R26: 0 | S26: 0 | T26: 0 | U26: 0 | V26: 0 | W26: 0 | X26: 0 | Y26: 0 | Z26: 0 | AA26: 0 | AB26: 0 | AC26: 0 | AD26: 0 | AE26: 0 | AF26: 0 | AG26: 0 | AH26: 0 | AI26: 0 | AJ26: 0 | AK26: 0 | AL26: 0 | AM26: 0 | AN26: 0 | AO26: 0 | AP26: 0 | AQ26: 0 | AR26: 0 | AS26: 0 | AT26: 0 | AU26: 0 | AV26: 0 | AW26: 0 | AX26: 0 | AY26: 0 | AZ26: 0 | BA26: 0 | BB26: 0 | BC26: 0 | BD26: 0 | BE26: 0 | BF26: 0 | BG26: 2503042.526 | BH26: 2503042.526 | BI26: 1887604.64 | BJ26: 0 | BK26: 0 | BL26: 0 | BM26: 0 | BN26: 0 | BO26: 0 | BP26: 0 | BQ26: 0 | BR26: 0 | BS26: 0 | BT26: 0 | BU26: 0 | BV26: 0 | BW26: 0 | BX26: 0 | BY26: 0 | BZ26: 0 | CA26: 0 | CB26: 0 | CC26: 0 | CD26: 0 | CE26: 0 | CF26: 0 | CG26: 0 | CH26: 0 | CI26: 0 | CJ26: 0 | CK26: 0 | CL26: 0 | CM26: 0 | CN26: 0 | CO26: 0 | CP26: 0 | CQ26: 0 | CR26: 0.35 | CS26: 0.3833333333 | CT26: 0.4166666667 | CU26: 0.45 | CV26: 0.4833333333 | CW26: 0.5166666667 | CX26: 0.55 | CY26: 0.5833333333 | CZ26: 0.6166666667 | DA26: 0.65 | DB26: 0.6833333333 | DC26: 0.7166666667 | DD26: 0.75 | DE26: 0.5207907458 | DF26: 0.7833333333 | DG26: 0.8166666667 | DH26: 0.85 | DI26: 0.8833333333 | DJ26: 0.9166666667 | DK26: 0.95 | DL26: 0.9833333333 | DM26: 1 | DN26: 83434.75087 | DO26: 2503042.526 | DP26: 0 | DQ26: 0 | DR26: 83434.75087 | DS26: 0 | DT26: 0.3166666667 | DU26: 0.35 | DV26: 0.3833333333 | DW26: 0.4166666667 | DX26: 0.45 | DY26: 0.4833333333 | DZ26: 0.5166666667 | EA26: 0.55 | EB26: 0.5833333333 | EC26: 0.6166666667 | ED26: 0.65 | EE26: 0.6833333333 | EF26: 0.7166666667 | EG26: 0.7166666667 | EH26: 0.75 | EI26: 0.7833333333 | EJ26: 0.8166666667 | EK26: 0.85 | EL26: 0.8833333333 | EM26: 0.9166666667 | EN26: 0.95 | EO26: 0.9666666667 | EP26: 83434.75087 | EQ26: 0 | ER26: 0.2833333333 | ES26: 0.3166666667 | ET26: 0.35 | EU26: 0.3833333333 | EV26: 0.4166666667 | EW26: 0.45 | EX26: 0.4833333333 | EY26: 0.5166666667 | EZ26: 0.55 | FA26: 0.5833333333 | FB26: 0.6166666667 | FC26: 0.65 | FD26: 0.6833333333 | FE26: 0.6833333333 | FF26: 0.7166666667 | FG26: 0.75 | FH26: 0.7833333333 | FI26: 0.8166666667 | FJ26: 0.85 | FK26: 0.8833333333 | FL26: 0.9166666667 | FM26: 0.9333333333 | FN26: 83434.75087 | FO26: 0 | FP26: 0.25 | FQ26: 0.2833333333 | FR26: 0.3166666667 | FS26: 0.35 | FT26: 0.3833333333 | FU26: 0.4166666667 | FV26: 0.45 | FW26: 0.4833333333 | FX26: 0.5166666667 | FY26: 0.55 | FZ26: 0.5833333333 | GA26: 0.6166666667 | GB26: 0.65 | GC26: 0.65 | GD26: 0.6833333333 | GE26: 0.7166666667 | GF26: 0.75 | GG26: 0.7833333333 | GH26: 0.8166666667 | GI26: 0.85 | GJ26: 0.8833333333 | GK26: 0.9 | GL26: 83434.75087 | GM26: 0 | GN26: 0.2166666667 | GO26: 0.25 | GP26: 0.2833333333 | GQ26: 0.3166666667 | GR26: 0.35 | GS26: 0.3833333333 | GT26: 0.4166666667 | GU26: 0.45 | GV26: 0.4833333333 | GW26: 0.5166666667 | GX26: 0.55 | GY26: 0.5833333333 | GZ26: 0.6166666667 | HA26: 0.6166666667 | HB26: 0.65 | HC26: 0.6833333333 | HD26: 0.7166666667 | HE26: 0.75 | HF26: 0.7833333333 | HG26: 0.8166666667 | HH26: 0.85 | HI26: 0.8666666667 | HJ26: 83434.75087
B27: Otras subestaciones MT/MT | C27: 30 | D27: 0 | E27: 0 | F27: 0 | G27: 0 | H27: 0 | I27: 0 | J27: 0 | K27: 0 | L27: 0 | M27: 0 | N27: 0 | O27: 0 | P27: 0 | Q27: 0 | R27: 0 | S27: 0 | T27: 0 | U27: 0 | V27: 0 | W27: 0 | X27: 0 | Y27: 0 | Z27: 0 | AA27: 0 | AB27: 0 | AC27: 0 | AD27: 0 | AE27: 0 | AF27: 0 | AG27: 0 | AH27: 0 | AI27: 0 | AJ27: 0 | AK27: 0 | AL27: 0 | AM27: 0 | AN27: 0 | AO27: 0 | AP27: 0 | AQ27: 0 | AR27: 0 | AS27: 0 | AT27: 0 | AU27: 0 | AV27: 0 | AW27: 0 | AX27: 0 | AY27: 0 | AZ27: 0 | BA27: 0 | BB27: 0 | BC27: 0 | BD27: 0 | BE27: 0 | BF27: 0 | BG27: 0 | BH27: 0 | BI27: 0 | BJ27: 0 | BK27: 0 | BL27: 0 | BM27: 0 | BN27: 0 | BO27: 0 | BP27: 0 | BQ27: 0 | BR27: 0 | BS27: 0 | BT27: 0 | BU27: 0 | BV27: 0 | BW27: 0 | BX27: 0 | BY27: 0 | BZ27: 0 | CA27: 0 | CB27: 0 | CC27: 0 | CD27: 0 | CE27: 0 | CF27: 0 | CG27: 0 | CH27: 0 | CI27: 0 | CJ27: 0 | CK27: 0 | CL27: 0 | CM27: 0 | CN27: 0 | CO27: 0 | CP27: 0 | CQ27: 0 | CR27: 0.35 | CS27: 0.3833333333 | CT27: 0.4166666667 | CU27: 0.45 | CV27: 0.4833333333 | CW27: 0.5166666667 | CX27: 0.55 | CY27: 0.5833333333 | CZ27: 0.6166666667 | DA27: 0.65 | DB27: 0.6833333333 | DC27: 0.7166666667 | DD27: 0.75 | DE27: 0 | DF27: 0.7833333333 | DG27: 0.8166666667 | DH27: 0.85 | DI27: 0.8833333333 | DJ27: 0.9166666667 | DK27: 0.95 | DL27: 0.9833333333 | DM27: 1 | DN27: 0 | DO27: 0 | DP27: 0 | DQ27: 0 | DR27: 0 | DS27: 0 | DT27: 0.3166666667 | DU27: 0.35 | DV27: 0.3833333333 | DW27: 0.4166666667 | DX27: 0.45 | DY27: 0.4833333333 | DZ27: 0.5166666667 | EA27: 0.55 | EB27: 0.5833333333 | EC27: 0.6166666667 | ED27: 0.65 | EE27: 0.6833333333 | EF27: 0.7166666667 | EG27: 0.7166666667 | EH27: 0.75 | EI27: 0.7833333333 | EJ27: 0.8166666667 | EK27: 0.85 | EL27: 0.8833333333 | EM27: 0.9166666667 | EN27: 0.95 | EO27: 0.9666666667 | EP27: 0 | EQ27: 0 | ER27: 0.2833333333 | ES27: 0.3166666667 | ET27: 0.35 | EU27: 0.3833333333 | EV27: 0.4166666667 | EW27: 0.45 | EX27: 0.4833333333 | EY27: 0.5166666667 | EZ27: 0.55 | FA27: 0.5833333333 | FB27: 0.6166666667 | FC27: 0.65 | FD27: 0.6833333333 | FE27: 0.6833333333 | FF27: 0.7166666667 | FG27: 0.75 | FH27: 0.7833333333 | FI27: 0.8166666667 | FJ27: 0.85 | FK27: 0.8833333333 | FL27: 0.9166666667 | FM27: 0.9333333333 | FN27: 0 | FO27: 0 | FP27: 0.25 | FQ27: 0.2833333333 | FR27: 0.3166666667 | FS27: 0.35 | FT27: 0.3833333333 | FU27: 0.4166666667 | FV27: 0.45 | FW27: 0.4833333333 | FX27: 0.5166666667 | FY27: 0.55 | FZ27: 0.5833333333 | GA27: 0.6166666667 | GB27: 0.65 | GC27: 0.65 | GD27: 0.6833333333 | GE27: 0.7166666667 | GF27: 0.75 | GG27: 0.7833333333 | GH27: 0.8166666667 | GI27: 0.85 | GJ27: 0.8833333333 | GK27: 0.9 | GL27: 0 | GM27: 0 | GN27: 0.2166666667 | GO27: 0.25 | GP27: 0.2833333333 | GQ27: 0.3166666667 | GR27: 0.35 | GS27: 0.3833333333 | GT27: 0.4166666667 | GU27: 0.45 | GV27: 0.4833333333 | GW27: 0.5166666667 | GX27: 0.55 | GY27: 0.5833333333 | GZ27: 0.6166666667 | HA27: 0.6166666667 | HB27: 0.65 | HC27: 0.6833333333 | HD27: 0.7166666667 | HE27: 0.75 | HF27: 0.7833333333 | HG27: 0.8166666667 | HH27: 0.85 | HI27: 0.8666666667 | HJ27: 0
B28: Centros de reflexión MT | C28: 30 | D28: 0 | E28: 0 | F28: 0 | G28: 0 | H28: 0 | I28: 0 | J28: 0 | K28: 0 | L28: 0 | M28: 0 | N28: 0 | O28: 0 | P28: 0 | Q28: 0 | R28: 0 | S28: 0 | T28: 0 | U28: 0 | V28: 0 | W28: 0 | X28: 0 | Y28: 0 | Z28: 0 | AA28: 0 | AB28: 0 | AC28: 0 | AD28: 0 | AE28: 0 | AF28: 0 | AG28: 0 | AH28: 0 | AI28: 0 | AJ28: 0 | AK28: 0 | AL28: 0 | AM28: 0 | AN28: 0 | AO28: 0 | AP28: 0 | AQ28: 0 | AR28: 0 | AS28: 0 | AT28: 0 | AU28: 0 | AV28: 0 | AW28: 0 | AX28: 0 | AY28: 21877.608 | AZ28: 0 | BA28: 0 | BB28: 0 | BC28: 0 | BD28: 0 | BE28: 0 | BF28: 0 | BG28: 0 | BH28: 0 | BI28: 0 | BJ28: 0 | BK28: 0 | BL28: 0 | BM28: 0 | BN28: 0 | BO28: 0 | BP28: 0 | BQ28: 0 | BR28: 0 | BS28: 0 | BT28: 0 | BU28: 0 | BV28: 0 | BW28: 0 | BX28: 0 | BY28: 0 | BZ28: 0 | CA28: 0 | CB28: 0 | CC28: 0 | CD28: 0 | CE28: 0 | CF28: 0 | CG28: 0 | CH28: 0 | CI28: 0 | CJ28: 0 | CK28: 0 | CL28: 0 | CM28: 0 | CN28: 0 | CO28: 0 | CP28: 0 | CQ28: 0 | CR28: 0.35 | CS28: 0.3833333333 | CT28: 0.4166666667 | CU28: 0.45 | CV28: 0.4833333333 | CW28: 0.5166666667 | CX28: 0.55 | CY28: 0.5833333333 | CZ28: 0.6166666667 | DA28: 0.65 | DB28: 0.6833333333 | DC28: 0.7166666667 | DD28: 0.75 | DE28: 0 | DF28: 0.7833333333 | DG28: 0.8166666667 | DH28: 0.85 | DI28: 0.8833333333 | DJ28: 0.9166666667 | DK28: 0.95 | DL28: 0.9833333333 | DM28: 1 | DN28: 420.3515362 | DO28: 12610.54609 | DP28: 0 | DQ28: 9037.558029 | DR28: 420.3515362 | DS28: 0 | DT28: 0.3166666667 | DU28: 0.35 | DV28: 0.3833333333 | DW28: 0.4166666667 | DX28: 0.45 | DY28: 0.4833333333 | DZ28: 0.5166666667 | EA28: 0.55 | EB28: 0.5833333333 | EC28: 0.6166666667 | ED28: 0.65 | EE28: 0.6833333333 | EF28: 0.7166666667 | EG28: 0.7166666667 | EH28: 0.75 | EI28: 0.7833333333 | EJ28: 0.8166666667 | EK28: 0.85 | EL28: 0.8833333333 | EM28: 0.9166666667 | EN28: 0.95 | EO28: 0.9666666667 | EP28: 420.3515362 | EQ28: 0 | ER28: 0.2833333333 | ES28: 0.3166666667 | ET28: 0.35 | EU28: 0.3833333333 | EV28: 0.4166666667 | EW28: 0.45 | EX28: 0.4833333333 | EY28: 0.5166666667 | EZ28: 0.55 | FA28: 0.5833333333 | FB28: 0.6166666667 | FC28: 0.65 | FD28: 0.6833333333 | FE28: 0.6833333333 | FF28: 0.7166666667 | FG28: 0.75 | FH28: 0.7833333333 | FI28: 0.8166666667 | FJ28: 0.85 | FK28: 0.8833333333 | FL28: 0.9166666667 | FM28: 0.9333333333 | FN28: 420.3515362 | FO28: 0 | FP28: 0.25 | FQ28: 0.2833333333 | FR28: 0.3166666667 | FS28: 0.35 | FT28: 0.3833333333 | FU28: 0.4166666667 | FV28: 0.45 | FW28: 0.4833333333 | FX28: 0.5166666667 | FY28: 0.55 | FZ28: 0.5833333333 | GA28: 0.6166666667 | GB28: 0.65 | GC28: 0.65 | GD28: 0.6833333333 | GE28: 0.7166666667 | GF28: 0.75 | GG28: 0.7833333333 | GH28: 0.8166666667 | GI28: 0.85 | GJ28: 0.8833333333 | GK28: 0.9 | GL28: 420.3515362 | GM28: 0 | GN28: 0.2166666667 | GO28: 0.25 | GP28: 0.2833333333 | GQ28: 0.3166666667 | GR28: 0.35 | GS28: 0.3833333333 | GT28: 0.4166666667 | GU28: 0.45 | GV28: 0.4833333333 | GW28: 0.5166666667 | GX28: 0.55 | GY28: 0.5833333333 | GZ28: 0.6166666667 | HA28: 0.6166666667 | HB28: 0.65 | HC28: 0.6833333333 | HD28: 0.7166666667 | HE28: 0.75 | HF28: 0.7833333333 | HG28: 0.8166666667 | HH28: 0.85 | HI28: 0.8666666667 | HJ28: 420.3515362
B29: Centro de transformación 34,5 kV / BT | C29: 30 | D29: 3799108.646 | E29: 0 | F29: 2411549.813 | G29: 47185.65 | H29: 0 | I29: 0 | J29: 0 | K29: 121565.18 | L29: 42230 | M29: 0 | N29: 0 | O29: 114271.2609 | P29: 0 | Q29: 0 | R29: 0 | S29: 315516 | T29: 0 | U29: 0 | V29: 0 | W29: 246969.46 | X29: 0 | Y29: 0 | Z29: 0 | AA29: 746934.4 | AB29: 111277 | AC29: 0 | AD29: 0 | AE29: 819508.73 | AF29: 0 | AG29: 0 | AH29: 0 | AI29: 396123.05 | AJ29: 0 | AK29: 0 | AL29: 0 | AM29: 616394.63 | AN29: 0 | AO29: 0 | AP29: 0 | AQ29: 924534.36 | AR29: 0 | AS29: 0 | AT29: 0 | AU29: 984613.1 | AV29: 0 | AW29: 0 | AX29: 0 | AY29: 1229523.27 | AZ29: 0 | BA29: 0 | BB29: 0 | BC29: 1413716.54 | BD29: 0 | BE29: 0 | BF29: 0 | BG29: 687191.7425 | BH29: 687191.7425 | BI29: 518227.84 | BJ29: 1731874.77 | BK29: 0 | BL29: 0 | BM29: 0 | BN29: 2005725.52 | BO29: 0 | BP29: 0 | BQ29: 0 | BR29: 2393365.61 | BS29: 0 | BT29: 0 | BU29: 0 | BV29: 3086448.4 | BW29: 148123.1941 | BX29: 0 | BY29: 0 | BZ29: 3181093.57 | CA29: 196686.0675 | CB29: 0 | CC29: 0 | CD29: 2797232.49 | CE29: 0 | CF29: 0 | CG29: 0 | CH29: 2447494.73 | CI29: 9332.339997 | CJ29: 0 | CK29: 0 | CL29: 918959.23 | CM29: 0 | CN29: 0 | CO29: 0 | CP29: 1990.043018 | CQ29: 0 | CR29: 0.35 | CS29: 0.3833333333 | CT29: 0.4166666667 | CU29: 0.45 | CV29: 0.4833333333 | CW29: 0.5166666667 | CX29: 0.55 | CY29: 0.5833333333 | CZ29: 0.6166666667 | DA29: 0.65 | DB29: 0.6833333333 | DC29: 0.7166666667 | DD29: 0.75 | DE29: 0.5207907458 | DF29: 0.7833333333 | DG29: 0.8166666667 | DH29: 0.85 | DI29: 0.8833333333 | DJ29: 0.9166666667 | DK29: 0.95 | DL29: 0.9833333333 | DM29: 1 | DN29: 750633.4388 | DO29: 26759672.44 | DP29: 3799108.646 | DQ29: 17941247.79 | DR29: 765352.1266 | DS29: 0 | DT29: 0.3166666667 | DU29: 0.35 | DV29: 0.3833333333 | DW29: 0.4166666667 | DX29: 0.45 | DY29: 0.4833333333 | DZ29: 0.5166666667 | EA29: 0.55 | EB29: 0.5833333333 | EC29: 0.6166666667 | ED29: 0.65 | EE29: 0.6833333333 | EF29: 0.7166666667 | EG29: 0.7166666667 | EH29: 0.75 | EI29: 0.7833333333 | EJ29: 0.8166666667 | EK29: 0.85 | EL29: 0.8833333333 | EM29: 0.9166666667 | EN29: 0.95 | EO29: 0.9666666667 | EP29: 750633.4388 | EQ29: 0 | ER29: 0.2833333333 | ES29: 0.3166666667 | ET29: 0.35 | EU29: 0.3833333333 | EV29: 0.4166666667 | EW29: 0.45 | EX29: 0.4833333333 | EY29: 0.5166666667 | EZ29: 0.55 | FA29: 0.5833333333 | FB29: 0.6166666667 | FC29: 0.65 | FD29: 0.6833333333 | FE29: 0.6833333333 | FF29: 0.7166666667 | FG29: 0.75 | FH29: 0.7833333333 | FI29: 0.8166666667 | FJ29: 0.85 | FK29: 0.8833333333 | FL29: 0.9166666667 | FM29: 0.9333333333 | FN29: 750633.4388 | FO29: 0 | FP29: 0.25 | FQ29: 0.2833333333 | FR29: 0.3166666667 | FS29: 0.35 | FT29: 0.3833333333 | FU29: 0.4166666667 | FV29: 0.45 | FW29: 0.4833333333 | FX29: 0.5166666667 | FY29: 0.55 | FZ29: 0.5833333333 | GA29: 0.6166666667 | GB29: 0.65 | GC29: 0.65 | GD29: 0.6833333333 | GE29: 0.7166666667 | GF29: 0.75 | GG29: 0.7833333333 | GH29: 0.8166666667 | GI29: 0.85 | GJ29: 0.8833333333 | GK29: 0.9 | GL29: 750633.4388 | GM29: 0 | GN29: 0.2166666667 | GO29: 0.25 | GP29: 0.2833333333 | GQ29: 0.3166666667 | GR29: 0.35 | GS29: 0.3833333333 | GT29: 0.4166666667 | GU29: 0.45 | GV29: 0.4833333333 | GW29: 0.5166666667 | GX29: 0.55 | GY29: 0.5833333333 | GZ29: 0.6166666667 | HA29: 0.6166666667 | HB29: 0.65 | HC29: 0.6833333333 | HD29: 0.7166666667 | HE29: 0.75 | HF29: 0.7833333333 | HG29: 0.8166666667 | HH29: 0.85 | HI29: 0.8666666667 | HJ29: 750633.4388
B30: Centro de transformación 13,8 kV / BT | C30: 30 | D30: 3801860.646 | E30: 0 | F30: 2413152.22 | G30: 86766.888 | H30: 0 | I30: 0 | J30: 0 | K30: 135558.5451 | L30: 0 | M30: 0 | N30: 0 | O30: 115214.1791 | P30: 0 | Q30: 0 | R30: 0 | S30: 115420 | T30: 0 | U30: 0 | V30: 0 | W30: 129961 | X30: 0 | Y30: 0 | Z30: 0 | AA30: 333192 | AB30: 0 | AC30: 0 | AD30: 0 | AE30: 515266.79 | AF30: 0 | AG30: 0 | AH30: 0 | AI30: 330540.91 | AJ30: 0 | AK30: 0 | AL30: 0 | AM30: 462363.19 | AN30: 0 | AO30: 0 | AP30: 0 | AQ30: 804704.22 | AR30: 0 | AS30: 0 | AT30: 0 | AU30: 708124.14 | AV30: 0 | AW30: 0 | AX30: 0 | AY30: 950598.13 | AZ30: 0 | BA30: 0 | BB30: 0 | BC30: 542518.82 | BD30: 0 | BE30: 0 | BF30: 0 | BG30: 0 | BH30: 0 | BI30: 0 | BJ30: 1106379.05 | BK30: 0 | BL30: 0 | BM30: 0 | BN30: 992356.56 | BO30: 0 | BP30: 0 | BQ30: 0 | BR30: 1164492.07 | BS30: 0 | BT30: 0 | BU30: 0 | BV30: 1581532.51 | BW30: 26773.80564 | BX30: 0 | BY30: 0 | BZ30: 1439721.7 | CA30: 116331.6453 | CB30: 0 | CC30: 0 | CD30: 1833762.23 | CE30: 28741.73735 | CF30: 0 | CG30: 0 | CH30: 1270655.66 | CI30: 21137.23675 | CJ30: 0 | CK30: 0 | CL30: 1219177.25 | CM30: 0 | CN30: 0 | CO30: 0 | CP30: 1990.041878 | CQ30: 0 | CR30: 0.35 | CS30: 0.3833333333 | CT30: 0.4166666667 | CU30: 0.45 | CV30: 0.4833333333 | CW30: 0.5166666667 | CX30: 0.55 | CY30: 0.5833333333 | CZ30: 0.6166666667 | DA30: 0.65 | DB30: 0.6833333333 | DC30: 0.7166666667 | DD30: 0.75 | DE30: 0 | DF30: 0.7833333333 | DG30: 0.8166666667 | DH30: 0.85 | DI30: 0.8833333333 | DJ30: 0.9166666667 | DK30: 0.95 | DL30: 0.9833333333 | DM30: 1 | DN30: 435278.4339 | DO30: 17025617.93 | DP30: 3801860.646 | DQ30: 10647963.35 | DR30: 440791.9093 | DS30: 0 | DT30: 0.3166666667 | DU30: 0.35 | DV30: 0.3833333333 | DW30: 0.4166666667 | DX30: 0.45 | DY30: 0.4833333333 | DZ30: 0.5166666667 | EA30: 0.55 | EB30: 0.5833333333 | EC30: 0.6166666667 | ED30: 0.65 | EE30: 0.6833333333 | EF30: 0.7166666667 | EG30: 0.7166666667 | EH30: 0.75 | EI30: 0.7833333333 | EJ30: 0.8166666667 | EK30: 0.85 | EL30: 0.8833333333 | EM30: 0.9166666667 | EN30: 0.95 | EO30: 0.9666666667 | EP30: 435278.4339 | EQ30: 0 | ER30: 0.2833333333 | ES30: 0.3166666667 | ET30: 0.35 | EU30: 0.3833333333 | EV30: 0.4166666667 | EW30: 0.45 | EX30: 0.4833333333 | EY30: 0.5166666667 | EZ30: 0.55 | FA30: 0.5833333333 | FB30: 0.6166666667 | FC30: 0.65 | FD30: 0.6833333333 | FE30: 0.6833333333 | FF30: 0.7166666667 | FG30: 0.75 | FH30: 0.7833333333 | FI30: 0.8166666667 | FJ30: 0.85 | FK30: 0.8833333333 | FL30: 0.9166666667 | FM30: 0.9333333333 | FN30: 435278.4339 | FO30: 0 | FP30: 0.25 | FQ30: 0.2833333333 | FR30: 0.3166666667 | FS30: 0.35 | FT30: 0.3833333333 | FU30: 0.4166666667 | FV30: 0.45 | FW30: 0.4833333333 | FX30: 0.5166666667 | FY30: 0.55 | FZ30: 0.5833333333 | GA30: 0.6166666667 | GB30: 0.65 | GC30: 0.65 | GD30: 0.6833333333 | GE30: 0.7166666667 | GF30: 0.75 | GG30: 0.7833333333 | GH30: 0.8166666667 | GI30: 0.85 | GJ30: 0.8833333333 | GK30: 0.9 | GL30: 435278.4339 | GM30: 0 | GN30: 0.2166666667 | GO30: 0.25 | GP30: 0.2833333333 | GQ30: 0.3166666667 | GR30: 0.35 | GS30: 0.3833333333 | GT30: 0.4166666667 | GU30: 0.45 | GV30: 0.4833333333 | GW30: 0.5166666667 | GX30: 0.55 | GY30: 0.5833333333 | GZ30: 0.6166666667 | HA30: 0.6166666667 | HB30: 0.65 | HC30: 0.6833333333 | HD30: 0.7166666667 | HE30: 0.75 | HF30: 0.7833333333 | HG30: 0.8166666667 | HH30: 0.85 | HI30: 0.8666666667 | HJ30: 435278.4339
B31: Otros centros de transformación MT/BT | C31: 30 | D31: 0 | E31: 0 | F31: 0 | G31: 0 | H31: 0 | I31: 0 | J31: 0 | K31: 0 | L31: 0 | M31: 0 | N31: 0 | O31: 0 | P31: 0 | Q31: 0 | R31: 0 | S31: 0 | T31: 0 | U31: 0 | V31: 0 | W31: 0 | X31: 0 | Y31: 0 | Z31: 0 | AA31: 0 | AB31: 0 | AC31: 0 | AD31: 0 | AE31: 0 | AF31: 0 | AG31: 0 | AH31: 0 | AI31: 0 | AJ31: 0 | AK31: 0 | AL31: 0 | AM31: 0 | AN31: 0 | AO31: 0 | AP31: 0 | AQ31: 0 | AR31: 0 | AS31: 0 | AT31: 0 | AU31: 0 | AV31: 0 | AW31: 0 | AX31: 0 | AY31: 0 | AZ31: 0 | BA31: 0 | BB31: 0 | BC31: 103431.25 | BD31: 0 | BE31: 0 | BF31: 0 | BG31: 0 | BH31: 0 | BI31: 0 | BJ31: 200492.76 | BK31: 0 | BL31: 0 | BM31: 0 | BN31: 245725.63 | BO31: 0 | BP31: 0 | BQ31: 0 | BR31: 204223.87 | BS31: 0 | BT31: 0 | BU31: 0 | BV31: 258262.68 | BW31: 40764.15972 | BX31: 0 | BY31: 0 | BZ31: 252698.08 | CA31: 12196.21812 | CB31: 0 | CC31: 0 | CD31: 487786.05 | CE31: 0 | CF31: 0 | CG31: 0 | CH31: 226390.16 | CI31: 0 | CJ31: 0 | CK31: 0 | CL31: 0 | CM31: 0 | CN31: 0 | CO31: 0 | CP31: 0 | CQ31: 0 | CR31: 0.35 | CS31: 0.3833333333 | CT31: 0.4166666667 | CU31: 0.45 | CV31: 0.4833333333 | CW31: 0.5166666667 | CX31: 0.55 | CY31: 0.5833333333 | CZ31: 0.6166666667 | DA31: 0.65 | DB31: 0.6833333333 | DC31: 0.7166666667 | DD31: 0.75 | DE31: 0 | DF31: 0.7833333333 | DG31: 0.8166666667 | DH31: 0.85 | DI31: 0.8833333333 | DJ31: 0.9166666667 | DK31: 0.95 | DL31: 0.9833333333 | DM31: 1 | DN31: 55016.03691 | DO31: 1696808.729 | DP31: 0 | DQ31: 1463503.533 | DR31: 56560.29095 | DS31: 0 | DT31: 0.3166666667 | DU31: 0.35 | DV31: 0.3833333333 | DW31: 0.4166666667 | DX31: 0.45 | DY31: 0.4833333333 | DZ31: 0.5166666667 | EA31: 0.55 | EB31: 0.5833333333 | EC31: 0.6166666667 | ED31: 0.65 | EE31: 0.6833333333 | EF31: 0.7166666667 | EG31: 0.7166666667 | EH31: 0.75 | EI31: 0.7833333333 | EJ31: 0.8166666667 | EK31: 0.85 | EL31: 0.8833333333 | EM31: 0.9166666667 | EN31: 0.95 | EO31: 0.9666666667 | EP31: 55016.03691 | EQ31: 0 | ER31: 0.2833333333 | ES31: 0.3166666667 | ET31: 0.35 | EU31: 0.3833333333 | EV31: 0.4166666667 | EW31: 0.45 | EX31: 0.4833333333 | EY31: 0.5166666667 | EZ31: 0.55 | FA31: 0.5833333333 | FB31: 0.6166666667 | FC31: 0.65 | FD31: 0.6833333333 | FE31: 0.6833333333 | FF31: 0.7166666667 | FG31: 0.75 | FH31: 0.7833333333 | FI31: 0.8166666667 | FJ31: 0.85 | FK31: 0.8833333333 | FL31: 0.9166666667 | FM31: 0.9333333333 | FN31: 55016.03691 | FO31: 0 | FP31: 0.25 | FQ31: 0.2833333333 | FR31: 0.3166666667 | FS31: 0.35 | FT31: 0.3833333333 | FU31: 0.4166666667 | FV31: 0.45 | FW31: 0.4833333333 | FX31: 0.5166666667 | FY31: 0.55 | FZ31: 0.5833333333 | GA31: 0.6166666667 | GB31: 0.65 | GC31: 0.65 | GD31: 0.6833333333 | GE31: 0.7166666667 | GF31: 0.75 | GG31: 0.7833333333 | GH31: 0.8166666667 | GI31: 0.85 | GJ31: 0.8833333333 | GK31: 0.9 | GL31: 55016.03691 | GM31: 0 | GN31: 0.2166666667 | GO31: 0.25 | GP31: 0.2833333333 | GQ31: 0.3166666667 | GR31: 0.35 | GS31: 0.3833333333 | GT31: 0.4166666667 | GU31: 0.45 | GV31: 0.4833333333 | GW31: 0.5166666667 | GX31: 0.55 | GY31: 0.5833333333 | GZ31: 0.6166666667 | HA31: 0.6166666667 | HB31: 0.65 | HC31: 0.6833333333 | HD31: 0.7166666667 | HE31: 0.75 | HF31: 0.7833333333 | HG31: 0.8166666667 | HH31: 0.85 | HI31: 0.8666666667 | HJ31: 55016.03691
B32: Baja tensión BT (<600V) | D32: 0 | E32: 0 | F32: 0 | G32: 0 | H32: 0 | I32: 0 | J32: 0 | K32: 0 | L32: 0 | M32: 0 | N32: 0 | O32: 0 | P32: 0 | Q32: 0 | R32: 0 | S32: 0 | T32: 0 | U32: 0 | V32: 0 | W32: 0 | X32: 0 | Y32: 0 | Z32: 0 | AA32: 0 | AB32: 0 | AC32: 0 | AD32: 0 | AE32: 0 | AF32: 0 | AG32: 0 | AH32: 0 | AI32: 0 | AJ32: 0 | AK32: 0 | AL32: 0 | AM32: 0 | AN32: 0 | AO32: 0 | AP32: 0 | AQ32: 0 | AR32: 0 | AS32: 0 | AT32: 0 | AU32: 0 | AV32: 0 | AW32: 0 | AX32: 0 | AY32: 0 | AZ32: 0 | BA32: 0 | BB32: 0 | BC32: 0 | BD32: 0 | BE32: 0 | BF32: 0 | BG32: 0 | BH32: 0 | BI32: 0 | BJ32: 0 | BK32: 0 | BL32: 0 | BM32: 0 | BN32: 0 | BO32: 0 | BP32: 0 | BQ32: 0 | BR32: 0 | BS32: 0 | BT32: 0 | BU32: 0 | BV32: 0 | BW32: 0 | BX32: 0 | BY32: 0 | BZ32: 0 | CA32: 0 | CB32: 0 | CC32: 0 | CD32: 0 | CE32: 0 | CF32: 0 | CG32: 0 | CH32: 0 | CI32: 0 | CJ32: 0 | CK32: 0 | CL32: 0 | CM32: 0 | CN32: 0 | CO32: 0 | DN32: 0 | DO32: 0 | DP32: 0 | DQ32: 0 | EP32: 0 | FN32: 0 | GL32: 0 | HJ32: 0
B33: Líneas aéreas BT | C33: 30 | D33: 0 | E33: 0 | F33: 0 | G33: 357372.88 | H33: 0 | I33: 0 | J33: 0 | K33: 543253.56 | L33: 0 | M33: 0 | N33: 0 | O33: 737930 | P33: 0 | Q33: 0 | R33: 0 | S33: 616404 | T33: 0 | U33: 0 | V33: 0 | W33: 908729 | X33: 0 | Y33: 0 | Z33: 0 | AA33: 1034380.58 | AB33: 55639 | AC33: 0 | AD33: 0 | AE33: 1297534 | AF33: 0 | AG33: 0 | AH33: 0 | AI33: 1402601.7 | AJ33: 0 | AK33: 0 | AL33: 0 | AM33: 1130909.52 | AN33: 0 | AO33: 0 | AP33: 0 | AQ33: 1272704.24 | AR33: 0 | AS33: 0 | AT33: 0 | AU33: 1171006 | AV33: 0 | AW33: 0 | AX33: 0 | AY33: 1787672.04 | AZ33: 0 | BA33: 0 | BB33: 0 | BC33: 1674946.82 | BD33: 0 | BE33: 0 | BF33: 0 | BG33: 260770.204 | BH33: 260770.204 | BI33: 196653.09 | BJ33: 2241612.76 | BK33: 0 | BL33: 0 | BM33: 0 | BN33: 2116636.46 | BO33: 0 | BP33: 0 | BQ33: 0 | BR33: 2073343.05 | BS33: 7541.66 | BT33: 0 | BU33: 0 | BV33: 2675996.07 | BW33: 492379.496 | BX33: 0 | BY33: 0 | BZ33: 3711583.07 | CA33: 748219.6784 | CB33: 0 | CC33: 0 | CD33: 3527616.56 | CE33: 133227.4047 | CF33: 0 | CG33: 0 | CH33: 3914894.23 | CI33: 35647.34703 | CJ33: 0 | CK33: 0 | CL33: 1738833.32 | CM33: 0 | CN33: 0 | CO33: 0 | CP33: =IF(D33=0,0,2001-(D33-F33)*C33/D33) -> 0 | CQ33: =IF((1-($DN$2-$CP33)/$C33)>0,(1-($DN$2-$CP33)/$C33),0) -> 0 | CR33: =IF((1-($DN$2-G$2)/$C33)>0,(1-($DN$2-G$2)/$C33),0) -> 0.35 | CS33: =IF((1-($DN$2-K$2)/$C33)>0,(1-($DN$2-K$2)/$C33),0) -> 0.3833333333 | CT33: =IF((1-($DN$2-O$2)/$C33)>0,(1-($DN$2-O$2)/$C33),0) -> 0.4166666667 | CU33: =IF((1-($DN$2-S$2)/$C33)>0,(1-($DN$2-S$2)/$C33),0) -> 0.45 | CV33: =IF((1-($DN$2-W$2)/$C33)>0,(1-($DN$2-W$2)/$C33),0) -> 0.4833333333 | CW33: =IF((1-($DN$2-AA$2)/$C33)>0,(1-($DN$2-AA$2)/$C33),0) -> 0.5166666667 | CX33: =IF((1-($DN$2-AE$2)/$C33)>0,(1-($DN$2-AE$2)/$C33),0) -> 0.55 | CY33: =IF((1-($DN$2-AI$2)/$C33)>0,(1-($DN$2-AI$2)/$C33),0) -> 0.5833333333 | CZ33: =IF((1-($DN$2-AM$2)/$C33)>0,(1-($DN$2-AM$2)/$C33),0) -> 0.6166666667 | DA33: =IF((1-($DN$2-AQ$2)/$C33)>0,(1-($DN$2-AQ$2)/$C33),0) -> 0.65 | DB33: =IF((1-($DN$2-AU$2)/$C33)>0,(1-($DN$2-AU$2)/$C33),0) -> 0.6833333333 | DC33: =IF((1-($DN$2-AY$2)/$C33)>0,(1-($DN$2-AY$2)/$C33),0) -> 0.7166666667 | DD33: =IF((1-($DN$2-BC$2)/$C33)>0,(1-($DN$2-BC$2)/$C33),0) -> 0.75 | DE33: =IF(BG33=0,0,1-($DN$2-(2014.5-(BG33-BI33)*C33/BG33))/C33) -> 0.5207907458 | DF33: =IF((1-($DN$2-BJ$2)/$C33)>0,(1-($DN$2-BJ$2)/$C33),0) -> 0.7833333333 | DG33: =IF((1-($DN$2-BN$2)/$C33)>0,(1-($DN$2-BN$2)/$C33),0) -> 0.8166666667 | DH33: =IF((1-($DN$2-BR$2)/$C33)>0,(1-($DN$2-BR$2)/$C33),0) -> 0.85 | DI33: =IF((1-($DN$2-BV$2)/$C33)>0,(1-($DN$2-BV$2)/$C33),0) -> 0.8833333333 | DJ33: =IF((1-($DN$2-BZ$2)/$C33)>0,(1-($DN$2-BZ$2)/$C33),0) -> 0.9166666667 | DK33: =IF((1-($DN$2-CD$2)/$C33)>0,(1-($DN$2-CD$2)/$C33),0) -> 0.95 | DL33: =IF((1-($DN$2-CH$2)/$C33)>0,(1-($DN$2-CH$2)/$C33),0) -> 0.9833333333 | DM33: =IF((1-($DN$2-CL$2)/$C33)>0,(1-($DN$2-CL$2)/$C33),0) -> 1 | DN33: 968102.0542 | DO33: 30314114.84 | DP33: 0 | DQ33: 22567676.06 | DR33: 1010470.495 | DS33: =IF((1-($EP$2-$CP33)/$C33)>0,(1-($EP$2-$CP33)/$C33),0) -> 0 | DT33: =IF((1-($EP$2-DT$2)/$C33)>0,(1-($EP$2-DT$2)/$C33),0) -> 0.3166666667 | DU33: 0.35 | DV33: 0.3833333333 | DW33: 0.4166666667 | DX33: 0.45 | DY33: 0.4833333333 | DZ33: 0.5166666667 | EA33: 0.55 | EB33: 0.5833333333 | EC33: 0.6166666667 | ED33: =IF((1-($EP$2-ED$2)/$C33)>0,(1-($EP$2-ED$2)/$C33),0) -> 0.65 | EE33: 0.6833333333 | EF33: 0.7166666667 | EG33: 0.7166666667 | EH33: 0.75 | EI33: 0.7833333333 | EJ33: 0.8166666667 | EK33: 0.85 | EL33: 0.8833333333 | EM33: 0.9166666667 | EN33: 0.95 | EO33: 0.9666666667 | EP33: 968102.0542 | EQ33: =IF((1-($FN$2-$CP33)/$C33)>0,(1-($FN$2-$CP33)/$C33),0) -> 0 | ER33: =IF((1-($FN$2-ER$2)/$C33)>0,(1-($FN$2-ER$2)/$C33),0) -> 0.2833333333 | ES33: 0.3166666667 | ET33: 0.35 | EU33: 0.3833333333 | EV33: 0.4166666667 | EW33: 0.45 | EX33: 0.4833333333 | EY33: 0.5166666667 | EZ33: 0.55 | FA33: 0.5833333333 | FB33: =IF((1-($FN$2-FB$2)/$C33)>0,(1-($FN$2-FB$2)/$C33),0) -> 0.6166666667 | FC33: 0.65 | FD33: 0.6833333333 | FE33: 0.6833333333 | FF33: 0.7166666667 | FG33: 0.75 | FH33: 0.7833333333 | FI33: 0.8166666667 | FJ33: 0.85 | FK33: 0.8833333333 | FL33: 0.9166666667 | FM33: 0.9333333333 | FN33: 968102.0542 | FO33: =IF((1-($GL$2-$CP33)/$C33)>0,(1-($GL$2-$CP33)/$C33),0) -> 0 | FP33: =IF((1-($GL$2-FP$2)/$C33)>0,(1-($GL$2-FP$2)/$C33),0) -> 0.25 | FQ33: 0.2833333333 | FR33: 0.3166666667 | FS33: 0.35 | FT33: 0.3833333333 | FU33: 0.4166666667 | FV33: 0.45 | FW33: 0.4833333333 | FX33: 0.5166666667 | FY33: 0.55 | FZ33: =IF((1-($GL$2-FZ$2)/$C33)>0,(1-($GL$2-FZ$2)/$C33),0) -> 0.5833333333 | GA33: 0.6166666667 | GB33: 0.65 | GC33: 0.65 | GD33: 0.6833333333 | GE33: 0.7166666667 | GF33: 0.75 | GG33: 0.7833333333 | GH33: 0.8166666667 | GI33: 0.85 | GJ33: 0.8833333333 | GK33: 0.9 | GL33: 968102.0542 | GM33: =IF((1-($HJ$2-$CP33)/$C33)>0,(1-($HJ$2-$CP33)/$C33),0) -> 0 | GN33: =IF((1-($HJ$2-GN$2)/$C33)>0,(1-($HJ$2-GN$2)/$C33),0) -> 0.2166666667 | GO33: 0.25 | GP33: 0.2833333333 | GQ33: 0.3166666667 | GR33: 0.35 | GS33: 0.3833333333 | GT33: 0.4166666667 | GU33: 0.45 | GV33: 0.4833333333 | GW33: 0.5166666667 | GX33: =IF((1-($HJ$2-GX$2)/$C33)>0,(1-($HJ$2-GX$2)/$C33),0) -> 0.55 | GY33: 0.5833333333 | GZ33: 0.6166666667 | HA33: 0.6166666667 | HB33: 0.65 | HC33: 0.6833333333 | HD33: 0.7166666667 | HE33: 0.75 | HF33: 0.7833333333 | HG33: 0.8166666667 | HH33: 0.85 | HI33: 0.8666666667 | HJ33: 968102.0542
B34: Líneas subterráneas BT | C34: 30 | D34: 0 | E34: 0 | F34: 0 | G34: 20855.34 | H34: 0 | I34: 0 | J34: 0 | K34: 31716.79 | L34: 0 | M34: 0 | N34: 0 | O34: 45392.1 | P34: 0 | Q34: 0 | R34: 0 | S34: 55532 | T34: 0 | U34: 0 | V34: 0 | W34: 21527.58 | X34: 0 | Y34: 0 | Z34: 0 | AA34: 69879.69 | AB34: 0 | AC34: 0 | AD34: 0 | AE34: 167603.6 | AF34: 0 | AG34: 0 | AH34: 0 | AI34: 114363.29 | AJ34: 0 | AK34: 0 | AL34: 0 | AM34: 128319.81 | AN34: 0 | AO34: 0 | AP34: 0 | AQ34: 45878.89 | AR34: 0 | AS34: 0 | AT34: 0 | AU34: 78988.77 | AV34: 0 | AW34: 0 | AX34: 0 | AY34: 165321.32 | AZ34: 0 | BA34: 0 | BB34: 0 | BC34: 329359.54 | BD34: 0 | BE34: 0 | BF34: 0 | BG34: 0 | BH34: 0 | BI34: 0 | BJ34: 502319.07 | BK34: 0 | BL34: 0 | BM34: 0 | BN34: 584095.52 | BO34: 0 | BP34: 0 | BQ34: 0 | BR34: 1656958.05 | BS34: 7315.61 | BT34: 0 | BU34: 0 | BV34: 3269374.29 | BW34: 2122.376849 | BX34: 0 | BY34: 0 | BZ34: 871104.23 | CA34: 7083.069252 | CB34: 0 | CC34: 0 | CD34: 927944.38 | CE34: 0 | CF34: 0 | CG34: 0 | CH34: 565782.82 | CI34: 10213.72361 | CJ34: 0 | CK34: 0 | CL34: 358788.13 | CM34: 0 | CN34: 0 | CO34: 0 | CP34: =IF(D34=0,0,2001-(D34-F34)*C34/D34) -> 0 | CQ34: =IF((1-($DN$2-$CP34)/$C34)>0,(1-($DN$2-$CP34)/$C34),0) -> 0 | CR34: =IF((1-($DN$2-G$2)/$C34)>0,(1-($DN$2-G$2)/$C34),0) -> 0.35 | CS34: =IF((1-($DN$2-K$2)/$C34)>0,(1-($DN$2-K$2)/$C34),0) -> 0.3833333333 | CT34: =IF((1-($DN$2-O$2)/$C34)>0,(1-($DN$2-O$2)/$C34),0) -> 0.4166666667 | CU34: =IF((1-($DN$2-S$2)/$C34)>0,(1-($DN$2-S$2)/$C34),0) -> 0.45 | CV34: =IF((1-($DN$2-W$2)/$C34)>0,(1-($DN$2-W$2)/$C34),0) -> 0.4833333333 | CW34: =IF((1-($DN$2-AA$2)/$C34)>0,(1-($DN$2-AA$2)/$C34),0) -> 0.5166666667 | CX34: =IF((1-($DN$2-AE$2)/$C34)>0,(1-($DN$2-AE$2)/$C34),0) -> 0.55 | CY34: =IF((1-($DN$2-AI$2)/$C34)>0,(1-($DN$2-AI$2)/$C34),0) -> 0.5833333333 | CZ34: =IF((1-($DN$2-AM$2)/$C34)>0,(1-($DN$2-AM$2)/$C34),0) -> 0.6166666667 | DA34: =IF((1-($DN$2-AQ$2)/$C34)>0,(1-($DN$2-AQ$2)/$C34),0) -> 0.65 | DB34: =IF((1-($DN$2-AU$2)/$C34)>0,(1-($DN$2-AU$2)/$C34),0) -> 0.6833333333 | DC34: =IF((1-($DN$2-AY$2)/$C34)>0,(1-($DN$2-AY$2)/$C34),0) -> 0.7166666667 | DD34: =IF((1-($DN$2-BC$2)/$C34)>0,(1-($DN$2-BC$2)/$C34),0) -> 0.75 | DE34: 0 | DF34: =IF((1-($DN$2-BJ$2)/$C34)>0,(1-($DN$2-BJ$2)/$C34),0) -> 0.7833333333 | DG34: =IF((1-($DN$2-BN$2)/$C34)>0,(1-($DN$2-BN$2)/$C34),0) -> 0.8166666667 | DH34: =IF((1-($DN$2-BR$2)/$C34)>0,(1-($DN$2-BR$2)/$C34),0) -> 0.85 | DI34: =IF((1-($DN$2-BV$2)/$C34)>0,(1-($DN$2-BV$2)/$C34),0) -> 0.8833333333 | DJ34: =IF((1-($DN$2-BZ$2)/$C34)>0,(1-($DN$2-BZ$2)/$C34),0) -> 0.9166666667 | DK34: =IF((1-($DN$2-CD$2)/$C34)>0,(1-($DN$2-CD$2)/$C34),0) -> 0.95 | DL34: =IF((1-($DN$2-CH$2)/$C34)>0,(1-($DN$2-CH$2)/$C34),0) -> 0.9833333333 | DM34: =IF((1-($DN$2-CL$2)/$C34)>0,(1-($DN$2-CL$2)/$C34),0) -> 1 | DN34: 286081.0292 | DO34: 8605490.118 | DP34: 0 | DQ34: 7352852.573 | DR34: 286849.6706 | DS34: =IF((1-($EP$2-$CP34)/$C34)>0,(1-($EP$2-$CP34)/$C34),0) -> 0 | DT34: 0.3166666667 | DU34: 0.35 | DV34: 0.3833333333 | DW34: 0.4166666667 | DX34: 0.45 | DY34: 0.4833333333 | DZ34: 0.5166666667 | EA34: 0.55 | EB34: 0.5833333333 | EC34: 0.6166666667 | ED34: 0.65 | EE34: 0.6833333333 | EF34: 0.7166666667 | EG34: 0.7166666667 | EH34: 0.75 | EI34: 0.7833333333 | EJ34: 0.8166666667 | EK34: 0.85 | EL34: 0.8833333333 | EM34: 0.9166666667 | EN34: 0.95 | EO34: 0.9666666667 | EP34: 286081.0292 | EQ34: =IF((1-($FN$2-$CP34)/$C34)>0,(1-($FN$2-$CP34)/$C34),0) -> 0 | ER34: 0.2833333333 | ES34: 0.3166666667 | ET34: 0.35 | EU34: 0.3833333333 | EV34: 0.4166666667 | EW34: 0.45 | EX34: 0.4833333333 | EY34: 0.5166666667 | EZ34: 0.55 | FA34: 0.5833333333 | FB34: 0.6166666667 | FC34: 0.65 | FD34: 0.6833333333 | FE34: 0.6833333333 | FF34: 0.7166666667 | FG34: 0.75 | FH34: 0.7833333333 | FI34: 0.8166666667 | FJ34: 0.85 | FK34: 0.8833333333 | FL34: 0.9166666667 | FM34: 0.9333333333 | FN34: 286081.0292 | FO34: =IF((1-($GL$2-$CP34)/$C34)>0,(1-($GL$2-$CP34)/$C34),0) -> 0 | FP34: 0.25 | FQ34: 0.2833333333 | FR34: 0.3166666667 | FS34: 0.35 | FT34: 0.3833333333 | FU34: 0.4166666667 | FV34: 0.45 | FW34: 0.4833333333 | FX34: 0.5166666667 | FY34: 0.55 | FZ34: 0.5833333333 | GA34: 0.6166666667 | GB34: 0.65 | GC34: 0.65 | GD34: 0.6833333333 | GE34: 0.7166666667 | GF34: 0.75 | GG34: 0.7833333333 | GH34: 0.8166666667 | GI34: 0.85 | GJ34: 0.8833333333 | GK34: 0.9 | GL34: 286081.0292 | GM34: =IF((1-($HJ$2-$CP34)/$C34)>0,(1-($HJ$2-$CP34)/$C34),0) -> 0 | GN34: 0.2166666667 | GO34: 0.25 | GP34: 0.2833333333 | GQ34: 0.3166666667 | GR34: 0.35 | GS34: 0.3833333333 | GT34: 0.4166666667 | GU34: 0.45 | GV34: 0.4833333333 | GW34: 0.5166666667 | GX34: 0.55 | GY34: 0.5833333333 | GZ34: 0.6166666667 | HA34: 0.6166666667 | HB34: 0.65 | HC34: 0.6833333333 | HD34: 0.7166666667 | HE34: 0.75 | HF34: 0.7833333333 | HG34: 0.8166666667 | HH34: 0.85 | HI34: 0.8666666667 | HJ34: 286081.0292
B35: Acometidas BT | C35: 30 | D35: 10109999.27 | E35: 0 | F35: 6944775.122 | G35: 110095.16 | H35: 0 | I35: 0 | J35: 0 | K35: 147527.42 | L35: 20984 | M35: 0 | N35: 0 | O35: 202095.11 | P35: 0 | Q35: 0 | R35: 0 | S35: 159017 | T35: 0 | U35: 0 | V35: 0 | W35: 103233.12 | X35: 0 | Y35: 0 | Z35: 0 | AA35: 228601 | AB35: 0 | AC35: 0 | AD35: 0 | AE35: 200982 | AF35: 0 | AG35: 0 | AH35: 0 | AI35: 317412.79 | AJ35: 0 | AK35: 0 | AL35: 0 | AM35: 385355 | AN35: 0 | AO35: 0 | AP35: 0 | AQ35: 616660.66 | AR35: 0 | AS35: 0 | AT35: 0 | AU35: 343937.52 | AV35: 0 | AW35: 0 | AX35: 0 | AY35: 322760.92 | AZ35: 0 | BA35: 0 | BB35: 0 | BC35: 379311.01 | BD35: 0 | BE35: 0 | BF35: 0 | BG35: 173846.8027 | BH35: 173846.8027 | BI35: 131102.06 | BJ35: 336121.93 | BK35: 0 | BL35: 0 | BM35: 0 | BN35: 292721.17 | BO35: 0 | BP35: 0 | BQ35: 0 | BR35: 265021.26 | BS35: 0 | BT35: 0 | BU35: 0 | BV35: 348152.55 | BW35: 0 | BX35: 0 | BY35: 0 | BZ35: 246813.81 | CA35: 0 | CB35: 0 | CC35: 0 | CD35: 162283.13 | CE35: 0 | CF35: 0 | CG35: 0 | CH35: 295989.72 | CI35: 0 | CJ35: 0 | CK35: 0 | CL35: 142511.33 | CM35: 0 | CN35: 0 | CO35: 0 | CP35: =IF(D35=0,0,2001-(D35-F35)*C35/D35) -> 1991.607643 | CQ35: =IF((1-($DN$2-$CP35)/$C35)>0,(1-($DN$2-$CP35)/$C35),0) -> 0.003588093404 | CR35: =IF((1-($DN$2-G$2)/$C35)>0,(1-($DN$2-G$2)/$C35),0) -> 0.35 | CS35: =IF((1-($DN$2-K$2)/$C35)>0,(1-($DN$2-K$2)/$C35),0) -> 0.3833333333 | CT35: =IF((1-($DN$2-O$2)/$C35)>0,(1-($DN$2-O$2)/$C35),0) -> 0.4166666667 | CU35: =IF((1-($DN$2-S$2)/$C35)>0,(1-($DN$2-S$2)/$C35),0) -> 0.45 | CV35: =IF((1-($DN$2-W$2)/$C35)>0,(1-($DN$2-W$2)/$C35),0) -> 0.4833333333 | CW35: =IF((1-($DN$2-AA$2)/$C35)>0,(1-($DN$2-AA$2)/$C35),0) -> 0.5166666667 | CX35: =IF((1-($DN$2-AE$2)/$C35)>0,(1-($DN$2-AE$2)/$C35),0) -> 0.55 | CY35: =IF((1-($DN$2-AI$2)/$C35)>0,(1-($DN$2-AI$2)/$C35),0) -> 0.5833333333 | CZ35: =IF((1-($DN$2-AM$2)/$C35)>0,(1-($DN$2-AM$2)/$C35),0) -> 0.6166666667 | DA35: =IF((1-($DN$2-AQ$2)/$C35)>0,(1-($DN$2-AQ$2)/$C35),0) -> 0.65 | DB35: =IF((1-($DN$2-AU$2)/$C35)>0,(1-($DN$2-AU$2)/$C35),0) -> 0.6833333333 | DC35: =IF((1-($DN$2-AY$2)/$C35)>0,(1-($DN$2-AY$2)/$C35),0) -> 0.7166666667 | DD35: =IF((1-($DN$2-BC$2)/$C35)>0,(1-($DN$2-BC$2)/$C35),0) -> 0.75 | DE35: 0.5207907458 | DF35: =IF((1-($DN$2-BJ$2)/$C35)>0,(1-($DN$2-BJ$2)/$C35),0) -> 0.7833333333 | DG35: =IF((1-($DN$2-BN$2)/$C35)>0,(1-($DN$2-BN$2)/$C35),0) -> 0.8166666667 | DH35: =IF((1-($DN$2-BR$2)/$C35)>0,(1-($DN$2-BR$2)/$C35),0) -> 0.85 | DI35: =IF((1-($DN$2-BV$2)/$C35)>0,(1-($DN$2-BV$2)/$C35),0) -> 0.8833333333 | DJ35: =IF((1-($DN$2-BZ$2)/$C35)>0,(1-($DN$2-BZ$2)/$C35),0) -> 0.9166666667 | DK35: =IF((1-($DN$2-CD$2)/$C35)>0,(1-($DN$2-CD$2)/$C35),0) -> 0.95 | DL35: =IF((1-($DN$2-CH$2)/$C35)>0,(1-($DN$2-CH$2)/$C35),0) -> 0.9833333333 | DM35: =IF((1-($DN$2-CL$2)/$C35)>0,(1-($DN$2-CL$2)/$C35),0) -> 1 | DN35: 496085.2594 | DO35: 14901887.41 | DP35: 0 | DQ35: 3290434.958 | DR35: 496729.5804 | DS35: =IF((1-($EP$2-$CP35)/$C35)>0,(1-($EP$2-$CP35)/$C35),0) -> 0 | DT35: 0.3166666667 | DU35: 0.35 | DV35: 0.3833333333 | DW35: 0.4166666667 | DX35: 0.45 | DY35: 0.4833333333 | DZ35: 0.5166666667 | EA35: 0.55 | EB35: 0.5833333333 | EC35: 0.6166666667 | ED35: 0.65 | EE35: 0.6833333333 | EF35: 0.7166666667 | EG35: 0.7166666667 | EH35: 0.75 | EI35: 0.7833333333 | EJ35: 0.8166666667 | EK35: 0.85 | EL35: 0.8833333333 | EM35: 0.9166666667 | EN35: 0.95 | EO35: 0.9666666667 | EP35: 159085.2838 | EQ35: =IF((1-($FN$2-$CP35)/$C35)>0,(1-($FN$2-$CP35)/$C35),0) -> 0 | ER35: 0.2833333333 | ES35: 0.3166666667 | ET35: 0.35 | EU35: 0.3833333333 | EV35: 0.4166666667 | EW35: 0.45 | EX35: 0.4833333333 | EY35: 0.5166666667 | EZ35: 0.55 | FA35: 0.5833333333 | FB35: 0.6166666667 | FC35: 0.65 | FD35: 0.6833333333 | FE35: 0.6833333333 | FF35: 0.7166666667 | FG35: 0.75 | FH35: 0.7833333333 | FI35: 0.8166666667 | FJ35: 0.85 | FK35: 0.8833333333 | FL35: 0.9166666667 | FM35: 0.9333333333 | FN35: 159085.2838 | FO35: =IF((1-($GL$2-$CP35)/$C35)>0,(1-($GL$2-$CP35)/$C35),0) -> 0 | FP35: 0.25 | FQ35: 0.2833333333 | FR35: 0.3166666667 | FS35: 0.35 | FT35: 0.3833333333 | FU35: 0.4166666667 | FV35: 0.45 | FW35: 0.4833333333 | FX35: 0.5166666667 | FY35: 0.55 | FZ35: 0.5833333333 | GA35: 0.6166666667 | GB35: 0.65 | GC35: 0.65 | GD35: 0.6833333333 | GE35: 0.7166666667 | GF35: 0.75 | GG35: 0.7833333333 | GH35: 0.8166666667 | GI35: 0.85 | GJ35: 0.8833333333 | GK35: 0.9 | GL35: 159085.2838 | GM35: =IF((1-($HJ$2-$CP35)/$C35)>0,(1-($HJ$2-$CP35)/$C35),0) -> 0 | GN35: 0.2166666667 | GO35: 0.25 | GP35: 0.2833333333 | GQ35: 0.3166666667 | GR35: 0.35 | GS35: 0.3833333333 | GT35: 0.4166666667 | GU35: 0.45 | GV35: 0.4833333333 | GW35: 0.5166666667 | GX35: 0.55 | GY35: 0.5833333333 | GZ35: 0.6166666667 | HA35: 0.6166666667 | HB35: 0.65 | HC35: 0.6833333333 | HD35: 0.7166666667 | HE35: 0.75 | HF35: 0.7833333333 | HG35: 0.8166666667 | HH35: 0.85 | HI35: 0.8666666667 | HJ35: 159085.2838
B36: Otros equipos del sistema de distribución | D36: 0 | E36: 0 | F36: 0 | G36: 0 | H36: 0 | I36: 0 | J36: 0 | K36: 0 | L36: 0 | M36: 0 | N36: 0 | O36: 0 | P36: 0 | Q36: 0 | R36: 0 | S36: 0 | T36: 0 | U36: 0 | V36: 0 | W36: 0 | X36: 0 | Y36: 0 | Z36: 0 | AA36: 0 | AB36: 0 | AC36: 0 | AD36: 0 | AE36: 0 | AF36: 0 | AG36: 0 | AH36: 0 | AI36: 0 | AJ36: 0 | AK36: 0 | AL36: 0 | AM36: 0 | AN36: 0 | AO36: 0 | AP36: 0 | AQ36: 0 | AR36: 0 | AS36: 0 | AT36: 0 | AU36: 0 | AV36: 0 | AW36: 0 | AX36: 0 | AY36: 0 | AZ36: 0 | BA36: 0 | BB36: 0 | BC36: 0 | BD36: 0 | BE36: 0 | BF36: 0 | BG36: 0 | BH36: 0 | BI36: 0 | BJ36: 0 | BK36: 0 | BL36: 0 | BM36: 0 | BN36: 0 | BO36: 0 | BP36: 0 | BQ36: 0 | BR36: 0 | BS36: 0 | BT36: 0 | BU36: 0 | BV36: 0 | BW36: 0 | BX36: 0 | BY36: 0 | BZ36: 0 | CA36: 0 | CB36: 0 | CC36: 0 | CD36: 0 | CE36: 0 | CF36: 0 | CG36: 0 | CH36: 0 | CI36: 0 | CJ36: 0 | CK36: 0 | CL36: 0 | CM36: 0 | CN36: 0 | CO36: 0 | DN36: 0 | DO36: 0 | DP36: 0 | DQ36: 0 | EP36: 0 | FN36: 0 | GL36: 0 | HJ36: 0
B37: Otros equipos del sistema de Distribución | C37: 10 | D37: 0 | E37: 0 | F37: 0 | G37: 0 | H37: 0 | I37: 0 | J37: 0 | K37: 0 | L37: 0 | M37: 0 | N37: 0 | O37: 0 | P37: 0 | Q37: 0 | R37: 0 | S37: 0 | T37: 0 | U37: 0 | V37: 0 | W37: 0 | X37: 0 | Y37: 0 | Z37: 0 | AA37: 0 | AB37: 0 | AC37: 0 | AD37: 0 | AE37: 0 | AF37: 0 | AG37: 0 | AH37: 0 | AI37: 0 | AJ37: 0 | AK37: 0 | AL37: 0 | AM37: 0 | AN37: 0 | AO37: 0 | AP37: 0 | AQ37: 0 | AR37: 0 | AS37: 0 | AT37: 0 | AU37: 0 | AV37: 0 | AW37: 0 | AX37: 0 | AY37: 0 | AZ37: 0 | BA37: 0 | BB37: 0 | BC37: 0 | BD37: 0 | BE37: 0 | BF37: 0 | BG37: 0 | BH37: 0 | BI37: 0 | BJ37: 0 | BK37: 0 | BL37: 0 | BM37: 0 | BN37: 0 | BO37: 0 | BP37: 0 | BQ37: 0 | BR37: 0 | BS37: 0 | BT37: 0 | BU37: 0 | BV37: 0 | BW37: 0 | BX37: 0 | BY37: 0 | BZ37: 0 | CA37: 0 | CB37: 0 | CC37: 0 | CD37: 0 | CE37: 0 | CF37: 0 | CG37: 0 | CH37: 0 | CI37: 0 | CJ37: 0 | CK37: 0 | CL37: 0 | CM37: 0 | CN37: 0 | CO37: 0 | CP37: =IF(D37=0,0,2001-(D37-F37)*C37/D37) -> 0 | CQ37: =IF((1-($DN$2-$CP37)/$C37)>0,(1-($DN$2-$CP37)/$C37),0) -> 0 | CR37: =IF((1-($DN$2-G$2)/$C37)>0,(1-($DN$2-G$2)/$C37),0) -> 0 | CS37: =IF((1-($DN$2-K$2)/$C37)>0,(1-($DN$2-K$2)/$C37),0) -> 0 | CT37: =IF((1-($DN$2-O$2)/$C37)>0,(1-($DN$2-O$2)/$C37),0) -> 0 | CU37: =IF((1-($DN$2-S$2)/$C37)>0,(1-($DN$2-S$2)/$C37),0) -> 0 | CV37: =IF((1-($DN$2-W$2)/$C37)>0,(1-($DN$2-W$2)/$C37),0) -> 0 | CW37: =IF((1-($DN$2-AA$2)/$C37)>0,(1-($DN$2-AA$2)/$C37),0) -> 0 | CX37: =IF((1-($DN$2-AE$2)/$C37)>0,(1-($DN$2-AE$2)/$C37),0) -> 0 | CY37: =IF((1-($DN$2-AI$2)/$C37)>0,(1-($DN$2-AI$2)/$C37),0) -> 0 | CZ37: =IF((1-($DN$2-AM$2)/$C37)>0,(1-($DN$2-AM$2)/$C37),0) -> 0 | DA37: =IF((1-($DN$2-AQ$2)/$C37)>0,(1-($DN$2-AQ$2)/$C37),0) -> 0 | DB37: =IF((1-($DN$2-AU$2)/$C37)>0,(1-($DN$2-AU$2)/$C37),0) -> 0.05 | DC37: =IF((1-($DN$2-AY$2)/$C37)>0,(1-($DN$2-AY$2)/$C37),0) -> 0.15 | DD37: =IF((1-($DN$2-BC$2)/$C37)>0,(1-($DN$2-BC$2)/$C37),0) -> 0.25 | DE37: =IF(BG37=0,0,1-($DN$2-(2014.5-(BG37-BI37)*C37/BG37))/C37) -> 0 | DF37: =IF((1-($DN$2-BJ$2)/$C37)>0,(1-($DN$2-BJ$2)/$C37),0) -> 0.35 | DG37: =IF((1-($DN$2-BN$2)/$C37)>0,(1-($DN$2-BN$2)/$C37),0) -> 0.45 | DH37: =IF((1-($DN$2-BR$2)/$C37)>0,(1-($DN$2-BR$2)/$C37),0) -> 0.55 | DI37: =IF((1-($DN$2-BV$2)/$C37)>0,(1-($DN$2-BV$2)/$C37),0) -> 0.65 | DJ37: =IF((1-($DN$2-BZ$2)/$C37)>0,(1-($DN$2-BZ$2)/$C37),0) -> 0.75 | DK37: =IF((1-($DN$2-CD$2)/$C37)>0,(1-($DN$2-CD$2)/$C37),0) -> 0.85 | DL37: =IF((1-($DN$2-CH$2)/$C37)>0,(1-($DN$2-CH$2)/$C37),0) -> 0.95 | DM37: =IF((1-($DN$2-CL$2)/$C37)>0,(1-($DN$2-CL$2)/$C37),0) -> 1 | DN37: 0 | DO37: 0 | DP37: 0 | DQ37: 0 | DR37: 0 | DS37: =IF((1-($EP$2-$CP37)/$C37)>0,(1-($EP$2-$CP37)/$C37),0) -> 0 | DT37: =IF((1-($EP$2-DT$2)/$C37)>0,(1-($EP$2-DT$2)/$C37),0) -> 0 | DU37: 0 | DV37: 0 | DW37: 0 | DX37: 0 | DY37: 0 | DZ37: 0 | EA37: 0 | EB37: 0 | EC37: 0 | ED37: =IF((1-($EP$2-ED$2)/$C37)>0,(1-($EP$2-ED$2)/$C37),0) -> 0 | EE37: 0.05 | EF37: 0.15 | EG37: 0.15 | EH37: 0.25 | EI37: 0.35 | EJ37: 0.45 | EK37: 0.55 | EL37: 0.65 | EM37: 0.75 | EN37: 0.85 | EO37: 0.9 | EP37: 0 | EQ37: =IF((1-($FN$2-$CP37)/$C37)>0,(1-($FN$2-$CP37)/$C37),0) -> 0 | ER37: =IF((1-($FN$2-ER$2)/$C37)>0,(1-($FN$2-ER$2)/$C37),0) -> 0 | ES37: 0 | ET37: 0 | EU37: 0 | EV37: 0 | EW37: 0 | EX37: 0 | EY37: 0 | EZ37: 0 | FA37: 0 | FB37: =IF((1-($FN$2-FB$2)/$C37)>0,(1-($FN$2-FB$2)/$C37),0) -> 0 | FC37: 0 | FD37: 0.05 | FE37: 0.05 | FF37: 0.15 | FG37: 0.25 | FH37: 0.35 | FI37: 0.45 | FJ37: 0.55 | FK37: 0.65 | FL37: 0.75 | FM37: 0.8 | FN37: 0 | FO37: =IF((1-($GL$2-$CP37)/$C37)>0,(1-($GL$2-$CP37)/$C37),0) -> 0 | FP37: =IF((1-($GL$2-FP$2)/$C37)>0,(1-($GL$2-FP$2)/$C37),0) -> 0 | FQ37: 0 | FR37: 0 | FS37: 0 | FT37: 0 | FU37: 0 | FV37: 0 | FW37: 0 | FX37: 0 | FY37: 0 | FZ37: =IF((1-($GL$2-FZ$2)/$C37)>0,(1-($GL$2-FZ$2)/$C37),0) -> 0 | GA37: 0 | GB37: 0 | GC37: 0 | GD37: 0.05 | GE37: 0.15 | GF37: 0.25 | GG37: 0.35 | GH37: 0.45 | GI37: 0.55 | GJ37: 0.65 | GK37: 0.7 | GL37: 0 | GM37: =IF((1-($HJ$2-$CP37)/$C37)>0,(1-($HJ$2-$CP37)/$C37),0) -> 0 | GN37: =IF((1-($HJ$2-GN$2)/$C37)>0,(1-($HJ$2-GN$2)/$C37),0) -> 0 | GO37: 0 | GP37: 0 | GQ37: 0 | GR37: 0 | GS37: 0 | GT37: 0 | GU37: 0 | GV37: 0 | GW37: 0 | GX37: =IF((1-($HJ$2-GX$2)/$C37)>0,(1-($HJ$2-GX$2)/$C37),0) -> 0 | GY37: 0 | GZ37: 0 | HA37: 0 | HB37: 0 | HC37: 0.05 | HD37: 0.15 | HE37: 0.25 | HF37: 0.35 | HG37: 0.45 | HH37: 0.55 | HI37: 0.6 | HJ37: 0
B38: Equipos de transporte y carga | C38: 5 | D38: 0 | E38: 0 | F38: 0 | G38: 0 | H38: 0 | I38: 0 | J38: 0 | K38: 0 | L38: 0 | M38: 0 | N38: 0 | O38: 0 | P38: 0 | Q38: 0 | R38: 0 | S38: 0 | T38: 0 | U38: 0 | V38: 0 | W38: 0 | X38: 0 | Y38: 0 | Z38: 0 | AA38: 0 | AB38: 0 | AC38: 0 | AD38: 0 | AE38: 0 | AF38: 0 | AG38: 0 | AH38: 0 | AI38: 0 | AJ38: 0 | AK38: 0 | AL38: 0 | AM38: 0 | AN38: 0 | AO38: 0 | AP38: 0 | AQ38: 0 | AR38: 0 | AS38: 0 | AT38: 0 | AU38: 0 | AV38: 0 | AW38: 0 | AX38: 0 | AY38: 13307.93 | AZ38: 0 | BA38: 0 | BB38: 0 | BC38: 0 | BD38: 0 | BE38: 0 | BF38: 0 | BG38: 0 | BH38: 0 | BI38: 0 | BJ38: 0 | BK38: 0 | BL38: 0 | BM38: 0 | BN38: 0 | BO38: 0 | BP38: 0 | BQ38: 0 | BR38: 0 | BS38: 0 | BT38: 0 | BU38: 0 | BV38: 0 | BW38: 0 | BX38: 0 | BY38: 0 | BZ38: 0 | CA38: 0 | CB38: 0 | CC38: 0 | CD38: 0 | CE38: 0 | CF38: 0 | CG38: 0 | CH38: 0 | CI38: 0 | CJ38: 0 | CK38: 0 | CL38: 0 | CM38: 0 | CN38: 0 | CO38: 0 | CP38: 0 | CQ38: 0 | CR38: 0 | CS38: 0 | CT38: 0 | CU38: 0 | CV38: 0 | CW38: 0 | CX38: 0 | CY38: 0 | CZ38: 0 | DA38: 0 | DB38: 0 | DC38: 0 | DD38: 0 | DE38: 0 | DF38: 0 | DG38: 0 | DH38: 0.1 | DI38: 0.3 | DJ38: 0.5 | DK38: 0.7 | DL38: 0.9 | DM38: 1 | DN38: 0 | DO38: 7670.868981 | DP38: 7670.868981 | DQ38: 0 | DR38: 0 | DS38: 0 | DT38: 0 | DU38: 0 | DV38: 0 | DW38: 0 | DX38: 0 | DY38: 0 | DZ38: 0 | EA38: 0 | EB38: 0 | EC38: 0 | ED38: 0 | EE38: 0 | EF38: 0 | EG38: 0 | EH38: 0 | EI38: 0 | EJ38: 0 | EK38: 0.1 | EL38: 0.3 | EM38: 0.5 | EN38: 0.7 | EO38: 0.8 | EP38: 0 | EQ38: 0 | ER38: 0 | ES38: 0 | ET38: 0 | EU38: 0 | EV38: 0 | EW38: 0 | EX38: 0 | EY38: 0 | EZ38: 0 | FA38: 0 | FB38: 0 | FC38: 0 | FD38: 0 | FE38: 0 | FF38: 0 | FG38: 0 | FH38: 0 | FI38: 0 | FJ38: 0.1 | FK38: 0.3 | FL38: 0.5 | FM38: 0.6 | FN38: 0 | FO38: 0 | FP38: 0 | FQ38: 0 | FR38: 0 | FS38: 0 | FT38: 0 | FU38: 0 | FV38: 0 | FW38: 0 | FX38: 0 | FY38: 0 | FZ38: 0 | GA38: 0 | GB38: 0 | GC38: 0 | GD38: 0 | GE38: 0 | GF38: 0 | GG38: 0 | GH38: 0 | GI38: 0.1 | GJ38: 0.3 | GK38: 0.4 | GL38: 0 | GM38: 0 | GN38: 0 | GO38: 0 | GP38: 0 | GQ38: 0 | GR38: 0 | GS38: 0 | GT38: 0 | GU38: 0 | GV38: 0 | GW38: 0 | GX38: 0 | GY38: 0 | GZ38: 0 | HA38: 0 | HB38: 0 | HC38: 0 | HD38: 0 | HE38: 0 | HF38: 0 | HG38: 0 | HH38: 0.1 | HI38: 0.2 | HJ38: 0
B39: Terrenos | C39: 1000 | D39: 0 | E39: 0 | F39: 0 | G39: 0 | H39: 0 | I39: 0 | J39: 0 | K39: 0 | L39: 0 | M39: 0 | N39: 0 | O39: 0 | P39: 0 | Q39: 0 | R39: 0 | S39: 0 | T39: 0 | U39: 0 | V39: 0 | W39: 0 | X39: 0 | Y39: 0 | Z39: 0 | AA39: 0 | AB39: 0 | AC39: 0 | AD39: 0 | AE39: 0 | AF39: 0 | AG39: 0 | AH39: 0 | AI39: 0 | AJ39: 0 | AK39: 0 | AL39: 0 | AM39: 0 | AN39: 0 | AO39: 0 | AP39: 0 | AQ39: 0 | AR39: 0 | AS39: 0 | AT39: 0 | AU39: 0 | AV39: 0 | AW39: 0 | AX39: 0 | AY39: 0 | AZ39: 0 | BA39: 0 | BB39: 0 | BC39: 0 | BD39: 0 | BE39: 0 | BF39: 0 | BG39: 0 | BH39: 0 | BI39: 0 | BJ39: 0 | BK39: 0 | BL39: 0 | BM39: 0 | BN39: 0 | BO39: 0 | BP39: 0 | BQ39: 0 | BR39: 0 | BS39: 0 | BT39: 0 | BU39: 0 | BV39: 0 | BW39: 0 | BX39: 0 | BY39: 0 | BZ39: 0 | CA39: 0 | CB39: 0 | CC39: 0 | CD39: 0 | CE39: 0 | CF39: 0 | CG39: 0 | CH39: 0 | CI39: 0 | CJ39: 0 | CK39: 0 | CL39: 0 | CM39: 0 | CN39: 0 | CO39: 0 | CP39: 0 | CQ39: 0 | CR39: 0.9805 | CS39: 0.9815 | CT39: 0.9825 | CU39: 0.9835 | CV39: 0.9845 | CW39: 0.9855 | CX39: 0.9865 | CY39: 0.9875 | CZ39: 0.9885 | DA39: 0.9895 | DB39: 0.9905 | DC39: 0.9915 | DD39: 0.9925 | DE39: 0 | DF39: 0.9935 | DG39: 0.9945 | DH39: 0.9955 | DI39: 0.9965 | DJ39: 0.9975 | DK39: 0.9985 | DL39: 0.9995 | DM39: 1 | DN39: 0 | DO39: 0 | DP39: 0 | DQ39: 0 | DR39: 0 | DS39: 0 | DT39: 0.9795 | DU39: 0.9805 | DV39: 0.9815 | DW39: 0.9825 | DX39: 0.9835 | DY39: 0.9845 | DZ39: 0.9855 | EA39: 0.9865 | EB39: 0.9875 | EC39: 0.9885 | ED39: 0.9895 | EE39: 0.9905 | EF39: 0.9915 | EG39: 0.9915 | EH39: 0.9925 | EI39: 0.9935 | EJ39: 0.9945 | EK39: 0.9955 | EL39: 0.9965 | EM39: 0.9975 | EN39: 0.9985 | EO39: 0.999 | EP39: 0 | EQ39: 0 | ER39: 0.9785 | ES39: 0.9795 | ET39: 0.9805 | EU39: 0.9815 | EV39: 0.9825 | EW39: 0.9835 | EX39: 0.9845 | EY39: 0.9855 | EZ39: 0.9865 | FA39: 0.9875 | FB39: 0.9885 | FC39: 0.9895 | FD39: 0.9905 | FE39: 0.9905 | FF39: 0.9915 | FG39: 0.9925 | FH39: 0.9935 | FI39: 0.9945 | FJ39: 0.9955 | FK39: 0.9965 | FL39: 0.9975 | FM39: 0.998 | FN39: 0 | FO39: 0 | FP39: 0.9775 | FQ39: 0.9785 | FR39: 0.9795 | FS39: 0.9805 | FT39: 0.9815 | FU39: 0.9825 | FV39: 0.9835 | FW39: 0.9845 | FX39: 0.9855 | FY39: 0.9865 | FZ39: 0.9875 | GA39: 0.9885 | GB39: 0.9895 | GC39: 0.9895 | GD39: 0.9905 | GE39: 0.9915 | GF39: 0.9925 | GG39: 0.9935 | GH39: 0.9945 | GI39: 0.9955 | GJ39: 0.9965 | GK39: 0.997 | GL39: 0 | GM39: 0 | GN39: 0.9765 | GO39: 0.9775 | GP39: 0.9785 | GQ39: 0.9795 | GR39: 0.9805 | GS39: 0.9815 | GT39: 0.9825 | GU39: 0.9835 | GV39: 0.9845 | GW39: 0.9855 | GX39: 0.9865 | GY39: 0.9875 | GZ39: 0.9885 | HA39: 0.9885 | HB39: 0.9895 | HC39: 0.9905 | HD39: 0.9915 | HE39: 0.9925 | HF39: 0.9935 | HG39: 0.9945 | HH39: 0.9955 | HI39: 0.996 | HJ39: 0
B40: Edificios y mejoras | C40: 40 | D40: 0 | E40: 0 | F40: 0 | G40: 0 | H40: 0 | I40: 0 | J40: 0 | K40: 0 | L40: 0 | M40: 0 | N40: 0 | O40: 0 | P40: 0 | Q40: 0 | R40: 0 | S40: 0 | T40: 0 | U40: 0 | V40: 0 | W40: 0 | X40: 0 | Y40: 0 | Z40: 0 | AA40: 0 | AB40: 0 | AC40: 0 | AD40: 0 | AE40: 0 | AF40: 0 | AG40: 0 | AH40: 0 | AI40: 0 | AJ40: 0 | AK40: 0 | AL40: 0 | AM40: 0 | AN40: 0 | AO40: 0 | AP40: 0 | AQ40: 0 | AR40: 0 | AS40: 0 | AT40: 0 | AU40: 0 | AV40: 0 | AW40: 0 | AX40: 0 | AY40: 0 | AZ40: 0 | BA40: 0 | BB40: 0 | BC40: 0 | BD40: 0 | BE40: 0 | BF40: 0 | BG40: 0 | BH40: 0 | BI40: 0 | BJ40: 0 | BK40: 0 | BL40: 0 | BM40: 0 | BN40: 0 | BO40: 0 | BP40: 0 | BQ40: 0 | BR40: 0 | BS40: 0 | BT40: 0 | BU40: 0 | BV40: 0 | BW40: 0 | BX40: 0 | BY40: 0 | BZ40: 0 | CA40: 0 | CB40: 0 | CC40: 0 | CD40: 0 | CE40: 0 | CF40: 0 | CG40: 0 | CH40: 0 | CI40: 0 | CJ40: 0 | CK40: 0 | CL40: 0 | CM40: 0 | CN40: 0 | CO40: 0 | CP40: 0 | CQ40: 0 | CR40: 0.5125 | CS40: 0.5375 | CT40: 0.5625 | CU40: 0.5875 | CV40: 0.6125 | CW40: 0.6375 | CX40: 0.6625 | CY40: 0.6875 | CZ40: 0.7125 | DA40: 0.7375 | DB40: 0.7625 | DC40: 0.7875 | DD40: 0.8125 | DE40: 0 | DF40: 0.8375 | DG40: 0.8625 | DH40: 0.8875 | DI40: 0.9125 | DJ40: 0.9375 | DK40: 0.9625 | DL40: 0.9875 | DM40: 1 | DN40: 0 | DO40: 0 | DP40: 0 | DQ40: 0 | DR40: 0 | DS40: 0 | DT40: 0.4875 | DU40: 0.5125 | DV40: 0.5375 | DW40: 0.5625 | DX40: 0.5875 | DY40: 0.6125 | DZ40: 0.6375 | EA40: 0.6625 | EB40: 0.6875 | EC40: 0.7125 | ED40: 0.7375 | EE40: 0.7625 | EF40: 0.7875 | EG40: 0.7875 | EH40: 0.8125 | EI40: 0.8375 | EJ40: 0.8625 | EK40: 0.8875 | EL40: 0.9125 | EM40: 0.9375 | EN40: 0.9625 | EO40: 0.975 | EP40: 0 | EQ40: 0 | ER40: 0.4625 | ES40: 0.4875 | ET40: 0.5125 | EU40: 0.5375 | EV40: 0.5625 | EW40: 0.5875 | EX40: 0.6125 | EY40: 0.6375 | EZ40: 0.6625 | FA40: 0.6875 | FB40: 0.7125 | FC40: 0.7375 | FD40: 0.7625 | FE40: 0.7625 | FF40: 0.7875 | FG40: 0.8125 | FH40: 0.8375 | FI40: 0.8625 | FJ40: 0.8875 | FK40: 0.9125 | FL40: 0.9375 | FM40: 0.95 | FN40: 0 | FO40: 0 | FP40: 0.4375 | FQ40: 0.4625 | FR40: 0.4875 | FS40: 0.5125 | FT40: 0.5375 | FU40: 0.5625 | FV40: 0.5875 | FW40: 0.6125 | FX40: 0.6375 | FY40: 0.6625 | FZ40: 0.6875 | GA40: 0.7125 | GB40: 0.7375 | GC40: 0.7375 | GD40: 0.7625 | GE40: 0.7875 | GF40: 0.8125 | GG40: 0.8375 | GH40: 0.8625 | GI40: 0.8875 | GJ40: 0.9125 | GK40: 0.925 | GL40: 0 | GM40: 0 | GN40: 0.4125 | GO40: 0.4375 | GP40: 0.4625 | GQ40: 0.4875 | GR40: 0.5125 | GS40: 0.5375 | GT40: 0.5625 | GU40: 0.5875 | GV40: 0.6125 | GW40: 0.6375 | GX40: 0.6625 | GY40: 0.6875 | GZ40: 0.7125 | HA40: 0.7125 | HB40: 0.7375 | HC40: 0.7625 | HD40: 0.7875 | HE40: 0.8125 | HF40: 0.8375 | HG40: 0.8625 | HH40: 0.8875 | HI40: 0.9 | HJ40: 0
B41: Despachos de maniobra y SCADA | C41: 10 | D41: 68012.5323 | E41: 0 | F41: 0 | G41: 8156.81 | H41: 0 | I41: 0 | J41: 0 | K41: 72957 | L41: 0 | M41: 0 | N41: 0 | O41: 70981 | P41: 0 | Q41: 0 | R41: 0 | S41: 43325 | T41: 0 | U41: 0 | V41: 0 | W41: 0 | X41: 0 | Y41: 0 | Z41: 0 | AA41: 0 | AB41: 0 | AC41: 0 | AD41: 0 | AE41: 48894 | AF41: 0 | AG41: 0 | AH41: 0 | AI41: 43891.28 | AJ41: 0 | AK41: 0 | AL41: 0 | AM41: 15184 | AN41: 0 | AO41: 0 | AP41: 0 | AQ41: 15539.74 | AR41: 0 | AS41: 0 | AT41: 0 | AU41: 11462.5 | AV41: 0 | AW41: 0 | AX41: 0 | AY41: 13307.93 | AZ41: 0 | BA41: 0 | BB41: 0 | BC41: 326558.83 | BD41: 0 | BE41: 0 | BF41: 0 | BG41: 0 | BH41: 0 | BI41: 0 | BJ41: 848385 | BK41: 0 | BL41: 0 | BM41: 0 | BN41: 1423195.31 | BO41: 0 | BP41: 0 | BQ41: 0 | BR41: 894955.95 | BS41: 0 | BT41: 0 | BU41: 0 | BV41: 463708.7 | BW41: 0 | BX41: 0 | BY41: 0 | BZ41: 751857.28 | CA41: 0 | CB41: 0 | CC41: 0 | CD41: 935191.96 | CE41: 0 | CF41: 0 | CG41: 0 | CH41: 1564664.1 | CI41: 0 | CJ41: 0 | CK41: 0 | CL41: 0 | CM41: 0 | CN41: 0 | CO41: 0 | CP41: 1991 | CQ41: 0 | CR41: 0 | CS41: 0 | CT41: 0 | CU41: 0 | CV41: 0 | CW41: 0 | CX41: 0 | CY41: 0 | CZ41: 0 | DA41: 0 | DB41: 0.05 | DC41: 0.15 | DD41: 0.25 | DE41: 0 | DF41: 0.35 | DG41: 0.45 | DH41: 0.55 | DI41: 0.65 | DJ41: 0.75 | DK41: 0.85 | DL41: 0.95 | DM41: 1 | DN41: 620060.879 | DO41: 6541229.624 | DP41: 340620.8334 | DQ41: 3999611.646 | DR41: 620060.879 | DS41: 0 | DT41: 0 | DU41: 0 | DV41: 0 | DW41: 0 | DX41: 0 | DY41: 0 | DZ41: 0 | EA41: 0 | EB41: 0 | EC41: 0 | ED41: 0 | EE41: 0.05 | EF41: 0.15 | EG41: 0.15 | EH41: 0.25 | EI41: 0.35 | EJ41: 0.45 | EK41: 0.55 | EL41: 0.65 | EM41: 0.75 | EN41: 0.85 | EO41: 0.9 | EP41: 619124.3457 | EQ41: 0 | ER41: 0 | ES41: 0 | ET41: 0 | EU41: 0 | EV41: 0 | EW41: 0 | EX41: 0 | EY41: 0 | EZ41: 0 | FA41: 0 | FB41: 0 | FC41: 0 | FD41: 0.05 | FE41: 0.05 | FF41: 0.15 | FG41: 0.25 | FH41: 0.35 | FI41: 0.45 | FJ41: 0.55 | FK41: 0.65 | FL41: 0.75 | FM41: 0.8 | FN41: 618357.2588 | FO41: 0 | FP41: 0 | FQ41: 0 | FR41: 0 | FS41: 0 | FT41: 0 | FU41: 0 | FV41: 0 | FW41: 0 | FX41: 0 | FY41: 0 | FZ41: 0 | GA41: 0 | GB41: 0 | GC41: 0 | GD41: 0.05 | GE41: 0.15 | GF41: 0.25 | GG41: 0.35 | GH41: 0.45 | GI41: 0.55 | GJ41: 0.65 | GK41: 0.7 | GL41: 591354.3416 | GM41: 0 | GN41: 0 | GO41: 0 | GP41: 0 | GQ41: 0 | GR41: 0 | GS41: 0 | GT41: 0 | GU41: 0 | GV41: 0 | GW41: 0 | GX41: 0 | GY41: 0 | GZ41: 0 | HA41: 0 | HB41: 0 | HC41: 0.05 | HD41: 0.15 | HE41: 0.25 | HF41: 0.35 | HG41: 0.45 | HH41: 0.55 | HI41: 0.6 | HJ41: 521211.048
B42: Equipos de medición y control de la calidad del suministro | C42: 22 | D42: 0 | E42: 0 | F42: 0 | G42: 0 | H42: 0 | I42: 0 | J42: 0 | K42: 0 | L42: 0 | M42: 0 | N42: 0 | O42: 0 | P42: 0 | Q42: 0 | R42: 0 | S42: 0 | T42: 0 | U42: 0 | V42: 0 | W42: 0 | X42: 0 | Y42: 0 | Z42: 0 | AA42: 0 | AB42: 0 | AC42: 0 | AD42: 0 | AE42: 21889 | AF42: 0 | AG42: 0 | AH42: 0 | AI42: 0 | AJ42: 0 | AK42: 0 | AL42: 0 | AM42: 0 | AN42: 0 | AO42: 0 | AP42: 0 | AQ42: 0 | AR42: 0 | AS42: 0 | AT42: 0 | AU42: 2142 | AV42: 0 | AW42: 0 | AX42: 0 | AY42: 48264.98 | AZ42: 0 | BA42: 0 | BB42: 0 | BC42: 285524.53 | BD42: 0 | BE42: 0 | BF42: 0 | BG42: 0 | BH42: 0 | BI42: 0 | BJ42: 23834.44 | BK42: 0 | BL42: 0 | BM42: 0 | BN42: 77437.19 | BO42: 0 | BP42: 0 | BQ42: 0 | BR42: 167430 | BS42: 0 | BT42: 0 | BU42: 0 | BV42: 0 | BW42: 0 | BX42: 0 | BY42: 0 | BZ42: 10851.34 | CA42: 0 | CB42: 0 | CC42: 0 | CD42: 124090.45 | CE42: 0 | CF42: 0 | CG42: 0 | CH42: 211466.45 | CI42: 0 | CJ42: 0 | CK42: 0 | CL42: 0 | CM42: 0 | CN42: 0 | CO42: 0 | CP42: 0 | CQ42: 0 | CR42: 0.1136363636 | CS42: 0.1590909091 | CT42: 0.2045454545 | CU42: 0.25 | CV42: 0.2954545455 | CW42: 0.3409090909 | CX42: 0.3863636364 | CY42: 0.4318181818 | CZ42: 0.4772727273 | DA42: 0.5227272727 | DB42: 0.5681818182 | DC42: 0.6136363636 | DD42: 0.6590909091 | DE42: 0 | DF42: 0.7045454545 | DG42: 0.75 | DH42: 0.7954545455 | DI42: 0.8409090909 | DJ42: 0.8863636364 | DK42: 0.9318181818 | DL42: 0.9772727273 | DM42: 1 | DN42: 36999.34416 | DO42: 813985.5715 | DP42: 0 | DQ42: 645464.6355 | DR42: 36999.34416 | DS42: 0 | DT42: 0.06818181818 | DU42: 0.1136363636 | DV42: 0.1590909091 | DW42: 0.2045454545 | DX42: 0.25 | DY42: 0.2954545455 | DZ42: 0.3409090909 | EA42: 0.3863636364 | EB42: 0.4318181818 | EC42: 0.4772727273 | ED42: 0.5227272727 | EE42: 0.5681818182 | EF42: 0.6136363636 | EG42: 0.6136363636 | EH42: 0.6590909091 | EI42: 0.7045454545 | EJ42: 0.75 | EK42: 0.7954545455 | EL42: 0.8409090909 | EM42: 0.8863636364 | EN42: 0.9318181818 | EO42: 0.9545454545 | EP42: 36999.34416 | EQ42: 0 | ER42: 0.02272727273 | ES42: 0.06818181818 | ET42: 0.1136363636 | EU42: 0.1590909091 | EV42: 0.2045454545 | EW42: 0.25 | EX42: 0.2954545455 | EY42: 0.3409090909 | EZ42: 0.3863636364 | FA42: 0.4318181818 | FB42: 0.4772727273 | FC42: 0.5227272727 | FD42: 0.5681818182 | FE42: 0.5681818182 | FF42: 0.6136363636 | FG42: 0.6590909091 | FH42: 0.7045454545 | FI42: 0.75 | FJ42: 0.7954545455 | FK42: 0.8409090909 | FL42: 0.8863636364 | FM42: 0.9090909091 | FN42: 36999.34416 | FO42: 0 | FP42: 0 | FQ42: 0.02272727273 | FR42: 0.06818181818 | FS42: 0.1136363636 | FT42: 0.1590909091 | FU42: 0.2045454545 | FV42: 0.25 | FW42: 0.2954545455 | FX42: 0.3409090909 | FY42: 0.3863636364 | FZ42: 0.4318181818 | GA42: 0.4772727273 | GB42: 0.5227272727 | GC42: 0.5227272727 | GD42: 0.5681818182 | GE42: 0.6136363636 | GF42: 0.6590909091 | GG42: 0.7045454545 | GH42: 0.75 | GI42: 0.7954545455 | GJ42: 0.8409090909 | GK42: 0.8636363636 | GL42: 36999.34416 | GM42: 0 | GN42: 0 | GO42: 0 | GP42: 0.02272727273 | GQ42: 0.06818181818 | GR42: 0.1136363636 | GS42: 0.1590909091 | GT42: 0.2045454545 | GU42: 0.25 | GV42: 0.2954545455 | GW42: 0.3409090909 | GX42: 0.3863636364 | GY42: 0.4318181818 | GZ42: 0.4772727273 | HA42: 0.4772727273 | HB42: 0.5227272727 | HC42: 0.5681818182 | HD42: 0.6136363636 | HE42: 0.6590909091 | HF42: 0.7045454545 | HG42: 0.75 | HH42: 0.7954545455 | HI42: 0.8181818182 | HJ42: 36999.34416
B43: Equipos de computación | C43: 4 | D43: 0 | E43: 0 | F43: 0 | G43: 0 | H43: 0 | I43: 0 | J43: 0 | K43: 0 | L43: 0 | M43: 0 | N43: 0 | O43: 0 | P43: 0 | Q43: 0 | R43: 0 | S43: 0 | T43: 0 | U43: 0 | V43: 0 | W43: 0 | X43: 0 | Y43: 0 | Z43: 0 | AA43: 0 | AB43: 0 | AC43: 0 | AD43: 0 | AE43: 0 | AF43: 0 | AG43: 0 | AH43: 0 | AI43: 0 | AJ43: 0 | AK43: 0 | AL43: 0 | AM43: 0 | AN43: 0 | AO43: 0 | AP43: 0 | AQ43: 0 | AR43: 0 | AS43: 0 | AT43: 0 | AU43: 0 | AV43: 0 | AW43: 0 | AX43: 0 | AY43: 0 | AZ43: 0 | BA43: 0 | BB43: 0 | BC43: 0 | BD43: 0 | BE43: 0 | BF43: 0 | BG43: 0 | BH43: 0 | BI43: 0 | BJ43: 0 | BK43: 0 | BL43: 0 | BM43: 0 | BN43: 0 | BO43: 0 | BP43: 0 | BQ43: 0 | BR43: 0 | BS43: 0 | BT43: 0 | BU43: 0 | BV43: 0 | BW43: 0 | BX43: 0 | BY43: 0 | BZ43: 0 | CA43: 0 | CB43: 0 | CC43: 0 | CD43: 0 | CE43: 0 | CF43: 0 | CG43: 0 | CH43: 0 | CI43: 0 | CJ43: 0 | CK43: 0 | CL43: 0 | CM43: 0 | CN43: 0 | CO43: 0 | CP43: 0 | CQ43: 0 | CR43: 0 | CS43: 0 | CT43: 0 | CU43: 0 | CV43: 0 | CW43: 0 | CX43: 0 | CY43: 0 | CZ43: 0 | DA43: 0 | DB43: 0 | DC43: 0 | DD43: 0 | DE43: 0 | DF43: 0 | DG43: 0 | DH43: 0 | DI43: 0.125 | DJ43: 0.375 | DK43: 0.625 | DL43: 0.875 | DM43: 1 | DN43: 0 | DO43: 0 | DP43: 0 | DQ43: 0 | DR43: 0 | DS43: 0 | DT43: 0 | DU43: 0 | DV43: 0 | DW43: 0 | DX43: 0 | DY43: 0 | DZ43: 0 | EA43: 0 | EB43: 0 | EC43: 0 | ED43: 0 | EE43: 0 | EF43: 0 | EG43: 0 | EH43: 0 | EI43: 0 | EJ43: 0 | EK43: 0 | EL43: 0.125 | EM43: 0.375 | EN43: 0.625 | EO43: 0.75 | EP43: 0 | EQ43: 0 | ER43: 0 | ES43: 0 | ET43: 0 | EU43: 0 | EV43: 0 | EW43: 0 | EX43: 0 | EY43: 0 | EZ43: 0 | FA43: 0 | FB43: 0 | FC43: 0 | FD43: 0 | FE43: 0 | FF43: 0 | FG43: 0 | FH43: 0 | FI43: 0 | FJ43: 0 | FK43: 0.125 | FL43: 0.375 | FM43: 0.5 | FN43: 0 | FO43: 0 | FP43: 0 | FQ43: 0 | FR43: 0 | FS43: 0 | FT43: 0 | FU43: 0 | FV43: 0 | FW43: 0 | FX43: 0 | FY43: 0 | FZ43: 0 | GA43: 0 | GB43: 0 | GC43: 0 | GD43: 0 | GE43: 0 | GF43: 0 | GG43: 0 | GH43: 0 | GI43: 0 | GJ43: 0.125 | GK43: 0.25 | GL43: 0 | GM43: 0 | GN43: 0 | GO43: 0 | GP43: 0 | GQ43: 0 | GR43: 0 | GS43: 0 | GT43: 0 | GU43: 0 | GV43: 0 | GW43: 0 | GX43: 0 | GY43: 0 | GZ43: 0 | HA43: 0 | HB43: 0 | HC43: 0 | HD43: 0 | HE43: 0 | HF43: 0 | HG43: 0 | HH43: 0 | HI43: 0 | HJ43: 0
B44: Equipos de comunicaciones | C44: 8 | D44: 0 | E44: 0 | F44: 0 | G44: 28201.54 | H44: 0 | I44: 0 | J44: 0 | K44: 40330.74994 | L44: 0 | M44: 0 | N44: 0 | O44: 24699.62 | P44: 0 | Q44: 0 | R44: 0 | S44: 0 | T44: 0 | U44: 0 | V44: 0 | W44: 30771.72 | X44: 0 | Y44: 0 | Z44: 0 | AA44: 26890.07 | AB44: 0 | AC44: 0 | AD44: 0 | AE44: 24056.72 | AF44: 0 | AG44: 0 | AH44: 0 | AI44: 0 | AJ44: 0 | AK44: 0 | AL44: 0 | AM44: 0 | AN44: 0 | AO44: 0 | AP44: 0 | AQ44: 0 | AR44: 0 | AS44: 0 | AT44: 0 | AU44: 0 | AV44: 0 | AW44: 0 | AX44: 0 | AY44: 0 | AZ44: 0 | BA44: 0 | BB44: 0 | BC44: 0 | BD44: 0 | BE44: 0 | BF44: 0 | BG44: 0 | BH44: 0 | BI44: 0 | BJ44: 0 | BK44: 0 | BL44: 0 | BM44: 0 | BN44: 0 | BO44: 0 | BP44: 0 | BQ44: 0 | BR44: 0 | BS44: 0 | BT44: 0 | BU44: 0 | BV44: 0 | BW44: 0 | BX44: 0 | BY44: 0 | BZ44: 0 | CA44: 0 | CB44: 0 | CC44: 0 | CD44: 0 | CE44: 0 | CF44: 0 | CG44: 0 | CH44: 0 | CI44: 0 | CJ44: 0 | CK44: 0 | CL44: 0 | CM44: 0 | CN44: 0 | CO44: 0 | CP44: 0 | CQ44: 0 | CR44: 0 | CS44: 0 | CT44: 0 | CU44: 0 | CV44: 0 | CW44: 0 | CX44: 0 | CY44: 0 | CZ44: 0 | DA44: 0 | DB44: 0 | DC44: 0 | DD44: 0.0625 | DE44: 0 | DF44: 0.1875 | DG44: 0.3125 | DH44: 0.4375 | DI44: 0.5625 | DJ44: 0.6875 | DK44: 0.8125 | DL44: 0.9375 | DM44: 1 | DN44: 0 | DO44: 153091.8133 | DP44: 153091.8133 | DQ44: 0 | DR44: 0 | DS44: 0 | DT44: 0 | DU44: 0 | DV44: 0 | DW44: 0 | DX44: 0 | DY44: 0 | DZ44: 0 | EA44: 0 | EB44: 0 | EC44: 0 | ED44: 0 | EE44: 0 | EF44: 0 | EG44: 0 | EH44: 0.0625 | EI44: 0.1875 | EJ44: 0.3125 | EK44: 0.4375 | EL44: 0.5625 | EM44: 0.6875 | EN44: 0.8125 | EO44: 0.875 | EP44: 0 | EQ44: 0 | ER44: 0 | ES44: 0 | ET44: 0 | EU44: 0 | EV44: 0 | EW44: 0 | EX44: 0 | EY44: 0 | EZ44: 0 | FA44: 0 | FB44: 0 | FC44: 0 | FD44: 0 | FE44: 0 | FF44: 0 | FG44: 0.0625 | FH44: 0.1875 | FI44: 0.3125 | FJ44: 0.4375 | FK44: 0.5625 | FL44: 0.6875 | FM44: 0.75 | FN44: 0 | FO44: 0 | FP44: 0 | FQ44: 0 | FR44: 0 | FS44: 0 | FT44: 0 | FU44: 0 | FV44: 0 | FW44: 0 | FX44: 0 | FY44: 0 | FZ44: 0 | GA44: 0 | GB44: 0 | GC44: 0 | GD44: 0 | GE44: 0 | GF44: 0.0625 | GG44: 0.1875 | GH44: 0.3125 | GI44: 0.4375 | GJ44: 0.5625 | GK44: 0.625 | GL44: 0 | GM44: 0 | GN44: 0 | GO44: 0 | GP44: 0 | GQ44: 0 | GR44: 0 | GS44: 0 | GT44: 0 | GU44: 0 | GV44: 0 | GW44: 0 | GX44: 0 | GY44: 0 | GZ44: 0 | HA44: 0 | HB44: 0 | HC44: 0 | HD44: 0 | HE44: 0.0625 | HF44: 0.1875 | HG44: 0.3125 | HH44: 0.4375 | HI44: 0.5 | HJ44: 0
B45: TOTAL SISTEMA DE DISTRIBUCIÓN | D45: =SUM(D14:D44) -> 64380215.58 | E45: =SUM(E14:E44) -> 0 | F45: 36745444.95 | G45: =SUM(G14:G44) -> 1262365.36 | H45: =SUM(H14:H44) -> 0 | I45: 0 | J45: 0 | K45: =SUM(K14:K44) -> 2422005.585 | L45: =SUM(L14:L44) -> 315949 | M45: =SUM(M14:M44) -> 0 | N45: =SUM(N14:N44) -> 0 | O45: =SUM(O14:O44) -> 2468106.68 | P45: =SUM(P14:P44) -> 0 | Q45: =SUM(Q14:Q44) -> 0 | R45: =SUM(R14:R44) -> 0 | S45: =SUM(S14:S44) -> 2636963 | T45: =SUM(T14:T44) -> 0 | U45: =SUM(U14:U44) -> 0 | V45: =SUM(V14:V44) -> 0 | W45: =SUM(W14:W44) -> 2901614.09 | X45: =SUM(X14:X44) -> 0 | Y45: =SUM(Y14:Y44) -> 0 | Z45: =SUM(Z14:Z44) -> 0 | AA45: =SUM(AA14:AA44) -> 4650052.81 | AB45: =SUM(AB14:AB44) -> 556386.07 | AC45: =SUM(AC14:AC44) -> 0 | AD45: =SUM(AD14:AD44) -> 0 | AE45: =SUM(AE14:AE44) -> 5437854.7 | AF45: =SUM(AF14:AF44) -> 0 | AG45: =SUM(AG14:AG44) -> 0 | AH45: =SUM(AH14:AH44) -> 0 | AI45: =SUM(AI14:AI44) -> 7755169.1 | AJ45: =SUM(AJ14:AJ44) -> 0 | AK45: =SUM(AK14:AK44) -> 0 | AL45: =SUM(AL14:AL44) -> 0 | AM45: =SUM(AM14:AM44) -> 5445007.672 | AN45: =SUM(AN14:AN44) -> 0 | AO45: =SUM(AO14:AO44) -> 0 | AP45: =SUM(AP14:AP44) -> 0 | AQ45: =SUM(AQ14:AQ44) -> 6483412.96 | AR45: =SUM(AR14:AR44) -> 0 | AS45: =SUM(AS14:AS44) -> 0 | AT45: =SUM(AT14:AT44) -> 0 | AU45: =SUM(AU14:AU44) -> 4744163.73 | AV45: =SUM(AV14:AV44) -> 0 | AW45: =SUM(AW14:AW44) -> 0 | AX45: =SUM(AX14:AX44) -> 0 | AY45: =SUM(AY14:AY44) -> 8655575.758 | AZ45: =SUM(AZ14:AZ44) -> 0 | BA45: =SUM(BA14:BA44) -> 0 | BB45: =SUM(BB14:BB44) -> 0 | BC45: =SUM(BC14:BC44) -> 8595478.49 | BD45: =SUM(BD14:BD44) -> 0 | BE45: =SUM(BE14:BE44) -> 0 | BF45: =SUM(BF14:BF44) -> 0 | BG45: =SUM(BG14:BG44) -> 6931047.248 | BH45: =SUM(BH14:BH44) -> 5763524.558 | BI45: =SUM(BI14:BI44) -> 4907911.22 | BJ45: =SUM(BJ14:BJ44) -> 10289030.28 | BK45: =SUM(BK14:BK44) -> 0 | BL45: =SUM(BL14:BL44) -> 0 | BM45: =SUM(BM14:BM44) -> 0 | BN45: =SUM(BN14:BN44) -> 23273467.4 | BO45: =SUM(BO14:BO44) -> 0 | BP45: =SUM(BP14:BP44) -> 0 | BQ45: =SUM(BQ14:BQ44) -> 0 | BR45: =SUM(BR14:BR44) -> 16573617.79 | BS45: =SUM(BS14:BS44) -> 65610.73 | BT45: =SUM(BT14:BT44) -> 0 | BU45: =SUM(BU14:BU44) -> 0 | BV45: =SUM(BV14:BV44) -> 17574337.19 | BW45: =SUM(BW14:BW44) -> 2126529.264 | BX45: =SUM(BX14:BX44) -> 0 | BY45: =SUM(BY14:BY44) -> 0 | BZ45: =SUM(BZ14:BZ44) -> 17203994.49 | CA45: =SUM(CA14:CA44) -> 2659763.211 | CB45: =SUM(CB14:CB44) -> 0 | CC45: =SUM(CC14:CC44) -> 0 | CD45: =SUM(CD14:CD44) -> 15929715.17 | CE45: =SUM(CE14:CE44) -> 519973.6671 | CF45: =SUM(CF14:CF44) -> 0 | CG45: =SUM(CG14:CG44) -> 0 | CH45: =SUM(CH14:CH44) -> 14074953.53 | CI45: =SUM(CI14:CI44) -> 143425.1252 | CJ45: =SUM(CJ14:CJ44) -> 0 | CK45: =SUM(CK14:CK44) -> 0 | CL45: =SUM(CL14:CL44) -> 6688999.08 | CM45: =SUM(CM14:CM44) -> 0 | CN45: =SUM(CN14:CN44) -> 0 | CO45: =SUM(CO14:CO44) -> 0 | DN45: =SUM(DN14:DN44) -> 5974749.28 | DO45: =SUM(DO14:DO44) -> 226787712.6 | DP45: =SUM(DP14:DP44) -> 54703587.29 | DQ45: =SUM(DQ14:DQ44) -> 117624918 | DR45: =SUM(DR14:DR44) -> 6159377.921 | EP45: =SUM(EP14:EP44) -> 5636812.771 | FN45: =SUM(FN14:FN44) -> 5636045.684 | GL45: =SUM(GL14:GL44) -> 5609042.766 | HJ45: =SUM(HJ14:HJ44) -> 5538899.473
A46: ALUMBRADO PÚBLICO | B46: Lámparas, accesorios y postes de alumbrado público | C46: 22 | D46: 2957226.501 | E46: 0 | F46: 1915114.077 | G46: 383603.42 | H46: 0 | I46: 0 | J46: 0 | K46: 723366.95 | L46: 0 | M46: 0 | N46: 0 | O46: 345218.57 | P46: 0 | Q46: 0 | R46: 0 | S46: 343113 | T46: 0 | U46: 0 | V46: 0 | W46: 288347.67 | X46: 0 | Y46: 0 | Z46: 0 | AA46: 301261.25 | AB46: 0 | AC46: 0 | AD46: 0 | AE46: 418664.33 | AF46: 0 | AG46: 0 | AH46: 0 | AI46: 191547.63 | AJ46: 0 | AK46: 0 | AL46: 0 | AM46: 284788.3 | AN46: 0 | AO46: 0 | AP46: 0 | AQ46: 417455.7889 | AR46: 0 | AS46: 0 | AT46: 0 | AU46: 846640.63 | AV46: 0 | AW46: 0 | AX46: 0 | AY46: 696982 | AZ46: 0 | BA46: 0 | BB46: 0 | BC46: 611593.03 | BD46: 0 | BE46: 0 | BF46: 0 | BG46: 0 | BH46: 0 | BI46: 0 | BJ46: 717101.01 | BK46: 0 | BL46: 0 | BM46: 0 | BN46: 778834.53 | BO46: 0 | BP46: 0 | BQ46: 0 | BR46: 1066066.35 | BS46: 0 | BT46: 0 | BU46: 0 | BV46: 715400.34 | BW46: 0 | BX46: 0 | BY46: 0 | BZ46: 305500.91 | CA46: 0 | CB46: 0 | CC46: 0 | CD46: 266268.98 | CE46: 0 | CF46: 0 | CG46: 0 | CH46: 743971.64 | CI46: 0 | CJ46: 0 | CK46: 0 | CL46: 276363.06 | CM46: 0 | CN46: 0 | CO46: 0 | CP46: =IF(D46=0,0,2001-(D46-F46)*C46/D46) -> 1993.247306 | CQ46: =IF((1-($DN$2-$CP46)/$C46)>0,(1-($DN$2-$CP46)/$C46),0) -> 0 | CR46: =IF((1-($DN$2-G$2)/$C46)>0,(1-($DN$2-G$2)/$C46),0) -> 0.1136363636 | CS46: =IF((1-($DN$2-K$2)/$C46)>0,(1-($DN$2-K$2)/$C46),0) -> 0.1590909091 | CT46: =IF((1-($DN$2-O$2)/$C46)>0,(1-($DN$2-O$2)/$C46),0) -> 0.2045454545 | CU46: =IF((1-($DN$2-S$2)/$C46)>0,(1-($DN$2-S$2)/$C46),0) -> 0.25 | CV46: =IF((1-($DN$2-W$2)/$C46)>0,(1-($DN$2-W$2)/$C46),0) -> 0.2954545455 | CW46: =IF((1-($DN$2-AA$2)/$C46)>0,(1-($DN$2-AA$2)/$C46),0) -> 0.3409090909 | CX46: =IF((1-($DN$2-AE$2)/$C46)>0,(1-($DN$2-AE$2)/$C46),0) -> 0.3863636364 | CY46: =IF((1-($DN$2-AI$2)/$C46)>0,(1-($DN$2-AI$2)/$C46),0) -> 0.4318181818 | CZ46: =IF((1-($DN$2-AM$2)/$C46)>0,(1-($DN$2-AM$2)/$C46),0) -> 0.4772727273 | DA46: =IF((1-($DN$2-AQ$2)/$C46)>0,(1-($DN$2-AQ$2)/$C46),0) -> 0.5227272727 | DB46: =IF((1-($DN$2-AU$2)/$C46)>0,(1-($DN$2-AU$2)/$C46),0) -> 0.5681818182 | DC46: =IF((1-($DN$2-AY$2)/$C46)>0,(1-($DN$2-AY$2)/$C46),0) -> 0.6136363636 | DD46: =IF((1-($DN$2-BC$2)/$C46)>0,(1-($DN$2-BC$2)/$C46),0) -> 0.6590909091 | DE46: =IF((1-($DN$2-BD$2)/$C46)>0,(1-($DN$2-BD$2)/$C46),0) -> 0 | DF46: =IF((1-($DN$2-BJ$2)/$C46)>0,(1-($DN$2-BJ$2)/$C46),0) -> 0.7045454545 | DG46: =IF((1-($DN$2-BN$2)/$C46)>0,(1-($DN$2-BN$2)/$C46),0) -> 0.75 | DH46: =IF((1-($DN$2-BR$2)/$C46)>0,(1-($DN$2-BR$2)/$C46),0) -> 0.7954545455 | DI46: =IF((1-($DN$2-BV$2)/$C46)>0,(1-($DN$2-BV$2)/$C46),0) -> 0.8409090909 | DJ46: =IF((1-($DN$2-BZ$2)/$C46)>0,(1-($DN$2-BZ$2)/$C46),0) -> 0.8863636364 | DK46: =IF((1-($DN$2-CD$2)/$C46)>0,(1-($DN$2-CD$2)/$C46),0) -> 0.9318181818 | DL46: =IF((1-($DN$2-CH$2)/$C46)>0,(1-($DN$2-CH$2)/$C46),0) -> 0.9772727273 | DM46: =IF((1-($DN$2-CL$2)/$C46)>0,(1-($DN$2-CL$2)/$C46),0) -> 1 | DN46: =IF(CQ46=0,0,($D46-$E46)*1/$C46)+IF(CR46=0,0,($G46-$H46-$I46)*$G$62*1/$C46)+IF(CS46=0,0,($K46-$L46-$M46)*$K$62*1/$C46)+IF(CT46=0,0,($O46-$P46-$Q46)*$O$62*1/$C46)+IF(CU46=0,0,($S46-$T46-$U46)*$S$62*1/$C46)+IF(CV46=0,0,($W46-$X46-$Y46)*$W$62*1/$C46)+IF(CW46=0,0,($AA46-$AB46-$AC46)*$AA$62*1/$C46)+IF(CX46=0,0,($AE46-$AF46-$AG46)*$AE$62*1/$C46)+IF(CY46=0,0,($AI46-$AJ46-$AK46)*$AI$62*1/$C46)+IF(CZ46=0,0,($AM46-$AN46-$AO46)*$AM$62*1/$C46)+IF(DA46=0,0,($AQ46-$AR46-$AS46)*$AQ$62*1/$C46)+IF(DB46=0,0,($AU46-$V46-$AW46)*$AU$62*1/$C46)+IF(DC46=0,0,($AY46-$AZ46-$BA46)*$AY$62*1/$C46)+IF(DD46=0,0,($BC46-$BD46-$BE46)*$BC$62*1/$C46)+IF(DE46=0,0,$BG46*1/$C46)+IF(DF46=0,0,($BJ46-$BK46-$BL46)*$BJ$62*1/$C46)+IF(DG46=0,0,($BN46-$BO46-$BP46)*$BN$62*1/$C46)+IF(DH46=0,0,($BR46-$BS46-$BT46)*$BR$62*1/$C46)+IF(DI46=0,0,($BV46-$BW46-$BX46)*$BV$62*1/$C46)+IF(DJ46=0,0,($BZ46-$CA46-$CB46)*$BZ$62*1/$C46)+IF(DK46=0,0,($CD46-$CE46-$CF46)*$CD$62*1/$C46)+IF(DL46=0,0,($CH46-$CI46-$CJ46)*$CH$62*1/$C46)+IF(DM46=0,0,($CL46-$CM46-$CN46)*$CL$62*1/$C46) -> 458090.6242 | DO46: =D46-E46+(G46-I46)*G$62+(K46-M46)*K$62+(O46-Q46)*O$62+(S46-U46)*S$62+(W46-Y46)*W$62+(AA46-AC46)*AA$62+(AE46-AG46)*AE$62+(AI46-AK46)*AI$62+(AM46-AO46)*AM$62+(AQ46-AS46)*$AQ$62+(AU46-AW46)*$AU$62+(AY46-BA46)*$AY$62+(BC46-BE46)*$BC$62+BG46+(BJ46-BL46)*$BJ$62+(BN46-BP46)*$BN$62+(BR46-BT46)*$BR$62+(BV46-BX46)*$BV$62+(BZ46-CB46)*$BZ$62+(CD46-CF46)*$CD$62+(CH46-CJ46)*$CH$62+(CL46-CN46)*$CL$62 -> 13035220.23 | DP46: =IF(CQ46=0,D46-E46,0)+IF(CR46=0,(G46-I46)*G$62,0)+IF(CS46=0,(K46-M46)*K$62,0)+IF(CT46=0,(O46-Q46)*O$62,0)+IF(CU46=0,(S46-U46)*S$62,0)+IF(CV46=0,(W46-Y46)*W$62,0)+IF(CW46=0,(AA46-AC46)*AA$62,0)+IF(CX46=0,(AE46-AG46)*AE$62,0)+IF(CY46=0,(AI46-AK46)*AI$62,0)+IF(CZ46=0,(AM46-AO46)*AM$62,0)+IF(DA46=0,(AQ46-AS46)*$AQ$62,0)+IF(DB46=0,(AU46-AW46)*$AU$62,0)+IF(DC46=0,(AY46-BA46)*$AY$62,0)++IF(DD46=0,(BC46-BE46)*$BC$62,0)+IF(DE46=0,BG46,0)+IF(DF46=0,(BJ46-BL46)*$BJ$62,0)+IF(DG46=0,(BN46-BP46)*$BN$62,0)+IF(DH46=0,(BR46-BT46)*$BR$62,0)+IF(DI46=0,(BV46-BX46)*$BV$62,0)+IF(DJ46=0,(BZ46-CB46)*$BZ$62,0)+IF(DK46=0,(CD46-CF46)*$CD$62,0)+IF(DL46=0,(CH46-CJ46)*$CH$62,0)+IF(DM46=0,(CL46-CN46)*$CL$62,0) -> 2957226.501 | DQ46: =(D46-E46)*CQ46+((G46-H46-(I46-J46))*G$62)*CR46+((K46-L46-(M46-N46))*K$62)*CS46+((O46-P46-(Q46-R46))*O$62)*CT46+((S46-T46-(U46-V46))*S$62)*CU46+((W46-X46-(Y46-Z46))*W$62)*CV46+((AA46-AB46-(AC46-AD46))*AA$62)*CW46+((AE46-AF46-(AG46-AH46))*AE$62)*CX46+((AI46-AJ46-(AK46-AL46))*AI$62)*CY46+((AM46-AN46-(AO46-AP46))*$AM$62)*CZ46+((AQ46-AR46-(AS46-AT46))*$AQ$62)*DA46+((AU46-AV46-(AW46-AX46))*$AU$62)*DB46+((AY46-AZ46-(BA46-BB46))*$AY$62)*DC46+((BC46-BD46-(BE46-BF46))*$BC$62)*DD46+((BJ46-BK46-(BL46-BM46))*$BJ$62)*DF46+(BG46-BH46)*DE46+((BN46-BO46-(BP46-BQ46))*$BN$62)*DG46+((BR46-BS46-(BT46-BU46))*$BR$62)*DH46+((BV46-BW46-(BX46-BY46))*$BV$62)*DI46+((BZ46-CA46-(CB46-CC46))*$BZ$62)*DJ46+((CD46-CE46-(CF46-CG46))*$CD$62)*DK46+((CH46-CI46-(CJ46-CK46))*$CH$62)*DL46+((CL46-CM46-(CN46-CO46))*$CL$62)*DM46 -> 5993651.347 | DR46: =(DO46-DP46)*1/C46 -> 458090.6242 | DS46: =IF((1-($EP$2-$CP46)/$C46)>0,(1-($EP$2-$CP46)/$C46),0) -> 0 | DT46: =IF((1-($EP$2-DT$2)/$C46)>0,(1-($EP$2-DT$2)/$C46),0) -> 0.06818181818 | DU46: 0.1136363636 | DV46: 0.1590909091 | DW46: 0.2045454545 | DX46: 0.25 | DY46: 0.2954545455 | DZ46: 0.3409090909 | EA46: 0.3863636364 | EB46: 0.4318181818 | EC46: 0.4772727273 | ED46: 0.5227272727 | EE46: 0.5681818182 | EF46: 0.6136363636 | EG46: 0.6136363636 | EH46: 0.6590909091 | EI46: 0.7045454545 | EJ46: 0.75 | EK46: 0.7954545455 | EL46: 0.8409090909 | EM46: 0.8863636364 | EN46: 0.9318181818 | EO46: 0.9545454545 | EP46: =IF(DS46=0,0,($D46-$E46)*1/$C46)+IF(DT46=0,0,($G46-$H46-$I46)*$G$62*1/$C46)+IF(DU46=0,0,($K46-$L46-$M46)*$K$62*1/$C46)+IF(DV46=0,0,($O46-$P46-$Q46)*$O$62*1/$C46)+IF(DW46=0,0,($S46-$T46-$U46)*$S$62*1/$C46)+IF(DX46=0,0,($W46-$X46-$Y46)*$W$62*1/$C46)+IF(DY46=0,0,($AA46-$AB46-$AC46)*$AA$62*1/$C46)+IF(DZ46=0,0,($AE46-$AF46-$AG46)*$AE$62*1/$C46)+IF(EA46=0,0,($AI46-$AJ46-$AK46)*$AI$62*1/$C46)+IF(EB46=0,0,($AM46-$AN46-$AO46)*$AM$62*1/$C46)+IF(EC46=0,0,($AQ46-$AR46-$AS46)*$AQ$62*1/$C46)+IF(ED46=0,0,($AU46-$V46-$AW46)*$AU$62*1/$C46)+IF(EE46=0,0,($AY46-$AZ46-$BA46)*$AY$62*1/$C46)+IF(EF46=0,0,($BC46-$BD46-$BE46)*$BC$62*1/$C46)+IF(EG46=0,0,$BG46*1/$C46)+IF(EH46=0,0,($BJ46-$BK46-$BL46)*$BJ$62*1/$C46)+IF(EI46=0,0,($BN46-$BO46-$BP46)*$BN$62*1/$C46)+IF(EJ46=0,0,($BR46-$BS46-$BT46)*$BR$62*1/$C46)+IF(EK46=0,0,($BV46-$BW46-$BX46)*$BV$62*1/$C46)+IF(EL46=0,0,($BZ46-$CA46-$CB46)*$BZ$62*1/$C46)+IF(EM46=0,0,($CD46-$CE46-$CF46)*$CD$62*1/$C46)+IF(EN46=0,0,($CH46-$CI46-$CJ46)*$CH$62*1/$C46)+IF(EO46=0,0,($CL46-$CM46-$CN46)*$CL$62*1/$C46) -> 458090.6242 | EQ46: =IF((1-($FN$2-$CP46)/$C46)>0,(1-($FN$2-$CP46)/$C46),0) -> 0 | ER46: =IF((1-($FN$2-ER$2)/$C46)>0,(1-($FN$2-ER$2)/$C46),0) -> 0.02272727273 | ES46: 0.06818181818 | ET46: 0.1136363636 | EU46: 0.1590909091 | EV46: 0.2045454545 | EW46: 0.25 | EX46: 0.2954545455 | EY46: 0.3409090909 | EZ46: 0.3863636364 | FA46: 0.4318181818 | FB46: 0.4772727273 | FC46: 0.5227272727 | FD46: 0.5681818182 | FE46: 0.5681818182 | FF46: 0.6136363636 | FG46: 0.6590909091 | FH46: 0.7045454545 | FI46: 0.75 | FJ46: 0.7954545455 | FK46: 0.8409090909 | FL46: 0.8863636364 | FM46: 0.9090909091 | FN46: =IF(EQ46=0,0,($D46-$E46)*1/$C46)+IF(ER46=0,0,($G46-$H46-$I46)*$G$62*1/$C46)+IF(ES46=0,0,($K46-$L46-$M46)*$K$62*1/$C46)+IF(ET46=0,0,($O46-$P46-$Q46)*$O$62*1/$C46)+IF(EU46=0,0,($S46-$T46-$U46)*$S$62*1/$C46)+IF(EV46=0,0,($W46-$X46-$Y46)*$W$62*1/$C46)+IF(EW46=0,0,($AA46-$AB46-$AC46)*$AA$62*1/$C46)+IF(EX46=0,0,($AE46-$AF46-$AG46)*$AE$62*1/$C46)+IF(EY46=0,0,($AI46-$AJ46-$AK46)*$AI$62*1/$C46)+IF(EZ46=0,0,($AM46-$AN46-$AO46)*$AM$62*1/$C46)+IF(FA46=0,0,($AQ46-$AR46-$AS46)*$AQ$62*1/$C46)+IF(FB46=0,0,($AU46-$V46-$AW46)*$AU$62*1/$C46)+IF(FC46=0,0,($AY46-$AZ46-$BA46)*$AY$62*1/$C46)+IF(FD46=0,0,($BC46-$BD46-$BE46)*$BC$62*1/$C46)+IF(FE46=0,0,$BG46*1/$C46)+IF(FF46=0,0,($BJ46-$BK46-$BL46)*$BJ$62*1/$C46)+IF(FG46=0,0,($BN46-$BO46-$BP46)*$BN$62*1/$C46)+IF(FH46=0,0,($BR46-$BS46-$BT46)*$BR$62*1/$C46)+IF(FI46=0,0,($BV46-$BW46-$BX46)*$BV$62*1/$C46)+IF(FJ46=0,0,($BZ46-$CA46-$CB46)*$BZ$62*1/$C46)+IF(FK46=0,0,($CD46-$CE46-$CF46)*$CD$62*1/$C46)+IF(FL46=0,0,($CH46-$CI46-$CJ46)*$CH$62*1/$C46)+IF(FM46=0,0,($CL46-$CM46-$CN46)*$CL$62*1/$C46) -> 458090.6242 | FO46: =IF((1-($GL$2-$CP46)/$C46)>0,(1-($GL$2-$CP46)/$C46),0) -> 0 | FP46: =IF((1-($GL$2-FP$2)/$C46)>0,(1-($GL$2-FP$2)/$C46),0) -> 0 | FQ46: 0.02272727273 | FR46: 0.06818181818 | FS46: 0.1136363636 | FT46: 0.1590909091 | FU46: 0.2045454545 | FV46: 0.25 | FW46: 0.2954545455 | FX46: 0.3409090909 | FY46: 0.3863636364 | FZ46: 0.4318181818 | GA46: 0.4772727273 | GB46: 0.5227272727 | GC46: 0.5227272727 | GD46: 0.5681818182 | GE46: 0.6136363636 | GF46: 0.6590909091 | GG46: 0.7045454545 | GH46: 0.75 | GI46: 0.7954545455 | GJ46: 0.8409090909 | GK46: 0.8636363636 | GL46: =IF(FO46=0,0,($D46-$E46)*1/$C46)+IF(FP46=0,0,($G46-$H46-$I46)*$G$62*1/$C46)+IF(FQ46=0,0,($K46-$L46-$M46)*$K$62*1/$C46)+IF(FR46=0,0,($O46-$P46-$Q46)*$O$62*1/$C46)+IF(FS46=0,0,($S46-$T46-$U46)*$S$62*1/$C46)+IF(FT46=0,0,($W46-$X46-$Y46)*$W$62*1/$C46)+IF(FU46=0,0,($AA46-$AB46-$AC46)*$AA$62*1/$C46)+IF(FV46=0,0,($AE46-$AF46-$AG46)*$AE$62*1/$C46)+IF(FW46=0,0,($AI46-$AJ46-$AK46)*$AI$62*1/$C46)+IF(FX46=0,0,($AM46-$AN46-$AO46)*$AM$62*1/$C46)+IF(FY46=0,0,($AQ46-$AR46-$AS46)*$AQ$62*1/$C46)+IF(FZ46=0,0,($AU46-$V46-$AW46)*$AU$62*1/$C46)+IF(GA46=0,0,($AY46-$AZ46-$BA46)*$AY$62*1/$C46)+IF(GB46=0,0,($BC46-$BD46-$BE46)*$BC$62*1/$C46)+IF(GC46=0,0,$BG46*1/$C46)+IF(GD46=0,0,($BJ46-$BK46-$BL46)*$BJ$62*1/$C46)+IF(GE46=0,0,($BN46-$BO46-$BP46)*$BN$62*1/$C46)+IF(GF46=0,0,($BR46-$BS46-$BT46)*$BR$62*1/$C46)+IF(GG46=0,0,($BV46-$BW46-$BX46)*$BV$62*1/$C46)+IF(GH46=0,0,($BZ46-$CA46-$CB46)*$BZ$62*1/$C46)+IF(GI46=0,0,($CD46-$CE46-$CF46)*$CD$62*1/$C46)+IF(GJ46=0,0,($CH46-$CI46-$CJ46)*$CH$62*1/$C46)+IF(GK46=0,0,($CL46-$CM46-$CN46)*$CL$62*1/$C46) -> 440654.1052 | GM46: =IF((1-($HJ$2-$CP46)/$C46)>0,(1-($HJ$2-$CP46)/$C46),0) -> 0 | GN46: =IF((1-($HJ$2-GN$2)/$C46)>0,(1-($HJ$2-GN$2)/$C46),0) -> 0 | GO46: 0 | GP46: 0.02272727273 | GQ46: 0.06818181818 | GR46: 0.1136363636 | GS46: 0.1590909091 | GT46: 0.2045454545 | GU46: 0.25 | GV46: 0.2954545455 | GW46: 0.3409090909 | GX46: 0.3863636364 | GY46: 0.4318181818 | GZ46: 0.4772727273 | HA46: 0.4772727273 | HB46: 0.5227272727 | HC46: 0.5681818182 | HD46: 0.6136363636 | HE46: 0.6590909091 | HF46: 0.7045454545 | HG46: 0.75 | HH46: 0.7954545455 | HI46: 0.8181818182 | HJ46: =IF(GM46=0,0,($D46-$E46)*1/$C46)+IF(GN46=0,0,($G46-$H46-$I46)*$G$62*1/$C46)+IF(GO46=0,0,($K46-$L46-$M46)*$K$62*1/$C46)+IF(GP46=0,0,($O46-$P46-$Q46)*$O$62*1/$C46)+IF(GQ46=0,0,($S46-$T46-$U46)*$S$62*1/$C46)+IF(GR46=0,0,($W46-$X46-$Y46)*$W$62*1/$C46)+IF(GS46=0,0,($AA46-$AB46-$AC46)*$AA$62*1/$C46)+IF(GT46=0,0,($AE46-$AF46-$AG46)*$AE$62*1/$C46)+IF(GU46=0,0,($AI46-$AJ46-$AK46)*$AI$62*1/$C46)+IF(GV46=0,0,($AM46-$AN46-$AO46)*$AM$62*1/$C46)+IF(GW46=0,0,($AQ46-$AR46-$AS46)*$AQ$62*1/$C46)+IF(GX46=0,0,($AU46-$V46-$AW46)*$AU$62*1/$C46)+IF(GY46=0,0,($AY46-$AZ46-$BA46)*$AY$62*1/$C46)+IF(GZ46=0,0,($BC46-$BD46-$BE46)*$BC$62*1/$C46)+IF(HA46=0,0,$BG46*1/$C46)+IF(HB46=0,0,($BJ46-$BK46-$BL46)*$BJ$62*1/$C46)+IF(HC46=0,0,($BN46-$BO46-$BP46)*$BN$62*1/$C46)+IF(HD46=0,0,($BR46-$BS46-$BT46)*$BR$62*1/$C46)+IF(HE46=0,0,($BV46-$BW46-$BX46)*$BV$62*1/$C46)+IF(HF46=0,0,($BZ46-$CA46-$CB46)*$BZ$62*1/$C46)+IF(HG46=0,0,($CD46-$CE46-$CF46)*$CD$62*1/$C46)+IF(HH46=0,0,($CH46-$CI46-$CJ46)*$CH$62*1/$C46)+IF(HI46=0,0,($CL46-$CM46-$CN46)*$CL$62*1/$C46) -> 407773.7892
B47: TOTAL ALUMBRADO PÚBLICO | D47: =D46 -> 2957226.501 | E47: =E46 -> 0 | F47: 1915114.077 | G47: 383603.42 | H47: =H46 -> 0 | I47: 0 | J47: 0 | K47: 723366.95 | L47: =L46 -> 0 | M47: 0 | N47: 0 | O47: 345218.57 | P47: 0 | Q47: 0 | R47: 0 | S47: 343113 | T47: 0 | U47: 0 | V47: 0 | W47: 288347.67 | X47: 0 | Y47: 0 | Z47: 0 | AA47: 301261.25 | AB47: 0 | AC47: 0 | AD47: 0 | AE47: 418664.33 | AF47: 0 | AG47: 0 | AH47: 0 | AI47: 191547.63 | AJ47: 0 | AK47: 0 | AL47: 0 | AM47: 284788.3 | AN47: 0 | AO47: 0 | AP47: 0 | AQ47: 417455.7889 | AR47: 0 | AS47: 0 | AT47: 0 | AU47: 846640.63 | AV47: 0 | AW47: 0 | AX47: 0 | AY47: 696982 | AZ47: 0 | BA47: 0 | BB47: 0 | BC47: 611593.03 | BD47: 0 | BE47: 0 | BF47: 0 | BG47: =BG46 -> 0 | BH47: 0 | BI47: 0 | BJ47: 717101.01 | BK47: 0 | BL47: 0 | BM47: 0 | BN47: 778834.53 | BO47: 0 | BP47: 0 | BQ47: 0 | BR47: 1066066.35 | BS47: 0 | BT47: 0 | BU47: 0 | BV47: 715400.34 | BW47: 0 | BX47: 0 | BY47: 0 | BZ47: 305500.91 | CA47: 0 | CB47: 0 | CC47: 0 | CD47: 266268.98 | CE47: 0 | CF47: 0 | CG47: 0 | CH47: 743971.64 | CI47: 0 | CJ47: 0 | CK47: 0 | CL47: 276363.06 | CM47: 0 | CN47: 0 | CO47: 0 | DN47: =DN46 -> 458090.6242 | DO47: =DO46 -> 13035220.23 | DP47: =DP46 -> 2957226.501 | DQ47: =DQ46 -> 5993651.347 | DR47: =DR46 -> 458090.6242 | EP47: =EP46 -> 458090.6242 | FN47: =FN46 -> 458090.6242 | GL47: =GL46 -> 440654.1052 | HJ47: =HJ46 -> 407773.7892
A48: COMERCIALIZACIÓN | B48: Activos intangibles (software) | C48: 4 | D48: 0 | E48: 0 | F48: 0 | G48: 0 | H48: 0 | I48: 0 | J48: 0 | K48: 0 | L48: 0 | M48: 0 | N48: 0 | O48: 0 | P48: 0 | Q48: 0 | R48: 0 | S48: 0 | T48: 0 | U48: 0 | V48: 0 | W48: 0 | X48: 0 | Y48: 0 | Z48: 0 | AA48: 0 | AB48: 0 | AC48: 0 | AD48: 0 | AE48: 0 | AF48: 0 | AG48: 0 | AH48: 0 | AI48: 0 | AJ48: 0 | AK48: 0 | AL48: 0 | AM48: 0 | AN48: 0 | AO48: 0 | AP48: 0 | AQ48: 0 | AR48: 0 | AS48: 0 | AT48: 0 | AU48: 0 | AV48: 0 | AW48: 0 | AX48: 0 | AY48: 0 | AZ48: 0 | BA48: 0 | BB48: 0 | BC48: 0 | BD48: 0 | BE48: 0 | BF48: 0 | BG48: 0 | BH48: 0 | BI48: 0 | BJ48: 0 | BK48: 0 | BL48: 0 | BM48: 0 | BN48: 0 | BO48: 0 | BP48: 0 | BQ48: 0 | BR48: 0 | BS48: 0 | BT48: 0 | BU48: 0 | BV48: 0 | BW48: 0 | BX48: 0 | BY48: 0 | BZ48: 0 | CA48: 0 | CB48: 0 | CC48: 0 | CD48: 0 | CE48: 0 | CF48: 0 | CG48: 0 | CH48: 0 | CI48: 0 | CJ48: 0 | CK48: 0 | CL48: 0 | CM48: 0 | CN48: 0 | CO48: 0 | CP48: =IF(D48=0,0,2001-(D48-F48)*C48/D48) -> 0 | CQ48: =IF((1-($DN$2-$CP48)/$C48)>0,(1-($DN$2-$CP48)/$C48),0) -> 0 | CR48: =IF((1-($DN$2-G$2)/$C48)>0,(1-($DN$2-G$2)/$C48),0) -> 0 | CS48: =IF((1-($DN$2-K$2)/$C48)>0,(1-($DN$2-K$2)/$C48),0) -> 0 | CT48: =IF((1-($DN$2-O$2)/$C48)>0,(1-($DN$2-O$2)/$C48),0) -> 0 | CU48: =IF((1-($DN$2-S$2)/$C48)>0,(1-($DN$2-S$2)/$C48),0) -> 0 | CV48: =IF((1-($DN$2-W$2)/$C48)>0,(1-($DN$2-W$2)/$C48),0) -> 0 | CW48: =IF((1-($DN$2-AA$2)/$C48)>0,(1-($DN$2-AA$2)/$C48),0) -> 0 | CX48: =IF((1-($DN$2-AE$2)/$C48)>0,(1-($DN$2-AE$2)/$C48),0) -> 0 | CY48: =IF((1-($DN$2-AI$2)/$C48)>0,(1-($DN$2-AI$2)/$C48),0) -> 0 | CZ48: =IF((1-($DN$2-AM$2)/$C48)>0,(1-($DN$2-AM$2)/$C48),0) -> 0 | DA48: =IF((1-($DN$2-AQ$2)/$C48)>0,(1-($DN$2-AQ$2)/$C48),0) -> 0 | DB48: =IF((1-($DN$2-AU$2)/$C48)>0,(1-($DN$2-AU$2)/$C48),0) -> 0 | DC48: =IF((1-($DN$2-AY$2)/$C48)>0,(1-($DN$2-AY$2)/$C48),0) -> 0 | DD48: =IF((1-($DN$2-BC$2)/$C48)>0,(1-($DN$2-BC$2)/$C48),0) -> 0 | DE48: =IF(BG48=0,0,1-($DN$2-(2014.5-(BG48-BI48)*C48/BG48))/C48) -> 0 | DF48: =IF((1-($DN$2-BJ$2)/$C48)>0,(1-($DN$2-BJ$2)/$C48),0) -> 0 | DG48: =IF((1-($DN$2-BN$2)/$C48)>0,(1-($DN$2-BN$2)/$C48),0) -> 0 | DH48: =IF((1-($DN$2-BR$2)/$C48)>0,(1-($DN$2-BR$2)/$C48),0) -> 0 | DI48: =IF((1-($DN$2-BV$2)/$C48)>0,(1-($DN$2-BV$2)/$C48),0) -> 0.125 | DJ48: =IF((1-($DN$2-BZ$2)/$C48)>0,(1-($DN$2-BZ$2)/$C48),0) -> 0.375 | DK48: =IF((1-($DN$2-CD$2)/$C48)>0,(1-($DN$2-CD$2)/$C48),0) -> 0.625 | DL48: =IF((1-($DN$2-CH$2)/$C48)>0,(1-($DN$2-CH$2)/$C48),0) -> 0.875 | DM48: =IF((1-($DN$2-CL$2)/$C48)>0,(1-($DN$2-CL$2)/$C48),0) -> 1 | DN48: =IF(CQ48=0,0,($D48-$E48)*1/$C48)+IF(CR48=0,0,($G48-$H48-$I48)*$G$63*1/$C48)+IF(CS48=0,0,($K48-$L48-$M48)*$K$63*1/$C48)+IF(CT48=0,0,($O48-$P48-$Q48)*$O$63*1/$C48)+IF(CU48=0,0,($S48-$T48-$U48)*$S$63*1/$C48)+IF(CV48=0,0,($W48-$X48-$Y48)*$W$63*1/$C48)+IF(CW48=0,0,($AA48-$AB48-$AC48)*$AA$63*1/$C48)+IF(CX48=0,0,($AE48-$AF48-$AG48)*$AE$63*1/$C48)+IF(CY48=0,0,($AI48-$AJ48-$AK48)*$AI$63*1/$C48)+IF(CZ48=0,0,($AM48-$AN48-$AO48)*$AM$63*1/$C48)+IF(DA48=0,0,($AQ48-$AR48-$AS48)*$AQ$63*1/$C48)+IF(DB48=0,0,($AU48-$V48-$AW48)*$AU$63*1/$C48)+IF(DC48=0,0,($AY48-$AZ48-$BA48)*$AY$63*1/$C48)+IF(DD48=0,0,($BC48-$BD48-$BE48)*$BC$63*1/$C48)+IF(DE48=0,0,$BG48*1/$C48)+IF(DF48=0,0,($BJ48-$BK48-$BL48)*$BJ$63*1/$C48)+IF(DG48=0,0,($BN48-$BO48-$BP48)*$BN$63*1/$C48)+IF(DH48=0,0,($BR48-$BS48-$BT48)*$BR$63*1/$C48)+IF(DI48=0,0,($BV48-$BW48-$BX48)*$BV$63*1/$C48)+IF(DJ48=0,0,($BZ48-$CA48-$CB48)*$BZ$63*1/$C48)+IF(DK48=0,0,($CD48-$CE48-$CF48)*$CD$63*1/$C48)+IF(DL48=0,0,($CH48-$CI48-$CJ48)*$CH$63*1/$C48)+IF(DM48=0,0,($CL48-$CM48-$CN48)*$CL$63*1/$C48) -> 0 | DO48: =D48-E48+(G48-I48)*G$63+(K48-M48)*K$63+(O48-Q48)*O$63+(S48-U48)*S$63+(W48-Y48)*W$63+(AA48-AC48)*AA$63+(AE48-AG48)*AE$63+(AI48-AK48)*AI$63+(AM48-AO48)*AM$63+(AQ48-AS48)*$AQ$63+(AU48-AW48)*$AU$63+(AY48-BA48)*$AY$63+(BC48-BE48)*$BC$63+BG48+(BJ48-BL48)*$BJ$63+(BN48-BP48)*$BN$63+(BR48-BT48)*$BR$63+(BV48-BX48)*$BV$63+(BZ48-CB48)*$BZ$63+(CD48-CF48)*$CD$63+(CH48-CJ48)*$CH$63+(CL48-CN48)*$CL$63 -> 0 | DP48: =IF(CQ48=0,D48-E48,0)+IF(CR48=0,(G48-I48)*G$63,0)+IF(CS48=0,(K48-M48)*K$63,0)+IF(CT48=0,(O48-Q48)*O$63,0)+IF(CU48=0,(S48-U48)*S$63,0)+IF(CV48=0,(W48-Y48)*W$63,0)+IF(CW48=0,(AA48-AC48)*AA$63,0)+IF(CX48=0,(AE48-AG48)*AE$63,0)+IF(CY48=0,(AI48-AK48)*AI$63,0)+IF(CZ48=0,(AM48-AO48)*AM$63,0)+IF(DA48=0,(AQ48-AS48)*$AQ$63,0)+IF(DB48=0,(AU48-AW48)*$AU$63,0)+IF(DC48=0,(AY48-BA48)*$AY$63,0)++IF(DD48=0,(BC48-BE48)*$BC$63,0)+IF(DE48=0,BG48,0)+IF(DF48=0,(BJ48-BL48)*$BJ$63,0)+IF(DG48=0,(BN48-BP48)*$BN$63,0)+IF(DH48=0,(BR48-BT48)*$BR$63,0)+IF(DI48=0,(BV48-BX48)*$BV$63,0)+IF(DJ48=0,(BZ48-CB48)*$BZ$63,0)+IF(DK48=0,(CD48-CF48)*$CD$63,0)+IF(DL48=0,(CH48-CJ48)*$CH$63,0)+IF(DM48=0,(CL48-CN48)*$CL$63,0) -> 0 | DQ48: =(D48-E48)*CQ48+((G48-H48-(I48-J48))*G$63)*CR48+((K48-L48-(M48-N48))*K$63)*CS48+((O48-P48-(Q48-R48))*O$63)*CT48+((S48-T48-(U48-V48))*S$63)*CU48+((W48-X48-(Y48-Z48))*W$63)*CV48+((AA48-AB48-(AC48-AD48))*AA$63)*CW48+((AE48-AF48-(AG48-AH48))*AE$63)*CX48+((AI48-AJ48-(AK48-AL48))*AI$63)*CY48+((AM48-AN48-(AO48-AP48))*$AM$63)*CZ48+((AQ48-AR48-(AS48-AT48))*$AQ$63)*DA48+((AU48-AV48-(AW48-AX48))*$AU$63)*DB48+((AY48-AZ48-(BA48-BB48))*$AY$63)*DC48+((BC48-BD48-(BE48-BF48))*$BC$63)*DD48+((BJ48-BK48-(BL48-BM48))*$BJ$63)*DF48+(BG48-BH48)*DE48+((BN48-BO48-(BP48-BQ48))*$BN$63)*DG48+((BR48-BS48-(BT48-BU48))*$BR$63)*DH48+((BV48-BW48-(BX48-BY48))*$BV$63)*DI48+((BZ48-CA48-(CB48-CC48))*$BZ$63)*DJ48+((CD48-CE48-(CF48-CG48))*$CD$63)*DK48+((CH48-CI48-(CJ48-CK48))*$CH$63)*DL48+((CL48-CM48-(CN48-CO48))*$CL$63)*DM48 -> 0 | DR48: =(DO48-DP48)*1/C48 -> 0 | DS48: =IF((1-($EP$2-$CP48)/$C48)>0,(1-($EP$2-$CP48)/$C48),0) -> 0 | DT48: =IF((1-($EP$2-DT$2)/$C48)>0,(1-($EP$2-DT$2)/$C48),0) -> 0 | DU48: 0 | DV48: 0 | DW48: 0 | DX48: 0 | DY48: 0 | DZ48: 0 | EA48: 0 | EB48: 0 | EC48: 0 | ED48: =IF((1-($EP$2-ED$2)/$C48)>0,(1-($EP$2-ED$2)/$C48),0) -> 0 | EE48: 0 | EF48: 0 | EG48: 0 | EH48: 0 | EI48: 0 | EJ48: 0 | EK48: 0 | EL48: 0.125 | EM48: 0.375 | EN48: 0.625 | EO48: 0.75 | EP48: =IF(DS48=0,0,($D48-$E48)*1/$C48)+IF(DT48=0,0,($G48-$H48-$I48)*$G$63*1/$C48)+IF(DU48=0,0,($K48-$L48-$M48)*$K$63*1/$C48)+IF(DV48=0,0,($O48-$P48-$Q48)*$O$63*1/$C48)+IF(DW48=0,0,($S48-$T48-$U48)*$S$63*1/$C48)+IF(DX48=0,0,($W48-$X48-$Y48)*$W$63*1/$C48)+IF(DY48=0,0,($AA48-$AB48-$AC48)*$AA$63*1/$C48)+IF(DZ48=0,0,($AE48-$AF48-$AG48)*$AE$63*1/$C48)+IF(EA48=0,0,($AI48-$AJ48-$AK48)*$AI$63*1/$C48)+IF(EB48=0,0,($AM48-$AN48-$AO48)*$AM$63*1/$C48)+IF(EC48=0,0,($AQ48-$AR48-$AS48)*$AQ$63*1/$C48)+IF(ED48=0,0,($AU48-$V48-$AW48)*$AU$63*1/$C48)+IF(EE48=0,0,($AY48-$AZ48-$BA48)*$AY$63*1/$C48)+IF(EF48=0,0,($BC48-$BD48-$BE48)*$BC$63*1/$C48)+IF(EG48=0,0,$BG48*1/$C48)+IF(EH48=0,0,($BJ48-$BK48-$BL48)*$BJ$63*1/$C48)+IF(EI48=0,0,($BN48-$BO48-$BP48)*$BN$63*1/$C48)+IF(EJ48=0,0,($BR48-$BS48-$BT48)*$BR$63*1/$C48)+IF(EK48=0,0,($BV48-$BW48-$BX48)*$BV$63*1/$C48)+IF(EL48=0,0,($BZ48-$CA48-$CB48)*$BZ$63*1/$C48)+IF(EM48=0,0,($CD48-$CE48-$CF48)*$CD$63*1/$C48)+IF(EN48=0,0,($CH48-$CI48-$CJ48)*$CH$63*1/$C48)+IF(EO48=0,0,($CL48-$CM48-$CN48)*$CL$63*1/$C48) -> 0 | EQ48: =IF((1-($FN$2-$CP48)/$C48)>0,(1-($FN$2-$CP48)/$C48),0) -> 0 | ER48: =IF((1-($FN$2-ER$2)/$C48)>0,(1-($FN$2-ER$2)/$C48),0) -> 0 | ES48: 0 | ET48: 0 | EU48: 0 | EV48: 0 | EW48: 0 | EX48: 0 | EY48: 0 | EZ48: 0 | FA48: 0 | FB48: =IF((1-($FN$2-FB$2)/$C48)>0,(1-($FN$2-FB$2)/$C48),0) -> 0 | FC48: 0 | FD48: 0 | FE48: 0 | FF48: 0 | FG48: 0 | FH48: 0 | FI48: 0 | FJ48: 0 | FK48: 0.125 | FL48: 0.375 | FM48: 0.5 | FN48: =IF(EQ48=0,0,($D48-$E48)*1/$C48)+IF(ER48=0,0,($G48-$H48-$I48)*$G$63*1/$C48)+IF(ES48=0,0,($K48-$L48-$M48)*$K$63*1/$C48)+IF(ET48=0,0,($O48-$P48-$Q48)*$O$63*1/$C48)+IF(EU48=0,0,($S48-$T48-$U48)*$S$63*1/$C48)+IF(EV48=0,0,($W48-$X48-$Y48)*$W$63*1/$C48)+IF(EW48=0,0,($AA48-$AB48-$AC48)*$AA$63*1/$C48)+IF(EX48=0,0,($AE48-$AF48-$AG48)*$AE$63*1/$C48)+IF(EY48=0,0,($AI48-$AJ48-$AK48)*$AI$63*1/$C48)+IF(EZ48=0,0,($AM48-$AN48-$AO48)*$AM$63*1/$C48)+IF(FA48=0,0,($AQ48-$AR48-$AS48)*$AQ$63*1/$C48)+IF(FB48=0,0,($AU48-$V48-$AW48)*$AU$63*1/$C48)+IF(FC48=0,0,($AY48-$AZ48-$BA48)*$AY$63*1/$C48)+IF(FD48=0,0,($BC48-$BD48-$BE48)*$BC$63*1/$C48)+IF(FE48=0,0,$BG48*1/$C48)+IF(FF48=0,0,($BJ48-$BK48-$BL48)*$BJ$63*1/$C48)+IF(FG48=0,0,($BN48-$BO48-$BP48)*$BN$63*1/$C48)+IF(FH48=0,0,($BR48-$BS48-$BT48)*$BR$63*1/$C48)+IF(FI48=0,0,($BV48-$BW48-$BX48)*$BV$63*1/$C48)+IF(FJ48=0,0,($BZ48-$CA48-$CB48)*$BZ$63*1/$C48)+IF(FK48=0,0,($CD48-$CE48-$CF48)*$CD$63*1/$C48)+IF(FL48=0,0,($CH48-$CI48-$CJ48)*$CH$63*1/$C48)+IF(FM48=0,0,($CL48-$CM48-$CN48)*$CL$63*1/$C48) -> 0 | FO48: =IF((1-($GL$2-$CP48)/$C48)>0,(1-($GL$2-$CP48)/$C48),0) -> 0 | FP48: =IF((1-($GL$2-FP$2)/$C48)>0,(1-($GL$2-FP$2)/$C48),0) -> 0 | FQ48: 0 | FR48: 0 | FS48: 0 | FT48: 0 | FU48: 0 | FV48: 0 | FW48: 0 | FX48: 0 | FY48: 0 | FZ48: =IF((1-($GL$2-FZ$2)/$C48)>0,(1-($GL$2-FZ$2)/$C48),0) -> 0 | GA48: 0 | GB48: 0 | GC48: 0 | GD48: 0 | GE48: 0 | GF48: 0 | GG48: 0 | GH48: 0 | GI48: 0 | GJ48: 0.125 | GK48: 0.25 | GL48: =IF(FO48=0,0,($D48-$E48)*1/$C48)+IF(FP48=0,0,($G48-$H48-$I48)*$G$63*1/$C48)+IF(FQ48=0,0,($K48-$L48-$M48)*$K$63*1/$C48)+IF(FR48=0,0,($O48-$P48-$Q48)*$O$63*1/$C48)+IF(FS48=0,0,($S48-$T48-$U48)*$S$63*1/$C48)+IF(FT48=0,0,($W48-$X48-$Y48)*$W$63*1/$C48)+IF(FU48=0,0,($AA48-$AB48-$AC48)*$AA$63*1/$C48)+IF(FV48=0,0,($AE48-$AF48-$AG48)*$AE$63*1/$C48)+IF(FW48=0,0,($AI48-$AJ48-$AK48)*$AI$63*1/$C48)+IF(FX48=0,0,($AM48-$AN48-$AO48)*$AM$63*1/$C48)+IF(FY48=0,0,($AQ48-$AR48-$AS48)*$AQ$63*1/$C48)+IF(FZ48=0,0,($AU48-$V48-$AW48)*$AU$63*1/$C48)+IF(GA48=0,0,($AY48-$AZ48-$BA48)*$AY$63*1/$C48)+IF(GB48=0,0,($BC48-$BD48-$BE48)*$BC$63*1/$C48)+IF(GC48=0,0,$BG48*1/$C48)+IF(GD48=0,0,($BJ48-$BK48-$BL48)*$BJ$63*1/$C48)+IF(GE48=0,0,($BN48-$BO48-$BP48)*$BN$63*1/$C48)+IF(GF48=0,0,($BR48-$BS48-$BT48)*$BR$63*1/$C48)+IF(GG48=0,0,($BV48-$BW48-$BX48)*$BV$63*1/$C48)+IF(GH48=0,0,($BZ48-$CA48-$CB48)*$BZ$63*1/$C48)+IF(GI48=0,0,($CD48-$CE48-$CF48)*$CD$63*1/$C48)+IF(GJ48=0,0,($CH48-$CI48-$CJ48)*$CH$63*1/$C48)+IF(GK48=0,0,($CL48-$CM48-$CN48)*$CL$63*1/$C48) -> 0 | GM48: =IF((1-($HJ$2-$CP48)/$C48)>0,(1-($HJ$2-$CP48)/$C48),0) -> 0 | GN48: =IF((1-($HJ$2-GN$2)/$C48)>0,(1-($HJ$2-GN$2)/$C48),0) -> 0 | GO48: 0 | GP48: 0 | GQ48: 0 | GR48: 0 | GS48: 0 | GT48: 0 | GU48: 0 | GV48: 0 | GW48: 0 | GX48: =IF((1-($HJ$2-GX$2)/$C48)>0,(1-($HJ$2-GX$2)/$C48),0) -> 0 | GY48: 0 | GZ48: 0 | HA48: 0 | HB48: 0 | HC48: 0 | HD48: 0 | HE48: 0 | HF48: 0 | HG48: 0 | HH48: 0 | HI48: 0 | HJ48: =IF(GM48=0,0,($D48-$E48)*1/$C48)+IF(GN48=0,0,($G48-$H48-$I48)*$G$63*1/$C48)+IF(GO48=0,0,($K48-$L48-$M48)*$K$63*1/$C48)+IF(GP48=0,0,($O48-$P48-$Q48)*$O$63*1/$C48)+IF(GQ48=0,0,($S48-$T48-$U48)*$S$63*1/$C48)+IF(GR48=0,0,($W48-$X48-$Y48)*$W$63*1/$C48)+IF(GS48=0,0,($AA48-$AB48-$AC48)*$AA$63*1/$C48)+IF(GT48=0,0,($AE48-$AF48-$AG48)*$AE$63*1/$C48)+IF(GU48=0,0,($AI48-$AJ48-$AK48)*$AI$63*1/$C48)+IF(GV48=0,0,($AM48-$AN48-$AO48)*$AM$63*1/$C48)+IF(GW48=0,0,($AQ48-$AR48-$AS48)*$AQ$63*1/$C48)+IF(GX48=0,0,($AU48-$V48-$AW48)*$AU$63*1/$C48)+IF(GY48=0,0,($AY48-$AZ48-$BA48)*$AY$63*1/$C48)+IF(GZ48=0,0,($BC48-$BD48-$BE48)*$BC$63*1/$C48)+IF(HA48=0,0,$BG48*1/$C48)+IF(HB48=0,0,($BJ48-$BK48-$BL48)*$BJ$63*1/$C48)+IF(HC48=0,0,($BN48-$BO48-$BP48)*$BN$63*1/$C48)+IF(HD48=0,0,($BR48-$BS48-$BT48)*$BR$63*1/$C48)+IF(HE48=0,0,($BV48-$BW48-$BX48)*$BV$63*1/$C48)+IF(HF48=0,0,($BZ48-$CA48-$CB48)*$BZ$63*1/$C48)+IF(HG48=0,0,($CD48-$CE48-$CF48)*$CD$63*1/$C48)+IF(HH48=0,0,($CH48-$CI48-$CJ48)*$CH$63*1/$C48)+IF(HI48=0,0,($CL48-$CM48-$CN48)*$CL$63*1/$C48) -> 0
B49: Terrenos | C49: 1000 | D49: 0 | E49: 0 | F49: 0 | G49: 0 | H49: 0 | I49: 0 | J49: 0 | K49: 0 | L49: 0 | M49: 0 | N49: 0 | O49: 0 | P49: 0 | Q49: 0 | R49: 0 | S49: 0 | T49: 0 | U49: 0 | V49: 0 | W49: 0 | X49: 0 | Y49: 0 | Z49: 0 | AA49: 0 | AB49: 0 | AC49: 0 | AD49: 0 | AE49: 0 | AF49: 0 | AG49: 0 | AH49: 0 | AI49: 0 | AJ49: 0 | AK49: 0 | AL49: 0 | AM49: 0 | AN49: 0 | AO49: 0 | AP49: 0 | AQ49: 0 | AR49: 0 | AS49: 0 | AT49: 0 | AU49: 0 | AV49: 0 | AW49: 0 | AX49: 0 | AY49: 0 | AZ49: 0 | BA49: 0 | BB49: 0 | BC49: 0 | BD49: 0 | BE49: 0 | BF49: 0 | BG49: 0 | BH49: 0 | BI49: 0 | BJ49: 0 | BK49: 0 | BL49: 0 | BM49: 0 | BN49: 0 | BO49: 0 | BP49: 0 | BQ49: 0 | BR49: 0 | BS49: 0 | BT49: 0 | BU49: 0 | BV49: 0 | BW49: 0 | BX49: 0 | BY49: 0 | BZ49: 0 | CA49: 0 | CB49: 0 | CC49: 0 | CD49: 0 | CE49: 0 | CF49: 0 | CG49: 0 | CH49: 0 | CI49: 0 | CJ49: 0 | CK49: 0 | CL49: 0 | CM49: 0 | CN49: 0 | CO49: 0 | CP49: 0 | CQ49: 0 | CR49: 0.9805 | CS49: 0.9815 | CT49: 0.9825 | CU49: 0.9835 | CV49: 0.9845 | CW49: 0.9855 | CX49: 0.9865 | CY49: 0.9875 | CZ49: 0.9885 | DA49: 0.9895 | DB49: 0.9905 | DC49: 0.9915 | DD49: 0.9925 | DE49: 0 | DF49: 0.9935 | DG49: 0.9945 | DH49: 0.9955 | DI49: 0.9965 | DJ49: 0.9975 | DK49: 0.9985 | DL49: 0.9995 | DM49: 1 | DN49: =IF(CQ49=0,0,($D49-$E49)*1/$C49)+IF(CR49=0,0,($G49-$H49-$I49)*$G$63*1/$C49)+IF(CS49=0,0,($K49-$L49-$M49)*$K$63*1/$C49)+IF(CT49=0,0,($O49-$P49-$Q49)*$O$63*1/$C49)+IF(CU49=0,0,($S49-$T49-$U49)*$S$63*1/$C49)+IF(CV49=0,0,($W49-$X49-$Y49)*$W$63*1/$C49)+IF(CW49=0,0,($AA49-$AB49-$AC49)*$AA$63*1/$C49)+IF(CX49=0,0,($AE49-$AF49-$AG49)*$AE$63*1/$C49)+IF(CY49=0,0,($AI49-$AJ49-$AK49)*$AI$63*1/$C49)+IF(CZ49=0,0,($AM49-$AN49-$AO49)*$AM$63*1/$C49)+IF(DA49=0,0,($AQ49-$AR49-$AS49)*$AQ$63*1/$C49)+IF(DB49=0,0,($AU49-$V49-$AW49)*$AU$63*1/$C49)+IF(DC49=0,0,($AY49-$AZ49-$BA49)*$AY$63*1/$C49)+IF(DD49=0,0,($BC49-$BD49-$BE49)*$BC$63*1/$C49)+IF(DE49=0,0,$BG49*1/$C49)+IF(DF49=0,0,($BJ49-$BK49-$BL49)*$BJ$63*1/$C49)+IF(DG49=0,0,($BN49-$BO49-$BP49)*$BN$63*1/$C49)+IF(DH49=0,0,($BR49-$BS49-$BT49)*$BR$63*1/$C49)+IF(DI49=0,0,($BV49-$BW49-$BX49)*$BV$63*1/$C49)+IF(DJ49=0,0,($BZ49-$CA49-$CB49)*$BZ$63*1/$C49)+IF(DK49=0,0,($CD49-$CE49-$CF49)*$CD$63*1/$C49)+IF(DL49=0,0,($CH49-$CI49-$CJ49)*$CH$63*1/$C49)+IF(DM49=0,0,($CL49-$CM49-$CN49)*$CL$63*1/$C49) -> 0 | DO49: =D49-E49+(G49-I49)*G$63+(K49-M49)*K$63+(O49-Q49)*O$63+(S49-U49)*S$63+(W49-Y49)*W$63+(AA49-AC49)*AA$63+(AE49-AG49)*AE$63+(AI49-AK49)*AI$63+(AM49-AO49)*AM$63+(AQ49-AS49)*$AQ$63+(AU49-AW49)*$AU$63+(AY49-BA49)*$AY$63+(BC49-BE49)*$BC$63+BG49+(BJ49-BL49)*$BJ$63+(BN49-BP49)*$BN$63+(BR49-BT49)*$BR$63+(BV49-BX49)*$BV$63+(BZ49-CB49)*$BZ$63+(CD49-CF49)*$CD$63+(CH49-CJ49)*$CH$63+(CL49-CN49)*$CL$63 -> 0 | DP49: =IF(CQ49=0,D49-E49,0)+IF(CR49=0,(G49-I49)*G$63,0)+IF(CS49=0,(K49-M49)*K$63,0)+IF(CT49=0,(O49-Q49)*O$63,0)+IF(CU49=0,(S49-U49)*S$63,0)+IF(CV49=0,(W49-Y49)*W$63,0)+IF(CW49=0,(AA49-AC49)*AA$63,0)+IF(CX49=0,(AE49-AG49)*AE$63,0)+IF(CY49=0,(AI49-AK49)*AI$63,0)+IF(CZ49=0,(AM49-AO49)*AM$63,0)+IF(DA49=0,(AQ49-AS49)*$AQ$63,0)+IF(DB49=0,(AU49-AW49)*$AU$63,0)+IF(DC49=0,(AY49-BA49)*$AY$63,0)++IF(DD49=0,(BC49-BE49)*$BC$63,0)+IF(DE49=0,BG49,0)+IF(DF49=0,(BJ49-BL49)*$BJ$63,0)+IF(DG49=0,(BN49-BP49)*$BN$63,0)+IF(DH49=0,(BR49-BT49)*$BR$63,0)+IF(DI49=0,(BV49-BX49)*$BV$63,0)+IF(DJ49=0,(BZ49-CB49)*$BZ$63,0)+IF(DK49=0,(CD49-CF49)*$CD$63,0)+IF(DL49=0,(CH49-CJ49)*$CH$63,0)+IF(DM49=0,(CL49-CN49)*$CL$63,0) -> 0 | DQ49: =(D49-E49)*CQ49+((G49-H49-(I49-J49))*G$63)*CR49+((K49-L49-(M49-N49))*K$63)*CS49+((O49-P49-(Q49-R49))*O$63)*CT49+((S49-T49-(U49-V49))*S$63)*CU49+((W49-X49-(Y49-Z49))*W$63)*CV49+((AA49-AB49-(AC49-AD49))*AA$63)*CW49+((AE49-AF49-(AG49-AH49))*AE$63)*CX49+((AI49-AJ49-(AK49-AL49))*AI$63)*CY49+((AM49-AN49-(AO49-AP49))*$AM$63)*CZ49+((AQ49-AR49-(AS49-AT49))*$AQ$63)*DA49+((AU49-AV49-(AW49-AX49))*$AU$63)*DB49+((AY49-AZ49-(BA49-BB49))*$AY$63)*DC49+((BC49-BD49-(BE49-BF49))*$BC$63)*DD49+((BJ49-BK49-(BL49-BM49))*$BJ$63)*DF49+(BG49-BH49)*DE49+((BN49-BO49-(BP49-BQ49))*$BN$63)*DG49+((BR49-BS49-(BT49-BU49))*$BR$63)*DH49+((BV49-BW49-(BX49-BY49))*$BV$63)*DI49+((BZ49-CA49-(CB49-CC49))*$BZ$63)*DJ49+((CD49-CE49-(CF49-CG49))*$CD$63)*DK49+((CH49-CI49-(CJ49-CK49))*$CH$63)*DL49+((CL49-CM49-(CN49-CO49))*$CL$63)*DM49 -> 0 | DR49: =(DO49-DP49)*1/C49 -> 0 | DS49: 0 | DT49: 0.9795 | DU49: 0.9805 | DV49: 0.9815 | DW49: 0.9825 | DX49: 0.9835 | DY49: 0.9845 | DZ49: 0.9855 | EA49: 0.9865 | EB49: 0.9875 | EC49: 0.9885 | ED49: 0.9895 | EE49: 0.9905 | EF49: 0.9915 | EG49: 0.9915 | EH49: 0.9925 | EI49: 0.9935 | EJ49: 0.9945 | EK49: 0.9955 | EL49: 0.9965 | EM49: 0.9975 | EN49: 0.9985 | EO49: 0.999 | EP49: =IF(DS49=0,0,($D49-$E49)*1/$C49)+IF(DT49=0,0,($G49-$H49-$I49)*$G$63*1/$C49)+IF(DU49=0,0,($K49-$L49-$M49)*$K$63*1/$C49)+IF(DV49=0,0,($O49-$P49-$Q49)*$O$63*1/$C49)+IF(DW49=0,0,($S49-$T49-$U49)*$S$63*1/$C49)+IF(DX49=0,0,($W49-$X49-$Y49)*$W$63*1/$C49)+IF(DY49=0,0,($AA49-$AB49-$AC49)*$AA$63*1/$C49)+IF(DZ49=0,0,($AE49-$AF49-$AG49)*$AE$63*1/$C49)+IF(EA49=0,0,($AI49-$AJ49-$AK49)*$AI$63*1/$C49)+IF(EB49=0,0,($AM49-$AN49-$AO49)*$AM$63*1/$C49)+IF(EC49=0,0,($AQ49-$AR49-$AS49)*$AQ$63*1/$C49)+IF(ED49=0,0,($AU49-$V49-$AW49)*$AU$63*1/$C49)+IF(EE49=0,0,($AY49-$AZ49-$BA49)*$AY$63*1/$C49)+IF(EF49=0,0,($BC49-$BD49-$BE49)*$BC$63*1/$C49)+IF(EG49=0,0,$BG49*1/$C49)+IF(EH49=0,0,($BJ49-$BK49-$BL49)*$BJ$63*1/$C49)+IF(EI49=0,0,($BN49-$BO49-$BP49)*$BN$63*1/$C49)+IF(EJ49=0,0,($BR49-$BS49-$BT49)*$BR$63*1/$C49)+IF(EK49=0,0,($BV49-$BW49-$BX49)*$BV$63*1/$C49)+IF(EL49=0,0,($BZ49-$CA49-$CB49)*$BZ$63*1/$C49)+IF(EM49=0,0,($CD49-$CE49-$CF49)*$CD$63*1/$C49)+IF(EN49=0,0,($CH49-$CI49-$CJ49)*$CH$63*1/$C49)+IF(EO49=0,0,($CL49-$CM49-$CN49)*$CL$63*1/$C49) -> 0 | EQ49: 0 | ER49: 0.9785 | ES49: 0.9795 | ET49: 0.9805 | EU49: 0.9815 | EV49: 0.9825 | EW49: 0.9835 | EX49: 0.9845 | EY49: 0.9855 | EZ49: 0.9865 | FA49: 0.9875 | FB49: 0.9885 | FC49: 0.9895 | FD49: 0.9905 | FE49: 0.9905 | FF49: 0.9915 | FG49: 0.9925 | FH49: 0.9935 | FI49: 0.9945 | FJ49: 0.9955 | FK49: 0.9965 | FL49: 0.9975 | FM49: 0.998 | FN49: =IF(EQ49=0,0,($D49-$E49)*1/$C49)+IF(ER49=0,0,($G49-$H49-$I49)*$G$63*1/$C49)+IF(ES49=0,0,($K49-$L49-$M49)*$K$63*1/$C49)+IF(ET49=0,0,($O49-$P49-$Q49)*$O$63*1/$C49)+IF(EU49=0,0,($S49-$T49-$U49)*$S$63*1/$C49)+IF(EV49=0,0,($W49-$X49-$Y49)*$W$63*1/$C49)+IF(EW49=0,0,($AA49-$AB49-$AC49)*$AA$63*1/$C49)+IF(EX49=0,0,($AE49-$AF49-$AG49)*$AE$63*1/$C49)+IF(EY49=0,0,($AI49-$AJ49-$AK49)*$AI$63*1/$C49)+IF(EZ49=0,0,($AM49-$AN49-$AO49)*$AM$63*1/$C49)+IF(FA49=0,0,($AQ49-$AR49-$AS49)*$AQ$63*1/$C49)+IF(FB49=0,0,($AU49-$V49-$AW49)*$AU$63*1/$C49)+IF(FC49=0,0,($AY49-$AZ49-$BA49)*$AY$63*1/$C49)+IF(FD49=0,0,($BC49-$BD49-$BE49)*$BC$63*1/$C49)+IF(FE49=0,0,$BG49*1/$C49)+IF(FF49=0,0,($BJ49-$BK49-$BL49)*$BJ$63*1/$C49)+IF(FG49=0,0,($BN49-$BO49-$BP49)*$BN$63*1/$C49)+IF(FH49=0,0,($BR49-$BS49-$BT49)*$BR$63*1/$C49)+IF(FI49=0,0,($BV49-$BW49-$BX49)*$BV$63*1/$C49)+IF(FJ49=0,0,($BZ49-$CA49-$CB49)*$BZ$63*1/$C49)+IF(FK49=0,0,($CD49-$CE49-$CF49)*$CD$63*1/$C49)+IF(FL49=0,0,($CH49-$CI49-$CJ49)*$CH$63*1/$C49)+IF(FM49=0,0,($CL49-$CM49-$CN49)*$CL$63*1/$C49) -> 0 | FO49: 0 | FP49: 0.9775 | FQ49: 0.9785 | FR49: 0.9795 | FS49: 0.9805 | FT49: 0.9815 | FU49: 0.9825 | FV49: 0.9835 | FW49: 0.9845 | FX49: 0.9855 | FY49: 0.9865 | FZ49: 0.9875 | GA49: 0.9885 | GB49: 0.9895 | GC49: 0.9895 | GD49: 0.9905 | GE49: 0.9915 | GF49: 0.9925 | GG49: 0.9935 | GH49: 0.9945 | GI49: 0.9955 | GJ49: 0.9965 | GK49: 0.997 | GL49: =IF(FO49=0,0,($D49-$E49)*1/$C49)+IF(FP49=0,0,($G49-$H49-$I49)*$G$63*1/$C49)+IF(FQ49=0,0,($K49-$L49-$M49)*$K$63*1/$C49)+IF(FR49=0,0,($O49-$P49-$Q49)*$O$63*1/$C49)+IF(FS49=0,0,($S49-$T49-$U49)*$S$63*1/$C49)+IF(FT49=0,0,($W49-$X49-$Y49)*$W$63*1/$C49)+IF(FU49=0,0,($AA49-$AB49-$AC49)*$AA$63*1/$C49)+IF(FV49=0,0,($AE49-$AF49-$AG49)*$AE$63*1/$C49)+IF(FW49=0,0,($AI49-$AJ49-$AK49)*$AI$63*1/$C49)+IF(FX49=0,0,($AM49-$AN49-$AO49)*$AM$63*1/$C49)+IF(FY49=0,0,($AQ49-$AR49-$AS49)*$AQ$63*1/$C49)+IF(FZ49=0,0,($AU49-$V49-$AW49)*$AU$63*1/$C49)+IF(GA49=0,0,($AY49-$AZ49-$BA49)*$AY$63*1/$C49)+IF(GB49=0,0,($BC49-$BD49-$BE49)*$BC$63*1/$C49)+IF(GC49=0,0,$BG49*1/$C49)+IF(GD49=0,0,($BJ49-$BK49-$BL49)*$BJ$63*1/$C49)+IF(GE49=0,0,($BN49-$BO49-$BP49)*$BN$63*1/$C49)+IF(GF49=0,0,($BR49-$BS49-$BT49)*$BR$63*1/$C49)+IF(GG49=0,0,($BV49-$BW49-$BX49)*$BV$63*1/$C49)+IF(GH49=0,0,($BZ49-$CA49-$CB49)*$BZ$63*1/$C49)+IF(GI49=0,0,($CD49-$CE49-$CF49)*$CD$63*1/$C49)+IF(GJ49=0,0,($CH49-$CI49-$CJ49)*$CH$63*1/$C49)+IF(GK49=0,0,($CL49-$CM49-$CN49)*$CL$63*1/$C49) -> 0 | GM49: 0 | GN49: 0.9765 | GO49: 0.9775 | GP49: 0.9785 | GQ49: 0.9795 | GR49: 0.9805 | GS49: 0.9815 | GT49: 0.9825 | GU49: 0.9835 | GV49: 0.9845 | GW49: 0.9855 | GX49: 0.9865 | GY49: 0.9875 | GZ49: 0.9885 | HA49: 0.9885 | HB49: 0.9895 | HC49: 0.9905 | HD49: 0.9915 | HE49: 0.9925 | HF49: 0.9935 | HG49: 0.9945 | HH49: 0.9955 | HI49: 0.996 | HJ49: =IF(GM49=0,0,($D49-$E49)*1/$C49)+IF(GN49=0,0,($G49-$H49-$I49)*$G$63*1/$C49)+IF(GO49=0,0,($K49-$L49-$M49)*$K$63*1/$C49)+IF(GP49=0,0,($O49-$P49-$Q49)*$O$63*1/$C49)+IF(GQ49=0,0,($S49-$T49-$U49)*$S$63*1/$C49)+IF(GR49=0,0,($W49-$X49-$Y49)*$W$63*1/$C49)+IF(GS49=0,0,($AA49-$AB49-$AC49)*$AA$63*1/$C49)+IF(GT49=0,0,($AE49-$AF49-$AG49)*$AE$63*1/$C49)+IF(GU49=0,0,($AI49-$AJ49-$AK49)*$AI$63*1/$C49)+IF(GV49=0,0,($AM49-$AN49-$AO49)*$AM$63*1/$C49)+IF(GW49=0,0,($AQ49-$AR49-$AS49)*$AQ$63*1/$C49)+IF(GX49=0,0,($AU49-$V49-$AW49)*$AU$63*1/$C49)+IF(GY49=0,0,($AY49-$AZ49-$BA49)*$AY$63*1/$C49)+IF(GZ49=0,0,($BC49-$BD49-$BE49)*$BC$63*1/$C49)+IF(HA49=0,0,$BG49*1/$C49)+IF(HB49=0,0,($BJ49-$BK49-$BL49)*$BJ$63*1/$C49)+IF(HC49=0,0,($BN49-$BO49-$BP49)*$BN$63*1/$C49)+IF(HD49=0,0,($BR49-$BS49-$BT49)*$BR$63*1/$C49)+IF(HE49=0,0,($BV49-$BW49-$BX49)*$BV$63*1/$C49)+IF(HF49=0,0,($BZ49-$CA49-$CB49)*$BZ$63*1/$C49)+IF(HG49=0,0,($CD49-$CE49-$CF49)*$CD$63*1/$C49)+IF(HH49=0,0,($CH49-$CI49-$CJ49)*$CH$63*1/$C49)+IF(HI49=0,0,($CL49-$CM49-$CN49)*$CL$63*1/$C49) -> 0
B50: Edificios y mejoras | C50: 40 | D50: 1075230.205 | E50: 0 | F50: 828035.6862 | G50: 0 | H50: 0 | I50: 0 | J50: 0 | K50: 0 | L50: 0 | M50: 0 | N50: 0 | O50: 0 | P50: 0 | Q50: 0 | R50: 0 | S50: 0 | T50: 0 | U50: 0 | V50: 0 | W50: 0 | X50: 0 | Y50: 0 | Z50: 0 | AA50: 26826.64 | AB50: 0 | AC50: 0 | AD50: 0 | AE50: 0 | AF50: 0 | AG50: 0 | AH50: 0 | AI50: 0 | AJ50: 0 | AK50: 0 | AL50: 0 | AM50: 0 | AN50: 0 | AO50: 0 | AP50: 0 | AQ50: 0 | AR50: 0 | AS50: 0 | AT50: 0 | AU50: 0 | AV50: 0 | AW50: 0 | AX50: 0 | AY50: 0 | AZ50: 0 | BA50: 0 | BB50: 0 | BC50: 0 | BD50: 0 | BE50: 0 | BF50: 0 | BG50: 0 | BH50: 0 | BI50: 0 | BJ50: 0 | BK50: 0 | BL50: 0 | BM50: 0 | BN50: 0 | BO50: 0 | BP50: 0 | BQ50: 0 | BR50: 0 | BS50: 0 | BT50: 0 | BU50: 0 | BV50: 0 | BW50: 0 | BX50: 0 | BY50: 0 | BZ50: 0 | CA50: 0 | CB50: 0 | CC50: 0 | CD50: 0 | CE50: 0 | CF50: 0 | CG50: 0 | CH50: 0 | CI50: 0 | CJ50: 0 | CK50: 0 | CL50: 0 | CM50: 0 | CN50: 0 | CO50: 0 | CP50: 1991.804034 | CQ50: 0.2576008422 | CR50: 0.5125 | CS50: 0.5375 | CT50: 0.5625 | CU50: 0.5875 | CV50: 0.6125 | CW50: 0.6375 | CX50: 0.6625 | CY50: 0.6875 | CZ50: 0.7125 | DA50: 0.7375 | DB50: 0.7625 | DC50: 0.7875 | DD50: 0.8125 | DE50: 0 | DF50: 0.8375 | DG50: 0.8625 | DH50: 0.8875 | DI50: 0.9125 | DJ50: 0.9375 | DK50: 0.9625 | DL50: 0.9875 | DM50: 1 | DN50: 27354.04014 | DO50: 1094161.605 | DP50: 0 | DQ50: 289048.9742 | DR50: 27354.04014 | DS50: 0.2326008422 | DT50: 0.4875 | DU50: 0.5125 | DV50: 0.5375 | DW50: 0.5625 | DX50: 0.5875 | DY50: 0.6125 | DZ50: 0.6375 | EA50: 0.6625 | EB50: 0.6875 | EC50: 0.7125 | ED50: 0.7375 | EE50: 0.7625 | EF50: 0.7875 | EG50: 0.7875 | EH50: 0.8125 | EI50: 0.8375 | EJ50: 0.8625 | EK50: 0.8875 | EL50: 0.9125 | EM50: 0.9375 | EN50: 0.9625 | EO50: 0.975 | EP50: 27354.04014 | EQ50: 0.2076008422 | ER50: 0.4625 | ES50: 0.4875 | ET50: 0.5125 | EU50: 0.5375 | EV50: 0.5625 | EW50: 0.5875 | EX50: 0.6125 | EY50: 0.6375 | EZ50: 0.6625 | FA50: 0.6875 | FB50: 0.7125 | FC50: 0.7375 | FD50: 0.7625 | FE50: 0.7625 | FF50: 0.7875 | FG50: 0.8125 | FH50: 0.8375 | FI50: 0.8625 | FJ50: 0.8875 | FK50: 0.9125 | FL50: 0.9375 | FM50: 0.95 | FN50: 27354.04014 | FO50: 0.1826008422 | FP50: 0.4375 | FQ50: 0.4625 | FR50: 0.4875 | FS50: 0.5125 | FT50: 0.5375 | FU50: 0.5625 | FV50: 0.5875 | FW50: 0.6125 | FX50: 0.6375 | FY50: 0.6625 | FZ50: 0.6875 | GA50: 0.7125 | GB50: 0.7375 | GC50: 0.7375 | GD50: 0.7625 | GE50: 0.7875 | GF50: 0.8125 | GG50: 0.8375 | GH50: 0.8625 | GI50: 0.8875 | GJ50: 0.9125 | GK50: 0.925 | GL50: 27354.04014 | GM50: 0.1576008422 | GN50: 0.4125 | GO50: 0.4375 | GP50: 0.4625 | GQ50: 0.4875 | GR50: 0.5125 | GS50: 0.5375 | GT50: 0.5625 | GU50: 0.5875 | GV50: 0.6125 | GW50: 0.6375 | GX50: 0.6625 | GY50: 0.6875 | GZ50: 0.7125 | HA50: 0.7125 | HB50: 0.7375 | HC50: 0.7625 | HD50: 0.7875 | HE50: 0.8125 | HF50: 0.8375 | HG50: 0.8625 | HH50: 0.8875 | HI50: 0.9 | HJ50: 27354.04014
B51: Sistema de medidores y accesorios | C51: 22 | D51: 4570414.922 | E51: 0 | F51: 3249798.253 | G51: 385845.48 | H51: 0 | I51: 0 | J51: 0 | K51: 452747.86 | L51: 0 | M51: 0 | N51: 0 | O51: 370817.32 | P51: 0 | Q51: 0 | R51: 0 | S51: 396757.73 | T51: 0 | U51: 0 | V51: 0 | W51: 291785.67 | X51: 0 | Y51: 0 | Z51: 0 | AA51: 444306.6 | AB51: 0 | AC51: 0 | AD51: 0 | AE51: 641039 | AF51: 0 | AG51: 0 | AH51: 0 | AI51: 528906.63 | AJ51: 0 | AK51: 0 | AL51: 0 | AM51: 421950.03 | AN51: 0 | AO51: 0 | AP51: 0 | AQ51: 401723.83 | AR51: 0 | AS51: 0 | AT51: 0 | AU51: 401731.13 | AV51: 0 | AW51: 0 | AX51: 0 | AY51: 555885.0532 | AZ51: 0 | BA51: 0 | BB51: 0 | BC51: 660890.25 | BD51: 0 | BE51: 0 | BF51: 0 | BG51: 265555 | BH51: 265555 | BI51: 173348.46 | BJ51: 682413 | BK51: 0 | BL51: 0 | BM51: 0 | BN51: 805417.9 | BO51: 0 | BP51: 0 | BQ51: 0 | BR51: 811234 | BS51: 0 | BT51: 0 | BU51: 0 | BV51: 994683.04 | BW51: 0 | BX51: 0 | BY51: 0 | BZ51: 1009193.62 | CA51: 0 | CB51: 0 | CC51: 0 | CD51: 1325024.61 | CE51: 0 | CF51: 0 | CG51: 0 | CH51: 1450242.81 | CI51: 0 | CJ51: 0 | CK51: 0 | CL51: 709442.56 | CM51: 0 | CN51: 0 | CO51: 0 | CP51: 1994.643123 | CQ51: 0 | CR51: 0.1136363636 | CS51: 0.1590909091 | CT51: 0.2045454545 | CU51: 0.25 | CV51: 0.2954545455 | CW51: 0.3409090909 | CX51: 0.3863636364 | CY51: 0.4318181818 | CZ51: 0.4772727273 | DA51: 0.5227272727 | DB51: 0.5681818182 | DC51: 0.6136363636 | DD51: 0.6590909091 | DE51: 0.3345961751 | DF51: 0.7045454545 | DG51: 0.75 | DH51: 0.7954545455 | DI51: 0.8409090909 | DJ51: 0.8863636364 | DK51: 0.9318181818 | DL51: 0.9772727273 | DM51: 1 | DN51: 541757.3986 | DO51: 16489077.69 | DP51: 4570414.922 | DQ51: 7998847.252 | DR51: 541757.3986 | DS51: 0 | DT51: 0.06818181818 | DU51: 0.1136363636 | DV51: 0.1590909091 | DW51: 0.2045454545 | DX51: 0.25 | DY51: 0.2954545455 | DZ51: 0.3409090909 | EA51: 0.3863636364 | EB51: 0.4318181818 | EC51: 0.4772727273 | ED51: 0.5227272727 | EE51: 0.5681818182 | EF51: 0.6136363636 | EG51: 0.6136363636 | EH51: 0.6590909091 | EI51: 0.7045454545 | EJ51: 0.75 | EK51: 0.7954545455 | EL51: 0.8409090909 | EM51: 0.8863636364 | EN51: 0.9318181818 | EO51: 0.9545454545 | EP51: 541757.3986 | EQ51: 0 | ER51: 0.02272727273 | ES51: 0.06818181818 | ET51: 0.1136363636 | EU51: 0.1590909091 | EV51: 0.2045454545 | EW51: 0.25 | EX51: 0.2954545455 | EY51: 0.3409090909 | EZ51: 0.3863636364 | FA51: 0.4318181818 | FB51: 0.4772727273 | FC51: 0.5227272727 | FD51: 0.5681818182 | FE51: 0.5681818182 | FF51: 0.6136363636 | FG51: 0.6590909091 | FH51: 0.7045454545 | FI51: 0.75 | FJ51: 0.7954545455 | FK51: 0.8409090909 | FL51: 0.8863636364 | FM51: 0.9090909091 | FN51: 541757.3986 | FO51: 0 | FP51: 0 | FQ51: 0.02272727273 | FR51: 0.06818181818 | FS51: 0.1136363636 | FT51: 0.1590909091 | FU51: 0.2045454545 | FV51: 0.25 | FW51: 0.2954545455 | FX51: 0.3409090909 | FY51: 0.3863636364 | FZ51: 0.4318181818 | GA51: 0.4772727273 | GB51: 0.5227272727 | GC51: 0.5227272727 | GD51: 0.5681818182 | GE51: 0.6136363636 | GF51: 0.6590909091 | GG51: 0.7045454545 | GH51: 0.75 | GI51: 0.7954545455 | GJ51: 0.8409090909 | GK51: 0.8636363636 | GL51: 524732.5219 | GM51: 0 | GN51: 0 | GO51: 0 | GP51: 0.02272727273 | GQ51: 0.06818181818 | GR51: 0.1136363636 | GS51: 0.1590909091 | GT51: 0.2045454545 | GU51: 0.25 | GV51: 0.2954545455 | GW51: 0.3409090909 | GX51: 0.3863636364 | GY51: 0.4318181818 | GZ51: 0.4772727273 | HA51: 0.4772727273 | HB51: 0.5227272727 | HC51: 0.5681818182 | HD51: 0.6136363636 | HE51: 0.6590909091 | HF51: 0.7045454545 | HG51: 0.75 | HH51: 0.7954545455 | HI51: 0.8181818182 | HJ51: 505349.053
B52: Equipos de medida SMEC | C52: 22 | D52: 0 | E52: 0 | F52: 0 | G52: 0 | H52: 0 | I52: 0 | J52: 0 | K52: 0 | L52: 0 | M52: 0 | N52: 0 | O52: 0 | P52: 0 | Q52: 0 | R52: 0 | S52: 0 | T52: 0 | U52: 0 | V52: 0 | W52: 0 | X52: 0 | Y52: 0 | Z52: 0 | AA52: 0 | AB52: 0 | AC52: 0 | AD52: 0 | AE52: 0 | AF52: 0 | AG52: 0 | AH52: 0 | AI52: 0 | AJ52: 0 | AK52: 0 | AL52: 0 | AM52: 0 | AN52: 0 | AO52: 0 | AP52: 0 | AQ52: 0 | AR52: 0 | AS52: 0 | AT52: 0 | AU52: 0 | AV52: 0 | AW52: 0 | AX52: 0 | AY52: 0 | AZ52: 0 | BA52: 0 | BB52: 0 | BC52: 0 | BD52: 0 | BE52: 0 | BF52: 0 | BG52: 0 | BH52: 0 | BI52: 0 | BJ52: 0 | BK52: 0 | BL52: 0 | BM52: 0 | BN52: 0 | BO52: 0 | BP52: 0 | BQ52: 0 | BR52: 0 | BS52: 0 | BT52: 0 | BU52: 0 | BV52: 0 | BW52: 0 | BX52: 0 | BY52: 0 | BZ52: 0 | CA52: 0 | CB52: 0 | CC52: 0 | CD52: 0 | CE52: 0 | CF52: 0 | CG52: 0 | CH52: 0 | CI52: 0 | CJ52: 0 | CK52: 0 | CL52: 0 | CM52: 0 | CN52: 0 | CO52: 0 | CP52: 0 | CQ52: 0 | CR52: 0.1136363636 | CS52: 0.1590909091 | CT52: 0.2045454545 | CU52: 0.25 | CV52: 0.2954545455 | CW52: 0.3409090909 | CX52: 0.3863636364 | CY52: 0.4318181818 | CZ52: 0.4772727273 | DA52: 0.5227272727 | DB52: 0.5681818182 | DC52: 0.6136363636 | DD52: 0.6590909091 | DE52: 0 | DF52: 0.7045454545 | DG52: 0.75 | DH52: 0.7954545455 | DI52: 0.8409090909 | DJ52: 0.8863636364 | DK52: 0.9318181818 | DL52: 0.9772727273 | DM52: 1 | DN52: 0 | DO52: 0 | DP52: 0 | DQ52: 0 | DR52: 0 | DS52: 0 | DT52: 0.06818181818 | DU52: 0.1136363636 | DV52: 0.1590909091 | DW52: 0.2045454545 | DX52: 0.25 | DY52: 0.2954545455 | DZ52: 0.3409090909 | EA52: 0.3863636364 | EB52: 0.4318181818 | EC52: 0.4772727273 | ED52: 0.5227272727 | EE52: 0.5681818182 | EF52: 0.6136363636 | EG52: 0.6136363636 | EH52: 0.6590909091 | EI52: 0.7045454545 | EJ52: 0.75 | EK52: 0.7954545455 | EL52: 0.8409090909 | EM52: 0.8863636364 | EN52: 0.9318181818 | EO52: 0.9545454545 | EP52: 0 | EQ52: 0 | ER52: 0.02272727273 | ES52: 0.06818181818 | ET52: 0.1136363636 | EU52: 0.1590909091 | EV52: 0.2045454545 | EW52: 0.25 | EX52: 0.2954545455 | EY52: 0.3409090909 | EZ52: 0.3863636364 | FA52: 0.4318181818 | FB52: 0.4772727273 | FC52: 0.5227272727 | FD52: 0.5681818182 | FE52: 0.5681818182 | FF52: 0.6136363636 | FG52: 0.6590909091 | FH52: 0.7045454545 | FI52: 0.75 | FJ52: 0.7954545455 | FK52: 0.8409090909 | FL52: 0.8863636364 | FM52: 0.9090909091 | FN52: 0 | FO52: 0 | FP52: 0 | FQ52: 0.02272727273 | FR52: 0.06818181818 | FS52: 0.1136363636 | FT52: 0.1590909091 | FU52: 0.2045454545 | FV52: 0.25 | FW52: 0.2954545455 | FX52: 0.3409090909 | FY52: 0.3863636364 | FZ52: 0.4318181818 | GA52: 0.4772727273 | GB52: 0.5227272727 | GC52: 0.5227272727 | GD52: 0.5681818182 | GE52: 0.6136363636 | GF52: 0.6590909091 | GG52: 0.7045454545 | GH52: 0.75 | GI52: 0.7954545455 | GJ52: 0.8409090909 | GK52: 0.8636363636 | GL52: 0 | GM52: 0 | GN52: 0 | GO52: 0 | GP52: 0.02272727273 | GQ52: 0.06818181818 | GR52: 0.1136363636 | GS52: 0.1590909091 | GT52: 0.2045454545 | GU52: 0.25 | GV52: 0.2954545455 | GW52: 0.3409090909 | GX52: 0.3863636364 | GY52: 0.4318181818 | GZ52: 0.4772727273 | HA52: 0.4772727273 | HB52: 0.5227272727 | HC52: 0.5681818182 | HD52: 0.6136363636 | HE52: 0.6590909091 | HF52: 0.7045454545 | HG52: 0.75 | HH52: 0.7954545455 | HI52: 0.8181818182 | HJ52: 0
B53: Mobiliario y equipo de oficina | C53: 7 | D53: 14383.15112 | E53: 0 | F53: 14250.37341 | G53: 0 | H53: 0 | I53: 0 | J53: 0 | K53: 0 | L53: 0 | M53: 0 | N53: 0 | O53: 0 | P53: 0 | Q53: 0 | R53: 0 | S53: 0 | T53: 0 | U53: 0 | V53: 0 | W53: 0 | X53: 0 | Y53: 0 | Z53: 0 | AA53: 0 | AB53: 0 | AC53: 0 | AD53: 0 | AE53: 0 | AF53: 0 | AG53: 0 | AH53: 0 | AI53: 0 | AJ53: 0 | AK53: 0 | AL53: 0 | AM53: 0 | AN53: 0 | AO53: 0 | AP53: 0 | AQ53: 0 | AR53: 0 | AS53: 0 | AT53: 0 | AU53: 0 | AV53: 0 | AW53: 0 | AX53: 0 | AY53: 0 | AZ53: 0 | BA53: 0 | BB53: 0 | BC53: 0 | BD53: 0 | BE53: 0 | BF53: 0 | BG53: 0 | BH53: 0 | BI53: 0 | BJ53: 0 | BK53: 0 | BL53: 0 | BM53: 0 | BN53: 0 | BO53: 0 | BP53: 0 | BQ53: 0 | BR53: 0 | BS53: 0 | BT53: 0 | BU53: 0 | BV53: 0 | BW53: 0 | BX53: 0 | BY53: 0 | BZ53: 0 | CA53: 0 | CB53: 0 | CC53: 0 | CD53: 0 | CE53: 0 | CF53: 0 | CG53: 0 | CH53: 0 | CI53: 0 | CJ53: 0 | CK53: 0 | CL53: 0 | CM53: 0 | CN53: 0 | CO53: 0 | CP53: 2000.93538 | CQ53: 0 | CR53: 0 | CS53: 0 | CT53: 0 | CU53: 0 | CV53: 0 | CW53: 0 | CX53: 0 | CY53: 0 | CZ53: 0 | DA53: 0 | DB53: 0 | DC53: 0 | DD53: 0 | DE53: 0 | DF53: 0.07142857143 | DG53: 0.2142857143 | DH53: 0.3571428571 | DI53: 0.5 | DJ53: 0.6428571429 | DK53: 0.7857142857 | DL53: 0.9285714286 | DM53: 1 | DN53: 0 | DO53: 14383.15112 | DP53: 14383.15112 | DQ53: 0 | DR53: 0 | DS53: 0 | DT53: 0 | DU53: 0 | DV53: 0 | DW53: 0 | DX53: 0 | DY53: 0 | DZ53: 0 | EA53: 0 | EB53: 0 | EC53: 0 | ED53: 0 | EE53: 0 | EF53: 0 | EG53: 0 | EH53: 0 | EI53: 0.07142857143 | EJ53: 0.2142857143 | EK53: 0.3571428571 | EL53: 0.5 | EM53: 0.6428571429 | EN53: 0.7857142857 | EO53: 0.8571428571 | EP53: 0 | EQ53: 0 | ER53: 0 | ES53: 0 | ET53: 0 | EU53: 0 | EV53: 0 | EW53: 0 | EX53: 0 | EY53: 0 | EZ53: 0 | FA53: 0 | FB53: 0 | FC53: 0 | FD53: 0 | FE53: 0 | FF53: 0 | FG53: 0 | FH53: 0.07142857143 | FI53: 0.2142857143 | FJ53: 0.3571428571 | FK53: 0.5 | FL53: 0.6428571429 | FM53: 0.7142857143 | FN53: 0 | FO53: 0 | FP53: 0 | FQ53: 0 | FR53: 0 | FS53: 0 | FT53: 0 | FU53: 0 | FV53: 0 | FW53: 0 | FX53: 0 | FY53: 0 | FZ53: 0 | GA53: 0 | GB53: 0 | GC53: 0 | GD53: 0 | GE53: 0 | GF53: 0 | GG53: 0.07142857143 | GH53: 0.2142857143 | GI53: 0.3571428571 | GJ53: 0.5 | GK53: 0.5714285714 | GL53: 0 | GM53: 0 | GN53: 0 | GO53: 0 | GP53: 0 | GQ53: 0 | GR53: 0 | GS53: 0 | GT53: 0 | GU53: 0 | GV53: 0 | GW53: 0 | GX53: 0 | GY53: 0 | GZ53: 0 | HA53: 0 | HB53: 0 | HC53: 0 | HD53: 0 | HE53: 0 | HF53: 0.07142857143 | HG53: 0.2142857143 | HH53: 0.3571428571 | HI53: 0.4285714286 | HJ53: 0
B54: Equipo de computación | C54: 4 | D54: 0 | E54: 0 | F54: 0 | G54: 0 | H54: 0 | I54: 0 | J54: 0 | K54: 0 | L54: 0 | M54: 0 | N54: 0 | O54: 0 | P54: 0 | Q54: 0 | R54: 0 | S54: 0 | T54: 0 | U54: 0 | V54: 0 | W54: 0 | X54: 0 | Y54: 0 | Z54: 0 | AA54: 0 | AB54: 0 | AC54: 0 | AD54: 0 | AE54: 0 | AF54: 0 | AG54: 0 | AH54: 0 | AI54: 0 | AJ54: 0 | AK54: 0 | AL54: 0 | AM54: 0 | AN54: 0 | AO54: 0 | AP54: 0 | AQ54: 0 | AR54: 0 | AS54: 0 | AT54: 0 | AU54: 0 | AV54: 0 | AW54: 0 | AX54: 0 | AY54: 0 | AZ54: 0 | BA54: 0 | BB54: 0 | BC54: 0 | BD54: 0 | BE54: 0 | BF54: 0 | BG54: 0 | BH54: 0 | BI54: 0 | BJ54: 0 | BK54: 0 | BL54: 0 | BM54: 0 | BN54: 0 | BO54: 0 | BP54: 0 | BQ54: 0 | BR54: 0 | BS54: 0 | BT54: 0 | BU54: 0 | BV54: 0 | BW54: 0 | BX54: 0 | BY54: 0 | BZ54: 0 | CA54: 0 | CB54: 0 | CC54: 0 | CD54: 0 | CE54: 0 | CF54: 0 | CG54: 0 | CH54: 0 | CI54: 0 | CJ54: 0 | CK54: 0 | CL54: 0 | CM54: 0 | CN54: 0 | CO54: 0 | CP54: 0 | CQ54: 0 | CR54: 0 | CS54: 0 | CT54: 0 | CU54: 0 | CV54: 0 | CW54: 0 | CX54: 0 | CY54: 0 | CZ54: 0 | DA54: 0 | DB54: 0 | DC54: 0 | DD54: 0 | DE54: 0 | DF54: 0 | DG54: 0 | DH54: 0 | DI54: 0.125 | DJ54: 0.375 | DK54: 0.625 | DL54: 0.875 | DM54: 1 | DN54: 0 | DO54: 0 | DP54: 0 | DQ54: 0 | DR54: 0 | DS54: 0 | DT54: 0 | DU54: 0 | DV54: 0 | DW54: 0 | DX54: 0 | DY54: 0 | DZ54: 0 | EA54: 0 | EB54: 0 | EC54: 0 | ED54: 0 | EE54: 0 | EF54: 0 | EG54: 0 | EH54: 0 | EI54: 0 | EJ54: 0 | EK54: 0 | EL54: 0.125 | EM54: 0.375 | EN54: 0.625 | EO54: 0.75 | EP54: 0 | EQ54: 0 | ER54: 0 | ES54: 0 | ET54: 0 | EU54: 0 | EV54: 0 | EW54: 0 | EX54: 0 | EY54: 0 | EZ54: 0 | FA54: 0 | FB54: 0 | FC54: 0 | FD54: 0 | FE54: 0 | FF54: 0 | FG54: 0 | FH54: 0 | FI54: 0 | FJ54: 0 | FK54: 0.125 | FL54: 0.375 | FM54: 0.5 | FN54: 0 | FO54: 0 | FP54: 0 | FQ54: 0 | FR54: 0 | FS54: 0 | FT54: 0 | FU54: 0 | FV54: 0 | FW54: 0 | FX54: 0 | FY54: 0 | FZ54: 0 | GA54: 0 | GB54: 0 | GC54: 0 | GD54: 0 | GE54: 0 | GF54: 0 | GG54: 0 | GH54: 0 | GI54: 0 | GJ54: 0.125 | GK54: 0.25 | GL54: 0 | GM54: 0 | GN54: 0 | GO54: 0 | GP54: 0 | GQ54: 0 | GR54: 0 | GS54: 0 | GT54: 0 | GU54: 0 | GV54: 0 | GW54: 0 | GX54: 0 | GY54: 0 | GZ54: 0 | HA54: 0 | HB54: 0 | HC54: 0 | HD54: 0 | HE54: 0 | HF54: 0 | HG54: 0 | HH54: 0 | HI54: 0 | HJ54: 0
B55: Equipos de transporte y carga | C55: 5 | D55: 0 | E55: 0 | F55: 0 | G55: 0 | H55: 0 | I55: 0 | J55: 0 | K55: 0 | L55: 0 | M55: 0 | N55: 0 | O55: 0 | P55: 0 | Q55: 0 | R55: 0 | S55: 0 | T55: 0 | U55: 0 | V55: 0 | W55: 0 | X55: 0 | Y55: 0 | Z55: 0 | AA55: 0 | AB55: 0 | AC55: 0 | AD55: 0 | AE55: 0 | AF55: 0 | AG55: 0 | AH55: 0 | AI55: 0 | AJ55: 0 | AK55: 0 | AL55: 0 | AM55: 0 | AN55: 0 | AO55: 0 | AP55: 0 | AQ55: 0 | AR55: 0 | AS55: 0 | AT55: 0 | AU55: 0 | AV55: 0 | AW55: 0 | AX55: 0 | AY55: 0 | AZ55: 0 | BA55: 0 | BB55: 0 | BC55: 0 | BD55: 0 | BE55: 0 | BF55: 0 | BG55: 0 | BH55: 0 | BI55: 0 | BJ55: 0 | BK55: 0 | BL55: 0 | BM55: 0 | BN55: 0 | BO55: 0 | BP55: 0 | BQ55: 0 | BR55: 0 | BS55: 0 | BT55: 0 | BU55: 0 | BV55: 0 | BW55: 0 | BX55: 0 | BY55: 0 | BZ55: 0 | CA55: 0 | CB55: 0 | CC55: 0 | CD55: 0 | CE55: 0 | CF55: 0 | CG55: 0 | CH55: 0 | CI55: 0 | CJ55: 0 | CK55: 0 | CL55: 0 | CM55: 0 | CN55: 0 | CO55: 0 | CP55: 0 | CQ55: 0 | CR55: 0 | CS55: 0 | CT55: 0 | CU55: 0 | CV55: 0 | CW55: 0 | CX55: 0 | CY55: 0 | CZ55: 0 | DA55: 0 | DB55: 0 | DC55: 0 | DD55: 0 | DE55: 0 | DF55: 0 | DG55: 0 | DH55: 0.1 | DI55: 0.3 | DJ55: 0.5 | DK55: 0.7 | DL55: 0.9 | DM55: 1 | DN55: 0 | DO55: 0 | DP55: 0 | DQ55: 0 | DR55: 0 | DS55: 0 | DT55: 0 | DU55: 0 | DV55: 0 | DW55: 0 | DX55: 0 | DY55: 0 | DZ55: 0 | EA55: 0 | EB55: 0 | EC55: 0 | ED55: 0 | EE55: 0 | EF55: 0 | EG55: 0 | EH55: 0 | EI55: 0 | EJ55: 0 | EK55: 0.1 | EL55: 0.3 | EM55: 0.5 | EN55: 0.7 | EO55: 0.8 | EP55: 0 | EQ55: 0 | ER55: 0 | ES55: 0 | ET55: 0 | EU55: 0 | EV55: 0 | EW55: 0 | EX55: 0 | EY55: 0 | EZ55: 0 | FA55: 0 | FB55: 0 | FC55: 0 | FD55: 0 | FE55: 0 | FF55: 0 | FG55: 0 | FH55: 0 | FI55: 0 | FJ55: 0.1 | FK55: 0.3 | FL55: 0.5 | FM55: 0.6 | FN55: 0 | FO55: 0 | FP55: 0 | FQ55: 0 | FR55: 0 | FS55: 0 | FT55: 0 | FU55: 0 | FV55: 0 | FW55: 0 | FX55: 0 | FY55: 0 | FZ55: 0 | GA55: 0 | GB55: 0 | GC55: 0 | GD55: 0 | GE55: 0 | GF55: 0 | GG55: 0 | GH55: 0 | GI55: 0.1 | GJ55: 0.3 | GK55: 0.4 | GL55: 0 | GM55: 0 | GN55: 0 | GO55: 0 | GP55: 0 | GQ55: 0 | GR55: 0 | GS55: 0 | GT55: 0 | GU55: 0 | GV55: 0 | GW55: 0 | GX55: 0 | GY55: 0 | GZ55: 0 | HA55: 0 | HB55: 0 | HC55: 0 | HD55: 0 | HE55: 0 | HF55: 0 | HG55: 0 | HH55: 0.1 | HI55: 0.2 | HJ55: 0
B56: Equipos de comunicaciones | C56: 8 | D56: 0 | E56: 0 | F56: 0 | G56: 0 | H56: 0 | I56: 0 | J56: 0 | K56: 0 | L56: 0 | M56: 0 | N56: 0 | O56: 0 | P56: 0 | Q56: 0 | R56: 0 | S56: 0 | T56: 0 | U56: 0 | V56: 0 | W56: 0 | X56: 0 | Y56: 0 | Z56: 0 | AA56: 0 | AB56: 0 | AC56: 0 | AD56: 0 | AE56: 0 | AF56: 0 | AG56: 0 | AH56: 0 | AI56: 0 | AJ56: 0 | AK56: 0 | AL56: 0 | AM56: 0 | AN56: 0 | AO56: 0 | AP56: 0 | AQ56: 0 | AR56: 0 | AS56: 0 | AT56: 0 | AU56: 0 | AV56: 0 | AW56: 0 | AX56: 0 | AY56: 0 | AZ56: 0 | BA56: 0 | BB56: 0 | BC56: 0 | BD56: 0 | BE56: 0 | BF56: 0 | BG56: 0 | BH56: 0 | BI56: 0 | BJ56: 0 | BK56: 0 | BL56: 0 | BM56: 0 | BN56: 0 | BO56: 0 | BP56: 0 | BQ56: 0 | BR56: 0 | BS56: 0 | BT56: 0 | BU56: 0 | BV56: 0 | BW56: 0 | BX56: 0 | BY56: 0 | BZ56: 0 | CA56: 0 | CB56: 0 | CC56: 0 | CD56: 0 | CE56: 0 | CF56: 0 | CG56: 0 | CH56: 0 | CI56: 0 | CJ56: 0 | CK56: 0 | CL56: 0 | CM56: 0 | CN56: 0 | CO56: 0 | CP56: 0 | CQ56: 0 | CR56: 0 | CS56: 0 | CT56: 0 | CU56: 0 | CV56: 0 | CW56: 0 | CX56: 0 | CY56: 0 | CZ56: 0 | DA56: 0 | DB56: 0 | DC56: 0 | DD56: 0.0625 | DE56: 0 | DF56: 0.1875 | DG56: 0.3125 | DH56: 0.4375 | DI56: 0.5625 | DJ56: 0.6875 | DK56: 0.8125 | DL56: 0.9375 | DM56: 1 | DN56: 0 | DO56: 0 | DP56: 0 | DQ56: 0 | DR56: 0 | DS56: 0 | DT56: 0 | DU56: 0 | DV56: 0 | DW56: 0 | DX56: 0 | DY56: 0 | DZ56: 0 | EA56: 0 | EB56: 0 | EC56: 0 | ED56: 0 | EE56: 0 | EF56: 0 | EG56: 0 | EH56: 0.0625 | EI56: 0.1875 | EJ56: 0.3125 | EK56: 0.4375 | EL56: 0.5625 | EM56: 0.6875 | EN56: 0.8125 | EO56: 0.875 | EP56: 0 | EQ56: 0 | ER56: 0 | ES56: 0 | ET56: 0 | EU56: 0 | EV56: 0 | EW56: 0 | EX56: 0 | EY56: 0 | EZ56: 0 | FA56: 0 | FB56: 0 | FC56: 0 | FD56: 0 | FE56: 0 | FF56: 0 | FG56: 0.0625 | FH56: 0.1875 | FI56: 0.3125 | FJ56: 0.4375 | FK56: 0.5625 | FL56: 0.6875 | FM56: 0.75 | FN56: 0 | FO56: 0 | FP56: 0 | FQ56: 0 | FR56: 0 | FS56: 0 | FT56: 0 | FU56: 0 | FV56: 0 | FW56: 0 | FX56: 0 | FY56: 0 | FZ56: 0 | GA56: 0 | GB56: 0 | GC56: 0 | GD56: 0 | GE56: 0 | GF56: 0.0625 | GG56: 0.1875 | GH56: 0.3125 | GI56: 0.4375 | GJ56: 0.5625 | GK56: 0.625 | GL56: 0 | GM56: 0 | GN56: 0 | GO56: 0 | GP56: 0 | GQ56: 0 | GR56: 0 | GS56: 0 | GT56: 0 | GU56: 0 | GV56: 0 | GW56: 0 | GX56: 0 | GY56: 0 | GZ56: 0 | HA56: 0 | HB56: 0 | HC56: 0 | HD56: 0 | HE56: 0.0625 | HF56: 0.1875 | HG56: 0.3125 | HH56: 0.4375 | HI56: 0.5 | HJ56: 0
B57: Otros equipos del sistema de comercialización | C57: 17 | D57: 0 | E57: 0 | F57: 0 | G57: 0 | H57: 0 | I57: 0 | J57: 0 | K57: 0 | L57: 0 | M57: 0 | N57: 0 | O57: 0 | P57: 0 | Q57: 0 | R57: 0 | S57: 0 | T57: 0 | U57: 0 | V57: 0 | W57: 0 | X57: 0 | Y57: 0 | Z57: 0 | AA57: 0 | AB57: 0 | AC57: 0 | AD57: 0 | AE57: 0 | AF57: 0 | AG57: 0 | AH57: 0 | AI57: 0 | AJ57: 0 | AK57: 0 | AL57: 0 | AM57: 0 | AN57: 0 | AO57: 0 | AP57: 0 | AQ57: 0 | AR57: 0 | AS57: 0 | AT57: 0 | AU57: 0 | AV57: 0 | AW57: 0 | AX57: 0 | AY57: 0 | AZ57: 0 | BA57: 0 | BB57: 0 | BC57: 0 | BD57: 0 | BE57: 0 | BF57: 0 | BG57: 0 | BH57: 0 | BI57: 0 | BJ57: 0 | BK57: 0 | BL57: 0 | BM57: 0 | BN57: 0 | BO57: 0 | BP57: 0 | BQ57: 0 | BR57: 0 | BS57: 0 | BT57: 0 | BU57: 0 | BV57: 0 | BW57: 0 | BX57: 0 | BY57: 0 | BZ57: 0 | CA57: 0 | CB57: 0 | CC57: 0 | CD57: 0 | CE57: 0 | CF57: 0 | CG57: 0 | CH57: 106264 | CI57: 0 | CJ57: 0 | CK57: 0 | CL57: 0 | CM57: 0 | CN57: 0 | CO57: 0 | CP57: 0 | CQ57: 0 | CR57: 0 | CS57: 0 | CT57: 0 | CU57: 0.02941176471 | CV57: 0.08823529412 | CW57: 0.1470588235 | CX57: 0.2058823529 | CY57: 0.2647058824 | CZ57: 0.3235294118 | DA57: 0.3823529412 | DB57: 0.4411764706 | DC57: 0.5 | DD57: 0.5588235294 | DE57: 0 | DF57: 0.6176470588 | DG57: 0.6764705882 | DH57: 0.7352941176 | DI57: 0.7941176471 | DJ57: 0.8529411765 | DK57: 0.9117647059 | DL57: 0.9705882353 | DM57: 1 | DN57: 5625.741176 | DO57: 95637.6 | DP57: 0 | DQ57: 92824.72941 | DR57: 5625.741176 | DS57: 0 | DT57: 0 | DU57: 0 | DV57: 0 | DW57: 0 | DX57: 0.02941176471 | DY57: 0.08823529412 | DZ57: 0.1470588235 | EA57: 0.2058823529 | EB57: 0.2647058824 | EC57: 0.3235294118 | ED57: 0.3823529412 | EE57: 0.4411764706 | EF57: 0.5 | EG57: 0.5 | EH57: 0.5588235294 | EI57: 0.6176470588 | EJ57: 0.6764705882 | EK57: 0.7352941176 | EL57: 0.7941176471 | EM57: 0.8529411765 | EN57: 0.9117647059 | EO57: 0.9411764706 | EP57: 5625.741176 | EQ57: 0 | ER57: 0 | ES57: 0 | ET57: 0 | EU57: 0 | EV57: 0 | EW57: 0.02941176471 | EX57: 0.08823529412 | EY57: 0.1470588235 | EZ57: 0.2058823529 | FA57: 0.2647058824 | FB57: 0.3235294118 | FC57: 0.3823529412 | FD57: 0.4411764706 | FE57: 0.4411764706 | FF57: 0.5 | FG57: 0.5588235294 | FH57: 0.6176470588 | FI57: 0.6764705882 | FJ57: 0.7352941176 | FK57: 0.7941176471 | FL57: 0.8529411765 | FM57: 0.8823529412 | FN57: 5625.741176 | FO57: 0 | FP57: 0 | FQ57: 0 | FR57: 0 | FS57: 0 | FT57: 0 | FU57: 0 | FV57: 0.02941176471 | FW57: 0.08823529412 | FX57: 0.1470588235 | FY57: 0.2058823529 | FZ57: 0.2647058824 | GA57: 0.3235294118 | GB57: 0.3823529412 | GC57: 0.3823529412 | GD57: 0.4411764706 | GE57: 0.5 | GF57: 0.5588235294 | GG57: 0.6176470588 | GH57: 0.6764705882 | GI57: 0.7352941176 | GJ57: 0.7941176471 | GK57: 0.8235294118 | GL57: 5625.741176 | GM57: 0 | GN57: 0 | GO57: 0 | GP57: 0 | GQ57: 0 | GR57: 0 | GS57: 0 | GT57: 0 | GU57: 0.02941176471 | GV57: 0.08823529412 | GW57: 0.1470588235 | GX57: 0.2058823529 | GY57: 0.2647058824 | GZ57: 0.3235294118 | HA57: 0.3235294118 | HB57: 0.3823529412 | HC57: 0.4411764706 | HD57: 0.5 | HE57: 0.5588235294 | HF57: 0.6176470588 | HG57: 0.6764705882 | HH57: 0.7352941176 | HI57: 0.7647058824 | HJ57: 5625.741176
B58: TOTAL SISTEMA DE COMERCIALIZACIÓN | D58: =SUM(D48:D57) -> 5660028.278 | E58: =SUM(E48:E57) -> 0 | F58: 4092084.312 | G58: =SUM(G48:G57) -> 385845.48 | H58: =SUM(H48:H57) -> 0 | I58: 0 | J58: 0 | K58: =SUM(K48:K57) -> 452747.86 | L58: =SUM(L48:L57) -> 0 | M58: =SUM(M48:M57) -> 0 | N58: =SUM(N48:N57) -> 0 | O58: =SUM(O48:O57) -> 370817.32 | P58: =SUM(P48:P57) -> 0 | Q58: =SUM(Q48:Q57) -> 0 | R58: =SUM(R48:R57) -> 0 | S58: =SUM(S48:S57) -> 396757.73 | T58: =SUM(T48:T57) -> 0 | U58: =SUM(U48:U57) -> 0 | V58: =SUM(V48:V57) -> 0 | W58: =SUM(W48:W57) -> 291785.67 | X58: =SUM(X48:X57) -> 0 | Y58: =SUM(Y48:Y57) -> 0 | Z58: =SUM(Z48:Z57) -> 0 | AA58: =SUM(AA48:AA57) -> 471133.24 | AB58: =SUM(AB48:AB57) -> 0 | AC58: =SUM(AC48:AC57) -> 0 | AD58: =SUM(AD48:AD57) -> 0 | AE58: =SUM(AE48:AE57) -> 641039 | AF58: =SUM(AF48:AF57) -> 0 | AG58: =SUM(AG48:AG57) -> 0 | AH58: =SUM(AH48:AH57) -> 0 | AI58: =SUM(AI48:AI57) -> 528906.63 | AJ58: =SUM(AJ48:AJ57) -> 0 | AK58: =SUM(AK48:AK57) -> 0 | AL58: =SUM(AL48:AL57) -> 0 | AM58: =SUM(AM48:AM57) -> 421950.03 | AN58: =SUM(AN48:AN57) -> 0 | AO58: =SUM(AO48:AO57) -> 0 | AP58: =SUM(AP48:AP57) -> 0 | AQ58: =SUM(AQ48:AQ57) -> 401723.83 | AR58: =SUM(AR48:AR57) -> 0 | AS58: =SUM(AS48:AS57) -> 0 | AT58: =SUM(AT48:AT57) -> 0 | AU58: =SUM(AU48:AU57) -> 401731.13 | AV58: =SUM(AV48:AV57) -> 0 | AW58: =SUM(AW48:AW57) -> 0 | AX58: =SUM(AX48:AX57) -> 0 | AY58: =SUM(AY48:AY57) -> 555885.0532 | AZ58: =SUM(AZ48:AZ57) -> 0 | BA58: =SUM(BA48:BA57) -> 0 | BB58: =SUM(BB48:BB57) -> 0 | BC58: =SUM(BC48:BC57) -> 660890.25 | BD58: =SUM(BD48:BD57) -> 0 | BE58: =SUM(BE48:BE57) -> 0 | BF58: =SUM(BF48:BF57) -> 0 | BG58: =SUM(BG48:BG57) -> 265555 | BH58: =SUM(BH48:BH57) -> 265555 | BI58: =SUM(BI48:BI57) -> 173348.46 | BJ58: =SUM(BJ48:BJ57) -> 682413 | BK58: =SUM(BK48:BK57) -> 0 | BL58: =SUM(BL48:BL57) -> 0 | BM58: =SUM(BM48:BM57) -> 0 | BN58: =SUM(BN48:BN57) -> 805417.9 | BO58: =SUM(BO48:BO57) -> 0 | BP58: =SUM(BP48:BP57) -> 0 | BQ58: =SUM(BQ48:BQ57) -> 0 | BR58: =SUM(BR48:BR57) -> 811234 | BS58: =SUM(BS48:BS57) -> 0 | BT58: =SUM(BT48:BT57) -> 0 | BU58: =SUM(BU48:BU57) -> 0 | BV58: =SUM(BV48:BV57) -> 994683.04 | BW58: =SUM(BW48:BW57) -> 0 | BX58: =SUM(BX48:BX57) -> 0 | BY58: =SUM(BY48:BY57) -> 0 | BZ58: =SUM(BZ48:BZ57) -> 1009193.62 | CA58: =SUM(CA48:CA57) -> 0 | CB58: =SUM(CB48:CB57) -> 0 | CC58: =SUM(CC48:CC57) -> 0 | CD58: =SUM(CD48:CD57) -> 1325024.61 | CE58: =SUM(CE48:CE57) -> 0 | CF58: =SUM(CF48:CF57) -> 0 | CG58: =SUM(CG48:CG57) -> 0 | CH58: =SUM(CH48:CH57) -> 1556506.81 | CI58: =SUM(CI48:CI57) -> 0 | CJ58: =SUM(CJ48:CJ57) -> 0 | CK58: =SUM(CK48:CK57) -> 0 | CL58: =SUM(CL48:CL57) -> 709442.56 | CM58: =SUM(CM48:CM57) -> 0 | CN58: =SUM(CN48:CN57) -> 0 | CO58: =SUM(CO48:CO57) -> 0 | DN58: =SUM(DN48:DN57) -> 574737.1799 | DO58: =SUM(DO48:DO57) -> 17693260.05 | DP58: =SUM(DP48:DP57) -> 4584798.073 | DQ58: =SUM(DQ48:DQ57) -> 8380720.956 | DR58: =SUM(DR48:DR57) -> 574737.1799 | EP58: =SUM(EP48:EP57) -> 574737.1799 | FN58: =SUM(FN48:FN57) -> 574737.1799 | GL58: =SUM(GL48:GL57) -> 557712.3032 | HJ58: =SUM(HJ48:HJ57) -> 538328.8343
B59: TOTAL PROPIEDADES Y PLANTA + SISTEMA DE DISTRIBUCIÓN + ALUMBRADO PÚBLICO + COMERCIALIZACIÓN | D59: =D13+D45+D47+D58 -> 80363913.34 | E59: =E13+E45+E47+E58 -> 0 | F59: 45909466.48 | G59: 2297920.789 | H59: =H13+H45+H47+H58 -> 0 | I59: 0 | J59: 0 | K59: 3705380.735 | L59: =L13+L45+L47+L58 -> 315949 | M59: 0 | N59: 0 | O59: 3354159.611 | P59: 0 | Q59: 0 | R59: 0 | S59: 3518386.36 | T59: 0 | U59: 0 | V59: 0 | W59: 3815993.57 | X59: 0 | Y59: 0 | Z59: 0 | AA59: 5590315.43 | AB59: 556386.07 | AC59: 0 | AD59: 0 | AE59: 6630069.31 | AF59: 0 | AG59: 0 | AH59: 0 | AI59: 8798937.464 | AJ59: 0 | AK59: 0 | AL59: 0 | AM59: 6243081.932 | AN59: 0 | AO59: 0 | AP59: 0 | AQ59: 7546107.309 | AR59: 0 | AS59: 0 | AT59: 0 | AU59: 5992535.49 | AV59: 0 | AW59: 0 | AX59: 0 | AY59: 9964863.591 | AZ59: 0 | BA59: 0 | BB59: 0 | BC59: 11143773.31 | BD59: 0 | BE59: 0 | BF59: 0 | BG59: =BG13+BG45+BG47+BG58 -> 8136602.248 | BH59: 6029079.558 | BI59: 6021259.68 | BJ59: 12605720.15 | BK59: 0 | BL59: 0 | BM59: 0 | BN59: 25963295.5 | BO59: 0 | BP59: 0 | BQ59: 0 | BR59: 19553374.01 | BS59: 65610.73 | BT59: 0 | BU59: 0 | BV59: 20404493.8 | BW59: 2126529.264 | BX59: 0 | BY59: 0 | BZ59: 22105252.66 | CA59: 2659763.211 | CB59: 0 | CC59: 0 | CD59: 18210896.86 | CE59: 519973.6671 | CF59: 0 | CG59: 0 | CH59: 17257121.71 | CI59: 143425.1252 | CJ59: 0 | CK59: 0 | CL59: 8188883.98 | CM59: 0 | CN59: 0 | CO59: 0 | DN59: =DN13+DN45+DN47+DN58 -> 8523878.133 | DO59: =DO13+DO45+DO47+DO58 -> 277552381.9 | DP59: =DP13+DP45+DP47+DP58 -> 73017529.59 | DQ59: =DQ13+DQ45+DQ47+DQ58 -> 136785407.5 | DR59: =DR13+DR45+DR47+DR58 -> 8708506.775 | EP59: =EP13+EP45+EP47+EP58 -> 7928208.306 | FN59: =FN13+FN45+FN47+FN58 -> 7134011.24 | GL59: =GL13+GL45+GL47+GL58 -> 6930245.59 | HJ59: =HJ13+HJ45+HJ47+HJ58 -> 6538870.85
A60: COEFICIENTE DE EFICIENCIA | B60: PROPIEDADES Y PLANTA | D60: 1 | G60: 0.7342593575 | K60: 0.7223278986 | O60: 0.8044641538 | S60: 0.6 | W60: 0.8861967157 | AA60: 0.8373990763 | AE60: 0.8548920515 | AI60: 0.8600493435 | AM60: 1 | AQ60: 0.9645074859 | AU60: 0 | AY60: 1 | BC60: 0.9007403578 | BJ60: 0.8213874949 | BN60: 0.8952290629 | BR60: 0.9315658893 | BV60: 0.9 | BZ60: 0.9 | CD60: 0.9 | CH60: 0.8910009396 | CL60: 0.9 | DR60: =DR59/DO59 -> 0.03137608373
B61: SISTEMA DE DISTRIBUCIÓN | D61: 1 | G61: 0.9125435465 | K61: 0.9211604003 | O61: 0.8439458799 | S61: 0.8285315588 | W61: 0.8344632031 | AA61: 0.8652207542 | AE61: 0.8486914675 | AI61: 0.850532975 | AM61: 0.7054968588 | AQ61: 0.8121332316 | AU61: 0.817041043 | AY61: 0.5764133852 | BC61: 0.8268928847 | BJ61: 0.8267861116 | BN61: 0.8744155803 | BR61: 0.8766376348 | BV61: 0.8810847627 | BZ61: 0.8536204506 | CD61: 0.8504989064 | CH61: 0.8547183391 | CL61: 0.8902949888 | DO61: 0 | DP61: 0 | DQ61: 0
B62: ALUMBRADO PÚBLICO | D62: 1 | G62: 1 | K62: 1 | O62: 1 | S62: 1 | W62: 0.92 | AA62: 0.92 | AE62: 0.92 | AI62: 0.92 | AM62: 1 | AQ62: 1 | AU62: 1 | AY62: 1 | BC62: 0.9 | BJ62: 0.9 | BN62: 0.9 | BR62: 0.9 | BV62: 0.9 | BZ62: 0.9 | CD62: 0.9 | CH62: 0.9 | CL62: 0.9
B63: SISTEMA DE COMERCIALIZACIÓN | D63: 1 | G63: 0.9707183508 | K63: 0.9418847745 | O63: 0.944590161 | S63: 0.6 | W63: 0.7 | AA63: 0.7056940665 | AE63: 0.7 | AI63: 0.7 | AM63: 0.7296268273 | AQ63: 0.8267973799 | AU63: 0.8417475415 | AY63: 0.6209712217 | BC63: 0.9 | BJ63: 0.9 | BN63: 0.9 | BR63: 0.9 | BV63: 0.9 | BZ63: 0.9 | CD63: 0.9 | CH63: 0.9 | CL63: 0.9
D65: 0 | F65: 0 | G65: 0 | H65: 0 | I65: 0 | J65: 0 | K65: 0 | L65: 0 | M65: 0 | N65: 0 | O65: 0 | P65: 0 | Q65: 0 | R65: 0 | S65: 0 | T65: 0 | U65: 0 | V65: 0 | W65: 0 | X65: 0 | Y65: 0 | Z65: 0 | AA65: 0 | AB65: 0 | AC65: 0 | AD65: 0 | AE65: 0 | AF65: 0 | AG65: 0 | AH65: 0 | AI65: 0 | AJ65: 0 | AK65: 0 | AL65: 0 | AM65: 0 | AN65: 0 | AO65: 0 | AP65: 0 | AQ65: 0 | AR65: 0 | AS65: 0 | AT65: 0 | AU65: 0 | AV65: 0 | AW65: 0 | AX65: 0 | AY65: 0 | AZ65: 0 | BA65: 0 | BB65: 0 | BC65: 0 | BD65: 0 | BE65: 0 | BF65: 0 | BG65: 0 | BH65: 0 | BI65: 0 | BJ65: 0 | BK65: 0 | BL65: 0 | BM65: 0 | BN65: 0 | BO65: 0 | BP65: 0 | BQ65: 0 | BR65: 0 | BS65: 0 | BT65: 0 | BU65: 0 | BV65: 0 | BW65: 0 | BX65: 0 | BY65: 0 | BZ65: 0 | CA65: 0 | CB65: 0 | CC65: 0 | CD65: 0 | CE65: 0 | CF65: 0 | CG65: 0 | CH65: 0 | CI65: 0 | CJ65: 0 | CK65: 0 | CL65: 0 | CM65: 0 | CN65: 0 | CO65: 0
B67: Base de Capital | C67: Jul 2021 - Jun 2022 | D67: Jul 2022 - Jun 2023 | E67: Jul 2023 - Jun 2024 | F67: Jul 2024 - Jun 2025 | G67: Jul 2025 - Jun 2026
B68: BCD | C68: =DO45+DO13*(DO45/SUM(DO45,DO47,DO58)) -> 244433055.3 | D68: =C68 -> 244433055.3 | E68: =D68 -> 244433055.3 | F68: 244433055.3 | G68: 244433055.3
B69: BCAP | C69: =DO47+DO13*(DO47/SUM(DO45,DO47,DO58)) -> 14049432.72 | D69: =C69 -> 14049432.72 | E69: 14049432.72 | F69: 14049432.72 | G69: 14049432.72
B70: BCC | C70: =DO58+DO13*(DO58/SUM(DO45,DO47,DO58)) -> 19069893.88 | D70: =C70 -> 19069893.88 | E70: 19069893.88 | F70: 19069893.88 | G70: 19069893.88
B71: Total BC | C71: =SUM(C68:C70) -> 277552381.9 | D71: =SUM(D68:D70) -> 277552381.9 | E71: 277552381.9 | F71: 277552381.9 | G71: 277552381.9
B72: BCDN | C72: =DQ45+DQ13*(DQ45/SUM(DQ45,DQ47,DQ58)) -> 121889839.8
B73: BCNAP | C73: =DQ47+DQ13*(DQ47/SUM(DQ45,DQ47,DQ58)) -> 6210973.107
B74: BCNC | C74: =DQ58+DQ13*(DQ58/SUM(DQ45,DQ47,DQ58)) -> 8684594.659
B75: Total BCN | C75: =SUM(C72:C74) -> 136785407.5 | D75: =SUM(D72:D74) -> 0 | E75: 0 | F75: 0 | G75: 0
B76: Depreciación D | C76: =DN45+DN13*(DN45/SUM(DN45,DN47,DN58)) -> 7267566.825 | D76: =EP45+EP13*(EP45/SUM(EP45,EP47,EP58)) -> 6700484.88 | E76: =FN45+FN13*(FN45/SUM(FN45,FN47,FN58)) -> 6029146.201 | F76: =GL45+GL13*(GL45/SUM(GL45,GL47,GL58)) -> 5883099.24 | G76: =HJ45+HJ13*(HJ45/SUM(HJ45,HJ47,HJ58)) -> 5584909.267
B77: Depreciación AP | C77: =DN47+DN13*(DN47/SUM(DN45,DN47,DN58)) -> 557212.3729 | D77: =EP47+EP13*(EP47/SUM(EP45,EP47,EP58)) -> 544532.7752 | E77: =FN47+FN13*(FN47/SUM(FN45,FN47,FN58)) -> 490041.3343 | F77: =GL47+GL13*(GL47/SUM(GL45,GL47,GL58)) -> 462184.3582 | G77: =HJ47+HJ13*(HJ47/SUM(HJ45,HJ47,HJ58)) -> 411161.0304
B78: Depreciación C | C78: =DN58+DN13*(DN58/SUM(DN45,DN47,DN58)) -> 699098.9356 | D78: =EP58+EP13*(EP58/SUM(EP45,EP47,EP58)) -> 683190.6506 | E78: =FN58+FN13*(FN58/SUM(FN45,FN47,FN58)) -> 614823.7044 | F78: =GL58+GL13*(GL58/SUM(GL45,GL47,GL58)) -> 584961.9916 | G78: =HJ58+HJ13*(HJ58/SUM(HJ45,HJ47,HJ58)) -> 542800.5527
B79: Total Depreciación | C79: =SUM(C76:C78) -> 8523878.133 | D79: =SUM(D76:D78) -> 7928208.306 | E79: 7134011.24 | F79: 6930245.59 | G79: 6538870.85
B80: % Depreciación s/BC D | C80: =C76/C68 -> 0.02973234048 | D80: =D76/D68 -> 0.0274123517 | E80: 0.02466583823 | F80: 0.02406834555 | G80: 0.02284842064
B81: % Depreciación s/BC AP | C81: =C77/C69 -> 0.03966084497 | D81: =D77/D69 -> 0.03875834606 | E81: 0.03487979509 | F81: 0.03289701211 | G81: 0.02926531189
B82: % Depreciación s/BC C | C82: 0.03665982307 | D82: =D78/D70 -> 0.03582561365 | E82: 0.03224054146 | F82: 0.03067463276 | G82: 0.0284637427
B83: % Total Depreciación | C83: =C79/C71 -> 0.03071088086 | D83: =D79/D71 -> 0.02856472804 | E83: 0.02570329676 | F83: 0.02496914471 | G83: 0.02355905146
B84: Check BC | C84: =C71-DO59 -> 0
B85: Check BCN | C85: =C75-DQ59 -> 0
B86: Check Depreciación | C86: =C79-DN59 -> 0 | D86: =D79-EP59 -> 0 | E86: =E79-FN59 -> 0 | F86: =F79-GL59 -> 0 | G86: =G79-HJ59 -> 0

Sheet PERDIDAS y OTROS
B2: EDECHI
B4: PERDIDAS Y OTROS DATOS
B6: CONCEPTO | D6: UNIDADES | E6: =ACTIVOS!G7 -> JUL22/ JUN23 | F6: =ACTIVOS!H7 -> JUL23 / JUN24 | G6: =ACTIVOS!I7 -> JUL24 / JUN25 | H6: =ACTIVOS!J7 -> JUL25/ JUN26
B8: Costo de la Energía en Mercado Mayorista | C8: CMM | D8: Balboas/MWh | E8: 120.9204859 | F8: 119.6445354 | G8: 129.3038762 | H8: 131.7635628
B9: Pérdidas | C9: PD% | D9: % | E9: =+'Costos y Pérdidas Eficientes'!N83 -> 0.07194480978 | F9: =+'Costos y Pérdidas Eficientes'!O83 -> 0.07190722765 | G9: =+'Costos y Pérdidas Eficientes'!P83 -> 0.07186658682 | H9: =+'Costos y Pérdidas Eficientes'!Q83 -> 0.07182392821 | I9: =AVERAGE(E9:H9) -> 0.07188563811
B10: Pérdidas No Técnicas en Zonas Rojas (PNT) | C10: PD% | D10: % | E10: =1.89%*0.6*0 -> 0 | F10: =1.89%*0.6*0 -> 0 | G10: 0 | H10: 0
B11: Depreciaciones Activos de Distribución | C11: DEP% | D11: % | E11: ='BC y Dep'!C80 -> 0.02973234048 | F11: =+E11 -> 0.02973234048 | G11: =+F11 -> 0.02973234048 | H11: 0.02973234048
B12: Depreciaciones Activos de Comercialización | C12: DEP% | D12: % | E12: ='BC y Dep'!C82 -> 0.03665982307 | F12: =+E12 -> 0.03665982307 | G12: 0.03665982307 | H12: 0.03665982307
B13: Depreciaciones Activos de AP | C13: DEP% | D13: % | E13: ='BC y Dep'!C81 -> 0.03966084497 | F13: 0.03966084497 | G13: 0.03966084497 | H13: 0.03966084497
B14: Operación y Mantenimiento de AP | C14: O&Malum | D14: Miles de Balboas | E14: =ALUMPU!D12 -> 341.8329559 | F14: =ALUMPU!E12 -> 349.0022177 | G14: =ALUMPU!F12 -> 358.5612335 | H14: =ALUMPU!G12 -> 368.1153422

Sheet RETORNO
B1: EDECHI
B2: RETORNO SOBRE CAPITAL DISTRIBUCION
B4: Componentes | D4: Formula | E4: Características | F4: Caso Alto | G4: Caso Medio | H4: Caso Bajo
B5: Tasa Libre de Riesgo en USD | C5: rf | E5: Caso Alto: Rendimiento del UST20, Caso Medio: Rendimiento del UST30 y Caso Bajo: Rendimiento del UST10 - Promedio último año | F5: 2.3475 | G5: 2.295 | H5: 1.9325
B6: Adicional por riesgo local en USD | C6: rc | E6: EMBI+ Panamá - Promedio último año | F6: 2.046666667 | G6: =F6 -> 2.046666667 | H6: =F6 -> 2.046666667
B7: Beta sin apalancamiento [adimensional] | C7: βUSA unl | E7: Beta (Value Line) de utilities eléctricas de US | F7: 0.6 | G7: =F7 -> 0.6 | H7: =F7 -> 0.6
B8: Beta ajustado por apalancamiento [adimensional] | C8: βUSA lev | D8: βUSA unl*[1+(1-t)*D/E] | E8: Beta ajustado por el apalancamiento | F8: =+(F7*((1+(1-(F18/100))*(F24/(1-F24))))) -> 1.02 | G8: =+(G7*((1+(1-(G18/100))*(G24/(1-G24))))) -> 1.131000815 | H8: =+(H7*((1+(1-(H18/100))*(H24/(1-H24))))) -> 1.131000815
B9: Premio por riesgo | C9: pm | D9: rm-rf | E9: Estimado sobre el mercado de EUA como spread entre el rendimiento del UST Bond y el rendimiento del S&P500. Casos Alto y Medio promedio 1928 - 2021. Caso Bajo promedio 1972 - 2021 - [%] | F9: 6.710096191 | G9: =F9 -> 6.710096191 | H9: 5.465070637
B11: Costo Nominal del Capital Propio después de impuestos, en USD | C11: re | D11: rf+rc+β*pm | E11: Aplicación CAPM [%] | F11: =(F5+F6+F8*F9) -> 11.23846478 | G11: =(G5+G6+G8*G9) -> 11.93079093 | H11: =(H5+H6+H8*H9) -> 10.16016601
B13: Componentes | D13: Formula | E13: Características | F13: Caso Alto | G13: =G4 -> Caso Medio | H13: Caso Bajo
B14: =+B5 -> Tasa Libre de Riesgo en USD | C14: rf | E14: =+E5 -> Caso Alto: Rendimiento del UST20, Caso Medio: Rendimiento del UST30 y Caso Bajo: Rendimiento del UST10 - Promedio último año | F14: 2.3475 | G14: 2.295 | H14: =H5 -> 1.9325
B15: =+B6 -> Adicional por riesgo local en USD | C15: rc | E15: EMBI+ Panamá - Promedio último año | F15: 2.046666667 | G15: 2.046666667 | H15: =F15 -> 2.046666667
B16: Adicional por riesgo crediticio | C16: rs | E16: Spread Calificación BBB y Baa2 Caso Alto: Estimación a 30 años. Casos medio y bajo estimación Damodaran 10 años | F16: 1.76 | G16: 1.76 | H16: 1.76
B17: Costo Nominal de la Deuda antes de impuestos , en USD | C17: rd | D17: rF + rC + rS | E17: Resultado [%] | F17: =F14+F15+F16 -> 6.154166667 | G17: =G14+G15+G16 -> 6.101666667 | H17: =H14+H15+H16 -> 5.739166667
B18: Tasa impositiva | C18: t | E18: Alícuota Impuesto a las Ganancias [%] | F18: 30 | G18: 30 | H18: =F18 -> 30
B19: Costo Nominal de la Deuda después de impuestos, en USD | C19: r'd | D19: rd*(1-t) | E19: Resultado [%] | F19: =(F17)*(1-F18/100) -> 4.307916667 | G19: =(G17)*(1-G18/100) -> 4.271166667 | H19: =(H17)*(1-H18/100) -> 4.017416667
B21: Componentes | D21: Formula | E21: Características | F21: Caso Alto | G21: =G13 -> Caso Medio | H21: Caso Bajo
B22: Costo Nominal del Capital Propio después de impuestos , en USD | C22: re | D22: rF+rL+βL*rM | E22: Aplicación CAPM [%] | F22: =+F11 -> 11.23846478 | G22: =+G11 -> 11.93079093 | H22: =+H11 -> 10.16016601
B23: Costo Nominal de la Deuda después de impuestos , en USD | C23: r'd | D23: rd*(1-t) | E23: Resultado [%] | F23: =+F19 -> 4.307916667 | G23: =+G19 -> 4.271166667 | H23: =+H19 -> 4.017416667
B24: Estructura de capital | C24: WD | D24: D/(D+E) | E24: Casos Alto y Medio: IMP de transmisión del período 2017-2021, Caso Bajo: Promedio paises | F24: 0.5 | G24: 0.55836 | H24: 0.55836
B25: Costo Nominal del Capital después de impuestos, en USD | C25: WACC | D25: rE*(1-WD)+rD'*WD | E25: Aplicación WACC [%] | F25: =F19*F24+(1-F24)*F11 -> 7.773190724 | G25: =G19*G24+(1-G24)*G11 -> 7.653963126 | H25: =H19*H24+(1-H24)*H11 -> 6.730300488
B27: Componentes | D27: Formula | E27: Características | F27: Caso Alto | G27: =G21 -> Caso Medio | H27: Caso Bajo
B28: Costo Nominal del Capital después de impuestos, en USD | C28: WACC | D28: re*(1-Wd)+rd'*Wd | E28: Aplicación WACC [%] | F28: =+F25 -> 7.773190724 | G28: =+G25 -> 7.653963126 | H28: =+H25 -> 6.730300488
B29: Inflación en USD | C29: πUSA | E29: Casos Alto y Medio: Spread del rendimientos de los bonos del tesoro de EUA no indexados e indexados (UST y TIPS) a 30 años - Promedio mensual - último año. Caso Medio: Crecimiento interanual promedio inflación estimada FMI 2022 - 2026 | F29: 2.341666667 | G29: =F29 -> 2.341666667 | H29: 3.357360764
B30: Prima por Riesgo Cambiario | C30: PRC | E30: Diferencia entre el dólar futuro (ROFEX) y el observado - [%] | F30: =#REF!*100*0 ->  | G30: =#REF!*100*0 ->  | H30: =#REF!*100*0 -> 
B31: Costo Real del Capital antes de impuestos | C31: WACCR | D31: [WACC/(1-t)-πEUA]/(1+πEUA) | E31: Resultado fórmula WACC - [%] | F31: =(((F28/100)/(1-(F18/100))-(F29/100))/(1+(F29/100)))*100 -> 8.562388904 | G31: =(((G28/100)/(1-(G18/100))-(G29/100))/(1+(G29/100)))*100 -> 8.395960951 | H31: 6.054096362
B34: RETORNO SOBRE CAPITAL DISTRIBUCION
B36: A. RESOLUCIÓN ASEP
B38: TASA DE RENTABILIDAD PARA IMP | D38: 0.088
B40: B. REFERENCIAL
B42: WACC REAL ANTES. IMPUESTOS | D42: =F31/100 -> 0.08562388904
B43: WACC REAL ANTES. IMPUESTOS | D43: =G31/100 -> 0.08395960951
B44: WACC REAL ANTES. IMPUESTOS BAJO | D44: =H31/100 -> 0.06054096362
